Workbook

Sheet Points
B2: Detailed model has the real calculations
B3: Detailed model also has sumif at the end -- where it should be
B4: Always have period counter
B6: In Detail
B7: 1. Use Switch with MOD
B8: 2. Create Counter with Spaces
B9: 3. Create Year/Quarter/Semi-Annual for SUMIF
B10: 5. For quarter and half-year use functions
B11: 6. Create Counter for Sub-total with 13,4,or 7
B12: 7. Use the SUMIF on the Same Row
B14: In Summary
B15: 8. Use Match with Counter to put
B16: 9. Entire Second Sheet with Index
B17: 10. Conditional Format for Sub-total period

Sheet Detailed Model
A2: Period | IX2: Annual Totals | JU2: Quarterly | MK2: Half year
B3: Period Number (EIS) | G3: 1 | H3: 2 | I3: 3 | J3: 4 | K3: 5 | L3: 6 | M3: 7 | N3: 8 | O3: 9 | P3: 10 | Q3: 11 | R3: 12 | S3: 13 | T3: 14 | U3: 15 | V3: 16 | W3: 17 | X3: 18 | Y3: 19 | Z3: 20 | AA3: 21 | AB3: 22 | AC3: 23 | AD3: 24 | AE3: 25 | AF3: 26 | AG3: 27 | AH3: 28 | AI3: 29 | AJ3: 30 | AK3: 31 | AL3: 32 | AM3: 33 | AN3: 34 | AO3: 35 | AP3: 36 | AQ3: 37 | AR3: 38 | AS3: 39 | AT3: 40 | AU3: 41 | AV3: 42 | AW3: 43 | AX3: 44 | AY3: 45 | AZ3: 46 | BA3: 47 | BB3: 48 | BC3: 49 | BD3: 50 | BE3: 51 | BF3: 52 | BG3: 53 | BH3: 54 | BI3: 55 | BJ3: 56 | BK3: 57 | BL3: 58 | BM3: 59 | BN3: 60 | BO3: 61 | BP3: 62 | BQ3: 63 | BR3: 64 | BS3: 65 | BT3: 66 | BU3: 67 | BV3: 68 | BW3: 69 | BX3: 70 | BY3: 71 | BZ3: 72 | CA3: 73 | CB3: 74 | CC3: 75 | CD3: 76 | CE3: 77 | CF3: 78 | CG3: 79 | CH3: 80 | CI3: 81 | CJ3: 82 | CK3: 83 | CL3: 84 | CM3: 85 | CN3: 86 | CO3: 87 | CP3: 88 | CQ3: 89 | CR3: 90 | CS3: 91 | CT3: 92 | CU3: 93 | CV3: 94 | CW3: 95 | CX3: 96 | CY3: 97 | CZ3: 98 | DA3: 99 | DB3: 100 | DC3: 101 | DD3: 102 | DE3: 103 | DF3: 104 | DG3: 105 | DH3: 106 | DI3: 107 | DJ3: 108 | DK3: 109 | DL3: 110 | DM3: 111 | DN3: 112 | DO3: 113 | DP3: 114 | DQ3: 115 | DR3: 116 | DS3: 117 | DT3: 118 | DU3: 119 | DV3: 120 | DW3: 121 | DX3: 122 | DY3: 123 | DZ3: 124 | EA3: 125 | EB3: 126 | EC3: 127 | ED3: 128 | EE3: 129 | EF3: 130 | EG3: 131 | EH3: 132 | EI3: 133 | EJ3: 134 | EK3: 135 | EL3: 136 | EM3: 137 | EN3: 138 | EO3: 139 | EP3: 140 | EQ3: 141 | ER3: 142 | ES3: 143 | ET3: 144 | EU3: 145 | EV3: 146 | EW3: 147 | EX3: 148 | EY3: 149 | EZ3: 150 | FA3: 151 | FB3: 152 | FC3: 153 | FD3: 154 | FE3: 155 | FF3: 156 | FG3: 157 | FH3: 158 | FI3: 159 | FJ3: 160 | FK3: 161 | FL3: 162 | FM3: 163 | FN3: 164 | FO3: 165 | FP3: 166 | FQ3: 167 | FR3: 168 | FS3: 169 | FT3: 170 | FU3: 171 | FV3: 172 | FW3: 173 | FX3: 174 | FY3: 175 | FZ3: 176 | GA3: 177 | GB3: 178 | GC3: 179 | GD3: 180 | GE3: 181 | GF3: 182 | GG3: 183 | GH3: 184 | GI3: 185 | GJ3: 186 | GK3: 187 | GL3: 188 | GM3: 189 | GN3: 190 | GO3: 191 | GP3: 192 | GQ3: 193 | GR3: 194 | GS3: 195 | GT3: 196 | GU3: 197 | GV3: 198 | GW3: 199 | GX3: 200 | GY3: 201 | GZ3: 202 | HA3: 203 | HB3: 204 | HC3: 205 | HD3: 206 | HE3: 207 | HF3: 208 | HG3: 209 | HH3: 210 | HI3: 211 | HJ3: 212 | HK3: 213 | HL3: 214 | HM3: 215 | HN3: 216 | HO3: 217 | HP3: 218 | HQ3: 219 | HR3: 220 | HS3: 221 | HT3: 222 | HU3: 223 | HV3: 224 | HW3: 225 | HX3: 226 | HY3: 227 | HZ3: 228 | IA3: 229 | IB3: 230 | IC3: 231 | ID3: 232 | IE3: 233 | IF3: 234 | IG3: 235 | IH3: 236 | II3: 237 | IJ3: 238 | IK3: 239 | IL3: 240 | IM3: 241 | IN3: 242 | IO3: 243 | IP3: 244 | IQ3: 245 | IR3: 246 | IS3: 247 | IT3: 248 | IU3: 249 | IV3: 250
B4: Date | G4: 2017-01-01 | H4: =EDATE(G4,1) -> 2017-02-01 | I4: =EDATE(H4,1) -> 2017-03-01 | J4: 2017-04-01 | K4: 2017-05-01 | L4: 2017-06-01 | M4: 2017-07-01 | N4: 2017-08-01 | O4: 2017-09-01 | P4: 2017-10-01 | Q4: 2017-11-01 | R4: 2017-12-01 | S4: 2018-01-01 | T4: 2018-02-01 | U4: 2018-03-01 | V4: 2018-04-01 | W4: 2018-05-01 | X4: 2018-06-01 | Y4: 2018-07-01 | Z4: 2018-08-01 | AA4: 2018-09-01 | AB4: 2018-10-01 | AC4: 2018-11-01 | AD4: 2018-12-01 | AE4: 2019-01-01 | AF4: 2019-02-01 | AG4: 2019-03-01 | AH4: 2019-04-01 | AI4: 2019-05-01 | AJ4: 2019-06-01 | AK4: 2019-07-01 | AL4: 2019-08-01 | AM4: 2019-09-01 | AN4: 2019-10-01 | AO4: 2019-11-01 | AP4: 2019-12-01 | AQ4: 2020-01-01 | AR4: 2020-02-01 | AS4: 2020-03-01 | AT4: 2020-04-01 | AU4: 2020-05-01 | AV4: 2020-06-01 | AW4: 2020-07-01 | AX4: 2020-08-01 | AY4: 2020-09-01 | AZ4: 2020-10-01 | BA4: 2020-11-01 | BB4: 2020-12-01 | BC4: 2021-01-01 | BD4: 2021-02-01 | BE4: 2021-03-01 | BF4: 2021-04-01 | BG4: 2021-05-01 | BH4: 2021-06-01 | BI4: 2021-07-01 | BJ4: 2021-08-01 | BK4: 2021-09-01 | BL4: 2021-10-01 | BM4: 2021-11-01 | BN4: 2021-12-01 | BO4: 2022-01-01 | BP4: 2022-02-01 | BQ4: 2022-03-01 | BR4: 2022-04-01 | BS4: 2022-05-01 | BT4: 2022-06-01 | BU4: =EDATE(BT4,1) -> 2022-07-01 | BV4: 2022-08-01 | BW4: 2022-09-01 | BX4: 2022-10-01 | BY4: 2022-11-01 | BZ4: 2022-12-01 | CA4: 2023-01-01 | CB4: 2023-02-01 | CC4: 2023-03-01 | CD4: 2023-04-01 | CE4: 2023-05-01 | CF4: 2023-06-01 | CG4: 2023-07-01 | CH4: 2023-08-01 | CI4: 2023-09-01 | CJ4: 2023-10-01 | CK4: 2023-11-01 | CL4: 2023-12-01 | CM4: 2024-01-01 | CN4: 2024-02-01 | CO4: 2024-03-01 | CP4: 2024-04-01 | CQ4: 2024-05-01 | CR4: 2024-06-01 | CS4: 2024-07-01 | CT4: 2024-08-01 | CU4: 2024-09-01 | CV4: 2024-10-01 | CW4: 2024-11-01 | CX4: 2024-12-01 | CY4: 2025-01-01 | CZ4: 2025-02-01 | DA4: 2025-03-01 | DB4: 2025-04-01 | DC4: 2025-05-01 | DD4: 2025-06-01 | DE4: 2025-07-01 | DF4: 2025-08-01 | DG4: 2025-09-01 | DH4: 2025-10-01 | DI4: 2025-11-01 | DJ4: 2025-12-01 | DK4: 2026-01-01 | DL4: 2026-02-01 | DM4: 2026-03-01 | DN4: 2026-04-01 | DO4: 2026-05-01 | DP4: 2026-06-01 | DQ4: 2026-07-01 | DR4: 2026-08-01 | DS4: 2026-09-01 | DT4: 2026-10-01 | DU4: 2026-11-01 | DV4: 2026-12-01 | DW4: 2027-01-01 | DX4: 2027-02-01 | DY4: 2027-03-01 | DZ4: 2027-04-01 | EA4: 2027-05-01 | EB4: 2027-06-01 | EC4: 2027-07-01 | ED4: 2027-08-01 | EE4: 2027-09-01 | EF4: 2027-10-01 | EG4: =EDATE(EF4,1) -> 2027-11-01 | EH4: 2027-12-01 | EI4: 2028-01-01 | EJ4: 2028-02-01 | EK4: 2028-03-01 | EL4: 2028-04-01 | EM4: 2028-05-01 | EN4: 2028-06-01 | EO4: 2028-07-01 | EP4: 2028-08-01 | EQ4: 2028-09-01 | ER4: 2028-10-01 | ES4: 2028-11-01 | ET4: 2028-12-01 | EU4: 2029-01-01 | EV4: 2029-02-01 | EW4: 2029-03-01 | EX4: 2029-04-01 | EY4: 2029-05-01 | EZ4: 2029-06-01 | FA4: 2029-07-01 | FB4: 2029-08-01 | FC4: 2029-09-01 | FD4: 2029-10-01 | FE4: 2029-11-01 | FF4: 2029-12-01 | FG4: 2030-01-01 | FH4: 2030-02-01 | FI4: 2030-03-01 | FJ4: 2030-04-01 | FK4: 2030-05-01 | FL4: 2030-06-01 | FM4: 2030-07-01 | FN4: 2030-08-01 | FO4: 2030-09-01 | FP4: 2030-10-01 | FQ4: 2030-11-01 | FR4: 2030-12-01 | FS4: 2031-01-01 | FT4: 2031-02-01 | FU4: 2031-03-01 | FV4: 2031-04-01 | FW4: 2031-05-01 | FX4: 2031-06-01 | FY4: 2031-07-01 | FZ4: 2031-08-01 | GA4: 2031-09-01 | GB4: 2031-10-01 | GC4: 2031-11-01 | GD4: 2031-12-01 | GE4: 2032-01-01 | GF4: 2032-02-01 | GG4: 2032-03-01 | GH4: 2032-04-01 | GI4: 2032-05-01 | GJ4: 2032-06-01 | GK4: 2032-07-01 | GL4: 2032-08-01 | GM4: 2032-09-01 | GN4: 2032-10-01 | GO4: 2032-11-01 | GP4: 2032-12-01 | GQ4: 2033-01-01 | GR4: 2033-02-01 | GS4: =EDATE(GR4,1) -> 2033-03-01 | GT4: 2033-04-01 | GU4: 2033-05-01 | GV4: 2033-06-01 | GW4: 2033-07-01 | GX4: 2033-08-01 | GY4: 2033-09-01 | GZ4: 2033-10-01 | HA4: 2033-11-01 | HB4: 2033-12-01 | HC4: 2034-01-01 | HD4: 2034-02-01 | HE4: 2034-03-01 | HF4: 2034-04-01 | HG4: 2034-05-01 | HH4: 2034-06-01 | HI4: 2034-07-01 | HJ4: 2034-08-01 | HK4: 2034-09-01 | HL4: 2034-10-01 | HM4: 2034-11-01 | HN4: 2034-12-01 | HO4: 2035-01-01 | HP4: 2035-02-01 | HQ4: 2035-03-01 | HR4: 2035-04-01 | HS4: 2035-05-01 | HT4: 2035-06-01 | HU4: 2035-07-01 | HV4: 2035-08-01 | HW4: 2035-09-01 | HX4: 2035-10-01 | HY4: 2035-11-01 | HZ4: 2035-12-01 | IA4: 2036-01-01 | IB4: 2036-02-01 | IC4: 2036-03-01 | ID4: 2036-04-01 | IE4: 2036-05-01 | IF4: 2036-06-01 | IG4: 2036-07-01 | IH4: 2036-08-01 | II4: 2036-09-01 | IJ4: 2036-10-01 | IK4: 2036-11-01 | IL4: 2036-12-01 | IM4: 2037-01-01 | IN4: 2037-02-01 | IO4: 2037-03-01 | IP4: 2037-04-01 | IQ4: 2037-05-01 | IR4: 2037-06-01 | IS4: 2037-07-01 | IT4: 2037-08-01 | IU4: 2037-09-01 | IV4: 2037-10-01 | IX4: =DATE(IX7,12,31) -> 2017-12-31 | IY4: =DATE(IY7,12,31) -> 2018-12-31 | IZ4: 2019-12-31 | JA4: 2020-12-31 | JB4: 2021-12-31 | JC4: 2022-12-31 | JD4: 2023-12-31 | JE4: 2024-12-31 | JF4: 2025-12-31 | JG4: 2026-12-31 | JH4: 2027-12-31 | JI4: 2028-12-31 | JJ4: 2029-12-31 | JK4: 2030-12-31 | JL4: 2031-12-31 | JM4: 2032-12-31 | JN4: 2033-12-31 | JO4: 2034-12-31 | JP4: 2035-12-31 | JQ4: 2036-12-31 | JR4: 2037-12-31 | JU4: =JU7 -> 2017-03-31 | JV4: =JV7 -> 2017-06-30 | JW4: 2017-09-30 | JX4: 2017-12-31 | JY4: 2018-03-31 | JZ4: 2018-06-30 | KA4: 2018-09-30 | KB4: 2018-12-31 | KC4: 2019-03-31 | KD4: 2019-06-30 | KE4: 2019-09-30 | KF4: 2019-12-31 | KG4: 2020-03-31 | KH4: 2020-06-30 | KI4: 2020-09-30 | KJ4: 2020-12-31 | KK4: 2021-03-31 | KL4: 2021-06-30 | KM4: 2021-09-30 | KN4: 2021-12-31 | KO4: 2022-03-31 | KP4: 2022-06-30 | KQ4: 2022-09-30 | KR4: 2022-12-31 | KS4: 2023-03-31 | KT4: 2023-06-30 | KU4: 2023-09-30 | KV4: 2023-12-31 | KW4: 2024-03-31 | KX4: 2024-06-30 | KY4: 2024-09-30 | KZ4: 2024-12-31 | LA4: 2025-03-31 | LB4: 2025-06-30 | LC4: 2025-09-30 | LD4: 2025-12-31 | LE4: 2026-03-31 | LF4: 2026-06-30 | LG4: 2026-09-30 | LH4: 2026-12-31 | LI4: 2027-03-31 | LJ4: 2027-06-30 | LK4: 2027-09-30 | LL4: 2027-12-31 | LM4: 2028-03-31 | LN4: 2028-06-30 | LO4: 2028-09-30 | LP4: 2028-12-31 | LQ4: 2029-03-31 | LR4: 2029-06-30 | LS4: 2029-09-30 | LT4: 2029-12-31 | LU4: 2030-03-31 | LV4: 2030-06-30 | LW4: 2030-09-30 | LX4: 2030-12-31 | LY4: 2031-03-31 | LZ4: 2031-06-30 | MA4: 2031-09-30 | MB4: 2031-12-31 | MC4: 2032-03-31 | MD4: 2032-06-30 | ME4: 2032-09-30 | MF4: 2032-12-31 | MG4: 2033-03-31 | MH4: =MH7 -> 2033-06-30 | MI4: 2033-09-30 | MK4: =G13 -> 2017-06-30 | ML4: =EOMONTH(MK4,6) -> 2017-12-31 | MM4: =EOMONTH(ML4,6) -> 2018-06-30 | MN4: 2018-12-31 | MO4: 2019-06-30 | MP4: 2019-12-31 | MQ4: 2020-06-30 | MR4: 2020-12-31 | MS4: 2021-06-30 | MT4: 2021-12-31 | MU4: 2022-06-30 | MV4: 2022-12-31 | MW4: 2023-06-30 | MX4: 2023-12-31 | MY4: 2024-06-30 | MZ4: 2024-12-31 | NA4: 2025-06-30 | NB4: 2025-12-31 | NC4: 2026-06-30 | ND4: 2026-12-31 | NE4: 2027-06-30 | NF4: 2027-12-31 | NG4: 2028-06-30 | NH4: 2028-12-31 | NI4: 2029-06-30 | NJ4: 2029-12-31 | NK4: 2030-06-30 | NL4: 2030-12-31 | NM4: 2031-06-30 | NN4: 2031-12-31 | NO4: 2032-06-30 | NP4: 2032-12-31 | NQ4: 2033-06-30 | NR4: 2033-12-31 | NS4: 2034-06-30 | NT4: 2034-12-31 | NU4: 2035-06-30 | NV4: 2035-12-31 | NW4: 2036-06-30 | NX4: 2036-12-31 | NY4: =EOMONTH(NX4,6) -> 2037-06-30
B5: Start of Year (MOD with Counter) | H5: =MOD(G3,12)=0 -> FALSE | I5: FALSE | J5: FALSE | K5: FALSE | L5: FALSE | M5: FALSE | N5: FALSE | O5: FALSE | P5: FALSE | Q5: FALSE | R5: FALSE | S5: TRUE | T5: FALSE | U5: =MOD(T3,12)=0 -> FALSE | V5: FALSE | W5: FALSE | X5: FALSE | Y5: FALSE | Z5: FALSE | AA5: FALSE | AB5: FALSE | AC5: FALSE | AD5: FALSE | AE5: TRUE | AF5: FALSE | AG5: FALSE | AH5: FALSE | AI5: FALSE | AJ5: FALSE | AK5: FALSE | AL5: FALSE | AM5: FALSE | AN5: FALSE | AO5: FALSE | AP5: FALSE | AQ5: TRUE | AR5: FALSE | AS5: FALSE | AT5: FALSE | AU5: FALSE | AV5: FALSE | AW5: FALSE | AX5: FALSE | AY5: FALSE | AZ5: FALSE | BA5: FALSE | BB5: FALSE | BC5: TRUE | BD5: FALSE | BE5: FALSE | BF5: FALSE | BG5: FALSE | BH5: FALSE | BI5: FALSE | BJ5: FALSE | BK5: FALSE | BL5: FALSE | BM5: FALSE | BN5: FALSE | BO5: TRUE | BP5: FALSE | BQ5: FALSE | BR5: FALSE | BS5: FALSE | BT5: =MOD(BS3,12)=0 -> FALSE | BU5: FALSE | BV5: FALSE | BW5: FALSE | BX5: FALSE | BY5: FALSE | BZ5: FALSE | CA5: TRUE | CB5: FALSE | CC5: FALSE | CD5: FALSE | CE5: FALSE | CF5: FALSE | CG5: FALSE | CH5: FALSE | CI5: FALSE | CJ5: FALSE | CK5: FALSE | CL5: FALSE | CM5: TRUE | CN5: FALSE | CO5: FALSE | CP5: FALSE | CQ5: FALSE | CR5: FALSE | CS5: FALSE | CT5: FALSE | CU5: FALSE | CV5: FALSE | CW5: FALSE | CX5: FALSE | CY5: TRUE | CZ5: FALSE | DA5: FALSE | DB5: FALSE | DC5: FALSE | DD5: FALSE | DE5: FALSE | DF5: FALSE | DG5: FALSE | DH5: FALSE | DI5: FALSE | DJ5: FALSE | DK5: TRUE | DL5: FALSE | DM5: FALSE | DN5: FALSE | DO5: FALSE | DP5: FALSE | DQ5: FALSE | DR5: FALSE | DS5: FALSE | DT5: FALSE | DU5: FALSE | DV5: FALSE | DW5: TRUE | DX5: FALSE | DY5: FALSE | DZ5: FALSE | EA5: FALSE | EB5: FALSE | EC5: FALSE | ED5: FALSE | EE5: FALSE | EF5: =MOD(EE3,12)=0 -> FALSE | EG5: FALSE | EH5: FALSE | EI5: TRUE | EJ5: FALSE | EK5: FALSE | EL5: FALSE | EM5: FALSE | EN5: FALSE | EO5: FALSE | EP5: FALSE | EQ5: FALSE | ER5: FALSE | ES5: FALSE | ET5: FALSE | EU5: TRUE | EV5: FALSE | EW5: FALSE | EX5: FALSE | EY5: FALSE | EZ5: FALSE | FA5: FALSE | FB5: FALSE | FC5: FALSE | FD5: FALSE | FE5: FALSE | FF5: FALSE | FG5: TRUE | FH5: FALSE | FI5: FALSE | FJ5: FALSE | FK5: FALSE | FL5: FALSE | FM5: FALSE | FN5: FALSE | FO5: FALSE | FP5: FALSE | FQ5: FALSE | FR5: FALSE | FS5: TRUE | FT5: FALSE | FU5: FALSE | FV5: FALSE | FW5: FALSE | FX5: FALSE | FY5: FALSE | FZ5: FALSE | GA5: FALSE | GB5: FALSE | GC5: FALSE | GD5: FALSE | GE5: TRUE | GF5: FALSE | GG5: FALSE | GH5: FALSE | GI5: FALSE | GJ5: FALSE | GK5: FALSE | GL5: FALSE | GM5: FALSE | GN5: FALSE | GO5: FALSE | GP5: FALSE | GQ5: TRUE | GR5: =MOD(GQ3,12)=0 -> FALSE | GS5: FALSE | GT5: FALSE | GU5: FALSE | GV5: FALSE | GW5: FALSE | GX5: FALSE | GY5: FALSE | GZ5: FALSE | HA5: FALSE | HB5: FALSE | HC5: TRUE | HD5: FALSE | HE5: FALSE | HF5: FALSE | HG5: FALSE | HH5: FALSE | HI5: FALSE | HJ5: FALSE | HK5: FALSE | HL5: FALSE | HM5: FALSE | HN5: FALSE | HO5: TRUE | HP5: FALSE | HQ5: FALSE | HR5: FALSE | HS5: FALSE | HT5: FALSE | HU5: FALSE | HV5: FALSE | HW5: FALSE | HX5: FALSE | HY5: FALSE | HZ5: FALSE | IA5: TRUE | IB5: FALSE | IC5: FALSE | ID5: FALSE | IE5: FALSE | IF5: FALSE | IG5: FALSE | IH5: FALSE | II5: FALSE | IJ5: FALSE | IK5: FALSE | IL5: FALSE | IM5: TRUE | IN5: FALSE | IO5: FALSE | IP5: FALSE | IQ5: FALSE | IR5: FALSE | IS5: FALSE | IT5: FALSE | IU5: FALSE | IV5: FALSE
B6: Adjusted Counter (IF with Alternative Increment) | G6: 1 | H6: =IF(H5,G6+2,G6+1) -> 2 | I6: =IF(I5,H6+2,H6+1) -> 3 | J6: 4 | K6: 5 | L6: 6 | M6: 7 | N6: 8 | O6: 9 | P6: 10 | Q6: 11 | R6: 12 | S6: 14 | T6: 15 | U6: 16 | V6: 17 | W6: 18 | X6: 19 | Y6: 20 | Z6: 21 | AA6: 22 | AB6: 23 | AC6: 24 | AD6: 25 | AE6: 27 | AF6: 28 | AG6: 29 | AH6: 30 | AI6: 31 | AJ6: 32 | AK6: 33 | AL6: 34 | AM6: 35 | AN6: 36 | AO6: 37 | AP6: 38 | AQ6: 40 | AR6: 41 | AS6: 42 | AT6: 43 | AU6: 44 | AV6: 45 | AW6: 46 | AX6: 47 | AY6: 48 | AZ6: 49 | BA6: 50 | BB6: 51 | BC6: 53 | BD6: 54 | BE6: 55 | BF6: 56 | BG6: 57 | BH6: 58 | BI6: 59 | BJ6: 60 | BK6: 61 | BL6: 62 | BM6: 63 | BN6: 64 | BO6: 66 | BP6: 67 | BQ6: 68 | BR6: 69 | BS6: 70 | BT6: 71 | BU6: =IF(BU5,BT6+2,BT6+1) -> 72 | BV6: 73 | BW6: 74 | BX6: 75 | BY6: 76 | BZ6: 77 | CA6: 79 | CB6: 80 | CC6: 81 | CD6: 82 | CE6: 83 | CF6: 84 | CG6: 85 | CH6: 86 | CI6: 87 | CJ6: 88 | CK6: 89 | CL6: 90 | CM6: 92 | CN6: 93 | CO6: 94 | CP6: 95 | CQ6: 96 | CR6: 97 | CS6: 98 | CT6: 99 | CU6: 100 | CV6: 101 | CW6: 102 | CX6: 103 | CY6: 105 | CZ6: 106 | DA6: 107 | DB6: 108 | DC6: 109 | DD6: 110 | DE6: 111 | DF6: 112 | DG6: 113 | DH6: 114 | DI6: 115 | DJ6: 116 | DK6: 118 | DL6: 119 | DM6: 120 | DN6: 121 | DO6: 122 | DP6: 123 | DQ6: 124 | DR6: 125 | DS6: 126 | DT6: 127 | DU6: 128 | DV6: 129 | DW6: 131 | DX6: 132 | DY6: 133 | DZ6: 134 | EA6: 135 | EB6: 136 | EC6: 137 | ED6: 138 | EE6: 139 | EF6: 140 | EG6: =IF(EG5,EF6+2,EF6+1) -> 141 | EH6: 142 | EI6: 144 | EJ6: 145 | EK6: 146 | EL6: 147 | EM6: 148 | EN6: 149 | EO6: 150 | EP6: 151 | EQ6: 152 | ER6: 153 | ES6: 154 | ET6: 155 | EU6: 157 | EV6: 158 | EW6: 159 | EX6: 160 | EY6: 161 | EZ6: 162 | FA6: 163 | FB6: 164 | FC6: 165 | FD6: 166 | FE6: 167 | FF6: 168 | FG6: 170 | FH6: 171 | FI6: 172 | FJ6: 173 | FK6: 174 | FL6: 175 | FM6: 176 | FN6: 177 | FO6: 178 | FP6: 179 | FQ6: 180 | FR6: 181 | FS6: 183 | FT6: 184 | FU6: 185 | FV6: 186 | FW6: 187 | FX6: 188 | FY6: 189 | FZ6: 190 | GA6: 191 | GB6: 192 | GC6: 193 | GD6: 194 | GE6: 196 | GF6: 197 | GG6: 198 | GH6: 199 | GI6: 200 | GJ6: 201 | GK6: 202 | GL6: 203 | GM6: 204 | GN6: 205 | GO6: 206 | GP6: 207 | GQ6: 209 | GR6: 210 | GS6: =IF(GS5,GR6+2,GR6+1) -> 211 | GT6: 212 | GU6: 213 | GV6: 214 | GW6: 215 | GX6: 216 | GY6: 217 | GZ6: 218 | HA6: 219 | HB6: 220 | HC6: 222 | HD6: 223 | HE6: 224 | HF6: 225 | HG6: 226 | HH6: 227 | HI6: 228 | HJ6: 229 | HK6: 230 | HL6: 231 | HM6: 232 | HN6: 233 | HO6: 235 | HP6: 236 | HQ6: 237 | HR6: 238 | HS6: 239 | HT6: 240 | HU6: 241 | HV6: 242 | HW6: 243 | HX6: 244 | HY6: 245 | HZ6: 246 | IA6: 248 | IB6: 249 | IC6: 250 | ID6: 251 | IE6: 252 | IF6: 253 | IG6: 254 | IH6: 255 | II6: 256 | IJ6: 257 | IK6: 258 | IL6: 259 | IM6: 261 | IN6: 262 | IO6: 263 | IP6: 264 | IQ6: 265 | IR6: 266 | IS6: 267 | IT6: 268 | IU6: 269 | IV6: 270 | IX6: 13 | IY6: =IX6+13 -> 26 | IZ6: =IY6+13 -> 39 | JA6: 52 | JB6: 65 | JC6: 78 | JD6: 91 | JE6: 104 | JF6: 117 | JG6: 130 | JH6: 143 | JI6: 156 | JJ6: 169 | JK6: 182 | JL6: 195 | JM6: 208 | JN6: 221 | JO6: 234 | JP6: 247 | JQ6: 260 | JR6: 273
B7: Year | G7: =YEAR(G4) -> 2017 | H7: =YEAR(H4) -> 2017 | I7: 2017 | J7: 2017 | K7: 2017 | L7: 2017 | M7: 2017 | N7: 2017 | O7: 2017 | P7: 2017 | Q7: 2017 | R7: 2017 | S7: 2018 | T7: 2018 | U7: 2018 | V7: 2018 | W7: 2018 | X7: 2018 | Y7: 2018 | Z7: 2018 | AA7: 2018 | AB7: 2018 | AC7: 2018 | AD7: 2018 | AE7: 2019 | AF7: 2019 | AG7: 2019 | AH7: 2019 | AI7: 2019 | AJ7: 2019 | AK7: 2019 | AL7: 2019 | AM7: 2019 | AN7: 2019 | AO7: 2019 | AP7: 2019 | AQ7: 2020 | AR7: 2020 | AS7: 2020 | AT7: 2020 | AU7: 2020 | AV7: 2020 | AW7: 2020 | AX7: 2020 | AY7: 2020 | AZ7: 2020 | BA7: 2020 | BB7: 2020 | BC7: 2021 | BD7: 2021 | BE7: 2021 | BF7: 2021 | BG7: 2021 | BH7: 2021 | BI7: 2021 | BJ7: 2021 | BK7: 2021 | BL7: 2021 | BM7: 2021 | BN7: 2021 | BO7: 2022 | BP7: 2022 | BQ7: 2022 | BR7: 2022 | BS7: 2022 | BT7: =YEAR(BT4) -> 2022 | BU7: 2022 | BV7: 2022 | BW7: 2022 | BX7: 2022 | BY7: 2022 | BZ7: 2022 | CA7: 2023 | CB7: 2023 | CC7: 2023 | CD7: 2023 | CE7: 2023 | CF7: 2023 | CG7: 2023 | CH7: 2023 | CI7: 2023 | CJ7: 2023 | CK7: 2023 | CL7: 2023 | CM7: 2024 | CN7: 2024 | CO7: 2024 | CP7: 2024 | CQ7: 2024 | CR7: 2024 | CS7: 2024 | CT7: 2024 | CU7: 2024 | CV7: 2024 | CW7: 2024 | CX7: 2024 | CY7: 2025 | CZ7: 2025 | DA7: 2025 | DB7: 2025 | DC7: 2025 | DD7: 2025 | DE7: 2025 | DF7: 2025 | DG7: 2025 | DH7: 2025 | DI7: 2025 | DJ7: 2025 | DK7: 2026 | DL7: 2026 | DM7: 2026 | DN7: 2026 | DO7: 2026 | DP7: 2026 | DQ7: 2026 | DR7: 2026 | DS7: 2026 | DT7: 2026 | DU7: 2026 | DV7: 2026 | DW7: 2027 | DX7: 2027 | DY7: 2027 | DZ7: 2027 | EA7: 2027 | EB7: 2027 | EC7: 2027 | ED7: 2027 | EE7: 2027 | EF7: =YEAR(EF4) -> 2027 | EG7: 2027 | EH7: 2027 | EI7: 2028 | EJ7: 2028 | EK7: 2028 | EL7: 2028 | EM7: 2028 | EN7: 2028 | EO7: 2028 | EP7: 2028 | EQ7: 2028 | ER7: 2028 | ES7: 2028 | ET7: 2028 | EU7: 2029 | EV7: 2029 | EW7: 2029 | EX7: 2029 | EY7: 2029 | EZ7: 2029 | FA7: 2029 | FB7: 2029 | FC7: 2029 | FD7: 2029 | FE7: 2029 | FF7: 2029 | FG7: 2030 | FH7: 2030 | FI7: 2030 | FJ7: 2030 | FK7: 2030 | FL7: 2030 | FM7: 2030 | FN7: 2030 | FO7: 2030 | FP7: 2030 | FQ7: 2030 | FR7: 2030 | FS7: 2031 | FT7: 2031 | FU7: 2031 | FV7: 2031 | FW7: 2031 | FX7: 2031 | FY7: 2031 | FZ7: 2031 | GA7: 2031 | GB7: 2031 | GC7: 2031 | GD7: 2031 | GE7: 2032 | GF7: 2032 | GG7: 2032 | GH7: 2032 | GI7: 2032 | GJ7: 2032 | GK7: 2032 | GL7: 2032 | GM7: 2032 | GN7: 2032 | GO7: 2032 | GP7: 2032 | GQ7: 2033 | GR7: =YEAR(GR4) -> 2033 | GS7: 2033 | GT7: 2033 | GU7: 2033 | GV7: 2033 | GW7: 2033 | GX7: 2033 | GY7: 2033 | GZ7: 2033 | HA7: 2033 | HB7: 2033 | HC7: 2034 | HD7: 2034 | HE7: 2034 | HF7: 2034 | HG7: 2034 | HH7: 2034 | HI7: 2034 | HJ7: 2034 | HK7: 2034 | HL7: 2034 | HM7: 2034 | HN7: 2034 | HO7: 2035 | HP7: 2035 | HQ7: 2035 | HR7: 2035 | HS7: 2035 | HT7: 2035 | HU7: 2035 | HV7: 2035 | HW7: 2035 | HX7: 2035 | HY7: 2035 | HZ7: 2035 | IA7: 2036 | IB7: 2036 | IC7: 2036 | ID7: 2036 | IE7: 2036 | IF7: 2036 | IG7: 2036 | IH7: 2036 | II7: 2036 | IJ7: 2036 | IK7: 2036 | IL7: 2036 | IM7: 2037 | IN7: 2037 | IO7: 2037 | IP7: 2037 | IQ7: 2037 | IR7: 2037 | IS7: 2037 | IT7: 2037 | IU7: 2037 | IV7: 2037 | IX7: =YEAR(G4) -> 2017 | IY7: =IX7+1 -> 2018 | IZ7: =IY7+1 -> 2019 | JA7: 2020 | JB7: 2021 | JC7: 2022 | JD7: 2023 | JE7: 2024 | JF7: 2025 | JG7: 2026 | JH7: 2027 | JI7: 2028 | JJ7: 2029 | JK7: 2030 | JL7: 2031 | JM7: 2032 | JN7: 2033 | JO7: 2034 | JP7: 2035 | JQ7: 2036 | JR7: 2037 | JU7: =G10 -> 2017-03-31 | JV7: =EOMONTH(JU7,3) -> 2017-06-30 | JW7: =EOMONTH(JV7,3) -> 2017-09-30 | JX7: 2017-12-31 | JY7: 2018-03-31 | JZ7: 2018-06-30 | KA7: 2018-09-30 | KB7: 2018-12-31 | KC7: 2019-03-31 | KD7: 2019-06-30 | KE7: 2019-09-30 | KF7: 2019-12-31 | KG7: 2020-03-31 | KH7: 2020-06-30 | KI7: 2020-09-30 | KJ7: 2020-12-31 | KK7: 2021-03-31 | KL7: 2021-06-30 | KM7: 2021-09-30 | KN7: 2021-12-31 | KO7: 2022-03-31 | KP7: 2022-06-30 | KQ7: 2022-09-30 | KR7: 2022-12-31 | KS7: 2023-03-31 | KT7: 2023-06-30 | KU7: 2023-09-30 | KV7: 2023-12-31 | KW7: 2024-03-31 | KX7: 2024-06-30 | KY7: 2024-09-30 | KZ7: 2024-12-31 | LA7: 2025-03-31 | LB7: 2025-06-30 | LC7: 2025-09-30 | LD7: 2025-12-31 | LE7: 2026-03-31 | LF7: 2026-06-30 | LG7: 2026-09-30 | LH7: 2026-12-31 | LI7: 2027-03-31 | LJ7: 2027-06-30 | LK7: 2027-09-30 | LL7: 2027-12-31 | LM7: 2028-03-31 | LN7: 2028-06-30 | LO7: 2028-09-30 | LP7: 2028-12-31 | LQ7: 2029-03-31 | LR7: 2029-06-30 | LS7: 2029-09-30 | LT7: 2029-12-31 | LU7: 2030-03-31 | LV7: 2030-06-30 | LW7: 2030-09-30 | LX7: 2030-12-31 | LY7: 2031-03-31 | LZ7: 2031-06-30 | MA7: 2031-09-30 | MB7: 2031-12-31 | MC7: 2032-03-31 | MD7: 2032-06-30 | ME7: 2032-09-30 | MF7: 2032-12-31 | MG7: 2033-03-31 | MH7: 2033-06-30 | MI7: =EOMONTH(MH7,3) -> 2033-09-30
B8: Start of Quarter (MOD with Top Counter) | H8: =MOD(G3,3)=0 -> FALSE | I8: =MOD(H3,3)=0 -> FALSE | J8: TRUE | K8: FALSE | L8: FALSE | M8: TRUE | N8: FALSE | O8: FALSE | P8: TRUE | Q8: FALSE | R8: FALSE | S8: TRUE | T8: FALSE | U8: FALSE | V8: TRUE | W8: FALSE | X8: FALSE | Y8: TRUE | Z8: FALSE | AA8: FALSE | AB8: TRUE | AC8: FALSE | AD8: FALSE | AE8: TRUE | AF8: FALSE | AG8: FALSE | AH8: TRUE | AI8: FALSE | AJ8: FALSE | AK8: TRUE | AL8: FALSE | AM8: FALSE | AN8: TRUE | AO8: FALSE | AP8: FALSE | AQ8: TRUE | AR8: FALSE | AS8: FALSE | AT8: TRUE | AU8: FALSE | AV8: FALSE | AW8: TRUE | AX8: FALSE | AY8: FALSE | AZ8: TRUE | BA8: FALSE | BB8: FALSE | BC8: TRUE | BD8: FALSE | BE8: FALSE | BF8: TRUE | BG8: FALSE | BH8: FALSE | BI8: TRUE | BJ8: FALSE | BK8: FALSE | BL8: TRUE | BM8: FALSE | BN8: FALSE | BO8: TRUE | BP8: FALSE | BQ8: FALSE | BR8: TRUE | BS8: FALSE | BT8: FALSE | BU8: =MOD(BT3,3)=0 -> TRUE | BV8: FALSE | BW8: FALSE | BX8: TRUE | BY8: FALSE | BZ8: FALSE | CA8: TRUE | CB8: FALSE | CC8: FALSE | CD8: TRUE | CE8: FALSE | CF8: FALSE | CG8: TRUE | CH8: FALSE | CI8: FALSE | CJ8: TRUE | CK8: FALSE | CL8: FALSE | CM8: TRUE | CN8: FALSE | CO8: FALSE | CP8: TRUE | CQ8: FALSE | CR8: FALSE | CS8: TRUE | CT8: FALSE | CU8: FALSE | CV8: TRUE | CW8: FALSE | CX8: FALSE | CY8: TRUE | CZ8: FALSE | DA8: FALSE | DB8: TRUE | DC8: FALSE | DD8: FALSE | DE8: TRUE | DF8: FALSE | DG8: FALSE | DH8: TRUE | DI8: FALSE | DJ8: FALSE | DK8: TRUE | DL8: FALSE | DM8: FALSE | DN8: TRUE | DO8: FALSE | DP8: FALSE | DQ8: TRUE | DR8: FALSE | DS8: FALSE | DT8: TRUE | DU8: FALSE | DV8: FALSE | DW8: TRUE | DX8: FALSE | DY8: FALSE | DZ8: TRUE | EA8: FALSE | EB8: FALSE | EC8: TRUE | ED8: FALSE | EE8: FALSE | EF8: TRUE | EG8: =MOD(EF3,3)=0 -> FALSE | EH8: FALSE | EI8: TRUE | EJ8: FALSE | EK8: FALSE | EL8: TRUE | EM8: FALSE | EN8: FALSE | EO8: TRUE | EP8: FALSE | EQ8: FALSE | ER8: TRUE | ES8: FALSE | ET8: FALSE | EU8: TRUE | EV8: FALSE | EW8: FALSE | EX8: TRUE | EY8: FALSE | EZ8: FALSE | FA8: TRUE | FB8: FALSE | FC8: FALSE | FD8: TRUE | FE8: FALSE | FF8: FALSE | FG8: TRUE | FH8: FALSE | FI8: FALSE | FJ8: TRUE | FK8: FALSE | FL8: FALSE | FM8: TRUE | FN8: FALSE | FO8: FALSE | FP8: TRUE | FQ8: FALSE | FR8: FALSE | FS8: TRUE | FT8: FALSE | FU8: FALSE | FV8: TRUE | FW8: FALSE | FX8: FALSE | FY8: TRUE | FZ8: FALSE | GA8: FALSE | GB8: TRUE | GC8: FALSE | GD8: FALSE | GE8: TRUE | GF8: FALSE | GG8: FALSE | GH8: TRUE | GI8: FALSE | GJ8: FALSE | GK8: TRUE | GL8: FALSE | GM8: FALSE | GN8: TRUE | GO8: FALSE | GP8: FALSE | GQ8: TRUE | GR8: FALSE | GS8: =MOD(GR3,3)=0 -> FALSE | GT8: TRUE | GU8: FALSE | GV8: FALSE | GW8: TRUE | GX8: FALSE | GY8: FALSE | GZ8: TRUE | HA8: FALSE | HB8: FALSE | HC8: TRUE | HD8: FALSE | HE8: FALSE | HF8: TRUE | HG8: FALSE | HH8: FALSE | HI8: TRUE | HJ8: FALSE | HK8: FALSE | HL8: TRUE | HM8: FALSE | HN8: FALSE | HO8: TRUE | HP8: FALSE | HQ8: FALSE | HR8: TRUE | HS8: FALSE | HT8: FALSE | HU8: TRUE | HV8: FALSE | HW8: FALSE | HX8: TRUE | HY8: FALSE | HZ8: FALSE | IA8: TRUE | IB8: FALSE | IC8: FALSE | ID8: TRUE | IE8: FALSE | IF8: FALSE | IG8: TRUE | IH8: FALSE | II8: FALSE | IJ8: TRUE | IK8: FALSE | IL8: FALSE | IM8: TRUE | IN8: FALSE | IO8: FALSE | IP8: TRUE | IQ8: FALSE | IR8: FALSE | IS8: TRUE | IT8: FALSE | IU8: FALSE | IV8: TRUE
B9: Quarter Counter (IF with Alternative Increment) | G9: 1 | H9: =IF(H8,G9+2,G9+1) -> 2 | I9: =IF(I8,H9+2,H9+1) -> 3 | J9: 5 | K9: 6 | L9: 7 | M9: =IF(M8,L9+2,L9+1) -> 9 | N9: 10 | O9: 11 | P9: =IF(P8,O9+2,O9+1) -> 13 | Q9: 14 | R9: 15 | S9: 17 | T9: 18 | U9: 19 | V9: 21 | W9: 22 | X9: 23 | Y9: 25 | Z9: 26 | AA9: 27 | AB9: 29 | AC9: 30 | AD9: 31 | AE9: 33 | AF9: 34 | AG9: 35 | AH9: 37 | AI9: 38 | AJ9: 39 | AK9: 41 | AL9: 42 | AM9: 43 | AN9: 45 | AO9: 46 | AP9: 47 | AQ9: 49 | AR9: 50 | AS9: 51 | AT9: 53 | AU9: 54 | AV9: 55 | AW9: 57 | AX9: 58 | AY9: 59 | AZ9: 61 | BA9: 62 | BB9: 63 | BC9: 65 | BD9: 66 | BE9: 67 | BF9: 69 | BG9: 70 | BH9: 71 | BI9: 73 | BJ9: 74 | BK9: 75 | BL9: 77 | BM9: 78 | BN9: 79 | BO9: 81 | BP9: 82 | BQ9: 83 | BR9: 85 | BS9: 86 | BT9: 87 | BU9: =IF(BU8,BT9+2,BT9+1) -> 89 | BV9: 90 | BW9: 91 | BX9: 93 | BY9: 94 | BZ9: 95 | CA9: 97 | CB9: 98 | CC9: 99 | CD9: 101 | CE9: 102 | CF9: 103 | CG9: 105 | CH9: 106 | CI9: 107 | CJ9: 109 | CK9: 110 | CL9: 111 | CM9: 113 | CN9: 114 | CO9: 115 | CP9: 117 | CQ9: 118 | CR9: 119 | CS9: 121 | CT9: 122 | CU9: 123 | CV9: 125 | CW9: 126 | CX9: 127 | CY9: 129 | CZ9: 130 | DA9: 131 | DB9: 133 | DC9: 134 | DD9: 135 | DE9: 137 | DF9: 138 | DG9: 139 | DH9: 141 | DI9: 142 | DJ9: 143 | DK9: 145 | DL9: 146 | DM9: 147 | DN9: 149 | DO9: 150 | DP9: 151 | DQ9: 153 | DR9: 154 | DS9: 155 | DT9: 157 | DU9: 158 | DV9: 159 | DW9: 161 | DX9: 162 | DY9: 163 | DZ9: 165 | EA9: 166 | EB9: 167 | EC9: 169 | ED9: 170 | EE9: 171 | EF9: 173 | EG9: =IF(EG8,EF9+2,EF9+1) -> 174 | EH9: 175 | EI9: 177 | EJ9: 178 | EK9: 179 | EL9: 181 | EM9: 182 | EN9: 183 | EO9: 185 | EP9: 186 | EQ9: 187 | ER9: 189 | ES9: 190 | ET9: 191 | EU9: 193 | EV9: 194 | EW9: 195 | EX9: 197 | EY9: 198 | EZ9: 199 | FA9: 201 | FB9: 202 | FC9: 203 | FD9: 205 | FE9: 206 | FF9: 207 | FG9: 209 | FH9: 210 | FI9: 211 | FJ9: 213 | FK9: 214 | FL9: 215 | FM9: 217 | FN9: 218 | FO9: 219 | FP9: 221 | FQ9: 222 | FR9: 223 | FS9: 225 | FT9: 226 | FU9: 227 | FV9: 229 | FW9: 230 | FX9: 231 | FY9: 233 | FZ9: 234 | GA9: 235 | GB9: 237 | GC9: 238 | GD9: 239 | GE9: 241 | GF9: 242 | GG9: 243 | GH9: 245 | GI9: 246 | GJ9: 247 | GK9: 249 | GL9: 250 | GM9: 251 | GN9: 253 | GO9: 254 | GP9: 255 | GQ9: 257 | GR9: 258 | GS9: =IF(GS8,GR9+2,GR9+1) -> 259 | GT9: 261 | GU9: 262 | GV9: 263 | GW9: 265 | GX9: 266 | GY9: 267 | GZ9: 269 | HA9: 270 | HB9: 271 | HC9: 273 | HD9: 274 | HE9: 275 | HF9: 277 | HG9: 278 | HH9: 279 | HI9: 281 | HJ9: 282 | HK9: 283 | HL9: 285 | HM9: 286 | HN9: 287 | HO9: 289 | HP9: 290 | HQ9: 291 | HR9: 293 | HS9: 294 | HT9: 295 | HU9: 297 | HV9: 298 | HW9: 299 | HX9: 301 | HY9: 302 | HZ9: 303 | IA9: 305 | IB9: 306 | IC9: 307 | ID9: 309 | IE9: 310 | IF9: 311 | IG9: 313 | IH9: 314 | II9: 315 | IJ9: 317 | IK9: 318 | IL9: 319 | IM9: 321 | IN9: 322 | IO9: 323 | IP9: 325 | IQ9: 326 | IR9: 327 | IS9: 329 | IT9: 330 | IU9: 331 | IV9: 333 | JU9: 4 | JV9: =JU9+4 -> 8 | JW9: =JV9+4 -> 12 | JX9: 16 | JY9: 20 | JZ9: 24 | KA9: 28 | KB9: 32 | KC9: 36 | KD9: 40 | KE9: 44 | KF9: 48 | KG9: 52 | KH9: 56 | KI9: 60 | KJ9: 64 | KK9: 68 | KL9: 72 | KM9: 76 | KN9: 80 | KO9: 84 | KP9: 88 | KQ9: 92 | KR9: 96 | KS9: 100 | KT9: 104 | KU9: 108 | KV9: 112 | KW9: 116 | KX9: 120 | KY9: 124 | KZ9: 128 | LA9: 132 | LB9: 136 | LC9: 140 | LD9: 144 | LE9: 148 | LF9: 152 | LG9: 156 | LH9: 160 | LI9: 164 | LJ9: 168 | LK9: 172 | LL9: 176 | LM9: 180 | LN9: 184 | LO9: 188 | LP9: 192 | LQ9: 196 | LR9: 200 | LS9: 204 | LT9: 208 | LU9: 212 | LV9: 216 | LW9: 220 | LX9: 224 | LY9: 228 | LZ9: 232 | MA9: 236 | MB9: 240 | MC9: 244 | MD9: 248 | ME9: 252 | MF9: 256 | MG9: 260 | MH9: 264 | MI9: =MH9+4 -> 268
B10: End of Quarter (EOQTR User Defined Function) | G10: =eoqtr(G4) -> 2017-03-31 | H10: =eoqtr(H4) -> 2017-03-31 | I10: =eoqtr(I4) -> 2017-03-31 | J10: =eoqtr(J4) -> 2017-06-30 | K10: 2017-06-30 | L10: 2017-06-30 | M10: 2017-09-30 | N10: 2017-09-30 | O10: 2017-09-30 | P10: 2017-12-31 | Q10: 2017-12-31 | R10: 2017-12-31 | S10: 2018-03-31 | T10: 2018-03-31 | U10: 2018-03-31 | V10: 2018-06-30 | W10: 2018-06-30 | X10: 2018-06-30 | Y10: 2018-09-30 | Z10: 2018-09-30 | AA10: 2018-09-30 | AB10: 2018-12-31 | AC10: 2018-12-31 | AD10: 2018-12-31 | AE10: 2019-03-31 | AF10: 2019-03-31 | AG10: 2019-03-31 | AH10: 2019-06-30 | AI10: 2019-06-30 | AJ10: 2019-06-30 | AK10: 2019-09-30 | AL10: 2019-09-30 | AM10: 2019-09-30 | AN10: 2019-12-31 | AO10: 2019-12-31 | AP10: 2019-12-31 | AQ10: 2020-03-31 | AR10: 2020-03-31 | AS10: 2020-03-31 | AT10: 2020-06-30 | AU10: 2020-06-30 | AV10: 2020-06-30 | AW10: 2020-09-30 | AX10: 2020-09-30 | AY10: 2020-09-30 | AZ10: 2020-12-31 | BA10: 2020-12-31 | BB10: 2020-12-31 | BC10: 2021-03-31 | BD10: 2021-03-31 | BE10: 2021-03-31 | BF10: 2021-06-30 | BG10: 2021-06-30 | BH10: 2021-06-30 | BI10: 2021-09-30 | BJ10: 2021-09-30 | BK10: 2021-09-30 | BL10: 2021-12-31 | BM10: 2021-12-31 | BN10: 2021-12-31 | BO10: 2022-03-31 | BP10: 2022-03-31 | BQ10: 2022-03-31 | BR10: 2022-06-30 | BS10: 2022-06-30 | BT10: =eoqtr(BT4) -> 2022-06-30 | BU10: 2022-09-30 | BV10: 2022-09-30 | BW10: 2022-09-30 | BX10: 2022-12-31 | BY10: 2022-12-31 | BZ10: 2022-12-31 | CA10: 2023-03-31 | CB10: 2023-03-31 | CC10: 2023-03-31 | CD10: 2023-06-30 | CE10: 2023-06-30 | CF10: 2023-06-30 | CG10: 2023-09-30 | CH10: 2023-09-30 | CI10: 2023-09-30 | CJ10: 2023-12-31 | CK10: 2023-12-31 | CL10: 2023-12-31 | CM10: 2024-03-31 | CN10: 2024-03-31 | CO10: 2024-03-31 | CP10: 2024-06-30 | CQ10: 2024-06-30 | CR10: 2024-06-30 | CS10: 2024-09-30 | CT10: 2024-09-30 | CU10: 2024-09-30 | CV10: 2024-12-31 | CW10: 2024-12-31 | CX10: 2024-12-31 | CY10: 2025-03-31 | CZ10: 2025-03-31 | DA10: 2025-03-31 | DB10: 2025-06-30 | DC10: 2025-06-30 | DD10: 2025-06-30 | DE10: 2025-09-30 | DF10: 2025-09-30 | DG10: 2025-09-30 | DH10: 2025-12-31 | DI10: 2025-12-31 | DJ10: 2025-12-31 | DK10: 2026-03-31 | DL10: 2026-03-31 | DM10: 2026-03-31 | DN10: 2026-06-30 | DO10: 2026-06-30 | DP10: 2026-06-30 | DQ10: 2026-09-30 | DR10: 2026-09-30 | DS10: 2026-09-30 | DT10: 2026-12-31 | DU10: 2026-12-31 | DV10: 2026-12-31 | DW10: 2027-03-31 | DX10: 2027-03-31 | DY10: 2027-03-31 | DZ10: 2027-06-30 | EA10: 2027-06-30 | EB10: 2027-06-30 | EC10: 2027-09-30 | ED10: 2027-09-30 | EE10: 2027-09-30 | EF10: =eoqtr(EF4) -> 2027-12-31 | EG10: 2027-12-31 | EH10: 2027-12-31 | EI10: 2028-03-31 | EJ10: 2028-03-31 | EK10: 2028-03-31 | EL10: 2028-06-30 | EM10: 2028-06-30 | EN10: 2028-06-30 | EO10: 2028-09-30 | EP10: 2028-09-30 | EQ10: 2028-09-30 | ER10: 2028-12-31 | ES10: 2028-12-31 | ET10: 2028-12-31 | EU10: 2029-03-31 | EV10: 2029-03-31 | EW10: 2029-03-31 | EX10: 2029-06-30 | EY10: 2029-06-30 | EZ10: 2029-06-30 | FA10: 2029-09-30 | FB10: 2029-09-30 | FC10: 2029-09-30 | FD10: 2029-12-31 | FE10: 2029-12-31 | FF10: 2029-12-31 | FG10: 2030-03-31 | FH10: 2030-03-31 | FI10: 2030-03-31 | FJ10: 2030-06-30 | FK10: 2030-06-30 | FL10: 2030-06-30 | FM10: 2030-09-30 | FN10: 2030-09-30 | FO10: 2030-09-30 | FP10: 2030-12-31 | FQ10: 2030-12-31 | FR10: 2030-12-31 | FS10: 2031-03-31 | FT10: 2031-03-31 | FU10: 2031-03-31 | FV10: 2031-06-30 | FW10: 2031-06-30 | FX10: 2031-06-30 | FY10: 2031-09-30 | FZ10: 2031-09-30 | GA10: 2031-09-30 | GB10: 2031-12-31 | GC10: 2031-12-31 | GD10: 2031-12-31 | GE10: 2032-03-31 | GF10: 2032-03-31 | GG10: 2032-03-31 | GH10: 2032-06-30 | GI10: 2032-06-30 | GJ10: 2032-06-30 | GK10: 2032-09-30 | GL10: 2032-09-30 | GM10: 2032-09-30 | GN10: 2032-12-31 | GO10: 2032-12-31 | GP10: 2032-12-31 | GQ10: 2033-03-31 | GR10: =eoqtr(GR4) -> 2033-03-31 | GS10: 2033-03-31 | GT10: 2033-06-30 | GU10: 2033-06-30 | GV10: 2033-06-30 | GW10: 2033-09-30 | GX10: 2033-09-30 | GY10: 2033-09-30 | GZ10: 2033-12-31 | HA10: 2033-12-31 | HB10: 2033-12-31 | HC10: 2034-03-31 | HD10: 2034-03-31 | HE10: 2034-03-31 | HF10: 2034-06-30 | HG10: 2034-06-30 | HH10: 2034-06-30 | HI10: 2034-09-30 | HJ10: 2034-09-30 | HK10: 2034-09-30 | HL10: 2034-12-31 | HM10: 2034-12-31 | HN10: 2034-12-31 | HO10: 2035-03-31 | HP10: 2035-03-31 | HQ10: 2035-03-31 | HR10: 2035-06-30 | HS10: 2035-06-30 | HT10: 2035-06-30 | HU10: 2035-09-30 | HV10: 2035-09-30 | HW10: 2035-09-30 | HX10: 2035-12-31 | HY10: 2035-12-31 | HZ10: 2035-12-31 | IA10: 2036-03-31 | IB10: 2036-03-31 | IC10: 2036-03-31 | ID10: 2036-06-30 | IE10: 2036-06-30 | IF10: 2036-06-30 | IG10: 2036-09-30 | IH10: 2036-09-30 | II10: 2036-09-30 | IJ10: 2036-12-31 | IK10: 2036-12-31 | IL10: 2036-12-31 | IM10: 2037-03-31 | IN10: 2037-03-31 | IO10: 2037-03-31 | IP10: 2037-06-30 | IQ10: 2037-06-30 | IR10: 2037-06-30 | IS10: 2037-09-30 | IT10: 2037-09-30 | IU10: 2037-09-30 | IV10: 2037-12-31
B11: Start of 1/2 Year (MOD with Top Counter) | H11: =MOD(G3,6)=0 -> FALSE | I11: =MOD(H3,6)=0 -> FALSE | J11: FALSE | K11: FALSE | L11: FALSE | M11: TRUE | N11: FALSE | O11: FALSE | P11: FALSE | Q11: FALSE | R11: FALSE | S11: TRUE | T11: FALSE | U11: FALSE | V11: FALSE | W11: FALSE | X11: FALSE | Y11: TRUE | Z11: FALSE | AA11: FALSE | AB11: FALSE | AC11: FALSE | AD11: FALSE | AE11: TRUE | AF11: FALSE | AG11: FALSE | AH11: FALSE | AI11: FALSE | AJ11: FALSE | AK11: TRUE | AL11: FALSE | AM11: FALSE | AN11: FALSE | AO11: FALSE | AP11: FALSE | AQ11: TRUE | AR11: FALSE | AS11: FALSE | AT11: FALSE | AU11: FALSE | AV11: FALSE | AW11: TRUE | AX11: FALSE | AY11: FALSE | AZ11: FALSE | BA11: FALSE | BB11: FALSE | BC11: TRUE | BD11: FALSE | BE11: FALSE | BF11: FALSE | BG11: FALSE | BH11: FALSE | BI11: TRUE | BJ11: FALSE | BK11: FALSE | BL11: FALSE | BM11: FALSE | BN11: FALSE | BO11: TRUE | BP11: FALSE | BQ11: FALSE | BR11: FALSE | BS11: FALSE | BT11: FALSE | BU11: =MOD(BT3,6)=0 -> TRUE | BV11: FALSE | BW11: FALSE | BX11: FALSE | BY11: FALSE | BZ11: FALSE | CA11: TRUE | CB11: FALSE | CC11: FALSE | CD11: FALSE | CE11: FALSE | CF11: FALSE | CG11: TRUE | CH11: FALSE | CI11: FALSE | CJ11: FALSE | CK11: FALSE | CL11: FALSE | CM11: TRUE | CN11: FALSE | CO11: FALSE | CP11: FALSE | CQ11: FALSE | CR11: FALSE | CS11: TRUE | CT11: FALSE | CU11: FALSE | CV11: FALSE | CW11: FALSE | CX11: FALSE | CY11: TRUE | CZ11: FALSE | DA11: FALSE | DB11: FALSE | DC11: FALSE | DD11: FALSE | DE11: TRUE | DF11: FALSE | DG11: FALSE | DH11: FALSE | DI11: FALSE | DJ11: FALSE | DK11: TRUE | DL11: FALSE | DM11: FALSE | DN11: FALSE | DO11: FALSE | DP11: FALSE | DQ11: TRUE | DR11: FALSE | DS11: FALSE | DT11: FALSE | DU11: FALSE | DV11: FALSE | DW11: TRUE | DX11: FALSE | DY11: FALSE | DZ11: FALSE | EA11: FALSE | EB11: FALSE | EC11: TRUE | ED11: FALSE | EE11: FALSE | EF11: FALSE | EG11: =MOD(EF3,6)=0 -> FALSE | EH11: FALSE | EI11: TRUE | EJ11: FALSE | EK11: FALSE | EL11: FALSE | EM11: FALSE | EN11: FALSE | EO11: TRUE | EP11: FALSE | EQ11: FALSE | ER11: FALSE | ES11: FALSE | ET11: FALSE | EU11: TRUE | EV11: FALSE | EW11: FALSE | EX11: FALSE | EY11: FALSE | EZ11: FALSE | FA11: TRUE | FB11: FALSE | FC11: FALSE | FD11: FALSE | FE11: FALSE | FF11: FALSE | FG11: TRUE | FH11: FALSE | FI11: FALSE | FJ11: FALSE | FK11: FALSE | FL11: FALSE | FM11: TRUE | FN11: FALSE | FO11: FALSE | FP11: FALSE | FQ11: FALSE | FR11: FALSE | FS11: TRUE | FT11: FALSE | FU11: FALSE | FV11: FALSE | FW11: FALSE | FX11: FALSE | FY11: TRUE | FZ11: FALSE | GA11: FALSE | GB11: FALSE | GC11: FALSE | GD11: FALSE | GE11: TRUE | GF11: FALSE | GG11: FALSE | GH11: FALSE | GI11: FALSE | GJ11: FALSE | GK11: TRUE | GL11: FALSE | GM11: FALSE | GN11: FALSE | GO11: FALSE | GP11: FALSE | GQ11: TRUE | GR11: FALSE | GS11: =MOD(GR3,6)=0 -> FALSE | GT11: FALSE | GU11: FALSE | GV11: FALSE | GW11: TRUE | GX11: FALSE | GY11: FALSE | GZ11: FALSE | HA11: FALSE | HB11: FALSE | HC11: TRUE | HD11: FALSE | HE11: FALSE | HF11: FALSE | HG11: FALSE | HH11: FALSE | HI11: TRUE | HJ11: FALSE | HK11: FALSE | HL11: FALSE | HM11: FALSE | HN11: FALSE | HO11: TRUE | HP11: FALSE | HQ11: FALSE | HR11: FALSE | HS11: FALSE | HT11: FALSE | HU11: TRUE | HV11: FALSE | HW11: FALSE | HX11: FALSE | HY11: FALSE | HZ11: FALSE | IA11: TRUE | IB11: FALSE | IC11: FALSE | ID11: FALSE | IE11: FALSE | IF11: FALSE | IG11: TRUE | IH11: FALSE | II11: FALSE | IJ11: FALSE | IK11: FALSE | IL11: FALSE | IM11: TRUE | IN11: FALSE | IO11: FALSE | IP11: FALSE | IQ11: FALSE | IR11: FALSE | IS11: TRUE | IT11: FALSE | IU11: FALSE | IV11: FALSE
B12: Half-year Counter (IF with Alternative Increment) | G12: 1 | H12: =IF(H11,G12+2,G12+1) -> 2 | I12: =IF(I11,H12+2,H12+1) -> 3 | J12: 4 | K12: 5 | L12: 6 | M12: 8 | N12: 9 | O12: 10 | P12: 11 | Q12: 12 | R12: 13 | S12: 15 | T12: 16 | U12: 17 | V12: 18 | W12: 19 | X12: 20 | Y12: 22 | Z12: 23 | AA12: 24 | AB12: 25 | AC12: 26 | AD12: 27 | AE12: 29 | AF12: 30 | AG12: 31 | AH12: 32 | AI12: 33 | AJ12: 34 | AK12: 36 | AL12: 37 | AM12: 38 | AN12: 39 | AO12: 40 | AP12: 41 | AQ12: 43 | AR12: 44 | AS12: 45 | AT12: 46 | AU12: 47 | AV12: 48 | AW12: 50 | AX12: 51 | AY12: 52 | AZ12: 53 | BA12: 54 | BB12: 55 | BC12: 57 | BD12: 58 | BE12: 59 | BF12: 60 | BG12: 61 | BH12: 62 | BI12: 64 | BJ12: 65 | BK12: 66 | BL12: 67 | BM12: 68 | BN12: 69 | BO12: 71 | BP12: 72 | BQ12: 73 | BR12: 74 | BS12: 75 | BT12: 76 | BU12: =IF(BU11,BT12+2,BT12+1) -> 78 | BV12: 79 | BW12: 80 | BX12: 81 | BY12: 82 | BZ12: 83 | CA12: 85 | CB12: 86 | CC12: 87 | CD12: 88 | CE12: 89 | CF12: 90 | CG12: 92 | CH12: 93 | CI12: 94 | CJ12: 95 | CK12: 96 | CL12: 97 | CM12: 99 | CN12: 100 | CO12: 101 | CP12: 102 | CQ12: 103 | CR12: 104 | CS12: 106 | CT12: 107 | CU12: 108 | CV12: 109 | CW12: 110 | CX12: 111 | CY12: 113 | CZ12: 114 | DA12: 115 | DB12: 116 | DC12: 117 | DD12: 118 | DE12: 120 | DF12: 121 | DG12: 122 | DH12: 123 | DI12: 124 | DJ12: 125 | DK12: 127 | DL12: 128 | DM12: 129 | DN12: 130 | DO12: 131 | DP12: 132 | DQ12: 134 | DR12: 135 | DS12: 136 | DT12: 137 | DU12: 138 | DV12: 139 | DW12: 141 | DX12: 142 | DY12: 143 | DZ12: 144 | EA12: 145 | EB12: 146 | EC12: 148 | ED12: 149 | EE12: 150 | EF12: 151 | EG12: =IF(EG11,EF12+2,EF12+1) -> 152 | EH12: 153 | EI12: 155 | EJ12: 156 | EK12: 157 | EL12: 158 | EM12: 159 | EN12: 160 | EO12: 162 | EP12: 163 | EQ12: 164 | ER12: 165 | ES12: 166 | ET12: 167 | EU12: 169 | EV12: 170 | EW12: 171 | EX12: 172 | EY12: 173 | EZ12: 174 | FA12: 176 | FB12: 177 | FC12: 178 | FD12: 179 | FE12: 180 | FF12: 181 | FG12: 183 | FH12: 184 | FI12: 185 | FJ12: 186 | FK12: 187 | FL12: 188 | FM12: 190 | FN12: 191 | FO12: 192 | FP12: 193 | FQ12: 194 | FR12: 195 | FS12: 197 | FT12: 198 | FU12: 199 | FV12: 200 | FW12: 201 | FX12: 202 | FY12: 204 | FZ12: 205 | GA12: 206 | GB12: 207 | GC12: 208 | GD12: 209 | GE12: 211 | GF12: 212 | GG12: 213 | GH12: 214 | GI12: 215 | GJ12: 216 | GK12: 218 | GL12: 219 | GM12: 220 | GN12: 221 | GO12: 222 | GP12: 223 | GQ12: 225 | GR12: 226 | GS12: =IF(GS11,GR12+2,GR12+1) -> 227 | GT12: 228 | GU12: 229 | GV12: 230 | GW12: 232 | GX12: 233 | GY12: 234 | GZ12: 235 | HA12: 236 | HB12: 237 | HC12: 239 | HD12: 240 | HE12: 241 | HF12: 242 | HG12: 243 | HH12: 244 | HI12: 246 | HJ12: 247 | HK12: 248 | HL12: 249 | HM12: 250 | HN12: 251 | HO12: 253 | HP12: 254 | HQ12: 255 | HR12: 256 | HS12: 257 | HT12: 258 | HU12: 260 | HV12: 261 | HW12: 262 | HX12: 263 | HY12: 264 | HZ12: 265 | IA12: 267 | IB12: 268 | IC12: 269 | ID12: 270 | IE12: 271 | IF12: 272 | IG12: 274 | IH12: 275 | II12: 276 | IJ12: 277 | IK12: 278 | IL12: 279 | IM12: 281 | IN12: 282 | IO12: 283 | IP12: 284 | IQ12: 285 | IR12: 286 | IS12: 288 | IT12: 289 | IU12: 290 | IV12: 291 | MK12: 7 | ML12: =MK12+7 -> 14 | MM12: =ML12+7 -> 21 | MN12: 28 | MO12: 35 | MP12: 42 | MQ12: 49 | MR12: 56 | MS12: 63 | MT12: 70 | MU12: 77 | MV12: 84 | MW12: 91 | MX12: 98 | MY12: 105 | MZ12: 112 | NA12: 119 | NB12: 126 | NC12: 133 | ND12: 140 | NE12: 147 | NF12: 154 | NG12: 161 | NH12: 168 | NI12: 175 | NJ12: 182 | NK12: 189 | NL12: 196 | NM12: 203 | NN12: 210 | NO12: 217 | NP12: 224 | NQ12: 231 | NR12: 238 | NS12: 245 | NT12: 252 | NU12: 259 | NV12: 266 | NW12: 273 | NX12: 280 | NY12: =NX12+7 -> 287
B13: End of Half Year (EOHY User Defined Function) | G13: =eohy(G4) -> 2017-06-30 | H13: =eohy(H4) -> 2017-06-30 | I13: 2017-06-30 | J13: 2017-06-30 | K13: 2017-06-30 | L13: 2017-06-30 | M13: 2017-12-31 | N13: 2017-12-31 | O13: 2017-12-31 | P13: 2017-12-31 | Q13: 2017-12-31 | R13: 2017-12-31 | S13: 2018-06-30 | T13: 2018-06-30 | U13: 2018-06-30 | V13: 2018-06-30 | W13: 2018-06-30 | X13: 2018-06-30 | Y13: 2018-12-31 | Z13: 2018-12-31 | AA13: 2018-12-31 | AB13: 2018-12-31 | AC13: 2018-12-31 | AD13: 2018-12-31 | AE13: 2019-06-30 | AF13: 2019-06-30 | AG13: 2019-06-30 | AH13: 2019-06-30 | AI13: 2019-06-30 | AJ13: 2019-06-30 | AK13: 2019-12-31 | AL13: 2019-12-31 | AM13: 2019-12-31 | AN13: 2019-12-31 | AO13: 2019-12-31 | AP13: 2019-12-31 | AQ13: 2020-06-30 | AR13: 2020-06-30 | AS13: 2020-06-30 | AT13: 2020-06-30 | AU13: 2020-06-30 | AV13: 2020-06-30 | AW13: 2020-12-31 | AX13: 2020-12-31 | AY13: 2020-12-31 | AZ13: 2020-12-31 | BA13: 2020-12-31 | BB13: 2020-12-31 | BC13: 2021-06-30 | BD13: 2021-06-30 | BE13: 2021-06-30 | BF13: 2021-06-30 | BG13: 2021-06-30 | BH13: 2021-06-30 | BI13: 2021-12-31 | BJ13: 2021-12-31 | BK13: 2021-12-31 | BL13: 2021-12-31 | BM13: 2021-12-31 | BN13: 2021-12-31 | BO13: 2022-06-30 | BP13: 2022-06-30 | BQ13: 2022-06-30 | BR13: 2022-06-30 | BS13: 2022-06-30 | BT13: =eohy(BT4) -> 2022-06-30 | BU13: 2022-12-31 | BV13: 2022-12-31 | BW13: 2022-12-31 | BX13: 2022-12-31 | BY13: 2022-12-31 | BZ13: 2022-12-31 | CA13: 2023-06-30 | CB13: 2023-06-30 | CC13: 2023-06-30 | CD13: 2023-06-30 | CE13: 2023-06-30 | CF13: 2023-06-30 | CG13: 2023-12-31 | CH13: 2023-12-31 | CI13: 2023-12-31 | CJ13: 2023-12-31 | CK13: 2023-12-31 | CL13: 2023-12-31 | CM13: 2024-06-30 | CN13: 2024-06-30 | CO13: 2024-06-30 | CP13: 2024-06-30 | CQ13: 2024-06-30 | CR13: 2024-06-30 | CS13: 2024-12-31 | CT13: 2024-12-31 | CU13: 2024-12-31 | CV13: 2024-12-31 | CW13: 2024-12-31 | CX13: 2024-12-31 | CY13: 2025-06-30 | CZ13: 2025-06-30 | DA13: 2025-06-30 | DB13: 2025-06-30 | DC13: 2025-06-30 | DD13: 2025-06-30 | DE13: 2025-12-31 | DF13: 2025-12-31 | DG13: 2025-12-31 | DH13: 2025-12-31 | DI13: 2025-12-31 | DJ13: 2025-12-31 | DK13: 2026-06-30 | DL13: 2026-06-30 | DM13: 2026-06-30 | DN13: 2026-06-30 | DO13: 2026-06-30 | DP13: 2026-06-30 | DQ13: 2026-12-31 | DR13: 2026-12-31 | DS13: 2026-12-31 | DT13: 2026-12-31 | DU13: 2026-12-31 | DV13: 2026-12-31 | DW13: 2027-06-30 | DX13: 2027-06-30 | DY13: 2027-06-30 | DZ13: 2027-06-30 | EA13: 2027-06-30 | EB13: 2027-06-30 | EC13: 2027-12-31 | ED13: 2027-12-31 | EE13: 2027-12-31 | EF13: =eohy(EF4) -> 2027-12-31 | EG13: 2027-12-31 | EH13: 2027-12-31 | EI13: 2028-06-30 | EJ13: 2028-06-30 | EK13: 2028-06-30 | EL13: 2028-06-30 | EM13: 2028-06-30 | EN13: 2028-06-30 | EO13: 2028-12-31 | EP13: 2028-12-31 | EQ13: 2028-12-31 | ER13: 2028-12-31 | ES13: 2028-12-31 | ET13: 2028-12-31 | EU13: 2029-06-30 | EV13: 2029-06-30 | EW13: 2029-06-30 | EX13: 2029-06-30 | EY13: 2029-06-30 | EZ13: 2029-06-30 | FA13: 2029-12-31 | FB13: 2029-12-31 | FC13: 2029-12-31 | FD13: 2029-12-31 | FE13: 2029-12-31 | FF13: 2029-12-31 | FG13: 2030-06-30 | FH13: 2030-06-30 | FI13: 2030-06-30 | FJ13: 2030-06-30 | FK13: 2030-06-30 | FL13: 2030-06-30 | FM13: 2030-12-31 | FN13: 2030-12-31 | FO13: 2030-12-31 | FP13: 2030-12-31 | FQ13: 2030-12-31 | FR13: 2030-12-31 | FS13: 2031-06-30 | FT13: 2031-06-30 | FU13: 2031-06-30 | FV13: 2031-06-30 | FW13: 2031-06-30 | FX13: 2031-06-30 | FY13: 2031-12-31 | FZ13: 2031-12-31 | GA13: 2031-12-31 | GB13: 2031-12-31 | GC13: 2031-12-31 | GD13: 2031-12-31 | GE13: 2032-06-30 | GF13: 2032-06-30 | GG13: 2032-06-30 | GH13: 2032-06-30 | GI13: 2032-06-30 | GJ13: 2032-06-30 | GK13: 2032-12-31 | GL13: 2032-12-31 | GM13: 2032-12-31 | GN13: 2032-12-31 | GO13: 2032-12-31 | GP13: 2032-12-31 | GQ13: 2033-06-30 | GR13: =eohy(GR4) -> 2033-06-30 | GS13: 2033-06-30 | GT13: 2033-06-30 | GU13: 2033-06-30 | GV13: 2033-06-30 | GW13: 2033-12-31 | GX13: 2033-12-31 | GY13: 2033-12-31 | GZ13: 2033-12-31 | HA13: 2033-12-31 | HB13: 2033-12-31 | HC13: 2034-06-30 | HD13: 2034-06-30 | HE13: 2034-06-30 | HF13: 2034-06-30 | HG13: 2034-06-30 | HH13: 2034-06-30 | HI13: 2034-12-31 | HJ13: 2034-12-31 | HK13: 2034-12-31 | HL13: 2034-12-31 | HM13: 2034-12-31 | HN13: 2034-12-31 | HO13: 2035-06-30 | HP13: 2035-06-30 | HQ13: 2035-06-30 | HR13: 2035-06-30 | HS13: 2035-06-30 | HT13: 2035-06-30 | HU13: 2035-12-31 | HV13: 2035-12-31 | HW13: 2035-12-31 | HX13: 2035-12-31 | HY13: 2035-12-31 | HZ13: 2035-12-31 | IA13: 2036-06-30 | IB13: 2036-06-30 | IC13: 2036-06-30 | ID13: 2036-06-30 | IE13: 2036-06-30 | IF13: 2036-06-30 | IG13: 2036-12-31 | IH13: 2036-12-31 | II13: 2036-12-31 | IJ13: 2036-12-31 | IK13: 2036-12-31 | IL13: 2036-12-31 | IM13: 2037-06-30 | IN13: 2037-06-30 | IO13: 2037-06-30 | IP13: 2037-06-30 | IQ13: 2037-06-30 | IR13: 2037-06-30 | IS13: 2037-12-31 | IT13: 2037-12-31 | IU13: 2037-12-31 | IV13: 2037-12-31
B15: Revenues
C16: Revenue 1 | G16: 100 | H16: =G16*1.01 -> 101 | I16: =H16*1.01 -> 102.01 | J16: 103.0301 | K16: 104.060401 | L16: 105.101005 | M16: 106.1520151 | N16: 107.2135352 | O16: 108.2856706 | P16: 109.3685273 | Q16: 110.4622125 | R16: 111.5668347 | S16: 112.682503 | T16: 113.809328 | U16: 114.9474213 | V16: 116.0968955 | W16: 117.2578645 | X16: 118.4304431 | Y16: 119.6147476 | Z16: 120.810895 | AA16: 122.019004 | AB16: 123.239194 | AC16: 124.471586 | AD16: 125.7163018 | AE16: 126.9734649 | AF16: 128.2431995 | AG16: 129.5256315 | AH16: 130.8208878 | AI16: 132.1290967 | AJ16: 133.4503877 | AK16: 134.7848915 | AL16: 136.1327404 | AM16: 137.4940679 | AN16: 138.8690085 | AO16: 140.2576986 | AP16: 141.6602756 | AQ16: 143.0768784 | AR16: 144.5076471 | AS16: 145.9527236 | AT16: 147.4122509 | AU16: 148.8863734 | AV16: 150.3752371 | AW16: 151.8789895 | AX16: 153.3977794 | AY16: 154.9317572 | AZ16: 156.4810747 | BA16: 158.0458855 | BB16: 159.6263443 | BC16: 161.2226078 | BD16: 162.8348338 | BE16: 164.4631822 | BF16: 166.107814 | BG16: 167.7688921 | BH16: 169.4465811 | BI16: 171.1410469 | BJ16: 172.8524573 | BK16: 174.5809819 | BL16: 176.3267917 | BM16: 178.0900597 | BN16: 179.8709603 | BO16: 181.6696699 | BP16: 183.4863666 | BQ16: 185.3212302 | BR16: 187.1744425 | BS16: 189.0461869 | BT16: 190.9366488 | BU16: =BT16*1.01 -> 192.8460153 | BV16: 194.7744755 | BW16: 196.7222202 | BX16: 198.6894424 | BY16: 200.6763368 | BZ16: 202.6831002 | CA16: 204.7099312 | CB16: 206.7570305 | CC16: 208.8246008 | CD16: 210.9128468 | CE16: 213.0219753 | CF16: 215.1521951 | CG16: 217.303717 | CH16: 219.4767542 | CI16: 221.6715217 | CJ16: 223.8882369 | CK16: 226.1271193 | CL16: 228.3883905 | CM16: 230.6722744 | CN16: 232.9789971 | CO16: 235.3087871 | CP16: 237.661875 | CQ16: 240.0384937 | CR16: 242.4388787 | CS16: 244.8632675 | CT16: 247.3119001 | CU16: 249.7850191 | CV16: 252.2828693 | CW16: 254.805698 | CX16: 257.353755 | CY16: 259.9272926 | CZ16: 262.5265655 | DA16: 265.1518311 | DB16: 267.8033494 | DC16: 270.4813829 | DD16: 273.1861968 | DE16: 275.9180587 | DF16: 278.6772393 | DG16: 281.4640117 | DH16: 284.2786518 | DI16: 287.1214384 | DJ16: 289.9926527 | DK16: 292.8925793 | DL16: 295.8215051 | DM16: 298.7797201 | DN16: 301.7675173 | DO16: 304.7851925 | DP16: 307.8330444 | DQ16: 310.9113749 | DR16: 314.0204886 | DS16: 317.1606935 | DT16: 320.3323004 | DU16: 323.5356234 | DV16: 326.7709797 | DW16: 330.0386895 | DX16: 333.3390764 | DY16: 336.6724671 | DZ16: 340.0391918 | EA16: 343.4395837 | EB16: 346.8739795 | EC16: 350.3427193 | ED16: 353.8461465 | EE16: 357.384608 | EF16: 360.9584541 | EG16: =EF16*1.01 -> 364.5680386 | EH16: 368.213719 | EI16: 371.8958562 | EJ16: 375.6148148 | EK16: 379.3709629 | EL16: 383.1646725 | EM16: 386.9963193 | EN16: 390.8662824 | EO16: 394.7749453 | EP16: 398.7226947 | EQ16: 402.7099217 | ER16: 406.7370209 | ES16: 410.8043911 | ET16: 414.912435 | EU16: 419.0615594 | EV16: 423.252175 | EW16: 427.4846967 | EX16: 431.7595437 | EY16: 436.0771391 | EZ16: 440.4379105 | FA16: 444.8422896 | FB16: 449.2907125 | FC16: 453.7836196 | FD16: 458.3214558 | FE16: 462.9046704 | FF16: 467.5337171 | FG16: 472.2090543 | FH16: 476.9311448 | FI16: 481.7004562 | FJ16: 486.5174608 | FK16: 491.3826354 | FL16: 496.2964618 | FM16: 501.2594264 | FN16: 506.2720206 | FO16: 511.3347409 | FP16: 516.4480883 | FQ16: 521.6125691 | FR16: 526.8286948 | FS16: 532.0969818 | FT16: 537.4179516 | FU16: 542.7921311 | FV16: 548.2200524 | FW16: 553.702253 | FX16: 559.2392755 | FY16: 564.8316682 | FZ16: 570.4799849 | GA16: 576.1847848 | GB16: 581.9466326 | GC16: 587.7660989 | GD16: 593.6437599 | GE16: 599.5801975 | GF16: 605.5759995 | GG16: 611.6317595 | GH16: 617.7480771 | GI16: 623.9255579 | GJ16: 630.1648135 | GK16: 636.4664616 | GL16: 642.8311262 | GM16: 649.2594375 | GN16: 655.7520318 | GO16: 662.3095522 | GP16: 668.9326477 | GQ16: 675.6219742 | GR16: 682.3781939 | GS16: =GR16*1.01 -> 689.2019758 | GT16: 696.0939956 | GU16: 703.0549355 | GV16: 710.0854849 | GW16: 717.1863398 | GX16: 724.3582032 | GY16: 731.6017852 | GZ16: 738.917803 | HA16: 746.3069811 | HB16: 753.7700509 | HC16: 761.3077514 | HD16: 768.9208289 | HE16: 776.6100372 | HF16: 784.3761376 | HG16: 792.2198989 | HH16: 800.1420979 | HI16: 808.1435189 | HJ16: 816.2249541 | HK16: 824.3872036 | HL16: 832.6310757 | HM16: 840.9573864 | HN16: 849.3669603 | HO16: 857.8606299 | HP16: 866.4392362 | HQ16: 875.1036286 | HR16: 883.8546648 | HS16: 892.6932115 | HT16: 901.6201436 | HU16: 910.636345 | HV16: 919.7427085 | HW16: 928.9401356 | HX16: 938.2295369 | HY16: 947.6118323 | HZ16: 957.0879506 | IA16: 966.6588301 | IB16: 976.3254184 | IC16: 986.0886726 | ID16: 995.9495593 | IE16: 1005.909055 | IF16: 1015.968145 | IG16: 1026.127827 | IH16: 1036.389105 | II16: 1046.752996 | IJ16: 1057.220526 | IK16: 1067.792731 | IL16: 1078.470659 | IM16: 1089.255365 | IN16: 1100.147919 | IO16: 1111.149398 | IP16: 1122.260892 | IQ16: 1133.483501 | IR16: 1144.818336 | IS16: 1156.26652 | IT16: 1167.829185 | IU16: 1179.507477 | IV16: 1191.302551 | IX16: =SUMIF($G$7:$IV$7,IX$7,$G16:$IV16) -> 1268.250301 | IY16: 1429.096184 | IZ16: 1610.341351 | JA16: 1814.572941 | JB16: 2044.706209 | JC16: 2304.026135 | JD16: 2596.234319 | JE16: 2925.501815 | JF16: 3296.528671 | JG16: 3714.611019 | JH16: =SUMIF($G$7:$IV$7,JH$7,$G16:$IV16) -> 4185.716674 | JI16: 4716.570317 | JJ16: 5314.749489 | JK16: 5988.792753 | JL16: 6748.321575 | JM16: 7604.177662 | JN16: 8568.577723 | JO16: 9655.287851 | JP16: 10879.82002 | JQ16: 12259.65353 | JR16: 11396.02114 | JU16: =SUMIF($10:$10,JU$7,16:16) -> 303.01 | JV16: 312.191506 | JW16: 321.6512208 | JX16: 331.3975745 | JY16: 341.4392524 | JZ16: 351.7852032 | KA16: 362.4446466 | KB16: 373.4270818 | KC16: 384.7422959 | KD16: 396.4003722 | KE16: =SUMIF($10:$10,KE$7,16:16) -> 408.4116998 | KF16: 420.7869828 | KG16: 433.5372491 | KH16: 446.6738613 | KI16: 460.208526 | KJ16: 474.1533045 | KK16: 488.5206238 | KL16: 503.3232872 | KM16: 518.5744861 | KN16: 534.2878117 | KO16: =SUMIF($10:$10,KO$7,16:16) -> 550.4772666 | KP16: 567.1572783 | KQ16: 584.342711 | KR16: 602.0488795 | KS16: 620.2915626 | KT16: 639.0870172 | KU16: 658.4519929 | KV16: 678.4037467 | KW16: 698.9600587 | KX16: 720.1392474 | KY16: =SUMIF($10:$10,KY$7,16:16) -> 741.9601867 | KZ16: 764.4423224 | LA16: 787.6056892 | LB16: 811.4709292 | LC16: 836.0593098 | LD16: 861.3927429 | LE16: 887.4938044 | LF16: 914.3857542 | LG16: 942.0925569 | LH16: 970.6389035 | LI16: =SUMIF($10:$10,LI$7,16:16) -> 1000.050233 | LJ16: 1030.352755 | LK16: 1061.573474 | LL16: 1093.740212 | LM16: 1126.881634 | LN16: 1161.027274 | LO16: 1196.207562 | LP16: 1232.453847 | LQ16: 1269.798431 | LR16: 1308.274593 | LS16: =SUMIF($10:$10,LS$7,16:16) -> 1347.916622 | LT16: 1388.759843 | LU16: 1430.840655 | LV16: 1474.196558 | LW16: 1518.866188 | LX16: 1564.889352 | LY16: 1612.307065 | LZ16: 1661.161581 | MA16: 1711.496438 | MB16: 1763.356492 | MC16: =SUMIF($10:$10,MC$7,16:16) -> 1816.787957 | MD16: 1871.838448 | ME16: 1928.557025 | MF16: 1986.994232 | MG16: 2047.202144 | MH16: 2109.234416 | MI16: 2173.146328 | MK16: =SUMIF($13:$13,MK$4,16:16) -> 615.201506 | ML16: 653.0487953 | MM16: 693.2244555 | MN16: 735.8717285 | MO16: 781.142668 | MP16: 829.1986826 | MQ16: 880.2111104 | MR16: 934.3618305 | MS16: 991.843911 | MT16: 1052.862298 | MU16: =SUMIF($13:$13,MU$4,16:16) -> 1117.634545 | MV16: 1186.39159 | MW16: 1259.37858 | MX16: 1336.85574 | MY16: 1419.099306 | MZ16: 1506.402509 | NA16: 1599.076618 | NB16: 1697.452053 | NC16: 1801.879559 | ND16: 1912.73146 | NE16: =SUMIF($13:$13,NE$4,16:16) -> 2030.402988 | NF16: 2155.313686 | NG16: 2287.908908 | NH16: 2428.661409 | NI16: 2578.073024 | NJ16: 2736.676465 | NK16: 2905.037213 | NL16: 3083.75554 | NM16: 3273.468645 | NN16: 3474.852929 | NO16: =SUMIF($13:$13,NO$4,16:16) -> 3688.626405 | NP16: 3915.551257 | NQ16: 4156.43656 | NR16: 4412.141163 | NS16: 4683.576752 | NT16: 4971.711099 | NU16: 5277.571515 | NV16: 5602.248509 | NW16: 5946.899681 | NX16: 6312.753845 | NY16: 6701.115412
C17: Revenue 2 | G17: 200 | H17: =G17+G17*0.05*NORMSINV(RAND()) -> 197.1120082 | I17: =H17+H17*0.05*NORMSINV(RAND()) -> 186.5873044 | J17: 187.9815665 | K17: 194.640485 | L17: 192.1081226 | M17: 197.9384035 | N17: 192.6676793 | O17: 186.5446459 | P17: 201.6518308 | Q17: 206.5121772 | R17: 198.2034987 | S17: 210.0332816 | T17: 206.3452472 | U17: 217.6245766 | V17: 225.3704129 | W17: 220.3223295 | X17: 235.4671847 | Y17: 257.4536584 | Z17: 242.1286781 | AA17: 229.0532269 | AB17: 234.7688236 | AC17: 245.1825972 | AD17: 254.4404518 | AE17: 248.4056951 | AF17: 256.3108569 | AG17: 248.2358639 | AH17: 250.5915543 | AI17: 253.009667 | AJ17: 241.0232506 | AK17: 242.643058 | AL17: 246.5265619 | AM17: 246.2810609 | AN17: 251.6247976 | AO17: 237.9299454 | AP17: 228.1030321 | AQ17: 228.5953413 | AR17: 230.9938858 | AS17: 213.3779257 | AT17: 220.4915511 | AU17: 221.899799 | AV17: 188.406534 | AW17: 197.9545437 | AX17: 199.90259 | AY17: 194.2770174 | AZ17: 178.2361796 | BA17: 178.0102471 | BB17: 164.427193 | BC17: 148.1964065 | BD17: 149.0059309 | BE17: 141.715052 | BF17: 133.3777177 | BG17: 139.0450244 | BH17: 138.0081215 | BI17: 135.0575006 | BJ17: 136.7392355 | BK17: 141.9651545 | BL17: 140.9098585 | BM17: 145.3605701 | BN17: 142.5965672 | BO17: 137.7787111 | BP17: 141.7367514 | BQ17: 139.4409525 | BR17: 142.3364143 | BS17: 135.5764231 | BT17: 132.9036072 | BU17: =BT17+BT17*0.05*NORMSINV(RAND()) -> 129.8970128 | BV17: 118.0487441 | BW17: 111.1078913 | BX17: 112.406115 | BY17: 108.8562632 | BZ17: 102.4123064 | CA17: 108.485032 | CB17: 103.3651669 | CC17: 101.8903222 | CD17: 102.5707217 | CE17: 102.100031 | CF17: 108.3819518 | CG17: 107.6790901 | CH17: 111.0833821 | CI17: 108.6992955 | CJ17: 111.4339041 | CK17: 105.9124708 | CL17: 112.4511235 | CM17: 114.8877878 | CN17: 116.5438686 | CO17: 114.1851734 | CP17: 106.0433355 | CQ17: 103.8989414 | CR17: 112.4601426 | CS17: 108.5795631 | CT17: 106.150418 | CU17: 112.1353989 | CV17: 112.063605 | CW17: 110.9483529 | CX17: 102.636859 | CY17: 94.43074873 | CZ17: 92.32839153 | DA17: 88.62072272 | DB17: 88.60903442 | DC17: 88.78749094 | DD17: 83.12906965 | DE17: 89.58414136 | DF17: 95.14388175 | DG17: 93.35297012 | DH17: 91.44808176 | DI17: 91.14317668 | DJ17: 91.07953334 | DK17: 88.090084 | DL17: 86.45231475 | DM17: 82.04084775 | DN17: 81.02222305 | DO17: 75.09282825 | DP17: 77.45826958 | DQ17: 80.10785317 | DR17: 86.31642996 | DS17: 85.03046486 | DT17: 83.89119443 | DU17: 89.98689298 | DV17: 87.86096071 | DW17: 90.96074929 | DX17: 90.69241337 | DY17: 91.42161439 | DZ17: 97.82032007 | EA17: 96.99299667 | EB17: 95.91624034 | EC17: 96.95832136 | ED17: 100.8213003 | EE17: 99.88743222 | EF17: 101.4522268 | EG17: =EF17+EF17*0.05*NORMSINV(RAND()) -> 102.208444 | EH17: 101.1138954 | EI17: 100.9079715 | EJ17: 97.96952386 | EK17: 97.65311617 | EL17: 108.0871556 | EM17: 106.3319025 | EN17: 101.0220411 | EO17: 92.76839154 | EP17: 94.89977244 | EQ17: 89.10856191 | ER17: 88.92139181 | ES17: 96.15047918 | ET17: 90.8050328 | EU17: 92.54514708 | EV17: 100.1907392 | EW17: 104.085321 | EX17: 105.1414331 | EY17: 107.0245388 | EZ17: 96.78744653 | FA17: 99.45941547 | FB17: 99.2033616 | FC17: 105.8648119 | FD17: 106.6399361 | FE17: 116.2440078 | FF17: 114.4328081 | FG17: 116.4377818 | FH17: 115.5153486 | FI17: 121.4855473 | FJ17: 117.1694155 | FK17: 128.5019253 | FL17: 141.9520453 | FM17: 140.9316039 | FN17: 133.1291933 | FO17: 138.2265291 | FP17: 145.8837931 | FQ17: 142.8148092 | FR17: 130.2017775 | FS17: 139.6426554 | FT17: 130.4348839 | FU17: 131.0592748 | FV17: 134.6830037 | FW17: 132.644909 | FX17: 128.0418811 | FY17: 122.2894373 | FZ17: 127.5118236 | GA17: 131.843233 | GB17: 136.3585381 | GC17: 132.2782776 | GD17: 130.685979 | GE17: 122.7860706 | GF17: 126.6168185 | GG17: 124.1571547 | GH17: 123.9102494 | GI17: 124.2627876 | GJ17: 122.1851952 | GK17: 124.0998632 | GL17: 117.9954785 | GM17: 115.5853719 | GN17: 113.9561006 | GO17: 110.5838108 | GP17: 113.9254946 | GQ17: 103.4307456 | GR17: 101.3135272 | GS17: =GR17+GR17*0.05*NORMSINV(RAND()) -> 107.1615287 | GT17: 110.9729757 | GU17: 109.9183631 | GV17: 100.1928551 | GW17: 111.5697315 | GX17: 106.3626842 | GY17: 103.5131279 | GZ17: 101.3535342 | HA17: 104.0767081 | HB17: 104.4120684 | HC17: 99.26513962 | HD17: 96.73138929 | HE17: 96.34313444 | HF17: 93.75474682 | HG17: 82.03572545 | HH17: 79.88094612 | HI17: 80.6068907 | HJ17: 85.00114757 | HK17: 83.35148723 | HL17: 83.6679924 | HM17: 88.86115283 | HN17: 89.57736864 | HO17: 88.88367569 | HP17: 93.75518506 | HQ17: 103.593363 | HR17: 104.8102437 | HS17: 108.9384819 | HT17: 105.7877033 | HU17: 115.4038027 | HV17: 124.1140273 | HW17: 127.9152938 | HX17: 125.6660476 | HY17: 122.6703498 | HZ17: 123.5364276 | IA17: 120.1060398 | IB17: 121.9729036 | IC17: 125.2576524 | ID17: 121.0042232 | IE17: 129.0737294 | IF17: 134.3404168 | IG17: 134.0977918 | IH17: 127.3205704 | II17: 138.3609517 | IJ17: 131.9395644 | IK17: 144.3251992 | IL17: 158.532028 | IM17: 160.8605534 | IN17: 161.885335 | IO17: 155.7292926 | IP17: 175.8818553 | IQ17: 175.2533192 | IR17: 185.1243926 | IS17: 192.371754 | IT17: 196.7651153 | IU17: 188.2435677 | IV17: 190.3645563 | IX17: 2341.947722 | IY17: 2778.190468 | IZ17: 2950.685344 | JA17: 2416.572808 | JB17: 1691.977139 | JC17: 1512.501192 | JD17: 1284.052492 | JE17: 1320.533446 | JF17: 1087.657243 | JG17: 1003.350364 | JH17: 1166.245954 | JI17: 1164.62534 | JJ17: 1247.618967 | JK17: 1572.24977 | JL17: 1577.473896 | JM17: 1440.064395 | JN17: 1264.27785 | JO17: 1059.077121 | JP17: 1345.074602 | JQ17: 1586.33107 | JR17: 1782.479741 | JU17: 583.6993126 | JV17: 574.7301742 | JW17: 577.1507286 | JX17: 606.3675067 | JY17: 634.0031054 | JZ17: 681.1599271 | KA17: 728.6355634 | KB17: 734.3918726 | KC17: 752.9524158 | KD17: 744.6244719 | KE17: 735.4506808 | KF17: 717.6577751 | KG17: 672.9671528 | KH17: 630.797884 | KI17: 592.1341511 | KJ17: 520.6736197 | KK17: 438.9173894 | KL17: 410.4308636 | KM17: 413.7618906 | KN17: 428.8669958 | KO17: 418.9564151 | KP17: 410.8164445 | KQ17: 359.0536483 | KR17: 323.6746845 | KS17: 313.7405212 | KT17: 313.0527045 | KU17: 327.4617676 | KV17: 329.7974984 | KW17: 345.6168298 | KX17: 322.4024195 | KY17: 326.8653801 | KZ17: 325.6488169 | LA17: 275.379863 | LB17: 260.525595 | LC17: 278.0809932 | LD17: 273.6707918 | LE17: 256.5832465 | LF17: 233.5733209 | LG17: 251.454748 | LH17: 261.7390481 | LI17: 273.074777 | LJ17: 290.7295571 | LK17: 297.6670538 | LL17: 304.7745663 | LM17: 296.5306115 | LN17: 315.4410993 | LO17: 276.7767259 | LP17: 275.8769038 | LQ17: 296.8212073 | LR17: 308.9534184 | LS17: 304.527589 | LT17: 337.3167519 | LU17: 353.4386777 | LV17: 387.6233861 | LW17: 412.2873262 | LX17: 418.9003797 | LY17: 401.1368142 | LZ17: 395.3697937 | MA17: 381.6444938 | MB17: 399.3227948 | MC17: 373.5600437 | MD17: 370.3582322 | ME17: 357.6807135 | MF17: 338.465406 | MG17: 311.9058015 | MH17: 321.0841939 | MI17: 321.4455436 | MK17: 1158.429487 | ML17: 1183.518235 | MM17: 1315.163033 | MN17: 1463.027436 | MO17: 1497.576888 | MP17: 1453.108456 | MQ17: 1303.765037 | MR17: 1112.807771 | MS17: 849.3482529 | MT17: 842.6288864 | MU17: 829.7728596 | MV17: 682.7283328 | MW17: 626.7932257 | MX17: 657.259266 | MY17: 668.0192493 | MZ17: 652.514197 | NA17: 535.905458 | NB17: 551.751785 | NC17: 490.1565674 | ND17: 513.1937961 | NE17: 563.8043341 | NF17: 602.4416201 | NG17: 611.9717108 | NH17: 552.6536297 | NI17: 605.7746257 | NJ17: 641.8443409 | NK17: 741.0620638 | NL17: 831.1877059 | NM17: 796.5066079 | NN17: 780.9672886 | NO17: 743.9182759 | NP17: 696.1461195 | NQ17: 632.9899954 | NR17: 631.2878542 | NS17: 548.0110817 | NT17: 511.0660394 | NU17: 605.7686527 | NV17: 739.3059489 | NW17: 751.7549651 | NX17: 834.5761053 | NY17: 1014.734748
C18: Revenue 3 | G18: 200 | H18: =G18+G18*0.02*NORMSINV(RAND()) -> 194.9508688 | I18: =H18+H18*0.02*NORMSINV(RAND()) -> 197.9596861 | J18: 198.6331434 | K18: 207.1847194 | L18: 203.9613841 | M18: 199.428912 | N18: 198.0206283 | O18: 194.2759197 | P18: 194.8051745 | Q18: 196.97234 | R18: 190.3589941 | S18: 190.7832747 | T18: 193.8052054 | U18: 189.8627438 | V18: 189.2919647 | W18: 193.3652026 | X18: 196.8161138 | Y18: 198.6374313 | Z18: 204.4074508 | AA18: 205.7590578 | AB18: 203.4957274 | AC18: 203.7254308 | AD18: 203.8049363 | AE18: 210.2411203 | AF18: 213.6640118 | AG18: 213.7549872 | AH18: 210.7203551 | AI18: 214.629661 | AJ18: 217.1691831 | AK18: 212.2323123 | AL18: 209.2184648 | AM18: 211.8895024 | AN18: 206.8974507 | AO18: 213.2646058 | AP18: 216.8339602 | AQ18: 225.7964756 | AR18: 224.4891669 | AS18: 224.0661748 | AT18: 222.1135691 | AU18: 226.38875 | AV18: 228.7313732 | AW18: 226.2277823 | AX18: 227.4730617 | AY18: 229.0409178 | AZ18: 239.8236941 | BA18: 234.6157447 | BB18: 237.1707556 | BC18: 242.3057 | BD18: 237.6021697 | BE18: 237.8286333 | BF18: 239.5636583 | BG18: 243.4547478 | BH18: 234.7957099 | BI18: 234.8761053 | BJ18: 240.5395539 | BK18: 235.8623492 | BL18: 226.5320376 | BM18: 229.9747686 | BN18: 225.620367 | BO18: 225.3672003 | BP18: 220.8595187 | BQ18: 216.9688056 | BR18: 215.6776688 | BS18: 218.289438 | BT18: 220.0677491 | BU18: =BT18+BT18*0.02*NORMSINV(RAND()) -> 213.5315798 | BV18: 214.2284719 | BW18: 211.8014411 | BX18: 215.7619962 | BY18: 217.3443035 | BZ18: 223.4721077 | CA18: 217.4865555 | CB18: 218.5631049 | CC18: 217.3421305 | CD18: 212.642591 | CE18: 213.4041103 | CF18: 210.131873 | CG18: 212.2034415 | CH18: 210.8747721 | CI18: 209.4149097 | CJ18: 210.2733798 | CK18: 210.7928493 | CL18: 216.0085683 | CM18: 213.8085283 | CN18: 213.090566 | CO18: 214.2072465 | CP18: 210.1824341 | CQ18: 215.1757372 | CR18: 216.5535896 | CS18: 215.3514628 | CT18: 219.084311 | CU18: 216.8291593 | CV18: 217.4025471 | CW18: 217.6133752 | CX18: 215.694324 | CY18: 202.9103133 | CZ18: 200.3987943 | DA18: 194.4045966 | DB18: 195.151652 | DC18: 195.7202464 | DD18: 194.2262394 | DE18: 194.9573092 | DF18: 192.7730364 | DG18: 197.0511208 | DH18: 200.3931553 | DI18: 202.5323938 | DJ18: 207.425827 | DK18: 204.8291016 | DL18: 210.0442682 | DM18: 214.7609982 | DN18: 220.3613466 | DO18: 219.3188559 | DP18: 213.4705262 | DQ18: 213.4660845 | DR18: 209.2107852 | DS18: 206.3632653 | DT18: 209.6508651 | DU18: 203.008022 | DV18: 198.1072027 | DW18: 198.4455695 | DX18: 198.021475 | DY18: 193.8821803 | DZ18: 189.1665289 | EA18: 193.1269476 | EB18: 192.2566269 | EC18: 187.8420621 | ED18: 187.1003443 | EE18: 186.480209 | EF18: 185.1673503 | EG18: =EF18+EF18*0.02*NORMSINV(RAND()) -> 181.8652216 | EH18: 176.6823094 | EI18: 180.8353852 | EJ18: 182.7493662 | EK18: 181.6045885 | EL18: 178.7358946 | EM18: 172.4340433 | EN18: 167.3816258 | EO18: 169.7283301 | EP18: 167.6133952 | EQ18: 167.3924427 | ER18: 168.4078873 | ES18: 168.6557032 | ET18: 165.6817737 | EU18: 164.1771448 | EV18: 162.6222244 | EW18: 166.0974222 | EX18: 166.0735344 | EY18: 167.8158251 | EZ18: 168.3073768 | FA18: 165.8110809 | FB18: 166.9092614 | FC18: 171.2156775 | FD18: 175.9378712 | FE18: 174.3987238 | FF18: 178.0700224 | FG18: 179.6487252 | FH18: 183.8850332 | FI18: 182.0150011 | FJ18: 187.1546424 | FK18: 182.5810104 | FL18: 175.2967016 | FM18: 176.0715349 | FN18: 176.710765 | FO18: 170.6616449 | FP18: 179.6043799 | FQ18: 179.0219412 | FR18: 180.2181624 | FS18: 174.9432497 | FT18: 173.8410665 | FU18: 173.1817373 | FV18: 178.2424992 | FW18: 172.192783 | FX18: 172.664061 | FY18: 169.3615583 | FZ18: 167.4912107 | GA18: 166.2178272 | GB18: 165.7080927 | GC18: 169.2425014 | GD18: 164.6770813 | GE18: 162.6796367 | GF18: 168.3989226 | GG18: 166.5161732 | GH18: 164.5698913 | GI18: 163.9673433 | GJ18: 162.0605953 | GK18: 164.0680785 | GL18: 157.6426517 | GM18: 157.2179936 | GN18: 161.4723837 | GO18: 161.5839967 | GP18: 159.9704924 | GQ18: 161.9354958 | GR18: 163.3038856 | GS18: =GR18+GR18*0.02*NORMSINV(RAND()) -> 161.2356165 | GT18: 157.2014247 | GU18: 151.86427 | GV18: 153.3096752 | GW18: 152.7066664 | GX18: 153.2022693 | GY18: 153.3107986 | GZ18: 153.2427762 | HA18: 152.0205481 | HB18: 151.618412 | HC18: 147.4058592 | HD18: 145.3679622 | HE18: 143.2629948 | HF18: 147.1685477 | HG18: 145.4230803 | HH18: 150.0366087 | HI18: 145.767301 | HJ18: 144.2316302 | HK18: 144.6341504 | HL18: 146.9057204 | HM18: 149.5313773 | HN18: 150.310713 | HO18: 152.1498849 | HP18: 148.9570671 | HQ18: 147.4735613 | HR18: 149.6287539 | HS18: 147.2746524 | HT18: 149.5621548 | HU18: 151.7782729 | HV18: 150.2507783 | HW18: 151.2103208 | HX18: 151.4708147 | HY18: 147.7366723 | HZ18: 148.3575395 | IA18: 149.085665 | IB18: 154.3787058 | IC18: 154.0131249 | ID18: 154.1483557 | IE18: 149.8062184 | IF18: 150.7016632 | IG18: 147.4534071 | IH18: 147.6138386 | II18: 152.7731224 | IJ18: 149.1696825 | IK18: 149.4730484 | IL18: 149.3651222 | IM18: 144.371052 | IN18: 144.2051403 | IO18: 144.5693471 | IP18: 143.8998428 | IQ18: 148.3876106 | IR18: 148.9461217 | IS18: 149.2810123 | IT18: 145.8695103 | IU18: 149.7608282 | IV18: 150.5549483 | IX18: 2376.55177 | IY18: 2373.754539 | IZ18: 2550.515615 | JA18: 2745.937466 | JB18: 2828.955801 | JC18: 2613.370281 | JD18: 2559.138286 | JE18: 2584.993281 | JF18: 2377.944684 | JG18: 2522.591322 | JH18: 2270.036825 | JI18: 2071.220436 | JJ18: 2027.436165 | JK18: 2152.869542 | JL18: 2047.763668 | JM18: 1950.148159 | JN18: 1864.951838 | JO18: 1760.045945 | JP18: 1795.850473 | JQ18: 1807.981954 | JR18: 1469.845413 | JU18: 592.9105548 | JV18: 609.779247 | JW18: 591.7254601 | JX18: 582.1365086 | JY18: 574.4512238 | JZ18: 579.4732811 | KA18: 608.8039399 | KB18: 611.0260946 | KC18: 637.6601193 | KD18: 642.5191992 | KE18: 633.3402795 | KF18: 636.9960167 | KG18: 674.3518173 | KH18: 677.2336923 | KI18: 682.7417618 | KJ18: 711.6101943 | KK18: 717.736503 | KL18: 717.814116 | KM18: 711.2780084 | KN18: 682.1271732 | KO18: 663.1955246 | KP18: 654.0348559 | KQ18: 639.5614927 | KR18: 656.5784075 | KS18: 653.3917908 | KT18: 636.1785742 | KU18: 632.4931232 | KV18: 637.0747974 | KW18: 641.1063408 | KX18: 641.9117609 | KY18: 651.2649331 | KZ18: 650.7102463 | LA18: 597.7137041 | LB18: 585.0981378 | LC18: 584.7814664 | LD18: 610.3513761 | LE18: 629.634368 | LF18: 653.1507287 | LG18: 629.040135 | LH18: 610.7660898 | LI18: 590.3492247 | LJ18: 574.5501034 | LK18: 561.4226154 | LL18: 543.7148813 | LM18: 545.1893398 | LN18: 518.5515637 | LO18: 504.734168 | LP18: 502.7453642 | LQ18: 492.8967914 | LR18: 502.1967363 | LS18: 503.9360198 | LT18: 528.4066174 | LU18: 545.5487596 | LV18: 545.0323545 | LW18: 523.4439448 | LX18: 538.8444835 | LY18: 521.9660535 | LZ18: 523.0993431 | MA18: 503.0705962 | MB18: 499.6276754 | MC18: 497.5947326 | MD18: 490.59783 | ME18: 478.9287238 | MF18: 483.0268728 | MG18: 486.4749979 | MH18: 462.3753698 | MI18: 459.2197344 | MK18: 1202.689802 | ML18: 1173.861969 | MM18: 1153.924505 | MN18: 1219.830035 | MO18: 1280.179318 | MP18: 1270.336296 | MQ18: 1351.58551 | MR18: 1394.351956 | MS18: 1435.550619 | MT18: 1393.405182 | MU18: 1317.230381 | MV18: 1296.1399 | MW18: 1289.570365 | MX18: 1269.567921 | MY18: 1283.018102 | MZ18: 1301.975179 | NA18: 1182.811842 | NB18: 1195.132842 | NC18: 1282.785097 | ND18: 1239.806225 | NE18: 1164.899328 | NF18: 1105.137497 | NG18: 1063.740904 | NH18: 1007.479532 | NI18: 995.0935277 | NJ18: 1032.342637 | NK18: 1090.581114 | NL18: 1062.288428 | NM18: 1045.065397 | NN18: 1002.698272 | NO18: 988.1925625 | NP18: 961.9555966 | NQ18: 948.8503677 | NR18: 916.1014706 | NS18: 878.665053 | NT18: 881.3808923 | NU18: 895.0460744 | NV18: 900.8043984 | NW18: 912.133733 | NX18: 895.8482212 | NY18: 874.3791144
C19: Revenue 4 | G19: =G18*0.2 -> 40 | H19: =H18*0.2 -> 38.99017376 | I19: 39.59193721 | J19: 39.72662868 | K19: 41.43694389 | L19: 40.79227683 | M19: 39.88578241 | N19: 39.60412566 | O19: 38.85518394 | P19: 38.9610349 | Q19: 39.394468 | R19: 38.07179883 | S19: 38.15665493 | T19: 38.76104108 | U19: 37.97254875 | V19: 37.85839294 | W19: 38.67304052 | X19: 39.36322277 | Y19: 39.72748627 | Z19: 40.88149016 | AA19: 41.15181155 | AB19: 40.69914549 | AC19: 40.74508617 | AD19: 40.76098727 | AE19: 42.04822407 | AF19: 42.73280235 | AG19: 42.75099743 | AH19: 42.14407101 | AI19: 42.92593221 | AJ19: 43.43383661 | AK19: 42.44646247 | AL19: 41.84369296 | AM19: 42.37790047 | AN19: 41.37949014 | AO19: 42.65292116 | AP19: 43.36679204 | AQ19: 45.15929512 | AR19: 44.89783337 | AS19: 44.81323497 | AT19: 44.42271381 | AU19: 45.27775 | AV19: 45.74627465 | AW19: 45.24555647 | AX19: 45.49461234 | AY19: 45.80818355 | AZ19: 47.96473882 | BA19: 46.92314893 | BB19: 47.43415111 | BC19: 48.46114 | BD19: 47.52043394 | BE19: 47.56572667 | BF19: 47.91273166 | BG19: 48.69094956 | BH19: 46.95914197 | BI19: 46.97522106 | BJ19: 48.10791078 | BK19: 47.17246984 | BL19: 45.30640752 | BM19: 45.99495371 | BN19: 45.12407341 | BO19: 45.07344006 | BP19: 44.17190375 | BQ19: 43.39376111 | BR19: 43.13553376 | BS19: 43.6578876 | BT19: =BT18*0.2 -> 44.01354982 | BU19: 42.70631595 | BV19: 42.84569438 | BW19: 42.36028822 | BX19: 43.15239925 | BY19: 43.46886071 | BZ19: 44.69442154 | CA19: 43.49731109 | CB19: 43.71262098 | CC19: 43.46842609 | CD19: 42.52851819 | CE19: 42.68082206 | CF19: 42.02637459 | CG19: 42.44068829 | CH19: 42.17495442 | CI19: 41.88298194 | CJ19: 42.05467596 | CK19: 42.15856986 | CL19: 43.20171367 | CM19: 42.76170566 | CN19: 42.6181132 | CO19: 42.8414493 | CP19: 42.03648681 | CQ19: 43.03514744 | CR19: 43.31071792 | CS19: 43.07029256 | CT19: 43.8168622 | CU19: 43.36583185 | CV19: 43.48050941 | CW19: 43.52267504 | CX19: 43.13886481 | CY19: 40.58206265 | CZ19: 40.07975885 | DA19: 38.88091932 | DB19: 39.03033039 | DC19: 39.14404929 | DD19: 38.84524788 | DE19: 38.99146183 | DF19: 38.55460728 | DG19: 39.41022416 | DH19: 40.07863106 | DI19: 40.50647877 | DJ19: 41.48516539 | DK19: 40.96582031 | DL19: 42.00885365 | DM19: 42.95219964 | DN19: 44.07226932 | DO19: 43.86377118 | DP19: 42.69410525 | DQ19: 42.69321691 | DR19: 41.84215704 | DS19: 41.27265306 | DT19: 41.93017301 | DU19: 40.60160441 | DV19: 39.62144054 | DW19: 39.68911389 | DX19: 39.604295 | DY19: 38.77643606 | DZ19: 37.83330578 | EA19: 38.62538952 | EB19: 38.45132538 | EC19: 37.56841242 | ED19: 37.42006887 | EE19: 37.29604179 | EF19: =EF18*0.2 -> 37.03347005 | EG19: 36.37304432 | EH19: 35.33646188 | EI19: 36.16707704 | EJ19: 36.54987323 | EK19: 36.32091769 | EL19: 35.74717892 | EM19: 34.48680867 | EN19: 33.47632516 | EO19: 33.94566601 | EP19: 33.52267905 | EQ19: 33.47848854 | ER19: 33.68157746 | ES19: 33.73114064 | ET19: 33.13635474 | EU19: 32.83542896 | EV19: 32.52444488 | EW19: 33.21948444 | EX19: 33.21470688 | EY19: 33.56316502 | EZ19: 33.66147537 | FA19: 33.16221619 | FB19: 33.38185228 | FC19: 34.2431355 | FD19: 35.18757424 | FE19: 34.87974476 | FF19: 35.61400447 | FG19: 35.92974505 | FH19: 36.77700664 | FI19: 36.40300023 | FJ19: 37.43092848 | FK19: 36.51620209 | FL19: 35.05934032 | FM19: 35.21430698 | FN19: 35.34215299 | FO19: 34.13232898 | FP19: 35.92087598 | FQ19: 35.80438824 | FR19: 36.04363248 | FS19: 34.98864994 | FT19: 34.7682133 | FU19: 34.63634746 | FV19: 35.64849984 | FW19: 34.4385566 | FX19: 34.5328122 | FY19: 33.87231167 | FZ19: 33.49824214 | GA19: 33.24356544 | GB19: 33.14161854 | GC19: 33.84850027 | GD19: 32.93541627 | GE19: 32.53592735 | GF19: 33.67978453 | GG19: 33.30323464 | GH19: 32.91397826 | GI19: 32.79346866 | GJ19: 32.41211907 | GK19: 32.8136157 | GL19: 31.52853033 | GM19: 31.44359873 | GN19: 32.29447674 | GO19: 32.31679934 | GP19: 31.99409849 | GQ19: 32.38709916 | GR19: =GR18*0.2 -> 32.66077712 | GS19: 32.2471233 | GT19: 31.44028493 | GU19: 30.372854 | GV19: 30.66193503 | GW19: 30.54133329 | GX19: 30.64045387 | GY19: 30.66215972 | GZ19: 30.64855523 | HA19: 30.40410961 | HB19: 30.3236824 | HC19: 29.48117185 | HD19: 29.07359244 | HE19: 28.65259897 | HF19: 29.43370955 | HG19: 29.08461606 | HH19: 30.00732175 | HI19: 29.1534602 | HJ19: 28.84632604 | HK19: 28.92683009 | HL19: 29.38114407 | HM19: 29.90627547 | HN19: 30.06214259 | HO19: 30.42997697 | HP19: 29.79141343 | HQ19: 29.49471226 | HR19: 29.92575078 | HS19: 29.45493049 | HT19: 29.91243096 | HU19: 30.35565458 | HV19: 30.05015566 | HW19: 30.24206416 | HX19: 30.29416295 | HY19: 29.54733445 | HZ19: 29.67150789 | IA19: 29.817133 | IB19: 30.87574117 | IC19: 30.80262498 | ID19: 30.82967114 | IE19: 29.96124368 | IF19: 30.14033264 | IG19: 29.49068141 | IH19: 29.52276773 | II19: 30.55462447 | IJ19: 29.83393649 | IK19: 29.89460968 | IL19: 29.87302445 | IM19: 28.87421039 | IN19: 28.84102806 | IO19: 28.91386941 | IP19: 28.77996856 | IQ19: 29.67752212 | IR19: 29.78922433 | IS19: 29.85620247 | IT19: 29.17390205 | IU19: 29.95216563 | IV19: 30.11098965 | IX19: 475.3103541 | IY19: 474.7509079 | IZ19: 510.1031229 | JA19: 549.1874931 | JB19: 565.7911601 | JC19: 522.6740562 | JD19: 511.8276571 | JE19: 516.9986562 | JF19: 475.5889369 | JG19: 504.5182643 | JH19: 454.007365 | JI19: 414.2440872 | JJ19: 405.487233 | JK19: 430.5739085 | JL19: 409.5527337 | JM19: 390.0296318 | JN19: 372.9903677 | JO19: 352.0091891 | JP19: 359.1700946 | JQ19: 361.5963908 | JR19: 293.9690827 | JU19: 118.582111 | JV19: 121.9558494 | JW19: 118.345092 | JX19: 116.4273017 | JY19: 114.8902448 | JZ19: 115.8946562 | KA19: 121.760788 | KB19: 122.2052189 | KC19: 127.5320239 | KD19: 128.5038398 | KE19: 126.6680559 | KF19: 127.3992033 | KG19: 134.8703635 | KH19: 135.4467385 | KI19: 136.5483524 | KJ19: 142.3220389 | KK19: 143.5473006 | KL19: 143.5628232 | KM19: 142.2556017 | KN19: 136.4254346 | KO19: 132.6391049 | KP19: 130.8069712 | KQ19: 127.9122985 | KR19: 131.3156815 | KS19: 130.6783582 | KT19: 127.2357148 | KU19: 126.4986246 | KV19: 127.4149595 | KW19: 128.2212682 | KX19: 128.3823522 | KY19: 130.2529866 | KZ19: 130.1420493 | LA19: 119.5427408 | LB19: 117.0196276 | LC19: 116.9562933 | LD19: 122.0702752 | LE19: 125.9268736 | LF19: 130.6301457 | LG19: 125.808027 | LH19: 122.153218 | LI19: 118.0698449 | LJ19: 114.9100207 | LK19: 112.2845231 | LL19: 108.7429763 | LM19: 109.037868 | LN19: 103.7103127 | LO19: 100.9468336 | LP19: 100.5490728 | LQ19: 98.57935828 | LR19: 100.4393473 | LS19: 100.787204 | LT19: 105.6813235 | LU19: 109.1097519 | LV19: 109.0064709 | LW19: 104.688789 | LX19: 107.7688967 | LY19: 104.3932107 | LZ19: 104.6198686 | MA19: 100.6141192 | MB19: 99.92553508 | MC19: 99.51894651 | MD19: 98.11956599 | ME19: 95.78574477 | MF19: 96.60537456 | MG19: 97.29499957 | MH19: 92.47507396 | MI19: 91.84394687 | MK19: 240.5379604 | ML19: 234.7723937 | MM19: 230.784901 | MN19: 243.9660069 | MO19: 256.0358637 | MP19: 254.0672592 | MQ19: 270.3171019 | MR19: 278.8703912 | MS19: 287.1101238 | MT19: 278.6810363 | MU19: 263.4460761 | MV19: 259.22798 | MW19: 257.914073 | MX19: 253.9135841 | MY19: 256.6036203 | MZ19: 260.3950359 | NA19: 236.5623684 | NB19: 239.0265685 | NC19: 256.5570193 | ND19: 247.961245 | NE19: 232.9798656 | NF19: 221.0274993 | NG19: 212.7481807 | NH19: 201.4959064 | NI19: 199.0187055 | NJ19: 206.4685274 | NK19: 218.1162228 | NL19: 212.4576857 | NM19: 209.0130793 | NN19: 200.5396543 | NO19: 197.6385125 | NP19: 192.3911193 | NQ19: 189.7700735 | NR19: 183.2202941 | NS19: 175.7330106 | NT19: 176.2761785 | NU19: 179.0092149 | NV19: 180.1608797 | NW19: 182.4267466 | NX19: 179.1696442 | NY19: 174.8758229
D20: Total | G20: =SUM(G16:G19) -> 540 | H20: =SUM(H16:H19) -> 532.0530507 | I20: 526.1489276 | J20: 529.3714386 | K20: 547.3225493 | L20: 541.9627886 | M20: 543.405113 | N20: 537.5059685 | O20: 527.9614201 | P20: 544.7865675 | Q20: 553.3411977 | R20: 538.2011263 | S20: 551.6557142 | T20: 552.7208217 | U20: 560.4072904 | V20: 568.6176661 | W20: 569.6184371 | X20: 590.0769644 | Y20: 615.4333236 | Z20: 608.2285141 | AA20: 597.9831002 | AB20: 602.2028906 | AC20: 614.1247001 | AD20: 624.7226773 | AE20: 627.6685043 | AF20: 640.9508705 | AG20: 634.2674799 | AH20: 634.2768682 | AI20: 642.6943569 | AJ20: 635.0766579 | AK20: 632.1067243 | AL20: 633.7214601 | AM20: 638.0425316 | AN20: 638.7707469 | AO20: 634.105171 | AP20: 629.96406 | AQ20: 642.6279904 | AR20: 644.8885331 | AS20: 628.2100592 | AT20: 634.4400848 | AU20: 642.4526723 | AV20: 613.259419 | AW20: 621.3068719 | AX20: 626.2680435 | AY20: 624.0578758 | AZ20: 622.5056873 | BA20: 617.5950261 | BB20: 608.658444 | BC20: 600.1858543 | BD20: 596.9633684 | BE20: 591.5725941 | BF20: 586.9619217 | BG20: 598.9596139 | BH20: 589.2095544 | BI20: 588.0498739 | BJ20: 598.2391575 | BK20: 599.5809555 | BL20: 589.0750954 | BM20: 599.420352 | BN20: 593.2119679 | BO20: 589.8890214 | BP20: 590.2545404 | BQ20: 585.1247494 | BR20: 588.3240594 | BS20: 586.5699356 | BT20: =SUM(BT16:BT19) -> 587.921555 | BU20: 578.9809239 | BV20: 569.8973858 | BW20: 561.9918408 | BX20: 570.0099528 | BY20: 570.3457643 | BZ20: 573.2619359 | CA20: 574.1788298 | CB20: 572.3979233 | CC20: 571.5254796 | CD20: 568.6546777 | CE20: 571.2069387 | CF20: 575.6923944 | CG20: 579.6269368 | CH20: 583.6098627 | CI20: 581.6687089 | CJ20: 587.6501968 | CK20: 584.9910092 | CL20: 600.049796 | CM20: 602.1302962 | CN20: 605.2315449 | CO20: 606.5426563 | CP20: 595.9241314 | CQ20: 602.1483198 | CR20: 614.7633288 | CS20: 611.8645859 | CT20: 616.3634914 | CU20: 622.1154092 | CV20: 625.2295309 | CW20: 626.8901011 | CX20: 618.8238029 | CY20: 597.8504172 | CZ20: 595.3335101 | DA20: 587.0580698 | DB20: 590.5943662 | DC20: 594.1331696 | DD20: 589.3867537 | DE20: 599.4509711 | DF20: 605.1487648 | DG20: 611.2783268 | DH20: 616.19852 | DI20: 621.3034876 | DJ20: 629.9831784 | DK20: 626.7775851 | DL20: 634.3269417 | DM20: 638.5337657 | DN20: 647.2233563 | DO20: 643.0606478 | DP20: 641.4559455 | DQ20: 647.1785295 | DR20: 651.3898608 | DS20: 649.8270767 | DT20: 655.8045329 | DU20: 657.1321429 | DV20: 652.3605836 | DW20: 659.1341221 | DX20: 661.6572597 | DY20: 660.7526978 | DZ20: 664.8593466 | EA20: 672.1849175 | EB20: 673.4981722 | EC20: 672.7115152 | ED20: 679.18786 | EE20: 681.048291 | EF20: =SUM(EF16:EF19) -> 684.6115012 | EG20: 685.0147486 | EH20: 681.3463857 | EI20: 689.8062899 | EJ20: 692.883578 | EK20: 694.9495852 | EL20: 705.7349017 | EM20: 700.2490738 | EN20: 692.7462745 | EO20: 691.2173329 | EP20: 694.7585414 | EQ20: 692.6894148 | ER20: 697.7478775 | ES20: 709.3417141 | ET20: 704.5355963 | EU20: 708.6192802 | EV20: 718.5895835 | EW20: 730.8869243 | EX20: 736.189218 | EY20: 744.480668 | EZ20: 739.1942092 | FA20: 743.2750022 | FB20: 748.7851878 | FC20: 765.1072445 | FD20: 776.0868374 | FE20: 788.4271467 | FF20: 795.650552 | FG20: 804.2253063 | FH20: 813.1085332 | FI20: 821.6040049 | FJ20: 828.2724472 | FK20: 838.9817732 | FL20: 848.604549 | FM20: 853.4768722 | FN20: 851.4541319 | FO20: 854.3552438 | FP20: 877.8571373 | FQ20: 879.2537077 | FR20: 873.2922672 | FS20: 881.6715368 | FT20: 876.4621154 | FU20: 881.6694907 | FV20: 896.7940551 | FW20: 892.9785015 | FX20: 894.4780297 | FY20: 890.3549755 | FZ20: 898.9812613 | GA20: 907.4894104 | GB20: 917.154882 | GC20: 923.1353782 | GD20: 921.9422366 | GE20: 917.5818322 | GF20: 934.2715251 | GG20: 935.6083221 | GH20: 939.1421961 | GI20: 944.9491574 | GJ20: 946.8227231 | GK20: 957.448019 | GL20: 949.9977867 | GM20: 953.5064017 | GN20: 963.4749928 | GO20: 966.7941589 | GP20: 974.8227332 | GQ20: 973.3753147 | GR20: =SUM(GR16:GR19) -> 979.6563838 | GS20: 989.8462443 | GT20: 995.7086809 | GU20: 995.2104227 | GV20: 994.2499502 | GW20: 1012.004071 | GX20: 1014.563611 | GY20: 1019.087871 | GZ20: 1024.162669 | HA20: 1032.808347 | HB20: 1040.124214 | HC20: 1037.459922 | HD20: 1040.093773 | HE20: 1044.868765 | HF20: 1054.733142 | HG20: 1048.763321 | HH20: 1060.066975 | HI20: 1063.671171 | HJ20: 1074.304058 | HK20: 1081.299671 | HL20: 1092.585932 | HM20: 1109.256192 | HN20: 1119.317184 | HO20: 1129.324167 | HP20: 1138.942902 | HQ20: 1155.665265 | HR20: 1168.219413 | HS20: 1178.361276 | HT20: 1186.882433 | HU20: 1208.174075 | HV20: 1224.15767 | HW20: 1238.307814 | HX20: 1245.660562 | HY20: 1247.566189 | HZ20: 1258.653426 | IA20: 1265.667668 | IB20: 1283.552769 | IC20: 1296.162075 | ID20: 1301.931809 | IE20: 1314.750246 | IF20: 1331.150558 | IG20: 1337.169707 | IH20: 1340.846282 | II20: 1368.441695 | IJ20: 1368.16371 | IK20: 1391.485589 | IL20: 1416.240833 | IM20: 1423.361181 | IN20: 1435.079422 | IO20: 1440.361907 | IP20: 1470.822559 | IQ20: 1486.801953 | IR20: 1508.678075 | IS20: 1527.775488 | IT20: 1539.637712 | IU20: 1547.464038 | IV20: 1562.333046 | IX20: 6462.060148 | IY20: 7055.7921 | IZ20: 7621.645432 | JA20: 7526.270707 | JB20: 7131.430309 | JC20: 6952.571665 | JD20: 6951.252754 | JE20: 7348.027199 | JF20: 7237.719535 | JG20: 7745.070968 | JH20: 8076.006818 | JI20: 8366.66018 | JJ20: 8995.291854 | JK20: 10144.48597 | JL20: 10783.11187 | JM20: 11384.41985 | JN20: 12070.79778 | JO20: 12826.42011 | JP20: 14379.91519 | JQ20: 16015.56294 | JR20: 14942.31538 | JU20: 1598.201978 | JV20: 1618.656777 | JW20: 1608.872502 | JX20: 1636.328892 | JY20: 1664.783826 | JZ20: 1728.313068 | KA20: 1821.644938 | KB20: 1841.050268 | KC20: 1902.886855 | KD20: 1912.047883 | KE20: 1903.870716 | KF20: 1902.839978 | KG20: 1915.726583 | KH20: 1890.152176 | KI20: 1871.632791 | KJ20: 1848.759157 | KK20: 1788.721817 | KL20: 1775.13109 | KM20: 1785.869987 | KN20: 1781.707415 | KO20: 1765.268311 | KP20: 1762.81555 | KQ20: 1710.870151 | KR20: 1713.617653 | KS20: 1718.102233 | KT20: 1715.554011 | KU20: 1744.905508 | KV20: 1772.691002 | KW20: 1813.904497 | KX20: 1812.83578 | KY20: 1850.343487 | KZ20: 1870.943435 | LA20: 1780.241997 | LB20: 1774.11429 | LC20: 1815.878063 | LD20: 1867.485186 | LE20: 1899.638293 | LF20: 1931.73995 | LG20: 1948.395467 | LH20: 1965.297259 | LI20: 1981.54408 | LJ20: 2010.542436 | LK20: 2032.947666 | LL20: 2050.972636 | LM20: 2077.639453 | LN20: 2098.73025 | LO20: 2078.665289 | LP20: 2111.625188 | LQ20: 2158.095788 | LR20: 2219.864095 | LS20: 2257.167435 | LT20: 2360.164536 | LU20: 2438.937844 | LV20: 2515.858769 | LW20: 2559.286248 | LX20: 2630.403112 | LY20: 2639.803143 | LZ20: 2684.250586 | MA20: 2696.825647 | MB20: 2762.232497 | MC20: 2787.461679 | MD20: 2830.914077 | ME20: 2860.952207 | MF20: 2905.091885 | MG20: 2942.877943 | MH20: 2985.169054 | MI20: 3045.655553 | MK20: 3216.858755 | ML20: 3245.201393 | MM20: 3393.096894 | MN20: 3662.695206 | MO20: 3814.934738 | MP20: 3806.710694 | MQ20: 3805.878759 | MR20: 3720.391949 | MS20: 3563.852907 | MT20: 3567.577402 | MU20: 3528.083861 | MV20: 3424.487804 | MW20: 3433.656244 | MX20: 3517.59651 | MY20: 3626.740277 | MZ20: 3721.286921 | NA20: 3554.356287 | NB20: 3683.363249 | NC20: 3831.378242 | ND20: 3913.692726 | NE20: 3992.086516 | NF20: 4083.920302 | NG20: 4176.369703 | NH20: 4190.290477 | NI20: 4377.959883 | NJ20: 4617.331971 | NK20: 4954.796614 | NL20: 5189.68936 | NM20: 5324.053729 | NN20: 5459.058144 | NO20: 5618.375756 | NP20: 5766.044092 | NQ20: 5928.046997 | NR20: 6142.750782 | NS20: 6285.985897 | NT20: 6540.434209 | NU20: 6957.395457 | NV20: 7422.519736 | NW20: 7793.215126 | NX20: 8222.347816 | NY20: 8765.105098
B22: Expenses
C23: Expense 1 | G23: =G16*0.5 -> 50 | H23: =H16*0.5 -> 50.5 | I23: 51.005 | J23: 51.51505 | K23: 52.0302005 | L23: 52.5505025 | M23: 53.07600753 | N23: 53.60676761 | O23: 54.14283528 | P23: 54.68426363 | Q23: 55.23110627 | R23: 55.78341733 | S23: 56.34125151 | T23: 56.90466402 | U23: 57.47371066 | V23: 58.04844777 | W23: 58.62893225 | X23: 59.21522157 | Y23: 59.80737378 | Z23: 60.40544752 | AA23: 61.009502 | AB23: 61.61959702 | AC23: 62.23579299 | AD23: 62.85815092 | AE23: 63.48673243 | AF23: 64.12159975 | AG23: 64.76281575 | AH23: 65.41044391 | AI23: 66.06454834 | AJ23: 66.72519383 | AK23: 67.39244577 | AL23: 68.06637022 | AM23: 68.74703393 | AN23: 69.43450427 | AO23: 70.12884931 | AP23: 70.8301378 | AQ23: 71.53843918 | AR23: 72.25382357 | AS23: 72.97636181 | AT23: 73.70612543 | AU23: 74.44318668 | AV23: 75.18761855 | AW23: 75.93949473 | AX23: 76.69888968 | AY23: 77.46587858 | AZ23: 78.24053736 | BA23: 79.02294274 | BB23: 79.81317216 | BC23: 80.61130388 | BD23: 81.41741692 | BE23: 82.23159109 | BF23: 83.053907 | BG23: 83.88444607 | BH23: 84.72329053 | BI23: 85.57052344 | BJ23: 86.42622867 | BK23: 87.29049096 | BL23: 88.16339587 | BM23: 89.04502983 | BN23: 89.93548013 | BO23: 90.83483493 | BP23: 91.74318328 | BQ23: 92.66061511 | BR23: 93.58722126 | BS23: 94.52309347 | BT23: =BT16*0.5 -> 95.46832441 | BU23: 96.42300765 | BV23: 97.38723773 | BW23: 98.36111011 | BX23: 99.34472121 | BY23: 100.3381684 | BZ23: 101.3415501 | CA23: 102.3549656 | CB23: 103.3785153 | CC23: 104.4123004 | CD23: 105.4564234 | CE23: 106.5109877 | CF23: 107.5760975 | CG23: 108.6518585 | CH23: 109.7383771 | CI23: 110.8357609 | CJ23: 111.9441185 | CK23: 113.0635597 | CL23: 114.1941952 | CM23: 115.3361372 | CN23: 116.4894986 | CO23: 117.6543936 | CP23: 118.8309375 | CQ23: 120.0192469 | CR23: 121.2194393 | CS23: 122.4316337 | CT23: 123.6559501 | CU23: 124.8925096 | CV23: 126.1414347 | CW23: 127.402849 | CX23: 128.6768775 | CY23: 129.9636463 | CZ23: 131.2632827 | DA23: 132.5759156 | DB23: 133.9016747 | DC23: 135.2406915 | DD23: 136.5930984 | DE23: 137.9590294 | DF23: 139.3386197 | DG23: 140.7320059 | DH23: 142.1393259 | DI23: 143.5607192 | DJ23: 144.9963264 | DK23: 146.4462896 | DL23: 147.9107525 | DM23: 149.3898601 | DN23: 150.8837587 | DO23: 152.3925962 | DP23: 153.9165222 | DQ23: 155.4556874 | DR23: 157.0102443 | DS23: 158.5803467 | DT23: 160.1661502 | DU23: 161.7678117 | DV23: 163.3854898 | DW23: 165.0193447 | DX23: 166.6695382 | DY23: 168.3362336 | DZ23: 170.0195959 | EA23: 171.7197919 | EB23: 173.4369898 | EC23: 175.1713597 | ED23: 176.9230733 | EE23: 178.692304 | EF23: =EF16*0.5 -> 180.479227 | EG23: 182.2840193 | EH23: 184.1068595 | EI23: 185.9479281 | EJ23: 187.8074074 | EK23: 189.6854815 | EL23: 191.5823363 | EM23: 193.4981596 | EN23: 195.4331412 | EO23: 197.3874726 | EP23: 199.3613474 | EQ23: 201.3549608 | ER23: 203.3685104 | ES23: 205.4021955 | ET23: 207.4562175 | EU23: 209.5307797 | EV23: 211.6260875 | EW23: 213.7423484 | EX23: 215.8797718 | EY23: 218.0385696 | EZ23: 220.2189552 | FA23: 222.4211448 | FB23: 224.6453562 | FC23: 226.8918098 | FD23: 229.1607279 | FE23: 231.4523352 | FF23: 233.7668585 | FG23: 236.1045271 | FH23: 238.4655724 | FI23: 240.8502281 | FJ23: 243.2587304 | FK23: 245.6913177 | FL23: 248.1482309 | FM23: 250.6297132 | FN23: 253.1360103 | FO23: 255.6673704 | FP23: 258.2240441 | FQ23: 260.8062846 | FR23: 263.4143474 | FS23: 266.0484909 | FT23: 268.7089758 | FU23: 271.3960656 | FV23: 274.1100262 | FW23: 276.8511265 | FX23: 279.6196377 | FY23: 282.4158341 | FZ23: 285.2399925 | GA23: 288.0923924 | GB23: 290.9733163 | GC23: 293.8830495 | GD23: 296.82188 | GE23: 299.7900988 | GF23: 302.7879998 | GG23: 305.8158798 | GH23: 308.8740386 | GI23: 311.9627789 | GJ23: 315.0824067 | GK23: 318.2332308 | GL23: 321.4155631 | GM23: 324.6297187 | GN23: 327.8760159 | GO23: 331.1547761 | GP23: 334.4663238 | GQ23: 337.8109871 | GR23: =GR16*0.5 -> 341.1890969 | GS23: 344.6009879 | GT23: 348.0469978 | GU23: 351.5274678 | GV23: 355.0427425 | GW23: 358.5931699 | GX23: 362.1791016 | GY23: 365.8008926 | GZ23: 369.4589015 | HA23: 373.1534905 | HB23: 376.8850254 | HC23: 380.6538757 | HD23: 384.4604144 | HE23: 388.3050186 | HF23: 392.1880688 | HG23: 396.1099495 | HH23: 400.071049 | HI23: 404.0717595 | HJ23: 408.112477 | HK23: 412.1936018 | HL23: 416.3155378 | HM23: 420.4786932 | HN23: 424.6834801 | HO23: 428.9303149 | HP23: 433.2196181 | HQ23: 437.5518143 | HR23: 441.9273324 | HS23: 446.3466057 | HT23: 450.8100718 | HU23: 455.3181725 | HV23: 459.8713542 | HW23: 464.4700678 | HX23: 469.1147685 | HY23: 473.8059161 | HZ23: 478.5439753 | IA23: 483.3294151 | IB23: 488.1627092 | IC23: 493.0443363 | ID23: 497.9747797 | IE23: 502.9545275 | IF23: 507.9840727 | IG23: 513.0639135 | IH23: 518.1945526 | II23: 523.3764981 | IJ23: 528.6102631 | IK23: 533.8963657 | IL23: 539.2353294 | IM23: 544.6276827 | IN23: 550.0739595 | IO23: 555.5746991 | IP23: 561.1304461 | IQ23: 566.7417506 | IR23: 572.4091681 | IS23: 578.1332598 | IT23: 583.9145924 | IU23: 589.7537383 | IV23: 595.6512757 | IX23: =SUMIF($G$7:$IV$7,IX$7,$G23:$IV23) -> 634.1251507 | IY23: 714.548092 | IZ23: 805.1706753 | JA23: 907.2864705 | JB23: 1022.353104 | JC23: 1152.013068 | JD23: 1298.11716 | JE23: 1462.750908 | JF23: 1648.264336 | JG23: 1857.30551 | JH23: 2092.858337 | JI23: 2358.285158 | JJ23: 2657.374745 | JK23: 2994.396377 | JL23: 3374.160787 | JM23: 3802.088831 | JN23: 4284.288861 | JO23: 4827.643925 | JP23: 5439.910012 | JQ23: 6129.826763 | JR23: 5698.010572 | JU23: =SUMIF($10:$10,JU$7,23:23) -> 151.505 | JV23: 156.095753 | JW23: 160.8256104 | JX23: 165.6987872 | JY23: 170.7196262 | JZ23: 175.8926016 | KA23: 181.2223233 | KB23: 186.7135409 | KC23: 192.3711479 | KD23: 198.2001861 | KE23: =SUMIF($10:$10,KE$7,23:23) -> 204.2058499 | KF23: 210.3934914 | KG23: 216.7686246 | KH23: 223.3369307 | KI23: 230.104263 | KJ23: 237.0766523 | KK23: 244.2603119 | KL23: 251.6616436 | KM23: 259.2872431 | KN23: 267.1439058 | KO23: =SUMIF($10:$10,KO$7,23:23) -> 275.2386333 | KP23: 283.5786391 | KQ23: 292.1713555 | KR23: 301.0244397 | KS23: 310.1457813 | KT23: 319.5435086 | KU23: 329.2259965 | KV23: 339.2018734 | KW23: 349.4800293 | KX23: 360.0696237 | KY23: =SUMIF($10:$10,KY$7,23:23) -> 370.9800934 | KZ23: 382.2211612 | LA23: 393.8028446 | LB23: 405.7354646 | LC23: 418.0296549 | LD23: 430.6963715 | LE23: 443.7469022 | LF23: 457.1928771 | LG23: 471.0462785 | LH23: 485.3194518 | LI23: =SUMIF($10:$10,LI$7,23:23) -> 500.0251165 | LJ23: 515.1763775 | LK23: 530.7867369 | LL23: 546.8701058 | LM23: 563.4408169 | LN23: 580.5136371 | LO23: 598.1037808 | LP23: 616.2269235 | LQ23: 634.8992155 | LR23: 654.1372966 | LS23: =SUMIF($10:$10,LS$7,23:23) -> 673.9583109 | LT23: 694.3799216 | LU23: 715.4203276 | LV23: 737.098279 | LW23: 759.4330939 | LX23: 782.4446761 | LY23: 806.1535323 | LZ23: 830.5807904 | MA23: 855.748219 | MB23: 881.6782458 | MC23: =SUMIF($10:$10,MC$7,23:23) -> 908.3939783 | MD23: 935.9192242 | ME23: 964.2785126 | MF23: 993.4971158 | MG23: 1023.601072 | MH23: 1054.617208 | MI23: 1086.573164 | MK23: =SUMIF($13:$13,MK$4,23:23) -> 307.600753 | ML23: 326.5243977 | MM23: 346.6122278 | MN23: 367.9358642 | MO23: 390.571334 | MP23: 414.5993413 | MQ23: 440.1055552 | MR23: 467.1809152 | MS23: 495.9219555 | MT23: 526.4311489 | MU23: =SUMIF($13:$13,MU$4,23:23) -> 558.8172725 | MV23: 593.1957952 | MW23: 629.6892899 | MX23: 668.4278698 | MY23: 709.549653 | MZ23: 753.2012546 | NA23: 799.5383092 | NB23: 848.7260264 | NC23: 900.9397793 | ND23: 956.3657302 | NE23: =SUMIF($13:$13,NE$4,23:23) -> 1015.201494 | NF23: 1077.656843 | NG23: 1143.954454 | NH23: 1214.330704 | NI23: 1289.036512 | NJ23: 1368.338233 | NK23: 1452.518607 | NL23: 1541.87777 | NM23: 1636.734323 | NN23: 1737.426465 | NO23: =SUMIF($13:$13,NO$4,23:23) -> 1844.313202 | NP23: 1957.775628 | NQ23: 2078.21828 | NR23: 2206.070582 | NS23: 2341.788376 | NT23: 2485.85555 | NU23: 2638.785757 | NV23: 2801.124254 | NW23: 2973.44984 | NX23: 3156.376922 | NY23: 3350.557706
C24: Expense 2 | G24: 100 | H24: =G24+G24*0.05*NORMSINV(RAND()) -> 99.29883864 | I24: =H24+H24*0.05*NORMSINV(RAND()) -> 91.69978518 | J24: 89.19851352 | K24: 89.39262108 | L24: 86.74597949 | M24: 83.40297701 | N24: 82.61579704 | O24: 82.77602949 | P24: 79.66926882 | Q24: 82.44508413 | R24: 81.81046239 | S24: 75.74868377 | T24: 72.71986789 | U24: 74.56364033 | V24: 72.75327197 | W24: 77.75191523 | X24: 74.9015363 | Y24: 77.74352513 | Z24: 75.74758897 | AA24: 74.999379 | AB24: 73.47515322 | AC24: 83.63402525 | AD24: 82.85903026 | AE24: 79.25356419 | AF24: 85.33997998 | AG24: 79.26286901 | AH24: 83.97082401 | AI24: 88.03420372 | AJ24: 85.09026637 | AK24: 86.73550429 | AL24: 86.73019194 | AM24: 80.53861472 | AN24: 85.96602923 | AO24: 83.31891194 | AP24: 76.82937207 | AQ24: 80.90674092 | AR24: 80.0522755 | AS24: 71.82314361 | AT24: 74.78503462 | AU24: 74.72488425 | AV24: 73.42266252 | AW24: 67.08119923 | AX24: 62.53064113 | AY24: 56.5157802 | AZ24: 55.25893868 | BA24: 50.41934719 | BB24: 52.89810823 | BC24: 58.09574258 | BD24: 60.62898571 | BE24: 61.13507479 | BF24: 62.55490423 | BG24: 67.01174845 | BH24: 66.51196015 | BI24: 73.42217235 | BJ24: 75.24654485 | BK24: 65.70548938 | BL24: 61.60694974 | BM24: 65.41394885 | BN24: 62.66218011 | BO24: 59.6359261 | BP24: 58.86162791 | BQ24: 59.58766913 | BR24: 64.15299871 | BS24: 65.07690965 | BT24: 65.62975974 | BU24: =BT24+BT24*0.05*NORMSINV(RAND()) -> 64.42626755 | BV24: 65.41208124 | BW24: 66.1587375 | BX24: 66.24861398 | BY24: 70.37798929 | BZ24: 74.12944152 | CA24: 73.94348524 | CB24: 72.66794981 | CC24: 69.89639195 | CD24: 72.60648199 | CE24: 73.68239099 | CF24: 72.83286415 | CG24: 72.65064929 | CH24: 71.79518695 | CI24: 70.66705456 | CJ24: 70.94508526 | CK24: 69.40835464 | CL24: 68.64476956 | CM24: 69.38671651 | CN24: 72.12493635 | CO24: 74.93595601 | CP24: 76.28568437 | CQ24: 76.86599062 | CR24: 77.9400928 | CS24: 76.6150441 | CT24: 82.15379292 | CU24: 83.28851258 | CV24: 83.25636389 | CW24: 84.4376596 | CX24: 81.01171842 | CY24: 80.53422867 | CZ24: 74.38560484 | DA24: 70.85955302 | DB24: 64.40550324 | DC24: 61.91005323 | DD24: 62.42829979 | DE24: 62.88012466 | DF24: 62.901755 | DG24: 66.27136537 | DH24: 68.86297744 | DI24: 71.10302067 | DJ24: 69.88334594 | DK24: 69.64834499 | DL24: 70.69616193 | DM24: 73.02549562 | DN24: 78.24623541 | DO24: 81.87871958 | DP24: 84.04314577 | DQ24: 80.26429048 | DR24: 86.23989594 | DS24: 90.6862427 | DT24: 87.78572423 | DU24: 95.00015917 | DV24: 96.97518743 | DW24: 92.20290528 | DX24: 98.2214112 | DY24: 102.7523499 | DZ24: 99.92409546 | EA24: 100.8733815 | EB24: 112.0402871 | EC24: 111.2249341 | ED24: 114.7634024 | EE24: 117.778071 | EF24: 127.4782755 | EG24: =EF24+EF24*0.05*NORMSINV(RAND()) -> 133.4068523 | EH24: 130.4034307 | EI24: 135.0613367 | EJ24: 127.2218455 | EK24: 125.9381315 | EL24: 125.1918878 | EM24: 117.3375721 | EN24: 116.2213579 | EO24: 116.3132693 | EP24: 118.0153272 | EQ24: 114.2151557 | ER24: 118.381062 | ES24: 120.8717627 | ET24: 120.7619454 | EU24: 118.210232 | EV24: 110.1077457 | EW24: 113.7206911 | EX24: 109.3221266 | EY24: 103.6477366 | EZ24: 106.3241004 | FA24: 104.2806857 | FB24: 102.0629363 | FC24: 104.3872381 | FD24: 105.1859527 | FE24: 106.5490094 | FF24: 110.9607177 | FG24: 112.6576844 | FH24: 105.3625957 | FI24: 101.7969396 | FJ24: 90.01985532 | FK24: 97.12790389 | FL24: 90.88661582 | FM24: 87.97306541 | FN24: 85.65226204 | FO24: 88.57228347 | FP24: 83.33470251 | FQ24: 83.68388005 | FR24: 83.19829889 | FS24: 83.19352147 | FT24: 82.08478422 | FU24: 84.14587171 | FV24: 87.25511105 | FW24: 92.43992335 | FX24: 93.81680474 | FY24: 98.67983757 | FZ24: 103.7791189 | GA24: 102.153326 | GB24: 99.22995129 | GC24: 103.0152822 | GD24: 97.79454966 | GE24: 98.51184984 | GF24: 104.357411 | GG24: 106.6054242 | GH24: 103.4885687 | GI24: 101.0115771 | GJ24: 94.34578759 | GK24: 93.75899827 | GL24: 91.89984167 | GM24: 81.7945192 | GN24: 87.220407 | GO24: 86.16078428 | GP24: 85.66027373 | GQ24: 84.58068475 | GR24: 86.29234163 | GS24: =GR24+GR24*0.05*NORMSINV(RAND()) -> 85.17908445 | GT24: 81.84756658 | GU24: 81.65283714 | GV24: 78.54464732 | GW24: 78.47661376 | GX24: 78.93020935 | GY24: 79.36439103 | GZ24: 69.55497515 | HA24: 62.4665058 | HB24: 64.9513071 | HC24: 63.94227054 | HD24: 64.08309797 | HE24: 61.90813029 | HF24: 55.05148807 | HG24: 59.64227115 | HH24: 56.54767612 | HI24: 57.87352131 | HJ24: 57.98621051 | HK24: 56.09595738 | HL24: 57.10658612 | HM24: 52.65785608 | HN24: 53.75417977 | HO24: 51.3359234 | HP24: 57.28023349 | HQ24: 57.07406114 | HR24: 56.20209216 | HS24: 58.69492604 | HT24: 59.74425138 | HU24: 57.24826616 | HV24: 55.11813531 | HW24: 52.69863484 | HX24: 56.93777036 | HY24: 63.84106993 | HZ24: 59.8409821 | IA24: 59.88365902 | IB24: 58.67719075 | IC24: 57.49795819 | ID24: 53.45795766 | IE24: 51.16173057 | IF24: 49.22018017 | IG24: 53.12560238 | IH24: 54.8639783 | II24: 52.9279996 | IJ24: 49.13388501 | IK24: 52.05535695 | IL24: 51.89353938 | IM24: 55.17554061 | IN24: 52.9125394 | IO24: 56.97120396 | IP24: 61.77297007 | IQ24: 67.26195722 | IR24: 71.68469599 | IS24: 67.0100624 | IT24: 70.63565232 | IU24: 69.39970265 | IV24: 70.88684151 | IX24: =SUMIF($G$7:$IV$7,IX$7,$G24:$IV24) -> 1049.055357 | IY24: 916.8976173 | IZ24: 1001.070331 | JA24: 800.4187561 | JB24: 779.9957012 | JC24: 779.6980223 | JD24: 859.7406644 | JE24: 938.3024682 | JF24: 816.4258319 | JG24: 994.4896032 | JH24: 1341.069396 | JI24: 1455.530654 | JJ24: 1294.759172 | JK24: 1110.266087 | JL24: 1127.588082 | JM24: 1134.815443 | JN24: =SUMIF($G$7:$IV$7,JN$7,$G24:$IV24) -> 931.8411641 | JO24: 696.6492453 | JP24: 686.0163463 | JQ24: 643.899038 | JR24: 643.7111661 | JU24: 290.9986238 | JV24: 265.3371141 | JW24: 248.7948035 | JX24: 243.9248153 | JY24: 223.032192 | JZ24: 225.4067235 | KA24: 228.4904931 | KB24: 239.9682087 | KC24: 243.8564132 | KD24: 257.0952941 | KE24: 254.004311 | KF24: 246.1143132 | KG24: 232.78216 | KH24: 222.9325814 | KI24: 186.1276206 | KJ24: 158.5763941 | KK24: 179.8598031 | KL24: 196.0786128 | KM24: 214.3742066 | KN24: 189.6830787 | KO24: 178.0852231 | KP24: 194.8596681 | KQ24: 195.9970863 | KR24: 210.7560448 | KS24: 216.507827 | KT24: 219.1217371 | KU24: 215.1128908 | KV24: 208.9982095 | KW24: 216.4476089 | KX24: 231.0917678 | KY24: 242.0573496 | KZ24: 248.7057419 | LA24: 225.7793865 | LB24: 188.7438563 | LC24: 192.053245 | LD24: 209.8493441 | LE24: 213.3700025 | LF24: 244.1681008 | LG24: 257.1904291 | LH24: 279.7610708 | LI24: 293.1766664 | LJ24: 312.837764 | LK24: 343.7664075 | LL24: 391.2885584 | LM24: 388.2213137 | LN24: 358.7508177 | LO24: 348.5437522 | LP24: 360.0147702 | LQ24: 342.0386687 | LR24: 319.2939635 | LS24: 310.7308602 | LT24: 322.6956798 | LU24: 319.8172197 | LV24: 278.034375 | LW24: 262.1976109 | LX24: 250.2168815 | LY24: 249.4241774 | LZ24: 273.5118391 | MA24: 304.6122824 | MB24: 300.0397831 | MC24: 309.4746851 | MD24: 298.8459333 | ME24: 267.4533591 | MF24: 259.041465 | MG24: 256.0521108 | MH24: 242.045051 | MI24: 236.7712141 | MK24: 556.3357379 | ML24: 492.7196189 | MM24: 448.4389155 | MN24: 468.4587018 | MO24: 500.9517073 | MP24: 500.1186242 | MQ24: 455.7147414 | MR24: 344.7040147 | MS24: 375.9384159 | MT24: 404.0572853 | MU24: 372.9448912 | MV24: 406.7531311 | MW24: 435.6295641 | MX24: 424.1111003 | MY24: 447.5393767 | MZ24: 490.7630915 | NA24: 414.5232428 | NB24: 401.9025891 | NC24: 457.5381033 | ND24: 536.9514999 | NE24: 606.0144304 | NF24: 735.0549659 | NG24: 746.9721315 | NH24: 708.5585224 | NI24: 661.3326323 | NJ24: 633.42654 | NK24: 597.8515948 | NL24: 512.4144924 | NM24: 522.9360165 | NN24: 604.6520656 | NO24: 608.3206184 | NP24: 526.4948241 | NQ24: 498.0971619 | NR24: 433.7440022 | NS24: 361.1749341 | NT24: 335.4743112 | NU24: 340.3314876 | NV24: 345.6848587 | NW24: 329.8986764 | NX24: 314.0003616 | NY24: 365.7789072
C25: Expense 3 | G25: 100 | H25: =G25+G25*0.02*NORMSINV(RAND()) -> 98.64578388 | I25: =H25+H25*0.02*NORMSINV(RAND()) -> 97.56478496 | J25: 96.34244405 | K25: 97.89064035 | L25: 98.80390294 | M25: 103.3185226 | N25: 99.69760513 | O25: 96.9638855 | P25: 99.3551415 | Q25: 98.73360956 | R25: 100.6135241 | S25: 99.72444629 | T25: 99.33398119 | U25: 96.0120161 | V25: 94.09359409 | W25: 93.06727778 | X25: 93.08711909 | Y25: 95.67811254 | Z25: 94.45222237 | AA25: 94.63239958 | AB25: 89.88318512 | AC25: 88.8785964 | AD25: 85.79677737 | AE25: 86.56292412 | AF25: 85.81497459 | AG25: 84.35053509 | AH25: 82.01300647 | AI25: 80.93827975 | AJ25: 80.8862689 | AK25: 81.31842029 | AL25: 79.95037529 | AM25: 79.06017793 | AN25: 79.51353651 | AO25: 77.83054561 | AP25: 77.57775049 | AQ25: 80.10673916 | AR25: 81.23309592 | AS25: 80.42963993 | AT25: 81.80877357 | AU25: 81.10841906 | AV25: 82.3897807 | AW25: 82.01851995 | AX25: 80.35045842 | AY25: 80.92236572 | AZ25: 77.43874359 | BA25: 77.0444481 | BB25: 77.9535213 | BC25: 77.19854571 | BD25: 78.24667846 | BE25: 80.72112807 | BF25: 80.45539444 | BG25: 80.99170998 | BH25: 82.93611305 | BI25: 83.41110843 | BJ25: 87.70245759 | BK25: 85.0754464 | BL25: 85.77764826 | BM25: 82.28494197 | BN25: 82.26872883 | BO25: 81.61129714 | BP25: 81.28983365 | BQ25: 83.62882231 | BR25: 82.12334287 | BS25: 82.3392815 | BT25: 84.28604569 | BU25: =BT25+BT25*0.02*NORMSINV(RAND()) -> 85.10414248 | BV25: 81.32040872 | BW25: 80.68622369 | BX25: 80.46874398 | BY25: 79.49386154 | BZ25: 79.12514102 | CA25: 76.00110342 | CB25: 75.60992388 | CC25: 77.82839619 | CD25: 79.15805902 | CE25: 78.70573977 | CF25: 80.53200774 | CG25: 80.23842552 | CH25: 77.21920385 | CI25: 76.60748825 | CJ25: 76.31227003 | CK25: 76.05914707 | CL25: 77.70988511 | CM25: 78.21456071 | CN25: 79.0052633 | CO25: 77.16512818 | CP25: 76.8367771 | CQ25: 74.76108278 | CR25: 74.88473771 | CS25: 76.50899886 | CT25: 79.07928807 | CU25: 81.01138962 | CV25: 81.58132334 | CW25: 81.72826734 | CX25: 79.40002165 | CY25: 78.31896781 | CZ25: 75.66583088 | DA25: 74.65051731 | DB25: 71.94162827 | DC25: 70.49180556 | DD25: 70.22790583 | DE25: 69.72592272 | DF25: 70.87151912 | DG25: 71.72034376 | DH25: 70.16922017 | DI25: 67.99707244 | DJ25: 66.65810559 | DK25: 67.30386203 | DL25: 67.82710984 | DM25: 69.29085827 | DN25: 69.35927453 | DO25: 69.35209599 | DP25: 69.79854988 | DQ25: 69.51213252 | DR25: 71.6032872 | DS25: 69.05459949 | DT25: 70.52807372 | DU25: 69.1536696 | DV25: 69.75271886 | DW25: 69.08102143 | DX25: 70.98145238 | DY25: 72.11863646 | DZ25: 71.1744492 | EA25: 71.26590713 | EB25: 72.90967938 | EC25: 73.27489955 | ED25: 71.83032319 | EE25: 68.60367363 | EF25: 69.06808706 | EG25: =EF25+EF25*0.02*NORMSINV(RAND()) -> 68.37506304 | EH25: 70.08592656 | EI25: 69.74270378 | EJ25: 67.93075475 | EK25: 67.01104942 | EL25: 65.1033714 | EM25: 65.86848204 | EN25: 66.85848776 | EO25: 65.47451632 | EP25: 64.95820612 | EQ25: 64.03561992 | ER25: 65.62581293 | ES25: 65.92764768 | ET25: 65.05622389 | EU25: 65.53080444 | EV25: 65.66191774 | EW25: 67.24550915 | EX25: 65.44929012 | EY25: 66.56074174 | EZ25: 67.50781412 | FA25: 67.30796556 | FB25: 65.60488551 | FC25: 65.34127678 | FD25: 67.03102266 | FE25: 67.32828112 | FF25: 66.04003587 | FG25: 67.08123737 | FH25: 65.67879495 | FI25: 66.16067378 | FJ25: 67.6953835 | FK25: 67.4503744 | FL25: 68.14531882 | FM25: 69.47946849 | FN25: 67.24376027 | FO25: 66.91795196 | FP25: 67.32485744 | FQ25: 65.23980804 | FR25: 65.31782515 | FS25: 64.80293912 | FT25: 65.83298336 | FU25: 64.38608232 | FV25: 64.64604574 | FW25: 63.8226332 | FX25: 64.47908673 | FY25: 63.4296394 | FZ25: 64.28628423 | GA25: 63.01160411 | GB25: 63.81833156 | GC25: 64.36483324 | GD25: 62.73771647 | GE25: 62.7224419 | GF25: 62.02130827 | GG25: 60.89795952 | GH25: 60.54128035 | GI25: 63.2367165 | GJ25: 59.89290534 | GK25: 59.27033853 | GL25: 60.85805861 | GM25: 60.14405939 | GN25: 63.76171071 | GO25: 64.60329557 | GP25: 64.51050188 | GQ25: 64.44222066 | GR25: 61.89479665 | GS25: =GR25+GR25*0.02*NORMSINV(RAND()) -> 60.70770577 | GT25: 60.67768701 | GU25: 61.91613406 | GV25: 62.00722096 | GW25: 62.34210259 | GX25: 62.17795769 | GY25: 61.410387 | GZ25: 61.04769463 | HA25: 59.71994489 | HB25: 61.11339225 | HC25: 60.43365187 | HD25: 60.03914694 | HE25: 59.30621023 | HF25: 60.36828048 | HG25: 60.4398779 | HH25: 61.58901174 | HI25: 62.84436491 | HJ25: 63.56946916 | HK25: 65.05991103 | HL25: 64.38831253 | HM25: 66.76042111 | HN25: 65.96541549 | HO25: 67.16146306 | HP25: 68.49152611 | HQ25: 69.86536836 | HR25: 69.75754704 | HS25: 69.32647864 | HT25: 68.95691802 | HU25: 71.81637687 | HV25: 70.97282865 | HW25: 70.43381938 | HX25: 70.40244658 | HY25: 70.58866449 | HZ25: 72.42018111 | IA25: 72.35698729 | IB25: 72.01817369 | IC25: 71.5416723 | ID25: 70.9098364 | IE25: 72.26817748 | IF25: 70.95810049 | IG25: 70.14810274 | IH25: 70.70891886 | II25: 68.4025989 | IJ25: 66.75163394 | IK25: 65.82271428 | IL25: 65.12868289 | IM25: 66.28205583 | IN25: 66.63261051 | IO25: 64.82002797 | IP25: 64.92187191 | IQ25: 64.82614494 | IR25: 63.88174266 | IS25: 64.54965664 | IT25: 65.71732426 | IU25: 66.82617145 | IV25: 68.3065844 | IX25: 1187.929845 | IY25: 1124.639728 | IZ25: 975.816795 | JA25: 962.8045054 | JB25: 987.0699012 | JC25: 981.4771446 | JD25: 931.9816498 | JE25: 940.1768387 | JF25: 858.4388394 | JG25: 832.5362319 | JH25: 848.769119 | JI25: 793.592876 | JJ25: 796.6095448 | JK25: 803.7354542 | JL25: 769.6181795 | JM25: 742.4605766 | JN25: 739.4572442 | JO25: 750.7640734 | JP25: 840.1936183 | JQ25: 837.0155992 | JR25: 656.7641906 | JU25: 296.2105688 | JV25: 293.0369873 | JW25: 299.9800133 | JX25: 298.7022752 | JY25: 295.0704436 | JZ25: 280.247991 | KA25: 284.7627345 | KB25: 264.5585589 | KC25: 256.7284338 | KD25: 243.8375551 | KE25: 240.3289735 | KF25: 234.9218326 | KG25: 241.769475 | KH25: 245.3069733 | KI25: 243.2913441 | KJ25: 232.436713 | KK25: 236.1663522 | KL25: 244.3832175 | KM25: 256.1890124 | KN25: 250.3313191 | KO25: 246.5299531 | KP25: 248.7486701 | KQ25: 247.1107749 | KR25: 239.0877465 | KS25: 229.4394235 | KT25: 238.3958065 | KU25: 234.0651176 | KV25: 230.0813022 | KW25: 234.3849522 | KX25: 226.4825976 | KY25: 236.5996765 | KZ25: 242.7096123 | LA25: 228.635316 | LB25: 212.6613397 | LC25: 212.3177856 | LD25: 204.8243982 | LE25: 204.4218301 | LF25: 208.5099204 | LG25: 210.1700192 | LH25: 209.4344622 | LI25: 212.1811103 | LJ25: 215.3500357 | LK25: 213.7088964 | LL25: 207.5290767 | LM25: 204.684508 | LN25: 197.8303412 | LO25: 194.4683424 | LP25: 196.6096845 | LQ25: 198.4382313 | LR25: 199.517846 | LS25: 198.2541278 | LT25: 200.3993396 | LU25: 198.9207061 | LV25: 203.2910767 | LW25: 203.6411807 | LX25: 197.8824906 | LY25: 195.0220048 | LZ25: 192.9477657 | MA25: 190.7275277 | MB25: 190.9208813 | MC25: 185.6417097 | MD25: 183.6709022 | ME25: 180.2724565 | MF25: 192.8755082 | MG25: 187.0447231 | MH25: 184.601042 | MI25: 185.9304473 | MK25: 589.2475562 | ML25: 598.6822885 | MM25: 575.3184345 | MN25: 549.3212934 | MO25: 500.5659889 | MP25: 475.2508061 | MQ25: 487.0764483 | MR25: 475.7280571 | MS25: 480.5495697 | MT25: 506.5203315 | MU25: 495.2786232 | MV25: 486.1985214 | MW25: 467.83523 | MX25: 464.1464198 | MY25: 460.8675498 | MZ25: 479.3092889 | NA25: 441.2966557 | NB25: 417.1421838 | NC25: 412.9317505 | ND25: 419.6044814 | NE25: 427.531146 | NF25: 421.237973 | NG25: 402.5148492 | NH25: 391.0780269 | NI25: 397.9560773 | NJ25: 398.6534675 | NK25: 402.2117828 | NL25: 401.5236713 | NM25: 387.9697705 | NN25: 381.648409 | NO25: 369.3126119 | NP25: 373.1479647 | NQ25: 371.6457651 | NR25: 367.8114791 | NS25: 362.1761792 | NT25: 388.5878942 | NU25: 413.5593012 | NV25: 426.6343171 | NW25: 430.0529476 | NX25: 406.9626516 | NY25: 391.3644538
C26: Expense 4 | G26: 10 | H26: =G26*1.01 -> 10.1 | I26: =H26*1.01 -> 10.201 | J26: 10.30301 | K26: 10.4060401 | L26: 10.5101005 | M26: 10.61520151 | N26: 10.72135352 | O26: 10.82856706 | P26: 10.93685273 | Q26: 11.04622125 | R26: 11.15668347 | S26: 11.2682503 | T26: 11.3809328 | U26: 11.49474213 | V26: 11.60968955 | W26: 11.72578645 | X26: 11.84304431 | Y26: 11.96147476 | Z26: 12.0810895 | AA26: 12.2019004 | AB26: 12.3239194 | AC26: 12.4471586 | AD26: 12.57163018 | AE26: 12.69734649 | AF26: 12.82431995 | AG26: 12.95256315 | AH26: 13.08208878 | AI26: 13.21290967 | AJ26: 13.34503877 | AK26: 13.47848915 | AL26: 13.61327404 | AM26: 13.74940679 | AN26: 13.88690085 | AO26: 14.02576986 | AP26: 14.16602756 | AQ26: 14.30768784 | AR26: 14.45076471 | AS26: 14.59527236 | AT26: 14.74122509 | AU26: 14.88863734 | AV26: 15.03752371 | AW26: 15.18789895 | AX26: 15.33977794 | AY26: 15.49317572 | AZ26: 15.64810747 | BA26: 15.80458855 | BB26: 15.96263443 | BC26: 16.12226078 | BD26: 16.28348338 | BE26: 16.44631822 | BF26: 16.6107814 | BG26: 16.77688921 | BH26: 16.94465811 | BI26: 17.11410469 | BJ26: 17.28524573 | BK26: 17.45809819 | BL26: 17.63267917 | BM26: 17.80900597 | BN26: 17.98709603 | BO26: 18.16696699 | BP26: 18.34863666 | BQ26: 18.53212302 | BR26: 18.71744425 | BS26: 18.90461869 | BT26: 19.09366488 | BU26: =BT26*1.01 -> 19.28460153 | BV26: 19.47744755 | BW26: 19.67222202 | BX26: 19.86894424 | BY26: 20.06763368 | BZ26: 20.26831002 | CA26: 20.47099312 | CB26: 20.67570305 | CC26: 20.88246008 | CD26: 21.09128468 | CE26: 21.30219753 | CF26: 21.51521951 | CG26: 21.7303717 | CH26: 21.94767542 | CI26: 22.16715217 | CJ26: 22.38882369 | CK26: 22.61271193 | CL26: 22.83883905 | CM26: 23.06722744 | CN26: 23.29789971 | CO26: 23.53087871 | CP26: 23.7661875 | CQ26: 24.00384937 | CR26: 24.24388787 | CS26: 24.48632675 | CT26: 24.73119001 | CU26: 24.97850191 | CV26: 25.22828693 | CW26: 25.4805698 | CX26: 25.7353755 | CY26: 25.99272926 | CZ26: 26.25265655 | DA26: 26.51518311 | DB26: 26.78033494 | DC26: 27.04813829 | DD26: 27.31861968 | DE26: 27.59180587 | DF26: 27.86772393 | DG26: 28.14640117 | DH26: 28.42786518 | DI26: 28.71214384 | DJ26: 28.99926527 | DK26: 29.28925793 | DL26: 29.58215051 | DM26: 29.87797201 | DN26: 30.17675173 | DO26: 30.47851925 | DP26: 30.78330444 | DQ26: 31.09113749 | DR26: 31.40204886 | DS26: 31.71606935 | DT26: 32.03323004 | DU26: 32.35356234 | DV26: 32.67709797 | DW26: 33.00386895 | DX26: 33.33390764 | DY26: 33.66724671 | DZ26: 34.00391918 | EA26: 34.34395837 | EB26: 34.68739795 | EC26: 35.03427193 | ED26: 35.38461465 | EE26: 35.7384608 | EF26: 36.09584541 | EG26: =EF26*1.01 -> 36.45680386 | EH26: 36.8213719 | EI26: 37.18958562 | EJ26: 37.56148148 | EK26: 37.93709629 | EL26: 38.31646725 | EM26: 38.69963193 | EN26: 39.08662824 | EO26: 39.47749453 | EP26: 39.87226947 | EQ26: 40.27099217 | ER26: 40.67370209 | ES26: 41.08043911 | ET26: 41.4912435 | EU26: 41.90615594 | EV26: 42.3252175 | EW26: 42.74846967 | EX26: 43.17595437 | EY26: 43.60771391 | EZ26: 44.04379105 | FA26: 44.48422896 | FB26: 44.92907125 | FC26: 45.37836196 | FD26: 45.83214558 | FE26: 46.29046704 | FF26: 46.75337171 | FG26: 47.22090543 | FH26: 47.69311448 | FI26: 48.17004562 | FJ26: 48.65174608 | FK26: 49.13826354 | FL26: 49.62964618 | FM26: 50.12594264 | FN26: 50.62720206 | FO26: 51.13347409 | FP26: 51.64480883 | FQ26: 52.16125691 | FR26: 52.68286948 | FS26: 53.20969818 | FT26: 53.74179516 | FU26: 54.27921311 | FV26: 54.82200524 | FW26: 55.3702253 | FX26: 55.92392755 | FY26: 56.48316682 | FZ26: 57.04799849 | GA26: 57.61847848 | GB26: 58.19466326 | GC26: 58.77660989 | GD26: 59.36437599 | GE26: 59.95801975 | GF26: 60.55759995 | GG26: 61.16317595 | GH26: 61.77480771 | GI26: 62.39255579 | GJ26: 63.01648135 | GK26: 63.64664616 | GL26: 64.28311262 | GM26: 64.92594375 | GN26: 65.57520318 | GO26: 66.23095522 | GP26: 66.89326477 | GQ26: 67.56219742 | GR26: 68.23781939 | GS26: =GR26*1.01 -> 68.92019758 | GT26: 69.60939956 | GU26: 70.30549355 | GV26: 71.00854849 | GW26: 71.71863398 | GX26: 72.43582032 | GY26: 73.16017852 | GZ26: 73.8917803 | HA26: 74.63069811 | HB26: 75.37700509 | HC26: 76.13077514 | HD26: 76.89208289 | HE26: 77.66100372 | HF26: 78.43761376 | HG26: 79.22198989 | HH26: 80.01420979 | HI26: 80.81435189 | HJ26: 81.62249541 | HK26: 82.43872036 | HL26: 83.26310757 | HM26: 84.09573864 | HN26: 84.93669603 | HO26: 85.78606299 | HP26: 86.64392362 | HQ26: 87.51036286 | HR26: 88.38546648 | HS26: 89.26932115 | HT26: 90.16201436 | HU26: 91.0636345 | HV26: 91.97427085 | HW26: 92.89401356 | HX26: 93.82295369 | HY26: 94.76118323 | HZ26: 95.70879506 | IA26: 96.66588301 | IB26: 97.63254184 | IC26: 98.60886726 | ID26: 99.59495593 | IE26: 100.5909055 | IF26: 101.5968145 | IG26: 102.6127827 | IH26: 103.6389105 | II26: 104.6752996 | IJ26: 105.7220526 | IK26: 106.7792731 | IL26: 107.8470659 | IM26: 108.9255365 | IN26: 110.0147919 | IO26: 111.1149398 | IP26: 112.2260892 | IQ26: 113.3483501 | IR26: 114.4818336 | IS26: 115.626652 | IT26: 116.7829185 | IU26: 117.9507477 | IV26: 119.1302551 | IX26: 126.8250301 | IY26: 142.9096184 | IZ26: 161.0341351 | JA26: 181.4572941 | JB26: 204.4706209 | JC26: 230.4026135 | JD26: 259.6234319 | JE26: 292.5501815 | JF26: 329.6528671 | JG26: 371.4611019 | JH26: 418.5716674 | JI26: 471.6570317 | JJ26: 531.4749489 | JK26: 598.8792753 | JL26: 674.8321575 | JM26: 760.4177662 | JN26: 856.8577723 | JO26: 965.5287851 | JP26: 1087.982002 | JQ26: 1225.965353 | JR26: 1139.602114 | JU26: 30.301 | JV26: 31.2191506 | JW26: 32.16512208 | JX26: 33.13975745 | JY26: 34.14392524 | JZ26: 35.17852032 | KA26: 36.24446466 | KB26: 37.34270818 | KC26: 38.47422959 | KD26: 39.64003722 | KE26: 40.84116998 | KF26: 42.07869828 | KG26: 43.35372491 | KH26: 44.66738613 | KI26: 46.0208526 | KJ26: 47.41533045 | KK26: 48.85206238 | KL26: 50.33232872 | KM26: 51.85744861 | KN26: 53.42878117 | KO26: 55.04772666 | KP26: 56.71572783 | KQ26: 58.4342711 | KR26: 60.20488795 | KS26: 62.02915626 | KT26: 63.90870172 | KU26: 65.84519929 | KV26: 67.84037467 | KW26: 69.89600587 | KX26: 72.01392474 | KY26: 74.19601867 | KZ26: 76.44423224 | LA26: 78.76056892 | LB26: 81.14709292 | LC26: 83.60593098 | LD26: 86.13927429 | LE26: 88.74938044 | LF26: 91.43857542 | LG26: 94.20925569 | LH26: 97.06389035 | LI26: 100.0050233 | LJ26: 103.0352755 | LK26: 106.1573474 | LL26: 109.3740212 | LM26: 112.6881634 | LN26: 116.1027274 | LO26: 119.6207562 | LP26: 123.2453847 | LQ26: 126.9798431 | LR26: 130.8274593 | LS26: 134.7916622 | LT26: 138.8759843 | LU26: 143.0840655 | LV26: 147.4196558 | LW26: 151.8866188 | LX26: 156.4889352 | LY26: 161.2307065 | LZ26: 166.1161581 | MA26: 171.1496438 | MB26: 176.3356492 | MC26: 181.6787957 | MD26: 187.1838448 | ME26: 192.8557025 | MF26: 198.6994232 | MG26: 204.7202144 | MH26: 210.9234416 | MI26: 217.3146328 | MK26: 61.5201506 | ML26: 65.30487953 | MM26: 69.32244555 | MN26: 73.58717285 | MO26: 78.1142668 | MP26: 82.91986826 | MQ26: 88.02111104 | MR26: 93.43618305 | MS26: 99.1843911 | MT26: 105.2862298 | MU26: 111.7634545 | MV26: 118.639159 | MW26: 125.937858 | MX26: 133.685574 | MY26: 141.9099306 | MZ26: 150.6402509 | NA26: 159.9076618 | NB26: 169.7452053 | NC26: 180.1879559 | ND26: 191.273146 | NE26: 203.0402988 | NF26: 215.5313686 | NG26: 228.7908908 | NH26: 242.8661409 | NI26: 257.8073024 | NJ26: 273.6676465 | NK26: 290.5037213 | NL26: 308.375554 | NM26: 327.3468645 | NN26: 347.4852929 | NO26: 368.8626405 | NP26: 391.5551257 | NQ26: 415.643656 | NR26: 441.2141163 | NS26: 468.3576752 | NT26: 497.1711099 | NU26: 527.7571515 | NV26: 560.2248509 | NW26: 594.6899681 | NX26: 631.2753845 | NY26: 670.1115412
C27: Expense 5 | G27: 12 | H27: =G27*1.01 -> 12.12 | I27: =H27*1.01 -> 12.2412 | J27: 12.363612 | K27: 12.48724812 | L27: 12.6121206 | M27: 12.73824181 | N27: 12.86562423 | O27: 12.99428047 | P27: 13.12422327 | Q27: 13.2554655 | R27: 13.38802016 | S27: 13.52190036 | T27: 13.65711937 | U27: 13.79369056 | V27: 13.93162746 | W27: 14.07094374 | X27: 14.21165318 | Y27: 14.35376971 | Z27: 14.49730741 | AA27: 14.64228048 | AB27: 14.78870328 | AC27: 14.93659032 | AD27: 15.08595622 | AE27: 15.23681578 | AF27: 15.38918394 | AG27: 15.54307578 | AH27: 15.69850654 | AI27: 15.8554916 | AJ27: 16.01404652 | AK27: 16.17418698 | AL27: 16.33592885 | AM27: 16.49928814 | AN27: 16.66428102 | AO27: 16.83092383 | AP27: 16.99923307 | AQ27: 17.1692254 | AR27: 17.34091766 | AS27: 17.51432683 | AT27: 17.6894701 | AU27: 17.8663648 | AV27: 18.04502845 | AW27: 18.22547874 | AX27: 18.40773352 | AY27: 18.59181086 | AZ27: 18.77772897 | BA27: 18.96550626 | BB27: 19.15516132 | BC27: 19.34671293 | BD27: 19.54018006 | BE27: 19.73558186 | BF27: 19.93293768 | BG27: 20.13226706 | BH27: 20.33358973 | BI27: 20.53692563 | BJ27: 20.74229488 | BK27: 20.94971783 | BL27: 21.15921501 | BM27: 21.37080716 | BN27: 21.58451523 | BO27: 21.80036038 | BP27: 22.01836399 | BQ27: 22.23854763 | BR27: 22.4609331 | BS27: 22.68554243 | BT27: 22.91239786 | BU27: =BT27*1.01 -> 23.14152184 | BV27: 23.37293706 | BW27: 23.60666643 | BX27: 23.84273309 | BY27: 24.08116042 | BZ27: 24.32197202 | CA27: 24.56519175 | CB27: 24.81084366 | CC27: 25.0589521 | CD27: 25.30954162 | CE27: 25.56263704 | CF27: 25.81826341 | CG27: 26.07644604 | CH27: 26.3372105 | CI27: 26.60058261 | CJ27: 26.86658843 | CK27: 27.13525432 | CL27: 27.40660686 | CM27: 27.68067293 | CN27: 27.95747966 | CO27: 28.23705445 | CP27: 28.519425 | CQ27: 28.80461925 | CR27: 29.09266544 | CS27: 29.3835921 | CT27: 29.67742802 | CU27: 29.9742023 | CV27: 30.27394432 | CW27: 30.57668376 | CX27: 30.8824506 | CY27: 31.19127511 | CZ27: 31.50318786 | DA27: 31.81821974 | DB27: 32.13640193 | DC27: 32.45776595 | DD27: 32.78234361 | DE27: 33.11016705 | DF27: 33.44126872 | DG27: 33.77568141 | DH27: 34.11343822 | DI27: 34.4545726 | DJ27: 34.79911833 | DK27: 35.14710951 | DL27: 35.49858061 | DM27: 35.85356641 | DN27: 36.21210208 | DO27: 36.5742231 | DP27: 36.93996533 | DQ27: 37.30936498 | DR27: 37.68245863 | DS27: 38.05928322 | DT27: 38.43987605 | DU27: 38.82427481 | DV27: 39.21251756 | DW27: 39.60464273 | DX27: 40.00068916 | DY27: 40.40069605 | DZ27: 40.80470301 | EA27: 41.21275004 | EB27: 41.62487754 | EC27: 42.04112632 | ED27: 42.46153758 | EE27: 42.88615296 | EF27: 43.31501449 | EG27: =EF27*1.01 -> 43.74816463 | EH27: 44.18564628 | EI27: 44.62750274 | EJ27: 45.07377777 | EK27: 45.52451555 | EL27: 45.9797607 | EM27: 46.43955831 | EN27: 46.90395389 | EO27: 47.37299343 | EP27: 47.84672337 | EQ27: 48.3251906 | ER27: 48.80844251 | ES27: 49.29652693 | ET27: 49.7894922 | EU27: 50.28738712 | EV27: 50.79026099 | EW27: 51.2981636 | EX27: 51.81114524 | EY27: 52.32925669 | EZ27: 52.85254926 | FA27: 53.38107475 | FB27: 53.9148855 | FC27: 54.45403435 | FD27: 54.9985747 | FE27: 55.54856045 | FF27: 56.10404605 | FG27: 56.66508651 | FH27: 57.23173738 | FI27: 57.80405475 | FJ27: 58.3820953 | FK27: 58.96591625 | FL27: 59.55557541 | FM27: 60.15113117 | FN27: 60.75264248 | FO27: 61.3601689 | FP27: 61.97377059 | FQ27: 62.5935083 | FR27: 63.21944338 | FS27: 63.85163781 | FT27: 64.49015419 | FU27: 65.13505573 | FV27: 65.78640629 | FW27: 66.44427035 | FX27: 67.10871306 | FY27: 67.77980019 | FZ27: 68.45759819 | GA27: 69.14217417 | GB27: 69.83359591 | GC27: 70.53193187 | GD27: 71.23725119 | GE27: 71.9496237 | GF27: 72.66911994 | GG27: 73.39581114 | GH27: 74.12976925 | GI27: 74.87106694 | GJ27: 75.61977761 | GK27: 76.37597539 | GL27: 77.13973514 | GM27: 77.9111325 | GN27: 78.69024382 | GO27: 79.47714626 | GP27: 80.27191772 | GQ27: 81.0746369 | GR27: 81.88538327 | GS27: =GR27*1.01 -> 82.7042371 | GT27: 83.53127947 | GU27: 84.36659227 | GV27: 85.21025819 | GW27: 86.06236077 | GX27: 86.92298438 | GY27: 87.79221422 | GZ27: 88.67013636 | HA27: 89.55683773 | HB27: 90.45240611 | HC27: 91.35693017 | HD27: 92.27049947 | HE27: 93.19320446 | HF27: 94.12513651 | HG27: 95.06638787 | HH27: 96.01705175 | HI27: 96.97722227 | HJ27: 97.94699449 | HK27: 98.92646444 | HL27: 99.91572908 | HM27: 100.9148864 | HN27: 101.9240352 | HO27: 102.9432756 | HP27: 103.9727083 | HQ27: 105.0124354 | HR27: 106.0625598 | HS27: 107.1231854 | HT27: 108.1944172 | HU27: 109.2763614 | HV27: 110.369125 | HW27: 111.4728163 | HX27: 112.5875444 | HY27: 113.7134199 | HZ27: 114.8505541 | IA27: 115.9990596 | IB27: 117.1590502 | IC27: 118.3306407 | ID27: 119.5139471 | IE27: 120.7090866 | IF27: 121.9161775 | IG27: 123.1353392 | IH27: 124.3666926 | II27: 125.6103596 | IJ27: 126.8664631 | IK27: 128.1351278 | IL27: 129.4164791 | IM27: 130.7106438 | IN27: 132.0177503 | IO27: 133.3379278 | IP27: 134.6713071 | IQ27: 136.0180201 | IR27: 137.3782003 | IS27: 138.7519823 | IT27: 140.1395022 | IU27: 141.5408972 | IV27: 142.9563062 | IX27: 152.1900362 | IY27: 171.4915421 | IZ27: 193.2409621 | JA27: 217.7487529 | JB27: 245.3647451 | JC27: 276.4831362 | JD27: 311.5481183 | JE27: 351.0602178 | JF27: 395.5834405 | JG27: 445.7533223 | JH27: 502.2860008 | JI27: 565.988438 | JJ27: 637.7699387 | JK27: 718.6551304 | JL27: 809.798589 | JM27: 912.5013194 | JN27: 1028.229327 | JO27: 1158.634542 | JP27: 1305.578403 | JQ27: 1471.158423 | JR27: 1367.522537 | JU27: 36.3612 | JV27: 37.46298072 | JW27: 38.5981465 | JX27: 39.76770894 | JY27: 40.97271029 | JZ27: 42.21422438 | KA27: 43.49335759 | KB27: 44.81124982 | KC27: 46.1690755 | KD27: 47.56804466 | KE27: 49.00940398 | KF27: 50.49443793 | KG27: 52.02446989 | KH27: 53.60086336 | KI27: 55.22502312 | KJ27: 56.89839654 | KK27: 58.62247486 | KL27: 60.39879447 | KM27: 62.22893834 | KN27: 64.1145374 | KO27: 66.057272 | KP27: 68.05887339 | KQ27: 70.12112532 | KR27: 72.24586554 | KS27: 74.43498751 | KT27: 76.69044206 | KU27: 79.01423915 | KV27: 81.40844961 | KW27: 83.87520704 | KX27: 86.41670969 | KY27: 89.03522241 | KZ27: 91.73307868 | LA27: 94.5126827 | LB27: 97.3765115 | LC27: 100.3271172 | LD27: 103.3671292 | LE27: 106.4992565 | LF27: 109.7262905 | LG27: 113.0511068 | LH27: 116.4766684 | LI27: 120.006028 | LJ27: 123.6423306 | LK27: 127.3888169 | LL27: 131.2488254 | LM27: 135.2257961 | LN27: 139.3232729 | LO27: 143.5449074 | LP27: 147.8944616 | LQ27: 152.3758117 | LR27: 156.9929512 | LS27: 161.7499946 | LT27: 166.6511812 | LU27: 171.7008786 | LV27: 176.903587 | LW27: 182.2639425 | LX27: 187.7867223 | LY27: 193.4768477 | LZ27: 199.3393897 | MA27: 205.3795726 | MB27: 211.602779 | MC27: 218.0145548 | MD27: 224.6206138 | ME27: 231.426843 | MF27: 238.4393078 | MG27: 245.6642573 | MH27: 253.1081299 | MI27: 260.7775594 | MK27: 73.82418072 | ML27: 78.36585544 | MM27: 83.18693467 | MN27: 88.30460741 | MO27: 93.73712016 | MP27: 99.50384191 | MQ27: 105.6253333 | MR27: 112.1234197 | MS27: 119.0212693 | MT27: 126.3434757 | MU27: 134.1161454 | MV27: 142.3669909 | MW27: 151.1254296 | MX27: 160.4226888 | MY27: 170.2919167 | MZ27: 180.7683011 | NA27: 191.8891942 | NB27: 203.6942463 | NC27: 216.225547 | ND27: 229.5277753 | NE27: 243.6483586 | NF27: 258.6376423 | NG27: 274.549069 | NH27: 291.439369 | NI27: 309.3687629 | NJ27: 328.4011758 | NK27: 348.6044656 | NL27: 370.0506648 | NM27: 392.8162374 | NN27: 416.9823515 | NO27: 442.6351686 | NP27: 469.8661508 | NQ27: 498.7723872 | NR27: 529.4569396 | NS27: 562.0292102 | NT27: 596.6053319 | NU27: 633.3085817 | NV27: 672.2698211 | NW27: 713.6279617 | NX27: 757.5304614 | NY27: 804.1338495
C28: Expense 6 | G28: 13 | H28: =G28*1.01 -> 13.13 | I28: =H28*1.01 -> 13.2613 | J28: 13.393913 | K28: 13.52785213 | L28: 13.66313065 | M28: 13.79976196 | N28: 13.93775958 | O28: 14.07713717 | P28: 14.21790854 | Q28: 14.36008763 | R28: 14.50368851 | S28: 14.64872539 | T28: 14.79521265 | U28: 14.94316477 | V28: 15.09259642 | W28: 15.24352238 | X28: 15.39595761 | Y28: 15.54991718 | Z28: 15.70541636 | AA28: 15.86247052 | AB28: 16.02109522 | AC28: 16.18130618 | AD28: 16.34311924 | AE28: 16.50655043 | AF28: 16.67161594 | AG28: 16.83833209 | AH28: 17.00671542 | AI28: 17.17678257 | AJ28: 17.3485504 | AK28: 17.5220359 | AL28: 17.69725626 | AM28: 17.87422882 | AN28: 18.05297111 | AO28: 18.23350082 | AP28: 18.41583583 | AQ28: 18.59999419 | AR28: 18.78599413 | AS28: 18.97385407 | AT28: 19.16359261 | AU28: 19.35522854 | AV28: 19.54878082 | AW28: 19.74426863 | AX28: 19.94171132 | AY28: 20.14112843 | AZ28: 20.34253971 | BA28: 20.54596511 | BB28: 20.75142476 | BC28: 20.95893901 | BD28: 21.1685284 | BE28: 21.38021368 | BF28: 21.59401582 | BG28: 21.80995598 | BH28: 22.02805554 | BI28: 22.24833609 | BJ28: 22.47081946 | BK28: 22.69552765 | BL28: 22.92248293 | BM28: 23.15170776 | BN28: 23.38322483 | BO28: 23.61705708 | BP28: 23.85322765 | BQ28: 24.09175993 | BR28: 24.33267753 | BS28: 24.5760043 | BT28: 24.82176435 | BU28: =BT28*1.01 -> 25.06998199 | BV28: 25.32068181 | BW28: 25.57388863 | BX28: 25.82962751 | BY28: 26.08792379 | BZ28: 26.34880303 | CA28: 26.61229106 | CB28: 26.87841397 | CC28: 27.14719811 | CD28: 27.41867009 | CE28: 27.69285679 | CF28: 27.96978536 | CG28: 28.24948321 | CH28: 28.53197804 | CI28: 28.81729782 | CJ28: 29.1054708 | CK28: 29.39652551 | CL28: 29.69049076 | CM28: 29.98739567 | CN28: 30.28726963 | CO28: 30.59014233 | CP28: 30.89604375 | CQ28: 31.20500419 | CR28: 31.51705423 | CS28: 31.83222477 | CT28: 32.15054702 | CU28: 32.47205249 | CV28: 32.79677301 | CW28: 33.12474074 | CX28: 33.45598815 | CY28: 33.79054803 | CZ28: 34.12845351 | DA28: 34.46973805 | DB28: 34.81443543 | DC28: 35.16257978 | DD28: 35.51420558 | DE28: 35.86934764 | DF28: 36.22804111 | DG28: 36.59032152 | DH28: 36.95622474 | DI28: 37.32578699 | DJ28: 37.69904486 | DK28: 38.0760353 | DL28: 38.45679566 | DM28: 38.84136361 | DN28: 39.22977725 | DO28: 39.62207502 | DP28: 40.01829577 | DQ28: 40.41847873 | DR28: 40.82266352 | DS28: 41.23089015 | DT28: 41.64319905 | DU28: 42.05963105 | DV28: 42.48022736 | DW28: 42.90502963 | DX28: 43.33407993 | DY28: 43.76742073 | DZ28: 44.20509493 | EA28: 44.64714588 | EB28: 45.09361734 | EC28: 45.54455351 | ED28: 45.99999905 | EE28: 46.45999904 | EF28: 46.92459903 | EG28: =EF28*1.01 -> 47.39384502 | EH28: 47.86778347 | EI28: 48.34646131 | EJ28: 48.82992592 | EK28: 49.31822518 | EL28: 49.81140743 | EM28: 50.3095215 | EN28: 50.81261672 | EO28: 51.32074289 | EP28: 51.83395031 | EQ28: 52.35228982 | ER28: 52.87581272 | ES28: 53.40457084 | ET28: 53.93861655 | EU28: 54.47800272 | EV28: 55.02278274 | EW28: 55.57301057 | EX28: 56.12874068 | EY28: 56.69002808 | EZ28: 57.25692836 | FA28: 57.82949765 | FB28: 58.40779262 | FC28: 58.99187055 | FD28: 59.58178926 | FE28: 60.17760715 | FF28: 60.77938322 | FG28: 61.38717705 | FH28: 62.00104882 | FI28: 62.62105931 | FJ28: 63.2472699 | FK28: 63.8797426 | FL28: 64.51854003 | FM28: 65.16372543 | FN28: 65.81536268 | FO28: 66.47351631 | FP28: 67.13825147 | FQ28: 67.80963399 | FR28: 68.48773033 | FS28: 69.17260763 | FT28: 69.86433371 | FU28: 70.56297705 | FV28: 71.26860682 | FW28: 71.98129288 | FX28: 72.70110581 | FY28: 73.42811687 | FZ28: 74.16239804 | GA28: 74.90402202 | GB28: 75.65306224 | GC28: 76.40959286 | GD28: 77.17368879 | GE28: 77.94542568 | GF28: 78.72487994 | GG28: 79.51212874 | GH28: 80.30725002 | GI28: 81.11032252 | GJ28: 81.92142575 | GK28: 82.74064001 | GL28: 83.56804641 | GM28: 84.40372687 | GN28: 85.24776414 | GO28: 86.10024178 | GP28: 86.9612442 | GQ28: 87.83085664 | GR28: 88.70916521 | GS28: =GR28*1.01 -> 89.59625686 | GT28: 90.49221943 | GU28: 91.39714162 | GV28: 92.31111304 | GW28: 93.23422417 | GX28: 94.16656641 | GY28: 95.10823207 | GZ28: 96.05931439 | HA28: 97.01990754 | HB28: 97.99010661 | HC28: 98.97000768 | HD28: 99.95970776 | HE28: 100.9593048 | HF28: 101.9688979 | HG28: 102.9885869 | HH28: 104.0184727 | HI28: 105.0586575 | HJ28: 106.109244 | HK28: 107.1703365 | HL28: 108.2420398 | HM28: 109.3244602 | HN28: 110.4177048 | HO28: 111.5218819 | HP28: 112.6371007 | HQ28: 113.7634717 | HR28: 114.9011064 | HS28: 116.0501175 | HT28: 117.2106187 | HU28: 118.3827249 | HV28: 119.5665521 | HW28: 120.7622176 | HX28: 121.9698398 | HY28: 123.1895382 | HZ28: 124.4214336 | IA28: 125.6656479 | IB28: 126.9223044 | IC28: 128.1915274 | ID28: 129.4734427 | IE28: 130.7681771 | IF28: 132.0758589 | IG28: 133.3966175 | IH28: 134.7305837 | II28: 136.0778895 | IJ28: 137.4386684 | IK28: 138.8130551 | IL28: 140.2011856 | IM28: 141.6031975 | IN28: 143.0192295 | IO28: 144.4494218 | IP28: 145.893916 | IQ28: 147.3528551 | IR28: 148.8263837 | IS28: 150.3146475 | IT28: 151.817794 | IU28: 153.335972 | IV28: 154.8693317 | IX28: 164.8725392 | IY28: 185.7825039 | IZ28: 209.3443756 | JA28: 235.8944823 | JB28: 265.8118071 | JC28: 299.5233976 | JD28: 337.5104615 | JE28: 380.315236 | JF28: 428.5487272 | JG28: 482.8994325 | JH28: 544.1431676 | JI28: 613.1541412 | JJ28: 690.9174336 | JK28: 778.5430579 | JL28: 877.2818047 | JM28: 988.543096 | JN28: 1113.915104 | JO28: 1255.187421 | JP28: 1414.376603 | JQ28: 1593.754958 | JR28: 1481.482749 | JU28: 39.3913 | JV28: 40.58489578 | JW28: 41.81465871 | JX28: 43.08168468 | JY28: 44.38710281 | JZ28: 45.73207641 | KA28: 47.11780406 | KB28: 48.54552064 | KC28: 50.01649846 | KD28: 51.53204838 | KE28: 53.09352098 | KF28: 54.70230776 | KG28: 56.35984239 | KH28: 58.06760197 | KI28: 59.82710838 | KJ28: 61.63992959 | KK28: 63.50768109 | KL28: 65.43202734 | KM28: 67.4146832 | KN28: 69.45741551 | KO28: 71.56204466 | KP28: 73.73044618 | KQ28: 75.96455243 | KR28: 78.26635433 | KS28: 80.63790313 | KT28: 83.08131224 | KU28: 85.59875908 | KV28: 88.19248708 | KW28: 90.86480763 | KX28: 93.61810216 | KY28: 96.45482428 | KZ28: 99.37750191 | LA28: 102.3887396 | LB28: 105.4912208 | LC28: 108.6877103 | LD28: 111.9810566 | LE28: 115.3741946 | LF28: 118.870148 | LG28: 122.4720324 | LH28: 126.1830575 | LI28: 130.0065303 | LJ28: 133.9458582 | LK28: 138.0045516 | LL28: 142.1862275 | LM28: 146.4946124 | LN28: 150.9335457 | LO28: 155.506983 | LP28: 160.2190001 | LQ28: 165.073796 | LR28: 170.0756971 | LS28: 175.2291608 | LT28: 180.5387796 | LU28: 186.0092852 | LV28: 191.6455525 | LW28: 197.4526044 | LX28: 203.4356158 | LY28: 209.5999184 | LZ28: 215.9510055 | MA28: 222.4945369 | MB28: 229.2363439 | MC28: 236.1824344 | MD28: 243.3389983 | ME28: 250.7124133 | MF28: 258.3092501 | MG28: 266.1362787 | MH28: 274.2004741 | MI28: 282.5090227 | MK28: 79.97619578 | ML28: 84.89634339 | MM28: 90.11917922 | MN28: 95.6633247 | MO28: 101.5485468 | MP28: 107.7958287 | MQ28: 114.4274444 | MR28: 121.467038 | MS28: 128.9397084 | MT28: 136.8720987 | MU28: 145.2924908 | MV28: 154.2309068 | MW28: 163.7192154 | MX28: 173.7912462 | MY28: 184.4829098 | MZ28: 195.8323262 | NA28: 207.8799604 | NB28: 220.6687669 | NC28: 234.2443426 | ND28: 248.6550899 | NE28: 263.9523884 | NF28: 280.1907791 | NG28: 297.4281581 | NH28: 315.7259831 | NI28: 335.1494932 | NJ28: 355.7679405 | NK28: 377.6548377 | NL28: 400.8882202 | NM28: 425.5509239 | NN28: 451.7308808 | NO28: 479.5214326 | NP28: 509.0216634 | NQ28: 540.3367528 | NR28: 573.5783512 | NS28: 608.8649777 | NT28: 646.3224429 | NU28: 686.0842969 | NV28: 728.2923062 | NW28: 773.0969585 | NX28: 820.6579998 | NY28: 871.1450036
D29: Total Expense | G29: =SUM(G23:G28) -> 285 | H29: =SUM(H23:H28) -> 283.7946225 | I29: 275.9730701 | J29: 273.1165426 | K29: 275.7346023 | L29: 274.8857367 | M29: 276.9507124 | N29: 273.4449071 | O29: 271.782735 | P29: 271.9876585 | Q29: 275.0715743 | R29: 277.255796 | S29: 271.2532576 | T29: 268.7917779 | U29: 268.2809646 | V29: 265.5292273 | W29: 270.4883778 | X29: 268.6545321 | Y29: 275.0941731 | Z29: 272.8890721 | AA29: 273.347932 | AB29: 268.1116533 | AC29: 278.3134697 | AD29: 275.5146642 | AE29: 273.7439334 | AF29: 280.1616741 | AG29: 273.7101909 | AH29: 277.1815851 | AI29: 281.2822157 | AJ29: 279.4093648 | AK29: 282.6210824 | AL29: 282.3933966 | AM29: 276.4687503 | AN29: 283.518223 | AO29: 280.3685014 | AP29: 274.8183568 | AQ29: 282.6288267 | AR29: 284.1168715 | AS29: 276.3125986 | AT29: 281.8942214 | AU29: 282.3867207 | AV29: 283.6313948 | AW29: 278.1968602 | AX29: 273.269212 | AY29: 269.1301395 | AZ29: 265.7065958 | BA29: 261.8027979 | BB29: 266.5340222 | BC29: 272.3335049 | BD29: 277.2852729 | BE29: 281.6499077 | BF29: 284.2019406 | BG29: 290.6070168 | BH29: 293.4776671 | BI29: 302.3031706 | BJ29: 309.8735912 | BK29: 299.1747704 | BL29: 297.262371 | BM29: 299.0754415 | BN29: 297.8212252 | BO29: 295.6664426 | BP29: 296.1148731 | BQ29: 300.7395371 | BR29: 305.3746177 | BS29: 308.1054501 | BT29: =SUM(BT23:BT28) -> 312.2119569 | BU29: 313.449523 | BV29: 312.2907941 | BW29: 314.0588484 | BX29: 315.603384 | BY29: 320.4467371 | BZ29: 325.5352177 | CA29: 323.9480302 | CB29: 324.0213496 | CC29: 325.2256988 | CD29: 331.0404608 | CE29: 333.4568098 | CF29: 336.2442377 | CG29: 337.5972343 | CH29: 335.5696319 | CI29: 335.6953363 | CJ29: 337.5623567 | CK29: 337.6755531 | CL29: 340.4847866 | CM29: 343.6727105 | CN29: 349.1623472 | CO29: 352.1135532 | CP29: 355.1350552 | CQ29: 355.6597931 | CR29: 358.8978774 | CS29: 361.2578203 | CT29: 371.4481961 | CU29: 376.6171685 | CV29: 379.2781262 | CW29: 382.7507703 | CX29: 379.1624318 | CY29: 379.7913952 | CZ29: 373.1990164 | DA29: 370.8891268 | DB29: 363.9799785 | DC29: 362.3110343 | DD29: 364.8644729 | DE29: 367.1363973 | DF29: 370.6489275 | DG29: 377.2361191 | DH29: 380.6690517 | DI29: 383.1533157 | DJ29: 383.0352064 | DK29: 385.9108994 | DL29: 389.9715511 | DM29: 396.279116 | DN29: 404.1078997 | DO29: 410.2982292 | DP29: 415.4997834 | DQ29: 414.0510916 | DR29: 424.7605984 | DS29: 429.3274316 | DT29: 430.5962533 | DU29: 439.1591087 | DV29: 444.483239 | DW29: 441.8168128 | DX29: 452.5410785 | DY29: 461.0425834 | DZ29: 460.1318577 | EA29: 464.0629347 | EB29: 479.7928491 | EC29: 482.2911451 | ED29: 487.3629501 | EE29: 490.1586614 | EF29: =SUM(EF23:EF28) -> 503.3610485 | EG29: 511.6647481 | EH29: 513.4710184 | EI29: 520.9155182 | EJ29: 514.4251928 | EK29: 515.4144994 | EL29: 515.9852309 | EM29: 512.1529255 | EN29: 515.3161857 | EO29: 517.3464891 | EP29: 521.8878238 | EQ29: 520.5542091 | ER29: 529.7333427 | ES29: 535.9831428 | ET29: 538.4937391 | EU29: 539.9433619 | EV29: 535.5340121 | EW29: 544.3281924 | EX29: 541.7670288 | EY29: 540.8740465 | EZ29: 548.2041384 | FA29: 549.7045975 | FB29: 549.5649275 | FC29: 555.4445916 | FD29: 561.7902128 | FE29: 567.3462603 | FF29: 574.4044131 | FG29: 581.1166179 | FH29: 576.4328637 | FI29: 577.4030012 | FJ29: 571.2550805 | FK29: 582.2535184 | FL29: 580.8839271 | FM29: 583.5230463 | FN29: 583.2272399 | FO29: 590.1247652 | FP29: 589.640435 | FQ29: 592.2943719 | FR29: 596.3205147 | FS29: 600.2788951 | FT29: 604.7230264 | FU29: 609.9052655 | FV29: 617.8882014 | FW29: 626.9094716 | FX29: 633.6492756 | FY29: 642.216395 | FZ29: 652.9733903 | GA29: 654.9219972 | GB29: 657.7029206 | GC29: 666.9812995 | GD29: 665.1294621 | GE29: 670.8774596 | GF29: 681.1183189 | GG29: 687.3903793 | GH29: 689.1157145 | GI29: 694.5850178 | GJ29: 689.8787844 | GK29: 694.0258292 | GL29: 699.1643576 | GM29: 693.8091004 | GN29: 708.3713448 | GO29: 713.7271992 | GP29: 718.7635261 | GQ29: 723.3015834 | GR29: =SUM(GR23:GR28) -> 728.2086031 | GS29: 731.7084697 | GT29: 734.2051498 | GU29: 741.1656664 | GV29: 744.1245305 | GW29: 750.4271051 | GX29: 756.8126397 | GY29: 762.6362954 | GZ29: 758.6828024 | HA29: 756.5473846 | HB29: 766.7692426 | HC29: 771.4875111 | HD29: 777.7049495 | HE29: 781.3328721 | HF29: 782.1394855 | HG29: 793.4690631 | HH29: 798.2574711 | HI29: 807.6398773 | HJ29: 815.3468906 | HK29: 821.8849915 | HL29: 829.231313 | HM29: 834.2320556 | HN29: 841.6815115 | HO29: 847.6789219 | HP29: 862.2451104 | HQ29: 870.7775138 | HR29: 877.2361043 | HS29: 886.8106344 | HT29: 895.0782915 | HU29: 903.1055363 | HV29: 907.8722662 | HW29: 912.7315695 | HX29: 924.8353233 | HY29: 939.8997919 | HZ29: 945.7859212 | IA29: 953.9006519 | IB29: 960.5719701 | IC29: 967.2150022 | ID29: 970.9249195 | IE29: 978.4526047 | IF29: 983.7512043 | IG29: 995.482358 | IH29: 1006.503637 | II29: 1011.070645 | IJ29: 1014.522966 | IK29: 1025.501893 | IL29: 1033.722282 | IM29: 1047.324657 | IN29: 1054.670881 | IO29: 1066.26822 | IP29: 1080.6166 | IQ29: 1095.549078 | IR29: 1108.662024 | IS29: 1114.386261 | IT29: 1129.007784 | IU29: 1138.807229 | IV29: 1151.800595 | IX29: 3314.997958 | IY29: 3256.269102 | IZ29: 3345.677275 | JA29: 3305.610261 | JB29: 3505.06588 | JC29: 3719.597382 | JD29: 3998.521486 | JE29: 4365.15585 | JF29: 4476.914042 | JG29: 4984.445201 | JH29: 5747.697688 | JI29: 6258.208299 | JJ29: 6608.905783 | JK29: 7004.475382 | JL29: 7633.2796 | JM29: 8340.827032 | JN29: 8954.589473 | JO29: 9654.407992 | JP29: 10774.05698 | JQ29: 11901.62013 | JR29: 10987.09333 | JU29: 844.7676927 | JV29: 823.7368815 | JW29: 822.1783545 | JX29: 824.3150288 | JY29: 808.3260001 | JZ29: 804.6721371 | KA29: 821.3311772 | KB29: 821.9397872 | KC29: 827.6157984 | KD29: 837.8731655 | KE29: 841.4832293 | KF29: 838.7050812 | KG29: 843.0582968 | KH29: 847.9123368 | KI29: 820.5962117 | KJ29: 794.0434159 | KK29: 831.2686855 | KL29: 868.2866244 | KM29: 911.3515322 | KN29: 894.1590377 | KO29: 892.5208529 | KP29: 925.6920247 | KQ29: 939.7991655 | KR29: 961.5853389 | KS29: 973.1950787 | KT29: 1000.741508 | KU29: 1008.862202 | KV29: 1015.722696 | KW29: 1044.948611 | KX29: 1069.692726 | KY29: 1109.323185 | KZ29: 1141.191328 | LA29: 1123.879538 | LB29: 1091.155486 | LC29: 1115.021444 | LD29: 1146.857574 | LE29: 1172.161566 | LF29: 1229.905912 | LG29: 1268.139122 | LH29: 1314.238601 | LI29: 1355.400475 | LJ29: 1403.987641 | LK29: 1459.812757 | LL29: 1528.496815 | LM29: 1550.75521 | LN29: 1543.454342 | LO29: 1559.788522 | LP29: 1604.210225 | LQ29: 1619.805566 | LR29: 1630.845214 | LS29: 1654.714117 | LT29: 1703.540886 | LU29: 1734.952483 | LV29: 1734.392526 | LW29: 1756.875051 | LX29: 1778.255321 | LY29: 1814.907187 | LZ29: 1878.446949 | MA29: 1950.111782 | MB29: 1989.813682 | MC29: 2039.386158 | MD29: 2073.579517 | ME29: 2086.999287 | MF29: 2140.86207 | MG29: 2183.218656 | MH29: 2219.495347 | MI29: 2269.87604 | MK29: 1668.504574 | ML29: 1646.493383 | MM29: 1612.998137 | MN29: 1643.270964 | MO29: 1665.488964 | MP29: 1680.188311 | MQ29: 1690.970634 | MR29: 1614.639628 | MS29: 1699.55531 | MT29: 1805.51057 | MU29: 1818.212878 | MV29: 1901.384504 | MW29: 1973.936587 | MX29: 2024.584899 | MY29: 2114.641337 | MZ29: 2250.514513 | NA29: 2215.035024 | NB29: 2261.879018 | NC29: 2402.067479 | ND29: 2582.377723 | NE29: 2759.388116 | NF29: 2988.309572 | NG29: 3094.209552 | NH29: 3163.998747 | NI29: 3250.65078 | NJ29: 3358.255003 | NK29: 3469.345009 | NL29: 3535.130373 | NM29: 3693.354136 | NN29: 3939.925465 | NO29: 4112.965674 | NP29: 4227.861357 | NQ29: 4402.714003 | NR29: 4551.87547 | NS29: 4704.391352 | NT29: 4950.01664 | NU29: 5239.826576 | NV29: 5534.230408 | NW29: 5814.816353 | NX29: 6086.803781 | NY29: 6453.091461
B31: Capital Expenditure
C32: Capital Expenditure 1
C33: Capital Expenditure 2
C34: Capital Expenditure 3
C35: Capital Expenditure 4
C36: Capital Expenditure 5
C37: Capital Expenditure 6

Sheet Annual Subtotals
A2: Period
B3: Period Number | E3: 1 | F3: 2 | G3: 3 | H3: 4 | I3: 5 | J3: 6 | K3: 7 | L3: 8 | M3: 9 | N3: 10 | O3: 11 | P3: 12 | Q3: 13 | R3: 14 | S3: 15 | T3: 16 | U3: 17 | V3: 18 | W3: 19 | X3: 20 | Y3: 21 | Z3: 22 | AA3: 23 | AB3: 24 | AC3: 25 | AD3: 26 | AE3: 27 | AF3: 28 | AG3: 29 | AH3: 30 | AI3: 31 | AJ3: 32 | AK3: 33 | AL3: 34 | AM3: 35 | AN3: 36 | AO3: 37 | AP3: 38 | AQ3: 39 | AR3: 40 | AS3: 41 | AT3: 42 | AU3: 43 | AV3: 44 | AW3: 45 | AX3: 46 | AY3: 47 | AZ3: 48 | BA3: 49 | BB3: 50 | BC3: 51 | BD3: 52 | BE3: 53 | BF3: 54 | BG3: 55 | BH3: 56 | BI3: 57 | BJ3: 58 | BK3: 59 | BL3: 60 | BM3: 61 | BN3: 62 | BO3: 63 | BP3: 64 | BQ3: 65 | BR3: 66 | BS3: 67 | BT3: 68 | BU3: 69 | BV3: 70 | BW3: 71 | BX3: 72 | BY3: 73 | BZ3: 74 | CA3: 75 | CB3: 76 | CC3: 77 | CD3: 78 | CE3: 79 | CF3: 80 | CG3: 81 | CH3: 82 | CI3: 83 | CJ3: 84 | CK3: 85 | CL3: 86 | CM3: 87 | CN3: 88 | CO3: 89 | CP3: 90 | CQ3: 91 | CR3: 92 | CS3: 93 | CT3: 94 | CU3: 95 | CV3: 96 | CW3: 97 | CX3: 98 | CY3: 99 | CZ3: 100 | DA3: 101 | DB3: 102 | DC3: 103 | DD3: 104 | DE3: 105 | DF3: 106 | DG3: 107 | DH3: 108 | DI3: 109 | DJ3: 110 | DK3: 111 | DL3: 112 | DM3: 113 | DN3: 114 | DO3: 115 | DP3: 116 | DQ3: 117 | DR3: 118 | DS3: 119 | DT3: 120 | DU3: 121 | DV3: 122 | DW3: 123 | DX3: 124 | DY3: 125 | DZ3: 126 | EA3: 127 | EB3: 128 | EC3: 129 | ED3: 130 | EE3: 131 | EF3: 132 | EG3: 133 | EH3: 134 | EI3: 135 | EJ3: 136 | EK3: 137 | EL3: 138 | EM3: 139 | EN3: 140 | EO3: 141 | EP3: 142 | EQ3: 143 | ER3: 144 | ES3: 145 | ET3: 146 | EU3: 147 | EV3: 148 | EW3: 149 | EX3: 150 | EY3: 151 | EZ3: 152 | FA3: 153 | FB3: 154 | FC3: 155 | FD3: 156 | FE3: 157 | FF3: 158 | FG3: 159 | FH3: 160 | FI3: 161 | FJ3: 162 | FK3: 163 | FL3: 164 | FM3: 165 | FN3: 166 | FO3: 167 | FP3: 168 | FQ3: 169 | FR3: 170 | FS3: 171 | FT3: 172 | FU3: 173 | FV3: 174 | FW3: 175 | FX3: 176 | FY3: 177 | FZ3: 178 | GA3: 179 | GB3: 180 | GC3: 181 | GD3: 182 | GE3: 183 | GF3: 184 | GG3: 185 | GH3: 186 | GI3: 187 | GJ3: 188 | GK3: 189 | GL3: 190 | GM3: 191 | GN3: 192 | GO3: 193 | GP3: 194 | GQ3: 195 | GR3: 196 | GS3: 197 | GT3: 198 | GU3: 199 | GV3: 200 | GW3: 201 | GX3: 202 | GY3: 203 | GZ3: 204 | HA3: 205 | HB3: 206 | HC3: 207 | HD3: 208 | HE3: 209 | HF3: 210 | HG3: 211 | HH3: 212 | HI3: 213 | HJ3: 214 | HK3: 215 | HL3: 216 | HM3: 217 | HN3: 218 | HO3: 219 | HP3: 220 | HQ3: 221 | HR3: 222 | HS3: 223 | HT3: 224 | HU3: 225 | HV3: 226 | HW3: 227 | HX3: 228 | HY3: 229 | HZ3: 230 | IA3: 231 | IB3: 232 | IC3: 233 | ID3: 234 | IE3: 235 | IF3: 236 | IG3: 237 | IH3: 238 | II3: 239 | IJ3: 240 | IK3: 241 | IL3: 242 | IM3: 243 | IN3: 244 | IO3: 245 | IP3: 246 | IQ3: 247 | IR3: 248 | IS3: 249 | IT3: 250 | IU3: 251 | IV3: 252 | IW3: 253 | IX3: 254 | IY3: 255 | IZ3: 256 | JA3: 257 | JB3: 258 | JC3: 259 | JD3: 260 | JE3: 261 | JF3: 262 | JG3: 263 | JH3: 264 | JI3: 265 | JJ3: 266 | JK3: 267 | JL3: 268 | JM3: 269 | JN3: 270 | JO3: 271 | JP3: 272 | JQ3: 273 | JR3: 274 | JS3: 275 | JT3: 276 | JU3: 277 | JV3: 278 | JW3: 279 | JX3: 280 | JY3: 281 | JZ3: 282 | KA3: 283 | KB3: 284 | KC3: 285 | KD3: 286 | KE3: 287 | KF3: 288 | KG3: 289 | KH3: 290 | KI3: 291 | KJ3: 292 | KK3: 293 | KL3: 294 | KM3: 295 | KN3: 296 | KO3: 297 | KP3: 298 | KQ3: 299 | KR3: 300
B4: Column Number with MATCH | E4: =MATCH(E3,'Detailed Model'!$A6:$KL6,0) -> 7 | F4: =MATCH(F3,'Detailed Model'!$A6:$KL6,0) -> 8 | G4: =MATCH(G3,'Detailed Model'!$A6:$KL6,0) -> 9 | H4: =MATCH(H3,'Detailed Model'!$A6:$KL6,0) -> 10 | I4: =MATCH(I3,'Detailed Model'!$A6:$KL6,0) -> 11 | J4: =MATCH(J3,'Detailed Model'!$A6:$KL6,0) -> 12 | K4: =MATCH(K3,'Detailed Model'!$A6:$KL6,0) -> 13 | L4: =MATCH(L3,'Detailed Model'!$A6:$KL6,0) -> 14 | M4: =MATCH(M3,'Detailed Model'!$A6:$KL6,0) -> 15 | N4: =MATCH(N3,'Detailed Model'!$A6:$KL6,0) -> 16 | O4: =MATCH(O3,'Detailed Model'!$A6:$KL6,0) -> 17 | P4: =MATCH(P3,'Detailed Model'!$A6:$KL6,0) -> 18 | Q4: =MATCH(Q3,'Detailed Model'!$A6:$KL6,0) -> 258 | R4: =MATCH(R3,'Detailed Model'!$A6:$KL6,0) -> 19 | S4: =MATCH(S3,'Detailed Model'!$A6:$KL6,0) -> 20 | T4: =MATCH(T3,'Detailed Model'!$A6:$KL6,0) -> 21 | U4: =MATCH(U3,'Detailed Model'!$A6:$KL6,0) -> 22 | V4: =MATCH(V3,'Detailed Model'!$A6:$KL6,0) -> 23 | W4: =MATCH(W3,'Detailed Model'!$A6:$KL6,0) -> 24 | X4: =MATCH(X3,'Detailed Model'!$A6:$KL6,0) -> 25 | Y4: =MATCH(Y3,'Detailed Model'!$A6:$KL6,0) -> 26 | Z4: =MATCH(Z3,'Detailed Model'!$A6:$KL6,0) -> 27 | AA4: =MATCH(AA3,'Detailed Model'!$A6:$KL6,0) -> 28 | AB4: =MATCH(AB3,'Detailed Model'!$A6:$KL6,0) -> 29 | AC4: =MATCH(AC3,'Detailed Model'!$A6:$KL6,0) -> 30 | AD4: =MATCH(AD3,'Detailed Model'!$A6:$KL6,0) -> 259 | AE4: =MATCH(AE3,'Detailed Model'!$A6:$KL6,0) -> 31 | AF4: =MATCH(AF3,'Detailed Model'!$A6:$KL6,0) -> 32 | AG4: =MATCH(AG3,'Detailed Model'!$A6:$KL6,0) -> 33 | AH4: =MATCH(AH3,'Detailed Model'!$A6:$KL6,0) -> 34 | AI4: =MATCH(AI3,'Detailed Model'!$A6:$KL6,0) -> 35 | AJ4: =MATCH(AJ3,'Detailed Model'!$A6:$KL6,0) -> 36 | AK4: =MATCH(AK3,'Detailed Model'!$A6:$KL6,0) -> 37 | AL4: =MATCH(AL3,'Detailed Model'!$A6:$KL6,0) -> 38 | AM4: =MATCH(AM3,'Detailed Model'!$A6:$KL6,0) -> 39 | AN4: =MATCH(AN3,'Detailed Model'!$A6:$KL6,0) -> 40 | AO4: =MATCH(AO3,'Detailed Model'!$A6:$KL6,0) -> 41 | AP4: =MATCH(AP3,'Detailed Model'!$A6:$KL6,0) -> 42 | AQ4: =MATCH(AQ3,'Detailed Model'!$A6:$KL6,0) -> 260 | AR4: =MATCH(AR3,'Detailed Model'!$A6:$KL6,0) -> 43 | AS4: =MATCH(AS3,'Detailed Model'!$A6:$KL6,0) -> 44 | AT4: =MATCH(AT3,'Detailed Model'!$A6:$KL6,0) -> 45 | AU4: =MATCH(AU3,'Detailed Model'!$A6:$KL6,0) -> 46 | AV4: =MATCH(AV3,'Detailed Model'!$A6:$KL6,0) -> 47 | AW4: =MATCH(AW3,'Detailed Model'!$A6:$KL6,0) -> 48 | AX4: =MATCH(AX3,'Detailed Model'!$A6:$KL6,0) -> 49 | AY4: =MATCH(AY3,'Detailed Model'!$A6:$KL6,0) -> 50 | AZ4: =MATCH(AZ3,'Detailed Model'!$A6:$KL6,0) -> 51 | BA4: =MATCH(BA3,'Detailed Model'!$A6:$KL6,0) -> 52 | BB4: =MATCH(BB3,'Detailed Model'!$A6:$KL6,0) -> 53 | BC4: =MATCH(BC3,'Detailed Model'!$A6:$KL6,0) -> 54 | BD4: =MATCH(BD3,'Detailed Model'!$A6:$KL6,0) -> 261 | BE4: =MATCH(BE3,'Detailed Model'!$A6:$KL6,0) -> 55 | BF4: =MATCH(BF3,'Detailed Model'!$A6:$KL6,0) -> 56 | BG4: =MATCH(BG3,'Detailed Model'!$A6:$KL6,0) -> 57 | BH4: =MATCH(BH3,'Detailed Model'!$A6:$KL6,0) -> 58 | BI4: =MATCH(BI3,'Detailed Model'!$A6:$KL6,0) -> 59 | BJ4: =MATCH(BJ3,'Detailed Model'!$A6:$KL6,0) -> 60 | BK4: =MATCH(BK3,'Detailed Model'!$A6:$KL6,0) -> 61 | BL4: =MATCH(BL3,'Detailed Model'!$A6:$KL6,0) -> 62 | BM4: =MATCH(BM3,'Detailed Model'!$A6:$KL6,0) -> 63 | BN4: =MATCH(BN3,'Detailed Model'!$A6:$KL6,0) -> 64 | BO4: =MATCH(BO3,'Detailed Model'!$A6:$KL6,0) -> 65 | BP4: =MATCH(BP3,'Detailed Model'!$A6:$KL6,0) -> 66 | BQ4: =MATCH(BQ3,'Detailed Model'!$A6:$KL6,0) -> 262 | BR4: =MATCH(BR3,'Detailed Model'!$A6:$KL6,0) -> 67 | BS4: =MATCH(BS3,'Detailed Model'!$A6:$KL6,0) -> 68 | BT4: =MATCH(BT3,'Detailed Model'!$A6:$KL6,0) -> 69 | BU4: =MATCH(BU3,'Detailed Model'!$A6:$KL6,0) -> 70 | BV4: =MATCH(BV3,'Detailed Model'!$A6:$KL6,0) -> 71 | BW4: =MATCH(BW3,'Detailed Model'!$A6:$KL6,0) -> 72 | BX4: =MATCH(BX3,'Detailed Model'!$A6:$KL6,0) -> 73 | BY4: =MATCH(BY3,'Detailed Model'!$A6:$KL6,0) -> 74 | BZ4: =MATCH(BZ3,'Detailed Model'!$A6:$KL6,0) -> 75 | CA4: =MATCH(CA3,'Detailed Model'!$A6:$KL6,0) -> 76 | CB4: =MATCH(CB3,'Detailed Model'!$A6:$KL6,0) -> 77 | CC4: =MATCH(CC3,'Detailed Model'!$A6:$KL6,0) -> 78 | CD4: =MATCH(CD3,'Detailed Model'!$A6:$KL6,0) -> 263 | CE4: =MATCH(CE3,'Detailed Model'!$A6:$KL6,0) -> 79 | CF4: =MATCH(CF3,'Detailed Model'!$A6:$KL6,0) -> 80 | CG4: =MATCH(CG3,'Detailed Model'!$A6:$KL6,0) -> 81 | CH4: =MATCH(CH3,'Detailed Model'!$A6:$KL6,0) -> 82 | CI4: =MATCH(CI3,'Detailed Model'!$A6:$KL6,0) -> 83 | CJ4: =MATCH(CJ3,'Detailed Model'!$A6:$KL6,0) -> 84 | CK4: =MATCH(CK3,'Detailed Model'!$A6:$KL6,0) -> 85 | CL4: =MATCH(CL3,'Detailed Model'!$A6:$KL6,0) -> 86 | CM4: =MATCH(CM3,'Detailed Model'!$A6:$KL6,0) -> 87 | CN4: =MATCH(CN3,'Detailed Model'!$A6:$KL6,0) -> 88 | CO4: =MATCH(CO3,'Detailed Model'!$A6:$KL6,0) -> 89 | CP4: =MATCH(CP3,'Detailed Model'!$A6:$KL6,0) -> 90 | CQ4: =MATCH(CQ3,'Detailed Model'!$A6:$KL6,0) -> 264 | CR4: =MATCH(CR3,'Detailed Model'!$A6:$KL6,0) -> 91 | CS4: =MATCH(CS3,'Detailed Model'!$A6:$KL6,0) -> 92 | CT4: =MATCH(CT3,'Detailed Model'!$A6:$KL6,0) -> 93 | CU4: =MATCH(CU3,'Detailed Model'!$A6:$KL6,0) -> 94 | CV4: =MATCH(CV3,'Detailed Model'!$A6:$KL6,0) -> 95 | CW4: =MATCH(CW3,'Detailed Model'!$A6:$KL6,0) -> 96 | CX4: =MATCH(CX3,'Detailed Model'!$A6:$KL6,0) -> 97 | CY4: =MATCH(CY3,'Detailed Model'!$A6:$KL6,0) -> 98 | CZ4: =MATCH(CZ3,'Detailed Model'!$A6:$KL6,0) -> 99 | DA4: =MATCH(DA3,'Detailed Model'!$A6:$KL6,0) -> 100 | DB4: =MATCH(DB3,'Detailed Model'!$A6:$KL6,0) -> 101 | DC4: =MATCH(DC3,'Detailed Model'!$A6:$KL6,0) -> 102 | DD4: =MATCH(DD3,'Detailed Model'!$A6:$KL6,0) -> 265 | DE4: =MATCH(DE3,'Detailed Model'!$A6:$KL6,0) -> 103 | DF4: =MATCH(DF3,'Detailed Model'!$A6:$KL6,0) -> 104 | DG4: =MATCH(DG3,'Detailed Model'!$A6:$KL6,0) -> 105 | DH4: =MATCH(DH3,'Detailed Model'!$A6:$KL6,0) -> 106 | DI4: =MATCH(DI3,'Detailed Model'!$A6:$KL6,0) -> 107 | DJ4: =MATCH(DJ3,'Detailed Model'!$A6:$KL6,0) -> 108 | DK4: =MATCH(DK3,'Detailed Model'!$A6:$KL6,0) -> 109 | DL4: =MATCH(DL3,'Detailed Model'!$A6:$KL6,0) -> 110 | DM4: =MATCH(DM3,'Detailed Model'!$A6:$KL6,0) -> 111 | DN4: =MATCH(DN3,'Detailed Model'!$A6:$KL6,0) -> 112 | DO4: =MATCH(DO3,'Detailed Model'!$A6:$KL6,0) -> 113 | DP4: =MATCH(DP3,'Detailed Model'!$A6:$KL6,0) -> 114 | DQ4: =MATCH(DQ3,'Detailed Model'!$A6:$KL6,0) -> 266 | DR4: =MATCH(DR3,'Detailed Model'!$A6:$KL6,0) -> 115 | DS4: =MATCH(DS3,'Detailed Model'!$A6:$KL6,0) -> 116 | DT4: =MATCH(DT3,'Detailed Model'!$A6:$KL6,0) -> 117 | DU4: =MATCH(DU3,'Detailed Model'!$A6:$KL6,0) -> 118 | DV4: =MATCH(DV3,'Detailed Model'!$A6:$KL6,0) -> 119 | DW4: =MATCH(DW3,'Detailed Model'!$A6:$KL6,0) -> 120 | DX4: =MATCH(DX3,'Detailed Model'!$A6:$KL6,0) -> 121 | DY4: =MATCH(DY3,'Detailed Model'!$A6:$KL6,0) -> 122 | DZ4: =MATCH(DZ3,'Detailed Model'!$A6:$KL6,0) -> 123 | EA4: =MATCH(EA3,'Detailed Model'!$A6:$KL6,0) -> 124 | EB4: =MATCH(EB3,'Detailed Model'!$A6:$KL6,0) -> 125 | EC4: =MATCH(EC3,'Detailed Model'!$A6:$KL6,0) -> 126 | ED4: =MATCH(ED3,'Detailed Model'!$A6:$KL6,0) -> 267 | EE4: =MATCH(EE3,'Detailed Model'!$A6:$KL6,0) -> 127 | EF4: =MATCH(EF3,'Detailed Model'!$A6:$KL6,0) -> 128 | EG4: =MATCH(EG3,'Detailed Model'!$A6:$KL6,0) -> 129 | EH4: =MATCH(EH3,'Detailed Model'!$A6:$KL6,0) -> 130 | EI4: =MATCH(EI3,'Detailed Model'!$A6:$KL6,0) -> 131 | EJ4: =MATCH(EJ3,'Detailed Model'!$A6:$KL6,0) -> 132 | EK4: =MATCH(EK3,'Detailed Model'!$A6:$KL6,0) -> 133 | EL4: =MATCH(EL3,'Detailed Model'!$A6:$KL6,0) -> 134 | EM4: =MATCH(EM3,'Detailed Model'!$A6:$KL6,0) -> 135 | EN4: =MATCH(EN3,'Detailed Model'!$A6:$KL6,0) -> 136 | EO4: =MATCH(EO3,'Detailed Model'!$A6:$KL6,0) -> 137 | EP4: =MATCH(EP3,'Detailed Model'!$A6:$KL6,0) -> 138 | EQ4: =MATCH(EQ3,'Detailed Model'!$A6:$KL6,0) -> 268 | ER4: =MATCH(ER3,'Detailed Model'!$A6:$KL6,0) -> 139 | ES4: =MATCH(ES3,'Detailed Model'!$A6:$KL6,0) -> 140 | ET4: =MATCH(ET3,'Detailed Model'!$A6:$KL6,0) -> 141 | EU4: =MATCH(EU3,'Detailed Model'!$A6:$KL6,0) -> 142 | EV4: =MATCH(EV3,'Detailed Model'!$A6:$KL6,0) -> 143 | EW4: =MATCH(EW3,'Detailed Model'!$A6:$KL6,0) -> 144 | EX4: =MATCH(EX3,'Detailed Model'!$A6:$KL6,0) -> 145 | EY4: =MATCH(EY3,'Detailed Model'!$A6:$KL6,0) -> 146 | EZ4: =MATCH(EZ3,'Detailed Model'!$A6:$KL6,0) -> 147 | FA4: =MATCH(FA3,'Detailed Model'!$A6:$KL6,0) -> 148 | FB4: =MATCH(FB3,'Detailed Model'!$A6:$KL6,0) -> 149 | FC4: =MATCH(FC3,'Detailed Model'!$A6:$KL6,0) -> 150 | FD4: =MATCH(FD3,'Detailed Model'!$A6:$KL6,0) -> 269 | FE4: =MATCH(FE3,'Detailed Model'!$A6:$KL6,0) -> 151 | FF4: =MATCH(FF3,'Detailed Model'!$A6:$KL6,0) -> 152 | FG4: =MATCH(FG3,'Detailed Model'!$A6:$KL6,0) -> 153 | FH4: =MATCH(FH3,'Detailed Model'!$A6:$KL6,0) -> 154 | FI4: =MATCH(FI3,'Detailed Model'!$A6:$KL6,0) -> 155 | FJ4: =MATCH(FJ3,'Detailed Model'!$A6:$KL6,0) -> 156 | FK4: =MATCH(FK3,'Detailed Model'!$A6:$KL6,0) -> 157 | FL4: =MATCH(FL3,'Detailed Model'!$A6:$KL6,0) -> 158 | FM4: =MATCH(FM3,'Detailed Model'!$A6:$KL6,0) -> 159 | FN4: =MATCH(FN3,'Detailed Model'!$A6:$KL6,0) -> 160 | FO4: =MATCH(FO3,'Detailed Model'!$A6:$KL6,0) -> 161 | FP4: =MATCH(FP3,'Detailed Model'!$A6:$KL6,0) -> 162 | FQ4: =MATCH(FQ3,'Detailed Model'!$A6:$KL6,0) -> 270 | FR4: =MATCH(FR3,'Detailed Model'!$A6:$KL6,0) -> 163 | FS4: =MATCH(FS3,'Detailed Model'!$A6:$KL6,0) -> 164 | FT4: =MATCH(FT3,'Detailed Model'!$A6:$KL6,0) -> 165 | FU4: =MATCH(FU3,'Detailed Model'!$A6:$KL6,0) -> 166 | FV4: =MATCH(FV3,'Detailed Model'!$A6:$KL6,0) -> 167 | FW4: =MATCH(FW3,'Detailed Model'!$A6:$KL6,0) -> 168 | FX4: =MATCH(FX3,'Detailed Model'!$A6:$KL6,0) -> 169 | FY4: =MATCH(FY3,'Detailed Model'!$A6:$KL6,0) -> 170 | FZ4: =MATCH(FZ3,'Detailed Model'!$A6:$KL6,0) -> 171 | GA4: =MATCH(GA3,'Detailed Model'!$A6:$KL6,0) -> 172 | GB4: =MATCH(GB3,'Detailed Model'!$A6:$KL6,0) -> 173 | GC4: =MATCH(GC3,'Detailed Model'!$A6:$KL6,0) -> 174 | GD4: =MATCH(GD3,'Detailed Model'!$A6:$KL6,0) -> 271 | GE4: =MATCH(GE3,'Detailed Model'!$A6:$KL6,0) -> 175 | GF4: =MATCH(GF3,'Detailed Model'!$A6:$KL6,0) -> 176 | GG4: =MATCH(GG3,'Detailed Model'!$A6:$KL6,0) -> 177 | GH4: =MATCH(GH3,'Detailed Model'!$A6:$KL6,0) -> 178 | GI4: =MATCH(GI3,'Detailed Model'!$A6:$KL6,0) -> 179 | GJ4: =MATCH(GJ3,'Detailed Model'!$A6:$KL6,0) -> 180 | GK4: =MATCH(GK3,'Detailed Model'!$A6:$KL6,0) -> 181 | GL4: =MATCH(GL3,'Detailed Model'!$A6:$KL6,0) -> 182 | GM4: =MATCH(GM3,'Detailed Model'!$A6:$KL6,0) -> 183 | GN4: =MATCH(GN3,'Detailed Model'!$A6:$KL6,0) -> 184 | GO4: =MATCH(GO3,'Detailed Model'!$A6:$KL6,0) -> 185 | GP4: =MATCH(GP3,'Detailed Model'!$A6:$KL6,0) -> 186 | GQ4: =MATCH(GQ3,'Detailed Model'!$A6:$KL6,0) -> 272 | GR4: =MATCH(GR3,'Detailed Model'!$A6:$KL6,0) -> 187 | GS4: =MATCH(GS3,'Detailed Model'!$A6:$KL6,0) -> 188 | GT4: =MATCH(GT3,'Detailed Model'!$A6:$KL6,0) -> 189 | GU4: =MATCH(GU3,'Detailed Model'!$A6:$KL6,0) -> 190 | GV4: =MATCH(GV3,'Detailed Model'!$A6:$KL6,0) -> 191 | GW4: =MATCH(GW3,'Detailed Model'!$A6:$KL6,0) -> 192 | GX4: =MATCH(GX3,'Detailed Model'!$A6:$KL6,0) -> 193 | GY4: =MATCH(GY3,'Detailed Model'!$A6:$KL6,0) -> 194 | GZ4: =MATCH(GZ3,'Detailed Model'!$A6:$KL6,0) -> 195 | HA4: =MATCH(HA3,'Detailed Model'!$A6:$KL6,0) -> 196 | HB4: =MATCH(HB3,'Detailed Model'!$A6:$KL6,0) -> 197 | HC4: =MATCH(HC3,'Detailed Model'!$A6:$KL6,0) -> 198 | HD4: =MATCH(HD3,'Detailed Model'!$A6:$KL6,0) -> 273 | HE4: =MATCH(HE3,'Detailed Model'!$A6:$KL6,0) -> 199 | HF4: =MATCH(HF3,'Detailed Model'!$A6:$KL6,0) -> 200 | HG4: =MATCH(HG3,'Detailed Model'!$A6:$KL6,0) -> 201 | HH4: =MATCH(HH3,'Detailed Model'!$A6:$KL6,0) -> 202 | HI4: =MATCH(HI3,'Detailed Model'!$A6:$KL6,0) -> 203 | HJ4: =MATCH(HJ3,'Detailed Model'!$A6:$KL6,0) -> 204 | HK4: =MATCH(HK3,'Detailed Model'!$A6:$KL6,0) -> 205 | HL4: =MATCH(HL3,'Detailed Model'!$A6:$KL6,0) -> 206 | HM4: =MATCH(HM3,'Detailed Model'!$A6:$KL6,0) -> 207 | HN4: =MATCH(HN3,'Detailed Model'!$A6:$KL6,0) -> 208 | HO4: =MATCH(HO3,'Detailed Model'!$A6:$KL6,0) -> 209 | HP4: =MATCH(HP3,'Detailed Model'!$A6:$KL6,0) -> 210 | HQ4: =MATCH(HQ3,'Detailed Model'!$A6:$KL6,0) -> 274 | HR4: =MATCH(HR3,'Detailed Model'!$A6:$KL6,0) -> 211 | HS4: =MATCH(HS3,'Detailed Model'!$A6:$KL6,0) -> 212 | HT4: =MATCH(HT3,'Detailed Model'!$A6:$KL6,0) -> 213 | HU4: =MATCH(HU3,'Detailed Model'!$A6:$KL6,0) -> 214 | HV4: =MATCH(HV3,'Detailed Model'!$A6:$KL6,0) -> 215 | HW4: =MATCH(HW3,'Detailed Model'!$A6:$KL6,0) -> 216 | HX4: =MATCH(HX3,'Detailed Model'!$A6:$KL6,0) -> 217 | HY4: =MATCH(HY3,'Detailed Model'!$A6:$KL6,0) -> 218 | HZ4: =MATCH(HZ3,'Detailed Model'!$A6:$KL6,0) -> 219 | IA4: =MATCH(IA3,'Detailed Model'!$A6:$KL6,0) -> 220 | IB4: =MATCH(IB3,'Detailed Model'!$A6:$KL6,0) -> 221 | IC4: =MATCH(IC3,'Detailed Model'!$A6:$KL6,0) -> 222 | ID4: =MATCH(ID3,'Detailed Model'!$A6:$KL6,0) -> 275 | IE4: =MATCH(IE3,'Detailed Model'!$A6:$KL6,0) -> 223 | IF4: =MATCH(IF3,'Detailed Model'!$A6:$KL6,0) -> 224 | IG4: =MATCH(IG3,'Detailed Model'!$A6:$KL6,0) -> 225 | IH4: =MATCH(IH3,'Detailed Model'!$A6:$KL6,0) -> 226 | II4: =MATCH(II3,'Detailed Model'!$A6:$KL6,0) -> 227 | IJ4: =MATCH(IJ3,'Detailed Model'!$A6:$KL6,0) -> 228 | IK4: =MATCH(IK3,'Detailed Model'!$A6:$KL6,0) -> 229 | IL4: =MATCH(IL3,'Detailed Model'!$A6:$KL6,0) -> 230 | IM4: =MATCH(IM3,'Detailed Model'!$A6:$KL6,0) -> 231 | IN4: =MATCH(IN3,'Detailed Model'!$A6:$KL6,0) -> 232 | IO4: =MATCH(IO3,'Detailed Model'!$A6:$KL6,0) -> 233 | IP4: =MATCH(IP3,'Detailed Model'!$A6:$KL6,0) -> 234 | IQ4: =MATCH(IQ3,'Detailed Model'!$A6:$KL6,0) -> 276 | IR4: =MATCH(IR3,'Detailed Model'!$A6:$KL6,0) -> 235 | IS4: =MATCH(IS3,'Detailed Model'!$A6:$KL6,0) -> 236 | IT4: =MATCH(IT3,'Detailed Model'!$A6:$KL6,0) -> 237 | IU4: =MATCH(IU3,'Detailed Model'!$A6:$KL6,0) -> 238 | IV4: =MATCH(IV3,'Detailed Model'!$A6:$KL6,0) -> 239 | IW4: =MATCH(IW3,'Detailed Model'!$A6:$KL6,0) -> 240 | IX4: =MATCH(IX3,'Detailed Model'!$A6:$KL6,0) -> 241 | IY4: =MATCH(IY3,'Detailed Model'!$A6:$KL6,0) -> 242 | IZ4: =MATCH(IZ3,'Detailed Model'!$A6:$KL6,0) -> 243 | JA4: =MATCH(JA3,'Detailed Model'!$A6:$KL6,0) -> 244 | JB4: =MATCH(JB3,'Detailed Model'!$A6:$KL6,0) -> 245 | JC4: =MATCH(JC3,'Detailed Model'!$A6:$KL6,0) -> 246 | JD4: =MATCH(JD3,'Detailed Model'!$A6:$KL6,0) -> 277 | JE4: =MATCH(JE3,'Detailed Model'!$A6:$KL6,0) -> 247 | JF4: =MATCH(JF3,'Detailed Model'!$A6:$KL6,0) -> 248 | JG4: =MATCH(JG3,'Detailed Model'!$A6:$KL6,0) -> 249 | JH4: =MATCH(JH3,'Detailed Model'!$A6:$KL6,0) -> 250 | JI4: =MATCH(JI3,'Detailed Model'!$A6:$KL6,0) -> 251 | JJ4: =MATCH(JJ3,'Detailed Model'!$A6:$KL6,0) -> 252 | JK4: =MATCH(JK3,'Detailed Model'!$A6:$KL6,0) -> 253 | JL4: =MATCH(JL3,'Detailed Model'!$A6:$KL6,0) -> 254 | JM4: =MATCH(JM3,'Detailed Model'!$A6:$KL6,0) -> 255 | JN4: =MATCH(JN3,'Detailed Model'!$A6:$KL6,0) -> 256 | JO4: =MATCH(JO3,'Detailed Model'!$A6:$KL6,0) ->  | JP4: =MATCH(JP3,'Detailed Model'!$A6:$KL6,0) ->  | JQ4: =MATCH(JQ3,'Detailed Model'!$A6:$KL6,0) -> 278 | JR4: =MATCH(JR3,'Detailed Model'!$A6:$KL6,0) ->  | JS4: =MATCH(JS3,'Detailed Model'!$A6:$KL6,0) ->  | JT4: =MATCH(JT3,'Detailed Model'!$A6:$KL6,0) ->  | JU4: =MATCH(JU3,'Detailed Model'!$A6:$KL6,0) ->  | JV4: =MATCH(JV3,'Detailed Model'!$A6:$KL6,0) ->  | JW4: =MATCH(JW3,'Detailed Model'!$A6:$KL6,0) ->  | JX4: =MATCH(JX3,'Detailed Model'!$A6:$KL6,0) ->  | JY4: =MATCH(JY3,'Detailed Model'!$A6:$KL6,0) ->  | JZ4: =MATCH(JZ3,'Detailed Model'!$A6:$KL6,0) ->  | KA4: =MATCH(KA3,'Detailed Model'!$A6:$KL6,0) ->  | KB4: =MATCH(KB3,'Detailed Model'!$A6:$KL6,0) ->  | KC4: =MATCH(KC3,'Detailed Model'!$A6:$KL6,0) ->  | KD4: =MATCH(KD3,'Detailed Model'!$A6:$KL6,0) ->  | KE4: =MATCH(KE3,'Detailed Model'!$A6:$KL6,0) ->  | KF4: =MATCH(KF3,'Detailed Model'!$A6:$KL6,0) ->  | KG4: =MATCH(KG3,'Detailed Model'!$A6:$KL6,0) ->  | KH4: =MATCH(KH3,'Detailed Model'!$A6:$KL6,0) ->  | KI4: =MATCH(KI3,'Detailed Model'!$A6:$KL6,0) ->  | KJ4: =MATCH(KJ3,'Detailed Model'!$A6:$KL6,0) ->  | KK4: =MATCH(KK3,'Detailed Model'!$A6:$KL6,0) ->  | KL4: =MATCH(KL3,'Detailed Model'!$A6:$KL6,0) ->  | KM4: =MATCH(KM3,'Detailed Model'!$A6:$KL6,0) ->  | KN4: =MATCH(KN3,'Detailed Model'!$A6:$KL6,0) ->  | KO4: =MATCH(KO3,'Detailed Model'!$A6:$KL6,0) ->  | KP4: =MATCH(KP3,'Detailed Model'!$A6:$KL6,0) ->  | KQ4: =MATCH(KQ3,'Detailed Model'!$A6:$KL6,0) ->  | KR4: =MATCH(KR3,'Detailed Model'!$A6:$KL6,0) -> 
B6: Date | E6: =INDEX('Detailed Model'!$A4:$ZI4,'Annual Subtotals'!E4) -> 2017-01-01 | F6: =INDEX('Detailed Model'!$A4:$ZI4,'Annual Subtotals'!F4) -> 2017-02-01 | G6: =INDEX('Detailed Model'!$A4:$ZI4,'Annual Subtotals'!G4) -> 2017-03-01 | H6: =INDEX('Detailed Model'!$A4:$ZI4,'Annual Subtotals'!H4) -> 2017-04-01 | I6: =INDEX('Detailed Model'!$A4:$ZI4,'Annual Subtotals'!I4) -> 2017-05-01 | J6: =INDEX('Detailed Model'!$A4:$ZI4,'Annual Subtotals'!J4) -> 2017-06-01 | K6: =INDEX('Detailed Model'!$A4:$ZI4,'Annual Subtotals'!K4) -> 2017-07-01 | L6: =INDEX('Detailed Model'!$A4:$ZI4,'Annual Subtotals'!L4) -> 2017-08-01 | M6: =INDEX('Detailed Model'!$A4:$ZI4,'Annual Subtotals'!M4) -> 2017-09-01 | N6: =INDEX('Detailed Model'!$A4:$ZI4,'Annual Subtotals'!N4) -> 2017-10-01 | O6: =INDEX('Detailed Model'!$A4:$ZI4,'Annual Subtotals'!O4) -> 2017-11-01 | P6: =INDEX('Detailed Model'!$A4:$ZI4,'Annual Subtotals'!P4) -> 2017-12-01 | Q6: =INDEX('Detailed Model'!$A4:$ZI4,'Annual Subtotals'!Q4) -> 2017-12-31 | R6: =INDEX('Detailed Model'!$A4:$ZI4,'Annual Subtotals'!R4) -> 2018-01-01 | S6: =INDEX('Detailed Model'!$A4:$ZI4,'Annual Subtotals'!S4) -> 2018-02-01 | T6: =INDEX('Detailed Model'!$A4:$ZI4,'Annual Subtotals'!T4) -> 2018-03-01 | U6: =INDEX('Detailed Model'!$A4:$ZI4,'Annual Subtotals'!U4) -> 2018-04-01 | V6: =INDEX('Detailed Model'!$A4:$ZI4,'Annual Subtotals'!V4) -> 2018-05-01 | W6: =INDEX('Detailed Model'!$A4:$ZI4,'Annual Subtotals'!W4) -> 2018-06-01 | X6: =INDEX('Detailed Model'!$A4:$ZI4,'Annual Subtotals'!X4) -> 2018-07-01 | Y6: =INDEX('Detailed Model'!$A4:$ZI4,'Annual Subtotals'!Y4) -> 2018-08-01 | Z6: =INDEX('Detailed Model'!$A4:$ZI4,'Annual Subtotals'!Z4) -> 2018-09-01 | AA6: =INDEX('Detailed Model'!$A4:$ZI4,'Annual Subtotals'!AA4) -> 2018-10-01 | AB6: =INDEX('Detailed Model'!$A4:$ZI4,'Annual Subtotals'!AB4) -> 2018-11-01 | AC6: =INDEX('Detailed Model'!$A4:$ZI4,'Annual Subtotals'!AC4) -> 2018-12-01 | AD6: =INDEX('Detailed Model'!$A4:$ZI4,'Annual Subtotals'!AD4) -> 2018-12-31 | AE6: =INDEX('Detailed Model'!$A4:$ZI4,'Annual Subtotals'!AE4) -> 2019-01-01 | AF6: =INDEX('Detailed Model'!$A4:$ZI4,'Annual Subtotals'!AF4) -> 2019-02-01 | AG6: =INDEX('Detailed Model'!$A4:$ZI4,'Annual Subtotals'!AG4) -> 2019-03-01 | AH6: =INDEX('Detailed Model'!$A4:$ZI4,'Annual Subtotals'!AH4) -> 2019-04-01 | AI6: =INDEX('Detailed Model'!$A4:$ZI4,'Annual Subtotals'!AI4) -> 2019-05-01 | AJ6: =INDEX('Detailed Model'!$A4:$ZI4,'Annual Subtotals'!AJ4) -> 2019-06-01 | AK6: =INDEX('Detailed Model'!$A4:$ZI4,'Annual Subtotals'!AK4) -> 2019-07-01 | AL6: =INDEX('Detailed Model'!$A4:$ZI4,'Annual Subtotals'!AL4) -> 2019-08-01 | AM6: =INDEX('Detailed Model'!$A4:$ZI4,'Annual Subtotals'!AM4) -> 2019-09-01 | AN6: =INDEX('Detailed Model'!$A4:$ZI4,'Annual Subtotals'!AN4) -> 2019-10-01 | AO6: =INDEX('Detailed Model'!$A4:$ZI4,'Annual Subtotals'!AO4) -> 2019-11-01 | AP6: =INDEX('Detailed Model'!$A4:$ZI4,'Annual Subtotals'!AP4) -> 2019-12-01 | AQ6: =INDEX('Detailed Model'!$A4:$ZI4,'Annual Subtotals'!AQ4) -> 2019-12-31 | AR6: =INDEX('Detailed Model'!$A4:$ZI4,'Annual Subtotals'!AR4) -> 2020-01-01 | AS6: =INDEX('Detailed Model'!$A4:$ZI4,'Annual Subtotals'!AS4) -> 2020-02-01 | AT6: =INDEX('Detailed Model'!$A4:$ZI4,'Annual Subtotals'!AT4) -> 2020-03-01 | AU6: =INDEX('Detailed Model'!$A4:$ZI4,'Annual Subtotals'!AU4) -> 2020-04-01 | AV6: =INDEX('Detailed Model'!$A4:$ZI4,'Annual Subtotals'!AV4) -> 2020-05-01 | AW6: =INDEX('Detailed Model'!$A4:$ZI4,'Annual Subtotals'!AW4) -> 2020-06-01 | AX6: =INDEX('Detailed Model'!$A4:$ZI4,'Annual Subtotals'!AX4) -> 2020-07-01 | AY6: =INDEX('Detailed Model'!$A4:$ZI4,'Annual Subtotals'!AY4) -> 2020-08-01 | AZ6: =INDEX('Detailed Model'!$A4:$ZI4,'Annual Subtotals'!AZ4) -> 2020-09-01 | BA6: =INDEX('Detailed Model'!$A4:$ZI4,'Annual Subtotals'!BA4) -> 2020-10-01 | BB6: =INDEX('Detailed Model'!$A4:$ZI4,'Annual Subtotals'!BB4) -> 2020-11-01 | BC6: =INDEX('Detailed Model'!$A4:$ZI4,'Annual Subtotals'!BC4) -> 2020-12-01 | BD6: =INDEX('Detailed Model'!$A4:$ZI4,'Annual Subtotals'!BD4) -> 2020-12-31 | BE6: =INDEX('Detailed Model'!$A4:$ZI4,'Annual Subtotals'!BE4) -> 2021-01-01 | BF6: =INDEX('Detailed Model'!$A4:$ZI4,'Annual Subtotals'!BF4) -> 2021-02-01 | BG6: =INDEX('Detailed Model'!$A4:$ZI4,'Annual Subtotals'!BG4) -> 2021-03-01 | BH6: =INDEX('Detailed Model'!$A4:$ZI4,'Annual Subtotals'!BH4) -> 2021-04-01 | BI6: =INDEX('Detailed Model'!$A4:$ZI4,'Annual Subtotals'!BI4) -> 2021-05-01 | BJ6: =INDEX('Detailed Model'!$A4:$ZI4,'Annual Subtotals'!BJ4) -> 2021-06-01 | BK6: =INDEX('Detailed Model'!$A4:$ZI4,'Annual Subtotals'!BK4) -> 2021-07-01 | BL6: =INDEX('Detailed Model'!$A4:$ZI4,'Annual Subtotals'!BL4) -> 2021-08-01 | BM6: =INDEX('Detailed Model'!$A4:$ZI4,'Annual Subtotals'!BM4) -> 2021-09-01 | BN6: =INDEX('Detailed Model'!$A4:$ZI4,'Annual Subtotals'!BN4) -> 2021-10-01 | BO6: =INDEX('Detailed Model'!$A4:$ZI4,'Annual Subtotals'!BO4) -> 2021-11-01 | BP6: =INDEX('Detailed Model'!$A4:$ZI4,'Annual Subtotals'!BP4) -> 2021-12-01 | BQ6: =INDEX('Detailed Model'!$A4:$ZI4,'Annual Subtotals'!BQ4) -> 2021-12-31 | BR6: =INDEX('Detailed Model'!$A4:$ZI4,'Annual Subtotals'!BR4) -> 2022-01-01 | BS6: =INDEX('Detailed Model'!$A4:$ZI4,'Annual Subtotals'!BS4) -> 2022-02-01 | BT6: =INDEX('Detailed Model'!$A4:$ZI4,'Annual Subtotals'!BT4) -> 2022-03-01 | BU6: =INDEX('Detailed Model'!$A4:$ZI4,'Annual Subtotals'!BU4) -> 2022-04-01 | BV6: =INDEX('Detailed Model'!$A4:$ZI4,'Annual Subtotals'!BV4) -> 2022-05-01 | BW6: =INDEX('Detailed Model'!$A4:$ZI4,'Annual Subtotals'!BW4) -> 2022-06-01 | BX6: =INDEX('Detailed Model'!$A4:$ZI4,'Annual Subtotals'!BX4) -> 2022-07-01 | BY6: =INDEX('Detailed Model'!$A4:$ZI4,'Annual Subtotals'!BY4) -> 2022-08-01 | BZ6: =INDEX('Detailed Model'!$A4:$ZI4,'Annual Subtotals'!BZ4) -> 2022-09-01 | CA6: =INDEX('Detailed Model'!$A4:$ZI4,'Annual Subtotals'!CA4) -> 2022-10-01 | CB6: =INDEX('Detailed Model'!$A4:$ZI4,'Annual Subtotals'!CB4) -> 2022-11-01 | CC6: =INDEX('Detailed Model'!$A4:$ZI4,'Annual Subtotals'!CC4) -> 2022-12-01 | CD6: =INDEX('Detailed Model'!$A4:$ZI4,'Annual Subtotals'!CD4) -> 2022-12-31 | CE6: =INDEX('Detailed Model'!$A4:$ZI4,'Annual Subtotals'!CE4) -> 2023-01-01 | CF6: =INDEX('Detailed Model'!$A4:$ZI4,'Annual Subtotals'!CF4) -> 2023-02-01 | CG6: =INDEX('Detailed Model'!$A4:$ZI4,'Annual Subtotals'!CG4) -> 2023-03-01 | CH6: =INDEX('Detailed Model'!$A4:$ZI4,'Annual Subtotals'!CH4) -> 2023-04-01 | CI6: =INDEX('Detailed Model'!$A4:$ZI4,'Annual Subtotals'!CI4) -> 2023-05-01 | CJ6: =INDEX('Detailed Model'!$A4:$ZI4,'Annual Subtotals'!CJ4) -> 2023-06-01 | CK6: =INDEX('Detailed Model'!$A4:$ZI4,'Annual Subtotals'!CK4) -> 2023-07-01 | CL6: =INDEX('Detailed Model'!$A4:$ZI4,'Annual Subtotals'!CL4) -> 2023-08-01 | CM6: =INDEX('Detailed Model'!$A4:$ZI4,'Annual Subtotals'!CM4) -> 2023-09-01 | CN6: =INDEX('Detailed Model'!$A4:$ZI4,'Annual Subtotals'!CN4) -> 2023-10-01 | CO6: =INDEX('Detailed Model'!$A4:$ZI4,'Annual Subtotals'!CO4) -> 2023-11-01 | CP6: =INDEX('Detailed Model'!$A4:$ZI4,'Annual Subtotals'!CP4) -> 2023-12-01 | CQ6: =INDEX('Detailed Model'!$A4:$ZI4,'Annual Subtotals'!CQ4) -> 2023-12-31 | CR6: =INDEX('Detailed Model'!$A4:$ZI4,'Annual Subtotals'!CR4) -> 2024-01-01 | CS6: =INDEX('Detailed Model'!$A4:$ZI4,'Annual Subtotals'!CS4) -> 2024-02-01 | CT6: =INDEX('Detailed Model'!$A4:$ZI4,'Annual Subtotals'!CT4) -> 2024-03-01 | CU6: =INDEX('Detailed Model'!$A4:$ZI4,'Annual Subtotals'!CU4) -> 2024-04-01 | CV6: =INDEX('Detailed Model'!$A4:$ZI4,'Annual Subtotals'!CV4) -> 2024-05-01 | CW6: =INDEX('Detailed Model'!$A4:$ZI4,'Annual Subtotals'!CW4) -> 2024-06-01 | CX6: =INDEX('Detailed Model'!$A4:$ZI4,'Annual Subtotals'!CX4) -> 2024-07-01 | CY6: =INDEX('Detailed Model'!$A4:$ZI4,'Annual Subtotals'!CY4) -> 2024-08-01 | CZ6: =INDEX('Detailed Model'!$A4:$ZI4,'Annual Subtotals'!CZ4) -> 2024-09-01 | DA6: =INDEX('Detailed Model'!$A4:$ZI4,'Annual Subtotals'!DA4) -> 2024-10-01 | DB6: =INDEX('Detailed Model'!$A4:$ZI4,'Annual Subtotals'!DB4) -> 2024-11-01 | DC6: =INDEX('Detailed Model'!$A4:$ZI4,'Annual Subtotals'!DC4) -> 2024-12-01 | DD6: =INDEX('Detailed Model'!$A4:$ZI4,'Annual Subtotals'!DD4) -> 2024-12-31 | DE6: =INDEX('Detailed Model'!$A4:$ZI4,'Annual Subtotals'!DE4) -> 2025-01-01 | DF6: =INDEX('Detailed Model'!$A4:$ZI4,'Annual Subtotals'!DF4) -> 2025-02-01 | DG6: =INDEX('Detailed Model'!$A4:$ZI4,'Annual Subtotals'!DG4) -> 2025-03-01 | DH6: =INDEX('Detailed Model'!$A4:$ZI4,'Annual Subtotals'!DH4) -> 2025-04-01 | DI6: =INDEX('Detailed Model'!$A4:$ZI4,'Annual Subtotals'!DI4) -> 2025-05-01 | DJ6: =INDEX('Detailed Model'!$A4:$ZI4,'Annual Subtotals'!DJ4) -> 2025-06-01 | DK6: =INDEX('Detailed Model'!$A4:$ZI4,'Annual Subtotals'!DK4) -> 2025-07-01 | DL6: =INDEX('Detailed Model'!$A4:$ZI4,'Annual Subtotals'!DL4) -> 2025-08-01 | DM6: =INDEX('Detailed Model'!$A4:$ZI4,'Annual Subtotals'!DM4) -> 2025-09-01 | DN6: =INDEX('Detailed Model'!$A4:$ZI4,'Annual Subtotals'!DN4) -> 2025-10-01 | DO6: =INDEX('Detailed Model'!$A4:$ZI4,'Annual Subtotals'!DO4) -> 2025-11-01 | DP6: =INDEX('Detailed Model'!$A4:$ZI4,'Annual Subtotals'!DP4) -> 2025-12-01 | DQ6: =INDEX('Detailed Model'!$A4:$ZI4,'Annual Subtotals'!DQ4) -> 2025-12-31 | DR6: =INDEX('Detailed Model'!$A4:$ZI4,'Annual Subtotals'!DR4) -> 2026-01-01 | DS6: =INDEX('Detailed Model'!$A4:$ZI4,'Annual Subtotals'!DS4) -> 2026-02-01 | DT6: =INDEX('Detailed Model'!$A4:$ZI4,'Annual Subtotals'!DT4) -> 2026-03-01 | DU6: =INDEX('Detailed Model'!$A4:$ZI4,'Annual Subtotals'!DU4) -> 2026-04-01 | DV6: =INDEX('Detailed Model'!$A4:$ZI4,'Annual Subtotals'!DV4) -> 2026-05-01 | DW6: =INDEX('Detailed Model'!$A4:$ZI4,'Annual Subtotals'!DW4) -> 2026-06-01 | DX6: =INDEX('Detailed Model'!$A4:$ZI4,'Annual Subtotals'!DX4) -> 2026-07-01 | DY6: =INDEX('Detailed Model'!$A4:$ZI4,'Annual Subtotals'!DY4) -> 2026-08-01 | DZ6: =INDEX('Detailed Model'!$A4:$ZI4,'Annual Subtotals'!DZ4) -> 2026-09-01 | EA6: =INDEX('Detailed Model'!$A4:$ZI4,'Annual Subtotals'!EA4) -> 2026-10-01 | EB6: =INDEX('Detailed Model'!$A4:$ZI4,'Annual Subtotals'!EB4) -> 2026-11-01 | EC6: =INDEX('Detailed Model'!$A4:$ZI4,'Annual Subtotals'!EC4) -> 2026-12-01 | ED6: =INDEX('Detailed Model'!$A4:$ZI4,'Annual Subtotals'!ED4) -> 2026-12-31 | EE6: =INDEX('Detailed Model'!$A4:$ZI4,'Annual Subtotals'!EE4) -> 2027-01-01 | EF6: =INDEX('Detailed Model'!$A4:$ZI4,'Annual Subtotals'!EF4) -> 2027-02-01 | EG6: =INDEX('Detailed Model'!$A4:$ZI4,'Annual Subtotals'!EG4) -> 2027-03-01 | EH6: =INDEX('Detailed Model'!$A4:$ZI4,'Annual Subtotals'!EH4) -> 2027-04-01 | EI6: =INDEX('Detailed Model'!$A4:$ZI4,'Annual Subtotals'!EI4) -> 2027-05-01 | EJ6: =INDEX('Detailed Model'!$A4:$ZI4,'Annual Subtotals'!EJ4) -> 2027-06-01 | EK6: =INDEX('Detailed Model'!$A4:$ZI4,'Annual Subtotals'!EK4) -> 2027-07-01 | EL6: =INDEX('Detailed Model'!$A4:$ZI4,'Annual Subtotals'!EL4) -> 2027-08-01 | EM6: =INDEX('Detailed Model'!$A4:$ZI4,'Annual Subtotals'!EM4) -> 2027-09-01 | EN6: =INDEX('Detailed Model'!$A4:$ZI4,'Annual Subtotals'!EN4) -> 2027-10-01 | EO6: =INDEX('Detailed Model'!$A4:$ZI4,'Annual Subtotals'!EO4) -> 2027-11-01 | EP6: =INDEX('Detailed Model'!$A4:$ZI4,'Annual Subtotals'!EP4) -> 2027-12-01 | EQ6: =INDEX('Detailed Model'!$A4:$ZI4,'Annual Subtotals'!EQ4) -> 2027-12-31 | ER6: =INDEX('Detailed Model'!$A4:$ZI4,'Annual Subtotals'!ER4) -> 2028-01-01 | ES6: =INDEX('Detailed Model'!$A4:$ZI4,'Annual Subtotals'!ES4) -> 2028-02-01 | ET6: =INDEX('Detailed Model'!$A4:$ZI4,'Annual Subtotals'!ET4) -> 2028-03-01 | EU6: =INDEX('Detailed Model'!$A4:$ZI4,'Annual Subtotals'!EU4) -> 2028-04-01 | EV6: =INDEX('Detailed Model'!$A4:$ZI4,'Annual Subtotals'!EV4) -> 2028-05-01 | EW6: =INDEX('Detailed Model'!$A4:$ZI4,'Annual Subtotals'!EW4) -> 2028-06-01 | EX6: =INDEX('Detailed Model'!$A4:$ZI4,'Annual Subtotals'!EX4) -> 2028-07-01 | EY6: =INDEX('Detailed Model'!$A4:$ZI4,'Annual Subtotals'!EY4) -> 2028-08-01 | EZ6: =INDEX('Detailed Model'!$A4:$ZI4,'Annual Subtotals'!EZ4) -> 2028-09-01 | FA6: =INDEX('Detailed Model'!$A4:$ZI4,'Annual Subtotals'!FA4) -> 2028-10-01 | FB6: =INDEX('Detailed Model'!$A4:$ZI4,'Annual Subtotals'!FB4) -> 2028-11-01 | FC6: =INDEX('Detailed Model'!$A4:$ZI4,'Annual Subtotals'!FC4) -> 2028-12-01 | FD6: =INDEX('Detailed Model'!$A4:$ZI4,'Annual Subtotals'!FD4) -> 2028-12-31 | FE6: =INDEX('Detailed Model'!$A4:$ZI4,'Annual Subtotals'!FE4) -> 2029-01-01 | FF6: =INDEX('Detailed Model'!$A4:$ZI4,'Annual Subtotals'!FF4) -> 2029-02-01 | FG6: =INDEX('Detailed Model'!$A4:$ZI4,'Annual Subtotals'!FG4) -> 2029-03-01 | FH6: =INDEX('Detailed Model'!$A4:$ZI4,'Annual Subtotals'!FH4) -> 2029-04-01 | FI6: =INDEX('Detailed Model'!$A4:$ZI4,'Annual Subtotals'!FI4) -> 2029-05-01 | FJ6: =INDEX('Detailed Model'!$A4:$ZI4,'Annual Subtotals'!FJ4) -> 2029-06-01 | FK6: =INDEX('Detailed Model'!$A4:$ZI4,'Annual Subtotals'!FK4) -> 2029-07-01 | FL6: =INDEX('Detailed Model'!$A4:$ZI4,'Annual Subtotals'!FL4) -> 2029-08-01 | FM6: =INDEX('Detailed Model'!$A4:$ZI4,'Annual Subtotals'!FM4) -> 2029-09-01 | FN6: =INDEX('Detailed Model'!$A4:$ZI4,'Annual Subtotals'!FN4) -> 2029-10-01 | FO6: =INDEX('Detailed Model'!$A4:$ZI4,'Annual Subtotals'!FO4) -> 2029-11-01 | FP6: =INDEX('Detailed Model'!$A4:$ZI4,'Annual Subtotals'!FP4) -> 2029-12-01 | FQ6: =INDEX('Detailed Model'!$A4:$ZI4,'Annual Subtotals'!FQ4) -> 2029-12-31 | FR6: =INDEX('Detailed Model'!$A4:$ZI4,'Annual Subtotals'!FR4) -> 2030-01-01 | FS6: =INDEX('Detailed Model'!$A4:$ZI4,'Annual Subtotals'!FS4) -> 2030-02-01 | FT6: =INDEX('Detailed Model'!$A4:$ZI4,'Annual Subtotals'!FT4) -> 2030-03-01 | FU6: =INDEX('Detailed Model'!$A4:$ZI4,'Annual Subtotals'!FU4) -> 2030-04-01 | FV6: =INDEX('Detailed Model'!$A4:$ZI4,'Annual Subtotals'!FV4) -> 2030-05-01 | FW6: =INDEX('Detailed Model'!$A4:$ZI4,'Annual Subtotals'!FW4) -> 2030-06-01 | FX6: =INDEX('Detailed Model'!$A4:$ZI4,'Annual Subtotals'!FX4) -> 2030-07-01 | FY6: =INDEX('Detailed Model'!$A4:$ZI4,'Annual Subtotals'!FY4) -> 2030-08-01 | FZ6: =INDEX('Detailed Model'!$A4:$ZI4,'Annual Subtotals'!FZ4) -> 2030-09-01 | GA6: =INDEX('Detailed Model'!$A4:$ZI4,'Annual Subtotals'!GA4) -> 2030-10-01 | GB6: =INDEX('Detailed Model'!$A4:$ZI4,'Annual Subtotals'!GB4) -> 2030-11-01 | GC6: =INDEX('Detailed Model'!$A4:$ZI4,'Annual Subtotals'!GC4) -> 2030-12-01 | GD6: =INDEX('Detailed Model'!$A4:$ZI4,'Annual Subtotals'!GD4) -> 2030-12-31 | GE6: =INDEX('Detailed Model'!$A4:$ZI4,'Annual Subtotals'!GE4) -> 2031-01-01 | GF6: =INDEX('Detailed Model'!$A4:$ZI4,'Annual Subtotals'!GF4) -> 2031-02-01 | GG6: =INDEX('Detailed Model'!$A4:$ZI4,'Annual Subtotals'!GG4) -> 2031-03-01 | GH6: =INDEX('Detailed Model'!$A4:$ZI4,'Annual Subtotals'!GH4) -> 2031-04-01 | GI6: =INDEX('Detailed Model'!$A4:$ZI4,'Annual Subtotals'!GI4) -> 2031-05-01 | GJ6: =INDEX('Detailed Model'!$A4:$ZI4,'Annual Subtotals'!GJ4) -> 2031-06-01 | GK6: =INDEX('Detailed Model'!$A4:$ZI4,'Annual Subtotals'!GK4) -> 2031-07-01 | GL6: =INDEX('Detailed Model'!$A4:$ZI4,'Annual Subtotals'!GL4) -> 2031-08-01 | GM6: =INDEX('Detailed Model'!$A4:$ZI4,'Annual Subtotals'!GM4) -> 2031-09-01 | GN6: =INDEX('Detailed Model'!$A4:$ZI4,'Annual Subtotals'!GN4) -> 2031-10-01 | GO6: =INDEX('Detailed Model'!$A4:$ZI4,'Annual Subtotals'!GO4) -> 2031-11-01 | GP6: =INDEX('Detailed Model'!$A4:$ZI4,'Annual Subtotals'!GP4) -> 2031-12-01 | GQ6: =INDEX('Detailed Model'!$A4:$ZI4,'Annual Subtotals'!GQ4) -> 2031-12-31 | GR6: =INDEX('Detailed Model'!$A4:$ZI4,'Annual Subtotals'!GR4) -> 2032-01-01 | GS6: =INDEX('Detailed Model'!$A4:$ZI4,'Annual Subtotals'!GS4) -> 2032-02-01 | GT6: =INDEX('Detailed Model'!$A4:$ZI4,'Annual Subtotals'!GT4) -> 2032-03-01 | GU6: =INDEX('Detailed Model'!$A4:$ZI4,'Annual Subtotals'!GU4) -> 2032-04-01 | GV6: =INDEX('Detailed Model'!$A4:$ZI4,'Annual Subtotals'!GV4) -> 2032-05-01 | GW6: =INDEX('Detailed Model'!$A4:$ZI4,'Annual Subtotals'!GW4) -> 2032-06-01 | GX6: =INDEX('Detailed Model'!$A4:$ZI4,'Annual Subtotals'!GX4) -> 2032-07-01 | GY6: =INDEX('Detailed Model'!$A4:$ZI4,'Annual Subtotals'!GY4) -> 2032-08-01 | GZ6: =INDEX('Detailed Model'!$A4:$ZI4,'Annual Subtotals'!GZ4) -> 2032-09-01 | HA6: =INDEX('Detailed Model'!$A4:$ZI4,'Annual Subtotals'!HA4) -> 2032-10-01 | HB6: =INDEX('Detailed Model'!$A4:$ZI4,'Annual Subtotals'!HB4) -> 2032-11-01 | HC6: =INDEX('Detailed Model'!$A4:$ZI4,'Annual Subtotals'!HC4) -> 2032-12-01 | HD6: =INDEX('Detailed Model'!$A4:$ZI4,'Annual Subtotals'!HD4) -> 2032-12-31 | HE6: =INDEX('Detailed Model'!$A4:$ZI4,'Annual Subtotals'!HE4) -> 2033-01-01 | HF6: =INDEX('Detailed Model'!$A4:$ZI4,'Annual Subtotals'!HF4) -> 2033-02-01 | HG6: =INDEX('Detailed Model'!$A4:$ZI4,'Annual Subtotals'!HG4) -> 2033-03-01 | HH6: =INDEX('Detailed Model'!$A4:$ZI4,'Annual Subtotals'!HH4) -> 2033-04-01 | HI6: =INDEX('Detailed Model'!$A4:$ZI4,'Annual Subtotals'!HI4) -> 2033-05-01 | HJ6: =INDEX('Detailed Model'!$A4:$ZI4,'Annual Subtotals'!HJ4) -> 2033-06-01 | HK6: =INDEX('Detailed Model'!$A4:$ZI4,'Annual Subtotals'!HK4) -> 2033-07-01 | HL6: =INDEX('Detailed Model'!$A4:$ZI4,'Annual Subtotals'!HL4) -> 2033-08-01 | HM6: =INDEX('Detailed Model'!$A4:$ZI4,'Annual Subtotals'!HM4) -> 2033-09-01 | HN6: =INDEX('Detailed Model'!$A4:$ZI4,'Annual Subtotals'!HN4) -> 2033-10-01 | HO6: =INDEX('Detailed Model'!$A4:$ZI4,'Annual Subtotals'!HO4) -> 2033-11-01 | HP6: =INDEX('Detailed Model'!$A4:$ZI4,'Annual Subtotals'!HP4) -> 2033-12-01 | HQ6: =INDEX('Detailed Model'!$A4:$ZI4,'Annual Subtotals'!HQ4) -> 2033-12-31 | HR6: =INDEX('Detailed Model'!$A4:$ZI4,'Annual Subtotals'!HR4) -> 2034-01-01 | HS6: =INDEX('Detailed Model'!$A4:$ZI4,'Annual Subtotals'!HS4) -> 2034-02-01 | HT6: =INDEX('Detailed Model'!$A4:$ZI4,'Annual Subtotals'!HT4) -> 2034-03-01 | HU6: =INDEX('Detailed Model'!$A4:$ZI4,'Annual Subtotals'!HU4) -> 2034-04-01 | HV6: =INDEX('Detailed Model'!$A4:$ZI4,'Annual Subtotals'!HV4) -> 2034-05-01 | HW6: =INDEX('Detailed Model'!$A4:$ZI4,'Annual Subtotals'!HW4) -> 2034-06-01 | HX6: =INDEX('Detailed Model'!$A4:$ZI4,'Annual Subtotals'!HX4) -> 2034-07-01 | HY6: =INDEX('Detailed Model'!$A4:$ZI4,'Annual Subtotals'!HY4) -> 2034-08-01 | HZ6: =INDEX('Detailed Model'!$A4:$ZI4,'Annual Subtotals'!HZ4) -> 2034-09-01 | IA6: =INDEX('Detailed Model'!$A4:$ZI4,'Annual Subtotals'!IA4) -> 2034-10-01 | IB6: =INDEX('Detailed Model'!$A4:$ZI4,'Annual Subtotals'!IB4) -> 2034-11-01 | IC6: =INDEX('Detailed Model'!$A4:$ZI4,'Annual Subtotals'!IC4) -> 2034-12-01 | ID6: =INDEX('Detailed Model'!$A4:$ZI4,'Annual Subtotals'!ID4) -> 2034-12-31 | IE6: =INDEX('Detailed Model'!$A4:$ZI4,'Annual Subtotals'!IE4) -> 2035-01-01 | IF6: =INDEX('Detailed Model'!$A4:$ZI4,'Annual Subtotals'!IF4) -> 2035-02-01 | IG6: =INDEX('Detailed Model'!$A4:$ZI4,'Annual Subtotals'!IG4) -> 2035-03-01 | IH6: =INDEX('Detailed Model'!$A4:$ZI4,'Annual Subtotals'!IH4) -> 2035-04-01 | II6: =INDEX('Detailed Model'!$A4:$ZI4,'Annual Subtotals'!II4) -> 2035-05-01 | IJ6: =INDEX('Detailed Model'!$A4:$ZI4,'Annual Subtotals'!IJ4) -> 2035-06-01 | IK6: =INDEX('Detailed Model'!$A4:$ZI4,'Annual Subtotals'!IK4) -> 2035-07-01 | IL6: =INDEX('Detailed Model'!$A4:$ZI4,'Annual Subtotals'!IL4) -> 2035-08-01 | IM6: =INDEX('Detailed Model'!$A4:$ZI4,'Annual Subtotals'!IM4) -> 2035-09-01 | IN6: =INDEX('Detailed Model'!$A4:$ZI4,'Annual Subtotals'!IN4) -> 2035-10-01 | IO6: =INDEX('Detailed Model'!$A4:$ZI4,'Annual Subtotals'!IO4) -> 2035-11-01 | IP6: =INDEX('Detailed Model'!$A4:$ZI4,'Annual Subtotals'!IP4) -> 2035-12-01 | IQ6: =INDEX('Detailed Model'!$A4:$ZI4,'Annual Subtotals'!IQ4) -> 2035-12-31 | IR6: =INDEX('Detailed Model'!$A4:$ZI4,'Annual Subtotals'!IR4) -> 2036-01-01 | IS6: =INDEX('Detailed Model'!$A4:$ZI4,'Annual Subtotals'!IS4) -> 2036-02-01 | IT6: =INDEX('Detailed Model'!$A4:$ZI4,'Annual Subtotals'!IT4) -> 2036-03-01 | IU6: =INDEX('Detailed Model'!$A4:$ZI4,'Annual Subtotals'!IU4) -> 2036-04-01 | IV6: =INDEX('Detailed Model'!$A4:$ZI4,'Annual Subtotals'!IV4) -> 2036-05-01 | IW6: =INDEX('Detailed Model'!$A4:$ZI4,'Annual Subtotals'!IW4) -> 2036-06-01 | IX6: =INDEX('Detailed Model'!$A4:$ZI4,'Annual Subtotals'!IX4) -> 2036-07-01 | IY6: =INDEX('Detailed Model'!$A4:$ZI4,'Annual Subtotals'!IY4) -> 2036-08-01 | IZ6: =INDEX('Detailed Model'!$A4:$ZI4,'Annual Subtotals'!IZ4) -> 2036-09-01 | JA6: =INDEX('Detailed Model'!$A4:$ZI4,'Annual Subtotals'!JA4) -> 2036-10-01 | JB6: =INDEX('Detailed Model'!$A4:$ZI4,'Annual Subtotals'!JB4) -> 2036-11-01 | JC6: =INDEX('Detailed Model'!$A4:$ZI4,'Annual Subtotals'!JC4) -> 2036-12-01 | JD6: =INDEX('Detailed Model'!$A4:$ZI4,'Annual Subtotals'!JD4) -> 2036-12-31 | JE6: =INDEX('Detailed Model'!$A4:$ZI4,'Annual Subtotals'!JE4) -> 2037-01-01 | JF6: =INDEX('Detailed Model'!$A4:$ZI4,'Annual Subtotals'!JF4) -> 2037-02-01 | JG6: =INDEX('Detailed Model'!$A4:$ZI4,'Annual Subtotals'!JG4) -> 2037-03-01 | JH6: =INDEX('Detailed Model'!$A4:$ZI4,'Annual Subtotals'!JH4) -> 2037-04-01 | JI6: =INDEX('Detailed Model'!$A4:$ZI4,'Annual Subtotals'!JI4) -> 2037-05-01 | JJ6: =INDEX('Detailed Model'!$A4:$ZI4,'Annual Subtotals'!JJ4) -> 2037-06-01 | JK6: =INDEX('Detailed Model'!$A4:$ZI4,'Annual Subtotals'!JK4) -> 2037-07-01 | JL6: =INDEX('Detailed Model'!$A4:$ZI4,'Annual Subtotals'!JL4) -> 2037-08-01 | JM6: =INDEX('Detailed Model'!$A4:$ZI4,'Annual Subtotals'!JM4) -> 2037-09-01 | JN6: =INDEX('Detailed Model'!$A4:$ZI4,'Annual Subtotals'!JN4) -> 2037-10-01 | JO6: =INDEX('Detailed Model'!$A4:$ZI4,'Annual Subtotals'!JO4) ->  | JP6: =INDEX('Detailed Model'!$A4:$ZI4,'Annual Subtotals'!JP4) ->  | JQ6: =INDEX('Detailed Model'!$A4:$ZI4,'Annual Subtotals'!JQ4) -> 2037-12-31 | JR6: =INDEX('Detailed Model'!$A4:$ZI4,'Annual Subtotals'!JR4) ->  | JS6: =INDEX('Detailed Model'!$A4:$ZI4,'Annual Subtotals'!JS4) ->  | JT6: =INDEX('Detailed Model'!$A4:$ZI4,'Annual Subtotals'!JT4) ->  | JU6: =INDEX('Detailed Model'!$A4:$ZI4,'Annual Subtotals'!JU4) ->  | JV6: =INDEX('Detailed Model'!$A4:$ZI4,'Annual Subtotals'!JV4) ->  | JW6: =INDEX('Detailed Model'!$A4:$ZI4,'Annual Subtotals'!JW4) ->  | JX6: =INDEX('Detailed Model'!$A4:$ZI4,'Annual Subtotals'!JX4) ->  | JY6: =INDEX('Detailed Model'!$A4:$ZI4,'Annual Subtotals'!JY4) ->  | JZ6: =INDEX('Detailed Model'!$A4:$ZI4,'Annual Subtotals'!JZ4) ->  | KA6: =INDEX('Detailed Model'!$A4:$ZI4,'Annual Subtotals'!KA4) ->  | KB6: =INDEX('Detailed Model'!$A4:$ZI4,'Annual Subtotals'!KB4) ->  | KC6: =INDEX('Detailed Model'!$A4:$ZI4,'Annual Subtotals'!KC4) ->  | KD6: =INDEX('Detailed Model'!$A4:$ZI4,'Annual Subtotals'!KD4) ->  | KE6: =INDEX('Detailed Model'!$A4:$ZI4,'Annual Subtotals'!KE4) ->  | KF6: =INDEX('Detailed Model'!$A4:$ZI4,'Annual Subtotals'!KF4) ->  | KG6: =INDEX('Detailed Model'!$A4:$ZI4,'Annual Subtotals'!KG4) ->  | KH6: =INDEX('Detailed Model'!$A4:$ZI4,'Annual Subtotals'!KH4) ->  | KI6: =INDEX('Detailed Model'!$A4:$ZI4,'Annual Subtotals'!KI4) ->  | KJ6: =INDEX('Detailed Model'!$A4:$ZI4,'Annual Subtotals'!KJ4) ->  | KK6: =INDEX('Detailed Model'!$A4:$ZI4,'Annual Subtotals'!KK4) ->  | KL6: =INDEX('Detailed Model'!$A4:$ZI4,'Annual Subtotals'!KL4) ->  | KM6: =INDEX('Detailed Model'!$A4:$ZI4,'Annual Subtotals'!KM4) ->  | KN6: =INDEX('Detailed Model'!$A4:$ZI4,'Annual Subtotals'!KN4) ->  | KO6: =INDEX('Detailed Model'!$A4:$ZI4,'Annual Subtotals'!KO4) ->  | KP6: =INDEX('Detailed Model'!$A4:$ZI4,'Annual Subtotals'!KP4) ->  | KQ6: =INDEX('Detailed Model'!$A4:$ZI4,'Annual Subtotals'!KQ4) ->  | KR6: =INDEX('Detailed Model'!$A4:$ZI4,'Annual Subtotals'!KR4) -> 
B7: Sub-total | E7: =IF(ISNUMBER(MATCH(E3,'Detailed Model'!$IX$6:$JR$6,0)),TRUE) -> FALSE | F7: =IF(ISNUMBER(MATCH(F3,'Detailed Model'!$IX$6:$JR$6,0)),TRUE) -> FALSE | G7: =IF(ISNUMBER(MATCH(G3,'Detailed Model'!$IX$6:$JR$6,0)),TRUE) -> FALSE | H7: =IF(ISNUMBER(MATCH(H3,'Detailed Model'!$IX$6:$JR$6,0)),TRUE) -> FALSE | I7: =IF(ISNUMBER(MATCH(I3,'Detailed Model'!$IX$6:$JR$6,0)),TRUE) -> FALSE | J7: =IF(ISNUMBER(MATCH(J3,'Detailed Model'!$IX$6:$JR$6,0)),TRUE) -> FALSE | K7: =IF(ISNUMBER(MATCH(K3,'Detailed Model'!$IX$6:$JR$6,0)),TRUE) -> FALSE | L7: =IF(ISNUMBER(MATCH(L3,'Detailed Model'!$IX$6:$JR$6,0)),TRUE) -> FALSE | M7: =IF(ISNUMBER(MATCH(M3,'Detailed Model'!$IX$6:$JR$6,0)),TRUE) -> FALSE | N7: =IF(ISNUMBER(MATCH(N3,'Detailed Model'!$IX$6:$JR$6,0)),TRUE) -> FALSE | O7: =IF(ISNUMBER(MATCH(O3,'Detailed Model'!$IX$6:$JR$6,0)),TRUE) -> FALSE | P7: =IF(ISNUMBER(MATCH(P3,'Detailed Model'!$IX$6:$JR$6,0)),TRUE) -> FALSE | Q7: =IF(ISNUMBER(MATCH(Q3,'Detailed Model'!$IX$6:$JR$6,0)),TRUE) -> TRUE | R7: =IF(ISNUMBER(MATCH(R3,'Detailed Model'!$IX$6:$JR$6,0)),TRUE) -> FALSE | S7: =IF(ISNUMBER(MATCH(S3,'Detailed Model'!$IX$6:$JR$6,0)),TRUE) -> FALSE | T7: =IF(ISNUMBER(MATCH(T3,'Detailed Model'!$IX$6:$JR$6,0)),TRUE) -> FALSE | U7: =IF(ISNUMBER(MATCH(U3,'Detailed Model'!$IX$6:$JR$6,0)),TRUE) -> FALSE | V7: =IF(ISNUMBER(MATCH(V3,'Detailed Model'!$IX$6:$JR$6,0)),TRUE) -> FALSE | W7: =IF(ISNUMBER(MATCH(W3,'Detailed Model'!$IX$6:$JR$6,0)),TRUE) -> FALSE | X7: =IF(ISNUMBER(MATCH(X3,'Detailed Model'!$IX$6:$JR$6,0)),TRUE) -> FALSE | Y7: =IF(ISNUMBER(MATCH(Y3,'Detailed Model'!$IX$6:$JR$6,0)),TRUE) -> FALSE | Z7: =IF(ISNUMBER(MATCH(Z3,'Detailed Model'!$IX$6:$JR$6,0)),TRUE) -> FALSE | AA7: =IF(ISNUMBER(MATCH(AA3,'Detailed Model'!$IX$6:$JR$6,0)),TRUE) -> FALSE | AB7: =IF(ISNUMBER(MATCH(AB3,'Detailed Model'!$IX$6:$JR$6,0)),TRUE) -> FALSE | AC7: =IF(ISNUMBER(MATCH(AC3,'Detailed Model'!$IX$6:$JR$6,0)),TRUE) -> FALSE | AD7: =IF(ISNUMBER(MATCH(AD3,'Detailed Model'!$IX$6:$JR$6,0)),TRUE) -> TRUE | AE7: =IF(ISNUMBER(MATCH(AE3,'Detailed Model'!$IX$6:$JR$6,0)),TRUE) -> FALSE | AF7: =IF(ISNUMBER(MATCH(AF3,'Detailed Model'!$IX$6:$JR$6,0)),TRUE) -> FALSE | AG7: =IF(ISNUMBER(MATCH(AG3,'Detailed Model'!$IX$6:$JR$6,0)),TRUE) -> FALSE | AH7: =IF(ISNUMBER(MATCH(AH3,'Detailed Model'!$IX$6:$JR$6,0)),TRUE) -> FALSE | AI7: =IF(ISNUMBER(MATCH(AI3,'Detailed Model'!$IX$6:$JR$6,0)),TRUE) -> FALSE | AJ7: =IF(ISNUMBER(MATCH(AJ3,'Detailed Model'!$IX$6:$JR$6,0)),TRUE) -> FALSE | AK7: =IF(ISNUMBER(MATCH(AK3,'Detailed Model'!$IX$6:$JR$6,0)),TRUE) -> FALSE | AL7: =IF(ISNUMBER(MATCH(AL3,'Detailed Model'!$IX$6:$JR$6,0)),TRUE) -> FALSE | AM7: =IF(ISNUMBER(MATCH(AM3,'Detailed Model'!$IX$6:$JR$6,0)),TRUE) -> FALSE | AN7: =IF(ISNUMBER(MATCH(AN3,'Detailed Model'!$IX$6:$JR$6,0)),TRUE) -> FALSE | AO7: =IF(ISNUMBER(MATCH(AO3,'Detailed Model'!$IX$6:$JR$6,0)),TRUE) -> FALSE | AP7: =IF(ISNUMBER(MATCH(AP3,'Detailed Model'!$IX$6:$JR$6,0)),TRUE) -> FALSE | AQ7: =IF(ISNUMBER(MATCH(AQ3,'Detailed Model'!$IX$6:$JR$6,0)),TRUE) -> TRUE | AR7: =IF(ISNUMBER(MATCH(AR3,'Detailed Model'!$IX$6:$JR$6,0)),TRUE) -> FALSE | AS7: =IF(ISNUMBER(MATCH(AS3,'Detailed Model'!$IX$6:$JR$6,0)),TRUE) -> FALSE | AT7: =IF(ISNUMBER(MATCH(AT3,'Detailed Model'!$IX$6:$JR$6,0)),TRUE) -> FALSE | AU7: =IF(ISNUMBER(MATCH(AU3,'Detailed Model'!$IX$6:$JR$6,0)),TRUE) -> FALSE | AV7: =IF(ISNUMBER(MATCH(AV3,'Detailed Model'!$IX$6:$JR$6,0)),TRUE) -> FALSE | AW7: =IF(ISNUMBER(MATCH(AW3,'Detailed Model'!$IX$6:$JR$6,0)),TRUE) -> FALSE | AX7: =IF(ISNUMBER(MATCH(AX3,'Detailed Model'!$IX$6:$JR$6,0)),TRUE) -> FALSE | AY7: =IF(ISNUMBER(MATCH(AY3,'Detailed Model'!$IX$6:$JR$6,0)),TRUE) -> FALSE | AZ7: =IF(ISNUMBER(MATCH(AZ3,'Detailed Model'!$IX$6:$JR$6,0)),TRUE) -> FALSE | BA7: =IF(ISNUMBER(MATCH(BA3,'Detailed Model'!$IX$6:$JR$6,0)),TRUE) -> FALSE | BB7: =IF(ISNUMBER(MATCH(BB3,'Detailed Model'!$IX$6:$JR$6,0)),TRUE) -> FALSE | BC7: =IF(ISNUMBER(MATCH(BC3,'Detailed Model'!$IX$6:$JR$6,0)),TRUE) -> FALSE | BD7: =IF(ISNUMBER(MATCH(BD3,'Detailed Model'!$IX$6:$JR$6,0)),TRUE) -> TRUE | BE7: =IF(ISNUMBER(MATCH(BE3,'Detailed Model'!$IX$6:$JR$6,0)),TRUE) -> FALSE | BF7: =IF(ISNUMBER(MATCH(BF3,'Detailed Model'!$IX$6:$JR$6,0)),TRUE) -> FALSE | BG7: =IF(ISNUMBER(MATCH(BG3,'Detailed Model'!$IX$6:$JR$6,0)),TRUE) -> FALSE | BH7: =IF(ISNUMBER(MATCH(BH3,'Detailed Model'!$IX$6:$JR$6,0)),TRUE) -> FALSE | BI7: =IF(ISNUMBER(MATCH(BI3,'Detailed Model'!$IX$6:$JR$6,0)),TRUE) -> FALSE | BJ7: =IF(ISNUMBER(MATCH(BJ3,'Detailed Model'!$IX$6:$JR$6,0)),TRUE) -> FALSE | BK7: =IF(ISNUMBER(MATCH(BK3,'Detailed Model'!$IX$6:$JR$6,0)),TRUE) -> FALSE | BL7: =IF(ISNUMBER(MATCH(BL3,'Detailed Model'!$IX$6:$JR$6,0)),TRUE) -> FALSE | BM7: =IF(ISNUMBER(MATCH(BM3,'Detailed Model'!$IX$6:$JR$6,0)),TRUE) -> FALSE | BN7: =IF(ISNUMBER(MATCH(BN3,'Detailed Model'!$IX$6:$JR$6,0)),TRUE) -> FALSE | BO7: =IF(ISNUMBER(MATCH(BO3,'Detailed Model'!$IX$6:$JR$6,0)),TRUE) -> FALSE | BP7: =IF(ISNUMBER(MATCH(BP3,'Detailed Model'!$IX$6:$JR$6,0)),TRUE) -> FALSE | BQ7: =IF(ISNUMBER(MATCH(BQ3,'Detailed Model'!$IX$6:$JR$6,0)),TRUE) -> TRUE | BR7: =IF(ISNUMBER(MATCH(BR3,'Detailed Model'!$IX$6:$JR$6,0)),TRUE) -> FALSE | BS7: =IF(ISNUMBER(MATCH(BS3,'Detailed Model'!$IX$6:$JR$6,0)),TRUE) -> FALSE | BT7: =IF(ISNUMBER(MATCH(BT3,'Detailed Model'!$IX$6:$JR$6,0)),TRUE) -> FALSE | BU7: =IF(ISNUMBER(MATCH(BU3,'Detailed Model'!$IX$6:$JR$6,0)),TRUE) -> FALSE | BV7: =IF(ISNUMBER(MATCH(BV3,'Detailed Model'!$IX$6:$JR$6,0)),TRUE) -> FALSE | BW7: =IF(ISNUMBER(MATCH(BW3,'Detailed Model'!$IX$6:$JR$6,0)),TRUE) -> FALSE | BX7: =IF(ISNUMBER(MATCH(BX3,'Detailed Model'!$IX$6:$JR$6,0)),TRUE) -> FALSE | BY7: =IF(ISNUMBER(MATCH(BY3,'Detailed Model'!$IX$6:$JR$6,0)),TRUE) -> FALSE | BZ7: =IF(ISNUMBER(MATCH(BZ3,'Detailed Model'!$IX$6:$JR$6,0)),TRUE) -> FALSE | CA7: =IF(ISNUMBER(MATCH(CA3,'Detailed Model'!$IX$6:$JR$6,0)),TRUE) -> FALSE | CB7: =IF(ISNUMBER(MATCH(CB3,'Detailed Model'!$IX$6:$JR$6,0)),TRUE) -> FALSE | CC7: =IF(ISNUMBER(MATCH(CC3,'Detailed Model'!$IX$6:$JR$6,0)),TRUE) -> FALSE | CD7: =IF(ISNUMBER(MATCH(CD3,'Detailed Model'!$IX$6:$JR$6,0)),TRUE) -> TRUE | CE7: =IF(ISNUMBER(MATCH(CE3,'Detailed Model'!$IX$6:$JR$6,0)),TRUE) -> FALSE | CF7: =IF(ISNUMBER(MATCH(CF3,'Detailed Model'!$IX$6:$JR$6,0)),TRUE) -> FALSE | CG7: =IF(ISNUMBER(MATCH(CG3,'Detailed Model'!$IX$6:$JR$6,0)),TRUE) -> FALSE | CH7: =IF(ISNUMBER(MATCH(CH3,'Detailed Model'!$IX$6:$JR$6,0)),TRUE) -> FALSE | CI7: =IF(ISNUMBER(MATCH(CI3,'Detailed Model'!$IX$6:$JR$6,0)),TRUE) -> FALSE | CJ7: =IF(ISNUMBER(MATCH(CJ3,'Detailed Model'!$IX$6:$JR$6,0)),TRUE) -> FALSE | CK7: =IF(ISNUMBER(MATCH(CK3,'Detailed Model'!$IX$6:$JR$6,0)),TRUE) -> FALSE | CL7: =IF(ISNUMBER(MATCH(CL3,'Detailed Model'!$IX$6:$JR$6,0)),TRUE) -> FALSE | CM7: =IF(ISNUMBER(MATCH(CM3,'Detailed Model'!$IX$6:$JR$6,0)),TRUE) -> FALSE | CN7: =IF(ISNUMBER(MATCH(CN3,'Detailed Model'!$IX$6:$JR$6,0)),TRUE) -> FALSE | CO7: =IF(ISNUMBER(MATCH(CO3,'Detailed Model'!$IX$6:$JR$6,0)),TRUE) -> FALSE | CP7: =IF(ISNUMBER(MATCH(CP3,'Detailed Model'!$IX$6:$JR$6,0)),TRUE) -> FALSE | CQ7: =IF(ISNUMBER(MATCH(CQ3,'Detailed Model'!$IX$6:$JR$6,0)),TRUE) -> TRUE | CR7: =IF(ISNUMBER(MATCH(CR3,'Detailed Model'!$IX$6:$JR$6,0)),TRUE) -> FALSE | CS7: =IF(ISNUMBER(MATCH(CS3,'Detailed Model'!$IX$6:$JR$6,0)),TRUE) -> FALSE | CT7: =IF(ISNUMBER(MATCH(CT3,'Detailed Model'!$IX$6:$JR$6,0)),TRUE) -> FALSE | CU7: =IF(ISNUMBER(MATCH(CU3,'Detailed Model'!$IX$6:$JR$6,0)),TRUE) -> FALSE | CV7: =IF(ISNUMBER(MATCH(CV3,'Detailed Model'!$IX$6:$JR$6,0)),TRUE) -> FALSE | CW7: =IF(ISNUMBER(MATCH(CW3,'Detailed Model'!$IX$6:$JR$6,0)),TRUE) -> FALSE | CX7: =IF(ISNUMBER(MATCH(CX3,'Detailed Model'!$IX$6:$JR$6,0)),TRUE) -> FALSE | CY7: =IF(ISNUMBER(MATCH(CY3,'Detailed Model'!$IX$6:$JR$6,0)),TRUE) -> FALSE | CZ7: =IF(ISNUMBER(MATCH(CZ3,'Detailed Model'!$IX$6:$JR$6,0)),TRUE) -> FALSE | DA7: =IF(ISNUMBER(MATCH(DA3,'Detailed Model'!$IX$6:$JR$6,0)),TRUE) -> FALSE | DB7: =IF(ISNUMBER(MATCH(DB3,'Detailed Model'!$IX$6:$JR$6,0)),TRUE) -> FALSE | DC7: =IF(ISNUMBER(MATCH(DC3,'Detailed Model'!$IX$6:$JR$6,0)),TRUE) -> FALSE | DD7: =IF(ISNUMBER(MATCH(DD3,'Detailed Model'!$IX$6:$JR$6,0)),TRUE) -> TRUE | DE7: =IF(ISNUMBER(MATCH(DE3,'Detailed Model'!$IX$6:$JR$6,0)),TRUE) -> FALSE | DF7: =IF(ISNUMBER(MATCH(DF3,'Detailed Model'!$IX$6:$JR$6,0)),TRUE) -> FALSE | DG7: =IF(ISNUMBER(MATCH(DG3,'Detailed Model'!$IX$6:$JR$6,0)),TRUE) -> FALSE | DH7: =IF(ISNUMBER(MATCH(DH3,'Detailed Model'!$IX$6:$JR$6,0)),TRUE) -> FALSE | DI7: =IF(ISNUMBER(MATCH(DI3,'Detailed Model'!$IX$6:$JR$6,0)),TRUE) -> FALSE | DJ7: =IF(ISNUMBER(MATCH(DJ3,'Detailed Model'!$IX$6:$JR$6,0)),TRUE) -> FALSE | DK7: =IF(ISNUMBER(MATCH(DK3,'Detailed Model'!$IX$6:$JR$6,0)),TRUE) -> FALSE | DL7: =IF(ISNUMBER(MATCH(DL3,'Detailed Model'!$IX$6:$JR$6,0)),TRUE) -> FALSE | DM7: =IF(ISNUMBER(MATCH(DM3,'Detailed Model'!$IX$6:$JR$6,0)),TRUE) -> FALSE | DN7: =IF(ISNUMBER(MATCH(DN3,'Detailed Model'!$IX$6:$JR$6,0)),TRUE) -> FALSE | DO7: =IF(ISNUMBER(MATCH(DO3,'Detailed Model'!$IX$6:$JR$6,0)),TRUE) -> FALSE | DP7: =IF(ISNUMBER(MATCH(DP3,'Detailed Model'!$IX$6:$JR$6,0)),TRUE) -> FALSE | DQ7: =IF(ISNUMBER(MATCH(DQ3,'Detailed Model'!$IX$6:$JR$6,0)),TRUE) -> TRUE | DR7: =IF(ISNUMBER(MATCH(DR3,'Detailed Model'!$IX$6:$JR$6,0)),TRUE) -> FALSE | DS7: =IF(ISNUMBER(MATCH(DS3,'Detailed Model'!$IX$6:$JR$6,0)),TRUE) -> FALSE | DT7: =IF(ISNUMBER(MATCH(DT3,'Detailed Model'!$IX$6:$JR$6,0)),TRUE) -> FALSE | DU7: =IF(ISNUMBER(MATCH(DU3,'Detailed Model'!$IX$6:$JR$6,0)),TRUE) -> FALSE | DV7: =IF(ISNUMBER(MATCH(DV3,'Detailed Model'!$IX$6:$JR$6,0)),TRUE) -> FALSE | DW7: =IF(ISNUMBER(MATCH(DW3,'Detailed Model'!$IX$6:$JR$6,0)),TRUE) -> FALSE | DX7: =IF(ISNUMBER(MATCH(DX3,'Detailed Model'!$IX$6:$JR$6,0)),TRUE) -> FALSE | DY7: =IF(ISNUMBER(MATCH(DY3,'Detailed Model'!$IX$6:$JR$6,0)),TRUE) -> FALSE | DZ7: =IF(ISNUMBER(MATCH(DZ3,'Detailed Model'!$IX$6:$JR$6,0)),TRUE) -> FALSE | EA7: =IF(ISNUMBER(MATCH(EA3,'Detailed Model'!$IX$6:$JR$6,0)),TRUE) -> FALSE | EB7: =IF(ISNUMBER(MATCH(EB3,'Detailed Model'!$IX$6:$JR$6,0)),TRUE) -> FALSE | EC7: =IF(ISNUMBER(MATCH(EC3,'Detailed Model'!$IX$6:$JR$6,0)),TRUE) -> FALSE | ED7: =IF(ISNUMBER(MATCH(ED3,'Detailed Model'!$IX$6:$JR$6,0)),TRUE) -> TRUE | EE7: =IF(ISNUMBER(MATCH(EE3,'Detailed Model'!$IX$6:$JR$6,0)),TRUE) -> FALSE | EF7: =IF(ISNUMBER(MATCH(EF3,'Detailed Model'!$IX$6:$JR$6,0)),TRUE) -> FALSE | EG7: =IF(ISNUMBER(MATCH(EG3,'Detailed Model'!$IX$6:$JR$6,0)),TRUE) -> FALSE | EH7: =IF(ISNUMBER(MATCH(EH3,'Detailed Model'!$IX$6:$JR$6,0)),TRUE) -> FALSE | EI7: =IF(ISNUMBER(MATCH(EI3,'Detailed Model'!$IX$6:$JR$6,0)),TRUE) -> FALSE | EJ7: =IF(ISNUMBER(MATCH(EJ3,'Detailed Model'!$IX$6:$JR$6,0)),TRUE) -> FALSE | EK7: =IF(ISNUMBER(MATCH(EK3,'Detailed Model'!$IX$6:$JR$6,0)),TRUE) -> FALSE | EL7: =IF(ISNUMBER(MATCH(EL3,'Detailed Model'!$IX$6:$JR$6,0)),TRUE) -> FALSE | EM7: =IF(ISNUMBER(MATCH(EM3,'Detailed Model'!$IX$6:$JR$6,0)),TRUE) -> FALSE | EN7: =IF(ISNUMBER(MATCH(EN3,'Detailed Model'!$IX$6:$JR$6,0)),TRUE) -> FALSE | EO7: =IF(ISNUMBER(MATCH(EO3,'Detailed Model'!$IX$6:$JR$6,0)),TRUE) -> FALSE | EP7: =IF(ISNUMBER(MATCH(EP3,'Detailed Model'!$IX$6:$JR$6,0)),TRUE) -> FALSE | EQ7: =IF(ISNUMBER(MATCH(EQ3,'Detailed Model'!$IX$6:$JR$6,0)),TRUE) -> TRUE | ER7: =IF(ISNUMBER(MATCH(ER3,'Detailed Model'!$IX$6:$JR$6,0)),TRUE) -> FALSE | ES7: =IF(ISNUMBER(MATCH(ES3,'Detailed Model'!$IX$6:$JR$6,0)),TRUE) -> FALSE | ET7: =IF(ISNUMBER(MATCH(ET3,'Detailed Model'!$IX$6:$JR$6,0)),TRUE) -> FALSE | EU7: =IF(ISNUMBER(MATCH(EU3,'Detailed Model'!$IX$6:$JR$6,0)),TRUE) -> FALSE | EV7: =IF(ISNUMBER(MATCH(EV3,'Detailed Model'!$IX$6:$JR$6,0)),TRUE) -> FALSE | EW7: =IF(ISNUMBER(MATCH(EW3,'Detailed Model'!$IX$6:$JR$6,0)),TRUE) -> FALSE | EX7: =IF(ISNUMBER(MATCH(EX3,'Detailed Model'!$IX$6:$JR$6,0)),TRUE) -> FALSE | EY7: =IF(ISNUMBER(MATCH(EY3,'Detailed Model'!$IX$6:$JR$6,0)),TRUE) -> FALSE | EZ7: =IF(ISNUMBER(MATCH(EZ3,'Detailed Model'!$IX$6:$JR$6,0)),TRUE) -> FALSE | FA7: =IF(ISNUMBER(MATCH(FA3,'Detailed Model'!$IX$6:$JR$6,0)),TRUE) -> FALSE | FB7: =IF(ISNUMBER(MATCH(FB3,'Detailed Model'!$IX$6:$JR$6,0)),TRUE) -> FALSE | FC7: =IF(ISNUMBER(MATCH(FC3,'Detailed Model'!$IX$6:$JR$6,0)),TRUE) -> FALSE | FD7: =IF(ISNUMBER(MATCH(FD3,'Detailed Model'!$IX$6:$JR$6,0)),TRUE) -> TRUE | FE7: =IF(ISNUMBER(MATCH(FE3,'Detailed Model'!$IX$6:$JR$6,0)),TRUE) -> FALSE | FF7: =IF(ISNUMBER(MATCH(FF3,'Detailed Model'!$IX$6:$JR$6,0)),TRUE) -> FALSE | FG7: =IF(ISNUMBER(MATCH(FG3,'Detailed Model'!$IX$6:$JR$6,0)),TRUE) -> FALSE | FH7: =IF(ISNUMBER(MATCH(FH3,'Detailed Model'!$IX$6:$JR$6,0)),TRUE) -> FALSE | FI7: =IF(ISNUMBER(MATCH(FI3,'Detailed Model'!$IX$6:$JR$6,0)),TRUE) -> FALSE | FJ7: =IF(ISNUMBER(MATCH(FJ3,'Detailed Model'!$IX$6:$JR$6,0)),TRUE) -> FALSE | FK7: =IF(ISNUMBER(MATCH(FK3,'Detailed Model'!$IX$6:$JR$6,0)),TRUE) -> FALSE | FL7: =IF(ISNUMBER(MATCH(FL3,'Detailed Model'!$IX$6:$JR$6,0)),TRUE) -> FALSE | FM7: =IF(ISNUMBER(MATCH(FM3,'Detailed Model'!$IX$6:$JR$6,0)),TRUE) -> FALSE | FN7: =IF(ISNUMBER(MATCH(FN3,'Detailed Model'!$IX$6:$JR$6,0)),TRUE) -> FALSE | FO7: =IF(ISNUMBER(MATCH(FO3,'Detailed Model'!$IX$6:$JR$6,0)),TRUE) -> FALSE | FP7: =IF(ISNUMBER(MATCH(FP3,'Detailed Model'!$IX$6:$JR$6,0)),TRUE) -> FALSE | FQ7: =IF(ISNUMBER(MATCH(FQ3,'Detailed Model'!$IX$6:$JR$6,0)),TRUE) -> TRUE | FR7: =IF(ISNUMBER(MATCH(FR3,'Detailed Model'!$IX$6:$JR$6,0)),TRUE) -> FALSE | FS7: =IF(ISNUMBER(MATCH(FS3,'Detailed Model'!$IX$6:$JR$6,0)),TRUE) -> FALSE | FT7: =IF(ISNUMBER(MATCH(FT3,'Detailed Model'!$IX$6:$JR$6,0)),TRUE) -> FALSE | FU7: =IF(ISNUMBER(MATCH(FU3,'Detailed Model'!$IX$6:$JR$6,0)),TRUE) -> FALSE | FV7: =IF(ISNUMBER(MATCH(FV3,'Detailed Model'!$IX$6:$JR$6,0)),TRUE) -> FALSE | FW7: =IF(ISNUMBER(MATCH(FW3,'Detailed Model'!$IX$6:$JR$6,0)),TRUE) -> FALSE | FX7: =IF(ISNUMBER(MATCH(FX3,'Detailed Model'!$IX$6:$JR$6,0)),TRUE) -> FALSE | FY7: =IF(ISNUMBER(MATCH(FY3,'Detailed Model'!$IX$6:$JR$6,0)),TRUE) -> FALSE | FZ7: =IF(ISNUMBER(MATCH(FZ3,'Detailed Model'!$IX$6:$JR$6,0)),TRUE) -> FALSE | GA7: =IF(ISNUMBER(MATCH(GA3,'Detailed Model'!$IX$6:$JR$6,0)),TRUE) -> FALSE | GB7: =IF(ISNUMBER(MATCH(GB3,'Detailed Model'!$IX$6:$JR$6,0)),TRUE) -> FALSE | GC7: =IF(ISNUMBER(MATCH(GC3,'Detailed Model'!$IX$6:$JR$6,0)),TRUE) -> FALSE | GD7: =IF(ISNUMBER(MATCH(GD3,'Detailed Model'!$IX$6:$JR$6,0)),TRUE) -> TRUE | GE7: =IF(ISNUMBER(MATCH(GE3,'Detailed Model'!$IX$6:$JR$6,0)),TRUE) -> FALSE | GF7: =IF(ISNUMBER(MATCH(GF3,'Detailed Model'!$IX$6:$JR$6,0)),TRUE) -> FALSE | GG7: =IF(ISNUMBER(MATCH(GG3,'Detailed Model'!$IX$6:$JR$6,0)),TRUE) -> FALSE | GH7: =IF(ISNUMBER(MATCH(GH3,'Detailed Model'!$IX$6:$JR$6,0)),TRUE) -> FALSE | GI7: =IF(ISNUMBER(MATCH(GI3,'Detailed Model'!$IX$6:$JR$6,0)),TRUE) -> FALSE | GJ7: =IF(ISNUMBER(MATCH(GJ3,'Detailed Model'!$IX$6:$JR$6,0)),TRUE) -> FALSE | GK7: =IF(ISNUMBER(MATCH(GK3,'Detailed Model'!$IX$6:$JR$6,0)),TRUE) -> FALSE | GL7: =IF(ISNUMBER(MATCH(GL3,'Detailed Model'!$IX$6:$JR$6,0)),TRUE) -> FALSE | GM7: =IF(ISNUMBER(MATCH(GM3,'Detailed Model'!$IX$6:$JR$6,0)),TRUE) -> FALSE | GN7: =IF(ISNUMBER(MATCH(GN3,'Detailed Model'!$IX$6:$JR$6,0)),TRUE) -> FALSE | GO7: =IF(ISNUMBER(MATCH(GO3,'Detailed Model'!$IX$6:$JR$6,0)),TRUE) -> FALSE | GP7: =IF(ISNUMBER(MATCH(GP3,'Detailed Model'!$IX$6:$JR$6,0)),TRUE) -> FALSE | GQ7: =IF(ISNUMBER(MATCH(GQ3,'Detailed Model'!$IX$6:$JR$6,0)),TRUE) -> TRUE | GR7: =IF(ISNUMBER(MATCH(GR3,'Detailed Model'!$IX$6:$JR$6,0)),TRUE) -> FALSE | GS7: =IF(ISNUMBER(MATCH(GS3,'Detailed Model'!$IX$6:$JR$6,0)),TRUE) -> FALSE | GT7: =IF(ISNUMBER(MATCH(GT3,'Detailed Model'!$IX$6:$JR$6,0)),TRUE) -> FALSE | GU7: =IF(ISNUMBER(MATCH(GU3,'Detailed Model'!$IX$6:$JR$6,0)),TRUE) -> FALSE | GV7: =IF(ISNUMBER(MATCH(GV3,'Detailed Model'!$IX$6:$JR$6,0)),TRUE) -> FALSE | GW7: =IF(ISNUMBER(MATCH(GW3,'Detailed Model'!$IX$6:$JR$6,0)),TRUE) -> FALSE | GX7: =IF(ISNUMBER(MATCH(GX3,'Detailed Model'!$IX$6:$JR$6,0)),TRUE) -> FALSE | GY7: =IF(ISNUMBER(MATCH(GY3,'Detailed Model'!$IX$6:$JR$6,0)),TRUE) -> FALSE | GZ7: =IF(ISNUMBER(MATCH(GZ3,'Detailed Model'!$IX$6:$JR$6,0)),TRUE) -> FALSE | HA7: =IF(ISNUMBER(MATCH(HA3,'Detailed Model'!$IX$6:$JR$6,0)),TRUE) -> FALSE | HB7: =IF(ISNUMBER(MATCH(HB3,'Detailed Model'!$IX$6:$JR$6,0)),TRUE) -> FALSE | HC7: =IF(ISNUMBER(MATCH(HC3,'Detailed Model'!$IX$6:$JR$6,0)),TRUE) -> FALSE | HD7: =IF(ISNUMBER(MATCH(HD3,'Detailed Model'!$IX$6:$JR$6,0)),TRUE) -> TRUE | HE7: =IF(ISNUMBER(MATCH(HE3,'Detailed Model'!$IX$6:$JR$6,0)),TRUE) -> FALSE | HF7: =IF(ISNUMBER(MATCH(HF3,'Detailed Model'!$IX$6:$JR$6,0)),TRUE) -> FALSE | HG7: =IF(ISNUMBER(MATCH(HG3,'Detailed Model'!$IX$6:$JR$6,0)),TRUE) -> FALSE | HH7: =IF(ISNUMBER(MATCH(HH3,'Detailed Model'!$IX$6:$JR$6,0)),TRUE) -> FALSE | HI7: =IF(ISNUMBER(MATCH(HI3,'Detailed Model'!$IX$6:$JR$6,0)),TRUE) -> FALSE | HJ7: =IF(ISNUMBER(MATCH(HJ3,'Detailed Model'!$IX$6:$JR$6,0)),TRUE) -> FALSE | HK7: =IF(ISNUMBER(MATCH(HK3,'Detailed Model'!$IX$6:$JR$6,0)),TRUE) -> FALSE | HL7: =IF(ISNUMBER(MATCH(HL3,'Detailed Model'!$IX$6:$JR$6,0)),TRUE) -> FALSE | HM7: =IF(ISNUMBER(MATCH(HM3,'Detailed Model'!$IX$6:$JR$6,0)),TRUE) -> FALSE | HN7: =IF(ISNUMBER(MATCH(HN3,'Detailed Model'!$IX$6:$JR$6,0)),TRUE) -> FALSE | HO7: =IF(ISNUMBER(MATCH(HO3,'Detailed Model'!$IX$6:$JR$6,0)),TRUE) -> FALSE | HP7: =IF(ISNUMBER(MATCH(HP3,'Detailed Model'!$IX$6:$JR$6,0)),TRUE) -> FALSE | HQ7: =IF(ISNUMBER(MATCH(HQ3,'Detailed Model'!$IX$6:$JR$6,0)),TRUE) -> TRUE | HR7: =IF(ISNUMBER(MATCH(HR3,'Detailed Model'!$IX$6:$JR$6,0)),TRUE) -> FALSE | HS7: =IF(ISNUMBER(MATCH(HS3,'Detailed Model'!$IX$6:$JR$6,0)),TRUE) -> FALSE | HT7: =IF(ISNUMBER(MATCH(HT3,'Detailed Model'!$IX$6:$JR$6,0)),TRUE) -> FALSE | HU7: =IF(ISNUMBER(MATCH(HU3,'Detailed Model'!$IX$6:$JR$6,0)),TRUE) -> FALSE | HV7: =IF(ISNUMBER(MATCH(HV3,'Detailed Model'!$IX$6:$JR$6,0)),TRUE) -> FALSE | HW7: =IF(ISNUMBER(MATCH(HW3,'Detailed Model'!$IX$6:$JR$6,0)),TRUE) -> FALSE | HX7: =IF(ISNUMBER(MATCH(HX3,'Detailed Model'!$IX$6:$JR$6,0)),TRUE) -> FALSE | HY7: =IF(ISNUMBER(MATCH(HY3,'Detailed Model'!$IX$6:$JR$6,0)),TRUE) -> FALSE | HZ7: =IF(ISNUMBER(MATCH(HZ3,'Detailed Model'!$IX$6:$JR$6,0)),TRUE) -> FALSE | IA7: =IF(ISNUMBER(MATCH(IA3,'Detailed Model'!$IX$6:$JR$6,0)),TRUE) -> FALSE | IB7: =IF(ISNUMBER(MATCH(IB3,'Detailed Model'!$IX$6:$JR$6,0)),TRUE) -> FALSE | IC7: =IF(ISNUMBER(MATCH(IC3,'Detailed Model'!$IX$6:$JR$6,0)),TRUE) -> FALSE | ID7: =IF(ISNUMBER(MATCH(ID3,'Detailed Model'!$IX$6:$JR$6,0)),TRUE) -> TRUE | IE7: =IF(ISNUMBER(MATCH(IE3,'Detailed Model'!$IX$6:$JR$6,0)),TRUE) -> FALSE | IF7: =IF(ISNUMBER(MATCH(IF3,'Detailed Model'!$IX$6:$JR$6,0)),TRUE) -> FALSE | IG7: =IF(ISNUMBER(MATCH(IG3,'Detailed Model'!$IX$6:$JR$6,0)),TRUE) -> FALSE | IH7: =IF(ISNUMBER(MATCH(IH3,'Detailed Model'!$IX$6:$JR$6,0)),TRUE) -> FALSE | II7: =IF(ISNUMBER(MATCH(II3,'Detailed Model'!$IX$6:$JR$6,0)),TRUE) -> FALSE | IJ7: =IF(ISNUMBER(MATCH(IJ3,'Detailed Model'!$IX$6:$JR$6,0)),TRUE) -> FALSE | IK7: =IF(ISNUMBER(MATCH(IK3,'Detailed Model'!$IX$6:$JR$6,0)),TRUE) -> FALSE | IL7: =IF(ISNUMBER(MATCH(IL3,'Detailed Model'!$IX$6:$JR$6,0)),TRUE) -> FALSE | IM7: =IF(ISNUMBER(MATCH(IM3,'Detailed Model'!$IX$6:$JR$6,0)),TRUE) -> FALSE | IN7: =IF(ISNUMBER(MATCH(IN3,'Detailed Model'!$IX$6:$JR$6,0)),TRUE) -> FALSE | IO7: =IF(ISNUMBER(MATCH(IO3,'Detailed Model'!$IX$6:$JR$6,0)),TRUE) -> FALSE | IP7: =IF(ISNUMBER(MATCH(IP3,'Detailed Model'!$IX$6:$JR$6,0)),TRUE) -> FALSE | IQ7: =IF(ISNUMBER(MATCH(IQ3,'Detailed Model'!$IX$6:$JR$6,0)),TRUE) -> TRUE | IR7: =IF(ISNUMBER(MATCH(IR3,'Detailed Model'!$IX$6:$JR$6,0)),TRUE) -> FALSE | IS7: =IF(ISNUMBER(MATCH(IS3,'Detailed Model'!$IX$6:$JR$6,0)),TRUE) -> FALSE | IT7: =IF(ISNUMBER(MATCH(IT3,'Detailed Model'!$IX$6:$JR$6,0)),TRUE) -> FALSE | IU7: =IF(ISNUMBER(MATCH(IU3,'Detailed Model'!$IX$6:$JR$6,0)),TRUE) -> FALSE | IV7: =IF(ISNUMBER(MATCH(IV3,'Detailed Model'!$IX$6:$JR$6,0)),TRUE) -> FALSE | IW7: =IF(ISNUMBER(MATCH(IW3,'Detailed Model'!$IX$6:$JR$6,0)),TRUE) -> FALSE | IX7: =IF(ISNUMBER(MATCH(IX3,'Detailed Model'!$IX$6:$JR$6,0)),TRUE) -> FALSE | IY7: =IF(ISNUMBER(MATCH(IY3,'Detailed Model'!$IX$6:$JR$6,0)),TRUE) -> FALSE | IZ7: =IF(ISNUMBER(MATCH(IZ3,'Detailed Model'!$IX$6:$JR$6,0)),TRUE) -> FALSE | JA7: =IF(ISNUMBER(MATCH(JA3,'Detailed Model'!$IX$6:$JR$6,0)),TRUE) -> FALSE | JB7: =IF(ISNUMBER(MATCH(JB3,'Detailed Model'!$IX$6:$JR$6,0)),TRUE) -> FALSE | JC7: =IF(ISNUMBER(MATCH(JC3,'Detailed Model'!$IX$6:$JR$6,0)),TRUE) -> FALSE | JD7: =IF(ISNUMBER(MATCH(JD3,'Detailed Model'!$IX$6:$JR$6,0)),TRUE) -> TRUE | JE7: =IF(ISNUMBER(MATCH(JE3,'Detailed Model'!$IX$6:$JR$6,0)),TRUE) -> FALSE | JF7: =IF(ISNUMBER(MATCH(JF3,'Detailed Model'!$IX$6:$JR$6,0)),TRUE) -> FALSE | JG7: =IF(ISNUMBER(MATCH(JG3,'Detailed Model'!$IX$6:$JR$6,0)),TRUE) -> FALSE | JH7: =IF(ISNUMBER(MATCH(JH3,'Detailed Model'!$IX$6:$JR$6,0)),TRUE) -> FALSE | JI7: =IF(ISNUMBER(MATCH(JI3,'Detailed Model'!$IX$6:$JR$6,0)),TRUE) -> FALSE | JJ7: =IF(ISNUMBER(MATCH(JJ3,'Detailed Model'!$IX$6:$JR$6,0)),TRUE) -> FALSE | JK7: =IF(ISNUMBER(MATCH(JK3,'Detailed Model'!$IX$6:$JR$6,0)),TRUE) -> FALSE | JL7: =IF(ISNUMBER(MATCH(JL3,'Detailed Model'!$IX$6:$JR$6,0)),TRUE) -> FALSE | JM7: =IF(ISNUMBER(MATCH(JM3,'Detailed Model'!$IX$6:$JR$6,0)),TRUE) -> FALSE | JN7: =IF(ISNUMBER(MATCH(JN3,'Detailed Model'!$IX$6:$JR$6,0)),TRUE) -> FALSE | JO7: =IF(ISNUMBER(MATCH(JO3,'Detailed Model'!$IX$6:$JR$6,0)),TRUE) -> FALSE | JP7: =IF(ISNUMBER(MATCH(JP3,'Detailed Model'!$IX$6:$JR$6,0)),TRUE) -> FALSE | JQ7: =IF(ISNUMBER(MATCH(JQ3,'Detailed Model'!$IX$6:$JR$6,0)),TRUE) -> TRUE | JR7: =IF(ISNUMBER(MATCH(JR3,'Detailed Model'!$IX$6:$JR$6,0)),TRUE) -> FALSE | JS7: =IF(ISNUMBER(MATCH(JS3,'Detailed Model'!$IX$6:$JR$6,0)),TRUE) -> FALSE | JT7: =IF(ISNUMBER(MATCH(JT3,'Detailed Model'!$IX$6:$JR$6,0)),TRUE) -> FALSE | JU7: =IF(ISNUMBER(MATCH(JU3,'Detailed Model'!$IX$6:$JR$6,0)),TRUE) -> FALSE | JV7: =IF(ISNUMBER(MATCH(JV3,'Detailed Model'!$IX$6:$JR$6,0)),TRUE) -> FALSE | JW7: =IF(ISNUMBER(MATCH(JW3,'Detailed Model'!$IX$6:$JR$6,0)),TRUE) -> FALSE | JX7: =IF(ISNUMBER(MATCH(JX3,'Detailed Model'!$IX$6:$JR$6,0)),TRUE) -> FALSE | JY7: =IF(ISNUMBER(MATCH(JY3,'Detailed Model'!$IX$6:$JR$6,0)),TRUE) -> FALSE | JZ7: =IF(ISNUMBER(MATCH(JZ3,'Detailed Model'!$IX$6:$JR$6,0)),TRUE) -> FALSE | KA7: =IF(ISNUMBER(MATCH(KA3,'Detailed Model'!$IX$6:$JR$6,0)),TRUE) -> FALSE | KB7: =IF(ISNUMBER(MATCH(KB3,'Detailed Model'!$IX$6:$JR$6,0)),TRUE) -> FALSE | KC7: =IF(ISNUMBER(MATCH(KC3,'Detailed Model'!$IX$6:$JR$6,0)),TRUE) -> FALSE | KD7: =IF(ISNUMBER(MATCH(KD3,'Detailed Model'!$IX$6:$JR$6,0)),TRUE) -> FALSE | KE7: =IF(ISNUMBER(MATCH(KE3,'Detailed Model'!$IX$6:$JR$6,0)),TRUE) -> FALSE | KF7: =IF(ISNUMBER(MATCH(KF3,'Detailed Model'!$IX$6:$JR$6,0)),TRUE) -> FALSE | KG7: =IF(ISNUMBER(MATCH(KG3,'Detailed Model'!$IX$6:$JR$6,0)),TRUE) -> FALSE | KH7: =IF(ISNUMBER(MATCH(KH3,'Detailed Model'!$IX$6:$JR$6,0)),TRUE) -> FALSE | KI7: =IF(ISNUMBER(MATCH(KI3,'Detailed Model'!$IX$6:$JR$6,0)),TRUE) -> FALSE | KJ7: =IF(ISNUMBER(MATCH(KJ3,'Detailed Model'!$IX$6:$JR$6,0)),TRUE) -> FALSE | KK7: =IF(ISNUMBER(MATCH(KK3,'Detailed Model'!$IX$6:$JR$6,0)),TRUE) -> FALSE | KL7: =IF(ISNUMBER(MATCH(KL3,'Detailed Model'!$IX$6:$JR$6,0)),TRUE) -> FALSE | KM7: =IF(ISNUMBER(MATCH(KM3,'Detailed Model'!$IX$6:$JR$6,0)),TRUE) -> FALSE | KN7: =IF(ISNUMBER(MATCH(KN3,'Detailed Model'!$IX$6:$JR$6,0)),TRUE) -> FALSE | KO7: =IF(ISNUMBER(MATCH(KO3,'Detailed Model'!$IX$6:$JR$6,0)),TRUE) -> FALSE | KP7: =IF(ISNUMBER(MATCH(KP3,'Detailed Model'!$IX$6:$JR$6,0)),TRUE) -> FALSE | KQ7: =IF(ISNUMBER(MATCH(KQ3,'Detailed Model'!$IX$6:$JR$6,0)),TRUE) -> FALSE | KR7: =IF(ISNUMBER(MATCH(KR3,'Detailed Model'!$IX$6:$JR$6,0)),TRUE) -> FALSE
B9: Revenues
C10: Revenue 1 | E10: =INDEX('Detailed Model'!$A16:$ZZ16,'Annual Subtotals'!E$4) -> 100 | F10: =INDEX('Detailed Model'!$A16:$ZZ16,'Annual Subtotals'!F$4) -> 101 | G10: =INDEX('Detailed Model'!$A16:$ZZ16,'Annual Subtotals'!G$4) -> 102.01 | H10: =INDEX('Detailed Model'!$A16:$ZZ16,'Annual Subtotals'!H$4) -> 103.0301 | I10: =INDEX('Detailed Model'!$A16:$ZZ16,'Annual Subtotals'!I$4) -> 104.060401 | J10: =INDEX('Detailed Model'!$A16:$ZZ16,'Annual Subtotals'!J$4) -> 105.101005 | K10: =INDEX('Detailed Model'!$A16:$ZZ16,'Annual Subtotals'!K$4) -> 106.1520151 | L10: =INDEX('Detailed Model'!$A16:$ZZ16,'Annual Subtotals'!L$4) -> 107.2135352 | M10: =INDEX('Detailed Model'!$A16:$ZZ16,'Annual Subtotals'!M$4) -> 108.2856706 | N10: =INDEX('Detailed Model'!$A16:$ZZ16,'Annual Subtotals'!N$4) -> 109.3685273 | O10: =INDEX('Detailed Model'!$A16:$ZZ16,'Annual Subtotals'!O$4) -> 110.4622125 | P10: =INDEX('Detailed Model'!$A16:$ZZ16,'Annual Subtotals'!P$4) -> 111.5668347 | Q10: =INDEX('Detailed Model'!$A16:$ZZ16,'Annual Subtotals'!Q$4) -> 1268.250301 | R10: =INDEX('Detailed Model'!$A16:$ZZ16,'Annual Subtotals'!R$4) -> 112.682503 | S10: =INDEX('Detailed Model'!$A16:$ZZ16,'Annual Subtotals'!S$4) -> 113.809328 | T10: =INDEX('Detailed Model'!$A16:$ZZ16,'Annual Subtotals'!T$4) -> 114.9474213 | U10: =INDEX('Detailed Model'!$A16:$ZZ16,'Annual Subtotals'!U$4) -> 116.0968955 | V10: =INDEX('Detailed Model'!$A16:$ZZ16,'Annual Subtotals'!V$4) -> 117.2578645 | W10: =INDEX('Detailed Model'!$A16:$ZZ16,'Annual Subtotals'!W$4) -> 118.4304431 | X10: =INDEX('Detailed Model'!$A16:$ZZ16,'Annual Subtotals'!X$4) -> 119.6147476 | Y10: =INDEX('Detailed Model'!$A16:$ZZ16,'Annual Subtotals'!Y$4) -> 120.810895 | Z10: =INDEX('Detailed Model'!$A16:$ZZ16,'Annual Subtotals'!Z$4) -> 122.019004 | AA10: =INDEX('Detailed Model'!$A16:$ZZ16,'Annual Subtotals'!AA$4) -> 123.239194 | AB10: =INDEX('Detailed Model'!$A16:$ZZ16,'Annual Subtotals'!AB$4) -> 124.471586 | AC10: =INDEX('Detailed Model'!$A16:$ZZ16,'Annual Subtotals'!AC$4) -> 125.7163018 | AD10: =INDEX('Detailed Model'!$A16:$ZZ16,'Annual Subtotals'!AD$4) -> 1429.096184 | AE10: =INDEX('Detailed Model'!$A16:$ZZ16,'Annual Subtotals'!AE$4) -> 126.9734649 | AF10: =INDEX('Detailed Model'!$A16:$ZZ16,'Annual Subtotals'!AF$4) -> 128.2431995 | AG10: =INDEX('Detailed Model'!$A16:$ZZ16,'Annual Subtotals'!AG$4) -> 129.5256315 | AH10: =INDEX('Detailed Model'!$A16:$ZZ16,'Annual Subtotals'!AH$4) -> 130.8208878 | AI10: =INDEX('Detailed Model'!$A16:$ZZ16,'Annual Subtotals'!AI$4) -> 132.1290967 | AJ10: =INDEX('Detailed Model'!$A16:$ZZ16,'Annual Subtotals'!AJ$4) -> 133.4503877 | AK10: =INDEX('Detailed Model'!$A16:$ZZ16,'Annual Subtotals'!AK$4) -> 134.7848915 | AL10: =INDEX('Detailed Model'!$A16:$ZZ16,'Annual Subtotals'!AL$4) -> 136.1327404 | AM10: =INDEX('Detailed Model'!$A16:$ZZ16,'Annual Subtotals'!AM$4) -> 137.4940679 | AN10: =INDEX('Detailed Model'!$A16:$ZZ16,'Annual Subtotals'!AN$4) -> 138.8690085 | AO10: =INDEX('Detailed Model'!$A16:$ZZ16,'Annual Subtotals'!AO$4) -> 140.2576986 | AP10: =INDEX('Detailed Model'!$A16:$ZZ16,'Annual Subtotals'!AP$4) -> 141.6602756 | AQ10: =INDEX('Detailed Model'!$A16:$ZZ16,'Annual Subtotals'!AQ$4) -> 1610.341351 | AR10: =INDEX('Detailed Model'!$A16:$ZZ16,'Annual Subtotals'!AR$4) -> 143.0768784 | AS10: =INDEX('Detailed Model'!$A16:$ZZ16,'Annual Subtotals'!AS$4) -> 144.5076471 | AT10: =INDEX('Detailed Model'!$A16:$ZZ16,'Annual Subtotals'!AT$4) -> 145.9527236 | AU10: =INDEX('Detailed Model'!$A16:$ZZ16,'Annual Subtotals'!AU$4) -> 147.4122509 | AV10: =INDEX('Detailed Model'!$A16:$ZZ16,'Annual Subtotals'!AV$4) -> 148.8863734 | AW10: =INDEX('Detailed Model'!$A16:$ZZ16,'Annual Subtotals'!AW$4) -> 150.3752371 | AX10: =INDEX('Detailed Model'!$A16:$ZZ16,'Annual Subtotals'!AX$4) -> 151.8789895 | AY10: =INDEX('Detailed Model'!$A16:$ZZ16,'Annual Subtotals'!AY$4) -> 153.3977794 | AZ10: =INDEX('Detailed Model'!$A16:$ZZ16,'Annual Subtotals'!AZ$4) -> 154.9317572 | BA10: =INDEX('Detailed Model'!$A16:$ZZ16,'Annual Subtotals'!BA$4) -> 156.4810747 | BB10: =INDEX('Detailed Model'!$A16:$ZZ16,'Annual Subtotals'!BB$4) -> 158.0458855 | BC10: =INDEX('Detailed Model'!$A16:$ZZ16,'Annual Subtotals'!BC$4) -> 159.6263443 | BD10: =INDEX('Detailed Model'!$A16:$ZZ16,'Annual Subtotals'!BD$4) -> 1814.572941 | BE10: =INDEX('Detailed Model'!$A16:$ZZ16,'Annual Subtotals'!BE$4) -> 161.2226078 | BF10: =INDEX('Detailed Model'!$A16:$ZZ16,'Annual Subtotals'!BF$4) -> 162.8348338 | BG10: =INDEX('Detailed Model'!$A16:$ZZ16,'Annual Subtotals'!BG$4) -> 164.4631822 | BH10: =INDEX('Detailed Model'!$A16:$ZZ16,'Annual Subtotals'!BH$4) -> 166.107814 | BI10: =INDEX('Detailed Model'!$A16:$ZZ16,'Annual Subtotals'!BI$4) -> 167.7688921 | BJ10: =INDEX('Detailed Model'!$A16:$ZZ16,'Annual Subtotals'!BJ$4) -> 169.4465811 | BK10: =INDEX('Detailed Model'!$A16:$ZZ16,'Annual Subtotals'!BK$4) -> 171.1410469 | BL10: =INDEX('Detailed Model'!$A16:$ZZ16,'Annual Subtotals'!BL$4) -> 172.8524573 | BM10: =INDEX('Detailed Model'!$A16:$ZZ16,'Annual Subtotals'!BM$4) -> 174.5809819 | BN10: =INDEX('Detailed Model'!$A16:$ZZ16,'Annual Subtotals'!BN$4) -> 176.3267917 | BO10: =INDEX('Detailed Model'!$A16:$ZZ16,'Annual Subtotals'!BO$4) -> 178.0900597 | BP10: =INDEX('Detailed Model'!$A16:$ZZ16,'Annual Subtotals'!BP$4) -> 179.8709603 | BQ10: =INDEX('Detailed Model'!$A16:$ZZ16,'Annual Subtotals'!BQ$4) -> 2044.706209 | BR10: =INDEX('Detailed Model'!$A16:$ZZ16,'Annual Subtotals'!BR$4) -> 181.6696699 | BS10: =INDEX('Detailed Model'!$A16:$ZZ16,'Annual Subtotals'!BS$4) -> 183.4863666 | BT10: =INDEX('Detailed Model'!$A16:$ZZ16,'Annual Subtotals'!BT$4) -> 185.3212302 | BU10: =INDEX('Detailed Model'!$A16:$ZZ16,'Annual Subtotals'!BU$4) -> 187.1744425 | BV10: =INDEX('Detailed Model'!$A16:$ZZ16,'Annual Subtotals'!BV$4) -> 189.0461869 | BW10: =INDEX('Detailed Model'!$A16:$ZZ16,'Annual Subtotals'!BW$4) -> 190.9366488 | BX10: =INDEX('Detailed Model'!$A16:$ZZ16,'Annual Subtotals'!BX$4) -> 192.8460153 | BY10: =INDEX('Detailed Model'!$A16:$ZZ16,'Annual Subtotals'!BY$4) -> 194.7744755 | BZ10: =INDEX('Detailed Model'!$A16:$ZZ16,'Annual Subtotals'!BZ$4) -> 196.7222202 | CA10: =INDEX('Detailed Model'!$A16:$ZZ16,'Annual Subtotals'!CA$4) -> 198.6894424 | CB10: =INDEX('Detailed Model'!$A16:$ZZ16,'Annual Subtotals'!CB$4) -> 200.6763368 | CC10: =INDEX('Detailed Model'!$A16:$ZZ16,'Annual Subtotals'!CC$4) -> 202.6831002 | CD10: =INDEX('Detailed Model'!$A16:$ZZ16,'Annual Subtotals'!CD$4) -> 2304.026135 | CE10: =INDEX('Detailed Model'!$A16:$ZZ16,'Annual Subtotals'!CE$4) -> 204.7099312 | CF10: =INDEX('Detailed Model'!$A16:$ZZ16,'Annual Subtotals'!CF$4) -> 206.7570305 | CG10: =INDEX('Detailed Model'!$A16:$ZZ16,'Annual Subtotals'!CG$4) -> 208.8246008 | CH10: =INDEX('Detailed Model'!$A16:$ZZ16,'Annual Subtotals'!CH$4) -> 210.9128468 | CI10: =INDEX('Detailed Model'!$A16:$ZZ16,'Annual Subtotals'!CI$4) -> 213.0219753 | CJ10: =INDEX('Detailed Model'!$A16:$ZZ16,'Annual Subtotals'!CJ$4) -> 215.1521951 | CK10: =INDEX('Detailed Model'!$A16:$ZZ16,'Annual Subtotals'!CK$4) -> 217.303717 | CL10: =INDEX('Detailed Model'!$A16:$ZZ16,'Annual Subtotals'!CL$4) -> 219.4767542 | CM10: =INDEX('Detailed Model'!$A16:$ZZ16,'Annual Subtotals'!CM$4) -> 221.6715217 | CN10: =INDEX('Detailed Model'!$A16:$ZZ16,'Annual Subtotals'!CN$4) -> 223.8882369 | CO10: =INDEX('Detailed Model'!$A16:$ZZ16,'Annual Subtotals'!CO$4) -> 226.1271193 | CP10: =INDEX('Detailed Model'!$A16:$ZZ16,'Annual Subtotals'!CP$4) -> 228.3883905 | CQ10: =INDEX('Detailed Model'!$A16:$ZZ16,'Annual Subtotals'!CQ$4) -> 2596.234319 | CR10: =INDEX('Detailed Model'!$A16:$ZZ16,'Annual Subtotals'!CR$4) -> 230.6722744 | CS10: =INDEX('Detailed Model'!$A16:$ZZ16,'Annual Subtotals'!CS$4) -> 232.9789971 | CT10: =INDEX('Detailed Model'!$A16:$ZZ16,'Annual Subtotals'!CT$4) -> 235.3087871 | CU10: =INDEX('Detailed Model'!$A16:$ZZ16,'Annual Subtotals'!CU$4) -> 237.661875 | CV10: =INDEX('Detailed Model'!$A16:$ZZ16,'Annual Subtotals'!CV$4) -> 240.0384937 | CW10: =INDEX('Detailed Model'!$A16:$ZZ16,'Annual Subtotals'!CW$4) -> 242.4388787 | CX10: =INDEX('Detailed Model'!$A16:$ZZ16,'Annual Subtotals'!CX$4) -> 244.8632675 | CY10: =INDEX('Detailed Model'!$A16:$ZZ16,'Annual Subtotals'!CY$4) -> 247.3119001 | CZ10: =INDEX('Detailed Model'!$A16:$ZZ16,'Annual Subtotals'!CZ$4) -> 249.7850191 | DA10: =INDEX('Detailed Model'!$A16:$ZZ16,'Annual Subtotals'!DA$4) -> 252.2828693 | DB10: =INDEX('Detailed Model'!$A16:$ZZ16,'Annual Subtotals'!DB$4) -> 254.805698 | DC10: =INDEX('Detailed Model'!$A16:$ZZ16,'Annual Subtotals'!DC$4) -> 257.353755 | DD10: =INDEX('Detailed Model'!$A16:$ZZ16,'Annual Subtotals'!DD$4) -> 2925.501815 | DE10: =INDEX('Detailed Model'!$A16:$ZZ16,'Annual Subtotals'!DE$4) -> 259.9272926 | DF10: =INDEX('Detailed Model'!$A16:$ZZ16,'Annual Subtotals'!DF$4) -> 262.5265655 | DG10: =INDEX('Detailed Model'!$A16:$ZZ16,'Annual Subtotals'!DG$4) -> 265.1518311 | DH10: =INDEX('Detailed Model'!$A16:$ZZ16,'Annual Subtotals'!DH$4) -> 267.8033494 | DI10: =INDEX('Detailed Model'!$A16:$ZZ16,'Annual Subtotals'!DI$4) -> 270.4813829 | DJ10: =INDEX('Detailed Model'!$A16:$ZZ16,'Annual Subtotals'!DJ$4) -> 273.1861968 | DK10: =INDEX('Detailed Model'!$A16:$ZZ16,'Annual Subtotals'!DK$4) -> 275.9180587 | DL10: =INDEX('Detailed Model'!$A16:$ZZ16,'Annual Subtotals'!DL$4) -> 278.6772393 | DM10: =INDEX('Detailed Model'!$A16:$ZZ16,'Annual Subtotals'!DM$4) -> 281.4640117 | DN10: =INDEX('Detailed Model'!$A16:$ZZ16,'Annual Subtotals'!DN$4) -> 284.2786518 | DO10: =INDEX('Detailed Model'!$A16:$ZZ16,'Annual Subtotals'!DO$4) -> 287.1214384 | DP10: =INDEX('Detailed Model'!$A16:$ZZ16,'Annual Subtotals'!DP$4) -> 289.9926527 | DQ10: =INDEX('Detailed Model'!$A16:$ZZ16,'Annual Subtotals'!DQ$4) -> 3296.528671 | DR10: =INDEX('Detailed Model'!$A16:$ZZ16,'Annual Subtotals'!DR$4) -> 292.8925793 | DS10: =INDEX('Detailed Model'!$A16:$ZZ16,'Annual Subtotals'!DS$4) -> 295.8215051 | DT10: =INDEX('Detailed Model'!$A16:$ZZ16,'Annual Subtotals'!DT$4) -> 298.7797201 | DU10: =INDEX('Detailed Model'!$A16:$ZZ16,'Annual Subtotals'!DU$4) -> 301.7675173 | DV10: =INDEX('Detailed Model'!$A16:$ZZ16,'Annual Subtotals'!DV$4) -> 304.7851925 | DW10: =INDEX('Detailed Model'!$A16:$ZZ16,'Annual Subtotals'!DW$4) -> 307.8330444 | DX10: =INDEX('Detailed Model'!$A16:$ZZ16,'Annual Subtotals'!DX$4) -> 310.9113749 | DY10: =INDEX('Detailed Model'!$A16:$ZZ16,'Annual Subtotals'!DY$4) -> 314.0204886 | DZ10: =INDEX('Detailed Model'!$A16:$ZZ16,'Annual Subtotals'!DZ$4) -> 317.1606935 | EA10: =INDEX('Detailed Model'!$A16:$ZZ16,'Annual Subtotals'!EA$4) -> 320.3323004 | EB10: =INDEX('Detailed Model'!$A16:$ZZ16,'Annual Subtotals'!EB$4) -> 323.5356234 | EC10: =INDEX('Detailed Model'!$A16:$ZZ16,'Annual Subtotals'!EC$4) -> 326.7709797 | ED10: =INDEX('Detailed Model'!$A16:$ZZ16,'Annual Subtotals'!ED$4) -> 3714.611019 | EE10: =INDEX('Detailed Model'!$A16:$ZZ16,'Annual Subtotals'!EE$4) -> 330.0386895 | EF10: =INDEX('Detailed Model'!$A16:$ZZ16,'Annual Subtotals'!EF$4) -> 333.3390764 | EG10: =INDEX('Detailed Model'!$A16:$ZZ16,'Annual Subtotals'!EG$4) -> 336.6724671 | EH10: =INDEX('Detailed Model'!$A16:$ZZ16,'Annual Subtotals'!EH$4) -> 340.0391918 | EI10: =INDEX('Detailed Model'!$A16:$ZZ16,'Annual Subtotals'!EI$4) -> 343.4395837 | EJ10: =INDEX('Detailed Model'!$A16:$ZZ16,'Annual Subtotals'!EJ$4) -> 346.8739795 | EK10: =INDEX('Detailed Model'!$A16:$ZZ16,'Annual Subtotals'!EK$4) -> 350.3427193 | EL10: =INDEX('Detailed Model'!$A16:$ZZ16,'Annual Subtotals'!EL$4) -> 353.8461465 | EM10: =INDEX('Detailed Model'!$A16:$ZZ16,'Annual Subtotals'!EM$4) -> 357.384608 | EN10: =INDEX('Detailed Model'!$A16:$ZZ16,'Annual Subtotals'!EN$4) -> 360.9584541 | EO10: =INDEX('Detailed Model'!$A16:$ZZ16,'Annual Subtotals'!EO$4) -> 364.5680386 | EP10: =INDEX('Detailed Model'!$A16:$ZZ16,'Annual Subtotals'!EP$4) -> 368.213719 | EQ10: =INDEX('Detailed Model'!$A16:$ZZ16,'Annual Subtotals'!EQ$4) -> 4185.716674 | ER10: =INDEX('Detailed Model'!$A16:$ZZ16,'Annual Subtotals'!ER$4) -> 371.8958562 | ES10: =INDEX('Detailed Model'!$A16:$ZZ16,'Annual Subtotals'!ES$4) -> 375.6148148 | ET10: =INDEX('Detailed Model'!$A16:$ZZ16,'Annual Subtotals'!ET$4) -> 379.3709629 | EU10: =INDEX('Detailed Model'!$A16:$ZZ16,'Annual Subtotals'!EU$4) -> 383.1646725 | EV10: =INDEX('Detailed Model'!$A16:$ZZ16,'Annual Subtotals'!EV$4) -> 386.9963193 | EW10: =INDEX('Detailed Model'!$A16:$ZZ16,'Annual Subtotals'!EW$4) -> 390.8662824 | EX10: =INDEX('Detailed Model'!$A16:$ZZ16,'Annual Subtotals'!EX$4) -> 394.7749453 | EY10: =INDEX('Detailed Model'!$A16:$ZZ16,'Annual Subtotals'!EY$4) -> 398.7226947 | EZ10: =INDEX('Detailed Model'!$A16:$ZZ16,'Annual Subtotals'!EZ$4) -> 402.7099217 | FA10: =INDEX('Detailed Model'!$A16:$ZZ16,'Annual Subtotals'!FA$4) -> 406.7370209 | FB10: =INDEX('Detailed Model'!$A16:$ZZ16,'Annual Subtotals'!FB$4) -> 410.8043911 | FC10: =INDEX('Detailed Model'!$A16:$ZZ16,'Annual Subtotals'!FC$4) -> 414.912435 | FD10: =INDEX('Detailed Model'!$A16:$ZZ16,'Annual Subtotals'!FD$4) -> 4716.570317 | FE10: =INDEX('Detailed Model'!$A16:$ZZ16,'Annual Subtotals'!FE$4) -> 419.0615594 | FF10: =INDEX('Detailed Model'!$A16:$ZZ16,'Annual Subtotals'!FF$4) -> 423.252175 | FG10: =INDEX('Detailed Model'!$A16:$ZZ16,'Annual Subtotals'!FG$4) -> 427.4846967 | FH10: =INDEX('Detailed Model'!$A16:$ZZ16,'Annual Subtotals'!FH$4) -> 431.7595437 | FI10: =INDEX('Detailed Model'!$A16:$ZZ16,'Annual Subtotals'!FI$4) -> 436.0771391 | FJ10: =INDEX('Detailed Model'!$A16:$ZZ16,'Annual Subtotals'!FJ$4) -> 440.4379105 | FK10: =INDEX('Detailed Model'!$A16:$ZZ16,'Annual Subtotals'!FK$4) -> 444.8422896 | FL10: =INDEX('Detailed Model'!$A16:$ZZ16,'Annual Subtotals'!FL$4) -> 449.2907125 | FM10: =INDEX('Detailed Model'!$A16:$ZZ16,'Annual Subtotals'!FM$4) -> 453.7836196 | FN10: =INDEX('Detailed Model'!$A16:$ZZ16,'Annual Subtotals'!FN$4) -> 458.3214558 | FO10: =INDEX('Detailed Model'!$A16:$ZZ16,'Annual Subtotals'!FO$4) -> 462.9046704 | FP10: =INDEX('Detailed Model'!$A16:$ZZ16,'Annual Subtotals'!FP$4) -> 467.5337171 | FQ10: =INDEX('Detailed Model'!$A16:$ZZ16,'Annual Subtotals'!FQ$4) -> 5314.749489 | FR10: =INDEX('Detailed Model'!$A16:$ZZ16,'Annual Subtotals'!FR$4) -> 472.2090543 | FS10: =INDEX('Detailed Model'!$A16:$ZZ16,'Annual Subtotals'!FS$4) -> 476.9311448 | FT10: =INDEX('Detailed Model'!$A16:$ZZ16,'Annual Subtotals'!FT$4) -> 481.7004562 | FU10: =INDEX('Detailed Model'!$A16:$ZZ16,'Annual Subtotals'!FU$4) -> 486.5174608 | FV10: =INDEX('Detailed Model'!$A16:$ZZ16,'Annual Subtotals'!FV$4) -> 491.3826354 | FW10: =INDEX('Detailed Model'!$A16:$ZZ16,'Annual Subtotals'!FW$4) -> 496.2964618 | FX10: =INDEX('Detailed Model'!$A16:$ZZ16,'Annual Subtotals'!FX$4) -> 501.2594264 | FY10: =INDEX('Detailed Model'!$A16:$ZZ16,'Annual Subtotals'!FY$4) -> 506.2720206 | FZ10: =INDEX('Detailed Model'!$A16:$ZZ16,'Annual Subtotals'!FZ$4) -> 511.3347409 | GA10: =INDEX('Detailed Model'!$A16:$ZZ16,'Annual Subtotals'!GA$4) -> 516.4480883 | GB10: =INDEX('Detailed Model'!$A16:$ZZ16,'Annual Subtotals'!GB$4) -> 521.6125691 | GC10: =INDEX('Detailed Model'!$A16:$ZZ16,'Annual Subtotals'!GC$4) -> 526.8286948 | GD10: =INDEX('Detailed Model'!$A16:$ZZ16,'Annual Subtotals'!GD$4) -> 5988.792753 | GE10: =INDEX('Detailed Model'!$A16:$ZZ16,'Annual Subtotals'!GE$4) -> 532.0969818 | GF10: =INDEX('Detailed Model'!$A16:$ZZ16,'Annual Subtotals'!GF$4) -> 537.4179516 | GG10: =INDEX('Detailed Model'!$A16:$ZZ16,'Annual Subtotals'!GG$4) -> 542.7921311 | GH10: =INDEX('Detailed Model'!$A16:$ZZ16,'Annual Subtotals'!GH$4) -> 548.2200524 | GI10: =INDEX('Detailed Model'!$A16:$ZZ16,'Annual Subtotals'!GI$4) -> 553.702253 | GJ10: =INDEX('Detailed Model'!$A16:$ZZ16,'Annual Subtotals'!GJ$4) -> 559.2392755 | GK10: =INDEX('Detailed Model'!$A16:$ZZ16,'Annual Subtotals'!GK$4) -> 564.8316682 | GL10: =INDEX('Detailed Model'!$A16:$ZZ16,'Annual Subtotals'!GL$4) -> 570.4799849 | GM10: =INDEX('Detailed Model'!$A16:$ZZ16,'Annual Subtotals'!GM$4) -> 576.1847848 | GN10: =INDEX('Detailed Model'!$A16:$ZZ16,'Annual Subtotals'!GN$4) -> 581.9466326 | GO10: =INDEX('Detailed Model'!$A16:$ZZ16,'Annual Subtotals'!GO$4) -> 587.7660989 | GP10: =INDEX('Detailed Model'!$A16:$ZZ16,'Annual Subtotals'!GP$4) -> 593.6437599 | GQ10: =INDEX('Detailed Model'!$A16:$ZZ16,'Annual Subtotals'!GQ$4) -> 6748.321575 | GR10: =INDEX('Detailed Model'!$A16:$ZZ16,'Annual Subtotals'!GR$4) -> 599.5801975 | GS10: =INDEX('Detailed Model'!$A16:$ZZ16,'Annual Subtotals'!GS$4) -> 605.5759995 | GT10: =INDEX('Detailed Model'!$A16:$ZZ16,'Annual Subtotals'!GT$4) -> 611.6317595 | GU10: =INDEX('Detailed Model'!$A16:$ZZ16,'Annual Subtotals'!GU$4) -> 617.7480771 | GV10: =INDEX('Detailed Model'!$A16:$ZZ16,'Annual Subtotals'!GV$4) -> 623.9255579 | GW10: =INDEX('Detailed Model'!$A16:$ZZ16,'Annual Subtotals'!GW$4) -> 630.1648135 | GX10: =INDEX('Detailed Model'!$A16:$ZZ16,'Annual Subtotals'!GX$4) -> 636.4664616 | GY10: =INDEX('Detailed Model'!$A16:$ZZ16,'Annual Subtotals'!GY$4) -> 642.8311262 | GZ10: =INDEX('Detailed Model'!$A16:$ZZ16,'Annual Subtotals'!GZ$4) -> 649.2594375 | HA10: =INDEX('Detailed Model'!$A16:$ZZ16,'Annual Subtotals'!HA$4) -> 655.7520318 | HB10: =INDEX('Detailed Model'!$A16:$ZZ16,'Annual Subtotals'!HB$4) -> 662.3095522 | HC10: =INDEX('Detailed Model'!$A16:$ZZ16,'Annual Subtotals'!HC$4) -> 668.9326477 | HD10: =INDEX('Detailed Model'!$A16:$ZZ16,'Annual Subtotals'!HD$4) -> 7604.177662 | HE10: =INDEX('Detailed Model'!$A16:$ZZ16,'Annual Subtotals'!HE$4) -> 675.6219742 | HF10: =INDEX('Detailed Model'!$A16:$ZZ16,'Annual Subtotals'!HF$4) -> 682.3781939 | HG10: =INDEX('Detailed Model'!$A16:$ZZ16,'Annual Subtotals'!HG$4) -> 689.2019758 | HH10: =INDEX('Detailed Model'!$A16:$ZZ16,'Annual Subtotals'!HH$4) -> 696.0939956 | HI10: =INDEX('Detailed Model'!$A16:$ZZ16,'Annual Subtotals'!HI$4) -> 703.0549355 | HJ10: =INDEX('Detailed Model'!$A16:$ZZ16,'Annual Subtotals'!HJ$4) -> 710.0854849 | HK10: =INDEX('Detailed Model'!$A16:$ZZ16,'Annual Subtotals'!HK$4) -> 717.1863398 | HL10: =INDEX('Detailed Model'!$A16:$ZZ16,'Annual Subtotals'!HL$4) -> 724.3582032 | HM10: =INDEX('Detailed Model'!$A16:$ZZ16,'Annual Subtotals'!HM$4) -> 731.6017852 | HN10: =INDEX('Detailed Model'!$A16:$ZZ16,'Annual Subtotals'!HN$4) -> 738.917803 | HO10: =INDEX('Detailed Model'!$A16:$ZZ16,'Annual Subtotals'!HO$4) -> 746.3069811 | HP10: =INDEX('Detailed Model'!$A16:$ZZ16,'Annual Subtotals'!HP$4) -> 753.7700509 | HQ10: =INDEX('Detailed Model'!$A16:$ZZ16,'Annual Subtotals'!HQ$4) -> 8568.577723 | HR10: =INDEX('Detailed Model'!$A16:$ZZ16,'Annual Subtotals'!HR$4) -> 761.3077514 | HS10: =INDEX('Detailed Model'!$A16:$ZZ16,'Annual Subtotals'!HS$4) -> 768.9208289 | HT10: =INDEX('Detailed Model'!$A16:$ZZ16,'Annual Subtotals'!HT$4) -> 776.6100372 | HU10: =INDEX('Detailed Model'!$A16:$ZZ16,'Annual Subtotals'!HU$4) -> 784.3761376 | HV10: =INDEX('Detailed Model'!$A16:$ZZ16,'Annual Subtotals'!HV$4) -> 792.2198989 | HW10: =INDEX('Detailed Model'!$A16:$ZZ16,'Annual Subtotals'!HW$4) -> 800.1420979 | HX10: =INDEX('Detailed Model'!$A16:$ZZ16,'Annual Subtotals'!HX$4) -> 808.1435189 | HY10: =INDEX('Detailed Model'!$A16:$ZZ16,'Annual Subtotals'!HY$4) -> 816.2249541 | HZ10: =INDEX('Detailed Model'!$A16:$ZZ16,'Annual Subtotals'!HZ$4) -> 824.3872036 | IA10: =INDEX('Detailed Model'!$A16:$ZZ16,'Annual Subtotals'!IA$4) -> 832.6310757 | IB10: =INDEX('Detailed Model'!$A16:$ZZ16,'Annual Subtotals'!IB$4) -> 840.9573864 | IC10: =INDEX('Detailed Model'!$A16:$ZZ16,'Annual Subtotals'!IC$4) -> 849.3669603 | ID10: =INDEX('Detailed Model'!$A16:$ZZ16,'Annual Subtotals'!ID$4) -> 9655.287851 | IE10: =INDEX('Detailed Model'!$A16:$ZZ16,'Annual Subtotals'!IE$4) -> 857.8606299 | IF10: =INDEX('Detailed Model'!$A16:$ZZ16,'Annual Subtotals'!IF$4) -> 866.4392362 | IG10: =INDEX('Detailed Model'!$A16:$ZZ16,'Annual Subtotals'!IG$4) -> 875.1036286 | IH10: =INDEX('Detailed Model'!$A16:$ZZ16,'Annual Subtotals'!IH$4) -> 883.8546648 | II10: =INDEX('Detailed Model'!$A16:$ZZ16,'Annual Subtotals'!II$4) -> 892.6932115 | IJ10: =INDEX('Detailed Model'!$A16:$ZZ16,'Annual Subtotals'!IJ$4) -> 901.6201436 | IK10: =INDEX('Detailed Model'!$A16:$ZZ16,'Annual Subtotals'!IK$4) -> 910.636345 | IL10: =INDEX('Detailed Model'!$A16:$ZZ16,'Annual Subtotals'!IL$4) -> 919.7427085 | IM10: =INDEX('Detailed Model'!$A16:$ZZ16,'Annual Subtotals'!IM$4) -> 928.9401356 | IN10: =INDEX('Detailed Model'!$A16:$ZZ16,'Annual Subtotals'!IN$4) -> 938.2295369 | IO10: =INDEX('Detailed Model'!$A16:$ZZ16,'Annual Subtotals'!IO$4) -> 947.6118323 | IP10: =INDEX('Detailed Model'!$A16:$ZZ16,'Annual Subtotals'!IP$4) -> 957.0879506 | IQ10: =INDEX('Detailed Model'!$A16:$ZZ16,'Annual Subtotals'!IQ$4) -> 10879.82002 | IR10: =INDEX('Detailed Model'!$A16:$ZZ16,'Annual Subtotals'!IR$4) -> 966.6588301 | IS10: =INDEX('Detailed Model'!$A16:$ZZ16,'Annual Subtotals'!IS$4) -> 976.3254184 | IT10: =INDEX('Detailed Model'!$A16:$ZZ16,'Annual Subtotals'!IT$4) -> 986.0886726 | IU10: =INDEX('Detailed Model'!$A16:$ZZ16,'Annual Subtotals'!IU$4) -> 995.9495593 | IV10: =INDEX('Detailed Model'!$A16:$ZZ16,'Annual Subtotals'!IV$4) -> 1005.909055 | IW10: =INDEX('Detailed Model'!$A16:$ZZ16,'Annual Subtotals'!IW$4) -> 1015.968145 | IX10: =INDEX('Detailed Model'!$A16:$ZZ16,'Annual Subtotals'!IX$4) -> 1026.127827 | IY10: =INDEX('Detailed Model'!$A16:$ZZ16,'Annual Subtotals'!IY$4) -> 1036.389105 | IZ10: =INDEX('Detailed Model'!$A16:$ZZ16,'Annual Subtotals'!IZ$4) -> 1046.752996 | JA10: =INDEX('Detailed Model'!$A16:$ZZ16,'Annual Subtotals'!JA$4) -> 1057.220526 | JB10: =INDEX('Detailed Model'!$A16:$ZZ16,'Annual Subtotals'!JB$4) -> 1067.792731 | JC10: =INDEX('Detailed Model'!$A16:$ZZ16,'Annual Subtotals'!JC$4) -> 1078.470659 | JD10: =INDEX('Detailed Model'!$A16:$ZZ16,'Annual Subtotals'!JD$4) -> 12259.65353 | JE10: =INDEX('Detailed Model'!$A16:$ZZ16,'Annual Subtotals'!JE$4) -> 1089.255365 | JF10: =INDEX('Detailed Model'!$A16:$ZZ16,'Annual Subtotals'!JF$4) -> 1100.147919 | JG10: =INDEX('Detailed Model'!$A16:$ZZ16,'Annual Subtotals'!JG$4) -> 1111.149398 | JH10: =INDEX('Detailed Model'!$A16:$ZZ16,'Annual Subtotals'!JH$4) -> 1122.260892 | JI10: =INDEX('Detailed Model'!$A16:$ZZ16,'Annual Subtotals'!JI$4) -> 1133.483501 | JJ10: =INDEX('Detailed Model'!$A16:$ZZ16,'Annual Subtotals'!JJ$4) -> 1144.818336 | JK10: =INDEX('Detailed Model'!$A16:$ZZ16,'Annual Subtotals'!JK$4) -> 1156.26652 | JL10: =INDEX('Detailed Model'!$A16:$ZZ16,'Annual Subtotals'!JL$4) -> 1167.829185 | JM10: =INDEX('Detailed Model'!$A16:$ZZ16,'Annual Subtotals'!JM$4) -> 1179.507477 | JN10: =INDEX('Detailed Model'!$A16:$ZZ16,'Annual Subtotals'!JN$4) -> 1191.302551 | JO10: =INDEX('Detailed Model'!$A16:$ZZ16,'Annual Subtotals'!JO$4) ->  | JP10: =INDEX('Detailed Model'!$A16:$ZZ16,'Annual Subtotals'!JP$4) ->  | JQ10: =INDEX('Detailed Model'!$A16:$ZZ16,'Annual Subtotals'!JQ$4) -> 11396.02114 | JR10: =INDEX('Detailed Model'!$A16:$ZZ16,'Annual Subtotals'!JR$4) ->  | JS10: =INDEX('Detailed Model'!$A16:$ZZ16,'Annual Subtotals'!JS$4) ->  | JT10: =INDEX('Detailed Model'!$A16:$ZZ16,'Annual Subtotals'!JT$4) ->  | JU10: =INDEX('Detailed Model'!$A16:$ZZ16,'Annual Subtotals'!JU$4) ->  | JV10: =INDEX('Detailed Model'!$A16:$ZZ16,'Annual Subtotals'!JV$4) ->  | JW10: =INDEX('Detailed Model'!$A16:$ZZ16,'Annual Subtotals'!JW$4) ->  | JX10: =INDEX('Detailed Model'!$A16:$ZZ16,'Annual Subtotals'!JX$4) ->  | JY10: =INDEX('Detailed Model'!$A16:$ZZ16,'Annual Subtotals'!JY$4) ->  | JZ10: =INDEX('Detailed Model'!$A16:$ZZ16,'Annual Subtotals'!JZ$4) ->  | KA10: =INDEX('Detailed Model'!$A16:$ZZ16,'Annual Subtotals'!KA$4) ->  | KB10: =INDEX('Detailed Model'!$A16:$ZZ16,'Annual Subtotals'!KB$4) ->  | KC10: =INDEX('Detailed Model'!$A16:$ZZ16,'Annual Subtotals'!KC$4) ->  | KD10: =INDEX('Detailed Model'!$A16:$ZZ16,'Annual Subtotals'!KD$4) ->  | KE10: =INDEX('Detailed Model'!$A16:$ZZ16,'Annual Subtotals'!KE$4) ->  | KF10: =INDEX('Detailed Model'!$A16:$ZZ16,'Annual Subtotals'!KF$4) ->  | KG10: =INDEX('Detailed Model'!$A16:$ZZ16,'Annual Subtotals'!KG$4) ->  | KH10: =INDEX('Detailed Model'!$A16:$ZZ16,'Annual Subtotals'!KH$4) ->  | KI10: =INDEX('Detailed Model'!$A16:$ZZ16,'Annual Subtotals'!KI$4) ->  | KJ10: =INDEX('Detailed Model'!$A16:$ZZ16,'Annual Subtotals'!KJ$4) ->  | KK10: =INDEX('Detailed Model'!$A16:$ZZ16,'Annual Subtotals'!KK$4) ->  | KL10: =INDEX('Detailed Model'!$A16:$ZZ16,'Annual Subtotals'!KL$4) ->  | KM10: =INDEX('Detailed Model'!$A16:$ZZ16,'Annual Subtotals'!KM$4) ->  | KN10: =INDEX('Detailed Model'!$A16:$ZZ16,'Annual Subtotals'!KN$4) ->  | KO10: =INDEX('Detailed Model'!$A16:$ZZ16,'Annual Subtotals'!KO$4) ->  | KP10: =INDEX('Detailed Model'!$A16:$ZZ16,'Annual Subtotals'!KP$4) ->  | KQ10: =INDEX('Detailed Model'!$A16:$ZZ16,'Annual Subtotals'!KQ$4) ->  | KR10: =INDEX('Detailed Model'!$A16:$ZZ16,'Annual Subtotals'!KR$4) -> 
C11: Revenue 2 | E11: =INDEX('Detailed Model'!$A17:$ZZ17,'Annual Subtotals'!E$4) -> 200 | F11: =INDEX('Detailed Model'!$A17:$ZZ17,'Annual Subtotals'!F$4) -> 197.1120082 | G11: =INDEX('Detailed Model'!$A17:$ZZ17,'Annual Subtotals'!G$4) -> 186.5873044 | H11: =INDEX('Detailed Model'!$A17:$ZZ17,'Annual Subtotals'!H$4) -> 187.9815665 | I11: =INDEX('Detailed Model'!$A17:$ZZ17,'Annual Subtotals'!I$4) -> 194.640485 | J11: =INDEX('Detailed Model'!$A17:$ZZ17,'Annual Subtotals'!J$4) -> 192.1081226 | K11: =INDEX('Detailed Model'!$A17:$ZZ17,'Annual Subtotals'!K$4) -> 197.9384035 | L11: =INDEX('Detailed Model'!$A17:$ZZ17,'Annual Subtotals'!L$4) -> 192.6676793 | M11: =INDEX('Detailed Model'!$A17:$ZZ17,'Annual Subtotals'!M$4) -> 186.5446459 | N11: =INDEX('Detailed Model'!$A17:$ZZ17,'Annual Subtotals'!N$4) -> 201.6518308 | O11: =INDEX('Detailed Model'!$A17:$ZZ17,'Annual Subtotals'!O$4) -> 206.5121772 | P11: =INDEX('Detailed Model'!$A17:$ZZ17,'Annual Subtotals'!P$4) -> 198.2034987 | Q11: =INDEX('Detailed Model'!$A17:$ZZ17,'Annual Subtotals'!Q$4) -> 2341.947722 | R11: =INDEX('Detailed Model'!$A17:$ZZ17,'Annual Subtotals'!R$4) -> 210.0332816 | S11: =INDEX('Detailed Model'!$A17:$ZZ17,'Annual Subtotals'!S$4) -> 206.3452472 | T11: =INDEX('Detailed Model'!$A17:$ZZ17,'Annual Subtotals'!T$4) -> 217.6245766 | U11: =INDEX('Detailed Model'!$A17:$ZZ17,'Annual Subtotals'!U$4) -> 225.3704129 | V11: =INDEX('Detailed Model'!$A17:$ZZ17,'Annual Subtotals'!V$4) -> 220.3223295 | W11: =INDEX('Detailed Model'!$A17:$ZZ17,'Annual Subtotals'!W$4) -> 235.4671847 | X11: =INDEX('Detailed Model'!$A17:$ZZ17,'Annual Subtotals'!X$4) -> 257.4536584 | Y11: =INDEX('Detailed Model'!$A17:$ZZ17,'Annual Subtotals'!Y$4) -> 242.1286781 | Z11: =INDEX('Detailed Model'!$A17:$ZZ17,'Annual Subtotals'!Z$4) -> 229.0532269 | AA11: =INDEX('Detailed Model'!$A17:$ZZ17,'Annual Subtotals'!AA$4) -> 234.7688236 | AB11: =INDEX('Detailed Model'!$A17:$ZZ17,'Annual Subtotals'!AB$4) -> 245.1825972 | AC11: =INDEX('Detailed Model'!$A17:$ZZ17,'Annual Subtotals'!AC$4) -> 254.4404518 | AD11: =INDEX('Detailed Model'!$A17:$ZZ17,'Annual Subtotals'!AD$4) -> 2778.190468 | AE11: =INDEX('Detailed Model'!$A17:$ZZ17,'Annual Subtotals'!AE$4) -> 248.4056951 | AF11: =INDEX('Detailed Model'!$A17:$ZZ17,'Annual Subtotals'!AF$4) -> 256.3108569 | AG11: =INDEX('Detailed Model'!$A17:$ZZ17,'Annual Subtotals'!AG$4) -> 248.2358639 | AH11: =INDEX('Detailed Model'!$A17:$ZZ17,'Annual Subtotals'!AH$4) -> 250.5915543 | AI11: =INDEX('Detailed Model'!$A17:$ZZ17,'Annual Subtotals'!AI$4) -> 253.009667 | AJ11: =INDEX('Detailed Model'!$A17:$ZZ17,'Annual Subtotals'!AJ$4) -> 241.0232506 | AK11: =INDEX('Detailed Model'!$A17:$ZZ17,'Annual Subtotals'!AK$4) -> 242.643058 | AL11: =INDEX('Detailed Model'!$A17:$ZZ17,'Annual Subtotals'!AL$4) -> 246.5265619 | AM11: =INDEX('Detailed Model'!$A17:$ZZ17,'Annual Subtotals'!AM$4) -> 246.2810609 | AN11: =INDEX('Detailed Model'!$A17:$ZZ17,'Annual Subtotals'!AN$4) -> 251.6247976 | AO11: =INDEX('Detailed Model'!$A17:$ZZ17,'Annual Subtotals'!AO$4) -> 237.9299454 | AP11: =INDEX('Detailed Model'!$A17:$ZZ17,'Annual Subtotals'!AP$4) -> 228.1030321 | AQ11: =INDEX('Detailed Model'!$A17:$ZZ17,'Annual Subtotals'!AQ$4) -> 2950.685344 | AR11: =INDEX('Detailed Model'!$A17:$ZZ17,'Annual Subtotals'!AR$4) -> 228.5953413 | AS11: =INDEX('Detailed Model'!$A17:$ZZ17,'Annual Subtotals'!AS$4) -> 230.9938858 | AT11: =INDEX('Detailed Model'!$A17:$ZZ17,'Annual Subtotals'!AT$4) -> 213.3779257 | AU11: =INDEX('Detailed Model'!$A17:$ZZ17,'Annual Subtotals'!AU$4) -> 220.4915511 | AV11: =INDEX('Detailed Model'!$A17:$ZZ17,'Annual Subtotals'!AV$4) -> 221.899799 | AW11: =INDEX('Detailed Model'!$A17:$ZZ17,'Annual Subtotals'!AW$4) -> 188.406534 | AX11: =INDEX('Detailed Model'!$A17:$ZZ17,'Annual Subtotals'!AX$4) -> 197.9545437 | AY11: =INDEX('Detailed Model'!$A17:$ZZ17,'Annual Subtotals'!AY$4) -> 199.90259 | AZ11: =INDEX('Detailed Model'!$A17:$ZZ17,'Annual Subtotals'!AZ$4) -> 194.2770174 | BA11: =INDEX('Detailed Model'!$A17:$ZZ17,'Annual Subtotals'!BA$4) -> 178.2361796 | BB11: =INDEX('Detailed Model'!$A17:$ZZ17,'Annual Subtotals'!BB$4) -> 178.0102471 | BC11: =INDEX('Detailed Model'!$A17:$ZZ17,'Annual Subtotals'!BC$4) -> 164.427193 | BD11: =INDEX('Detailed Model'!$A17:$ZZ17,'Annual Subtotals'!BD$4) -> 2416.572808 | BE11: =INDEX('Detailed Model'!$A17:$ZZ17,'Annual Subtotals'!BE$4) -> 148.1964065 | BF11: =INDEX('Detailed Model'!$A17:$ZZ17,'Annual Subtotals'!BF$4) -> 149.0059309 | BG11: =INDEX('Detailed Model'!$A17:$ZZ17,'Annual Subtotals'!BG$4) -> 141.715052 | BH11: =INDEX('Detailed Model'!$A17:$ZZ17,'Annual Subtotals'!BH$4) -> 133.3777177 | BI11: =INDEX('Detailed Model'!$A17:$ZZ17,'Annual Subtotals'!BI$4) -> 139.0450244 | BJ11: =INDEX('Detailed Model'!$A17:$ZZ17,'Annual Subtotals'!BJ$4) -> 138.0081215 | BK11: =INDEX('Detailed Model'!$A17:$ZZ17,'Annual Subtotals'!BK$4) -> 135.0575006 | BL11: =INDEX('Detailed Model'!$A17:$ZZ17,'Annual Subtotals'!BL$4) -> 136.7392355 | BM11: =INDEX('Detailed Model'!$A17:$ZZ17,'Annual Subtotals'!BM$4) -> 141.9651545 | BN11: =INDEX('Detailed Model'!$A17:$ZZ17,'Annual Subtotals'!BN$4) -> 140.9098585 | BO11: =INDEX('Detailed Model'!$A17:$ZZ17,'Annual Subtotals'!BO$4) -> 145.3605701 | BP11: =INDEX('Detailed Model'!$A17:$ZZ17,'Annual Subtotals'!BP$4) -> 142.5965672 | BQ11: =INDEX('Detailed Model'!$A17:$ZZ17,'Annual Subtotals'!BQ$4) -> 1691.977139 | BR11: =INDEX('Detailed Model'!$A17:$ZZ17,'Annual Subtotals'!BR$4) -> 137.7787111 | BS11: =INDEX('Detailed Model'!$A17:$ZZ17,'Annual Subtotals'!BS$4) -> 141.7367514 | BT11: =INDEX('Detailed Model'!$A17:$ZZ17,'Annual Subtotals'!BT$4) -> 139.4409525 | BU11: =INDEX('Detailed Model'!$A17:$ZZ17,'Annual Subtotals'!BU$4) -> 142.3364143 | BV11: =INDEX('Detailed Model'!$A17:$ZZ17,'Annual Subtotals'!BV$4) -> 135.5764231 | BW11: =INDEX('Detailed Model'!$A17:$ZZ17,'Annual Subtotals'!BW$4) -> 132.9036072 | BX11: =INDEX('Detailed Model'!$A17:$ZZ17,'Annual Subtotals'!BX$4) -> 129.8970128 | BY11: =INDEX('Detailed Model'!$A17:$ZZ17,'Annual Subtotals'!BY$4) -> 118.0487441 | BZ11: =INDEX('Detailed Model'!$A17:$ZZ17,'Annual Subtotals'!BZ$4) -> 111.1078913 | CA11: =INDEX('Detailed Model'!$A17:$ZZ17,'Annual Subtotals'!CA$4) -> 112.406115 | CB11: =INDEX('Detailed Model'!$A17:$ZZ17,'Annual Subtotals'!CB$4) -> 108.8562632 | CC11: =INDEX('Detailed Model'!$A17:$ZZ17,'Annual Subtotals'!CC$4) -> 102.4123064 | CD11: =INDEX('Detailed Model'!$A17:$ZZ17,'Annual Subtotals'!CD$4) -> 1512.501192 | CE11: =INDEX('Detailed Model'!$A17:$ZZ17,'Annual Subtotals'!CE$4) -> 108.485032 | CF11: =INDEX('Detailed Model'!$A17:$ZZ17,'Annual Subtotals'!CF$4) -> 103.3651669 | CG11: =INDEX('Detailed Model'!$A17:$ZZ17,'Annual Subtotals'!CG$4) -> 101.8903222 | CH11: =INDEX('Detailed Model'!$A17:$ZZ17,'Annual Subtotals'!CH$4) -> 102.5707217 | CI11: =INDEX('Detailed Model'!$A17:$ZZ17,'Annual Subtotals'!CI$4) -> 102.100031 | CJ11: =INDEX('Detailed Model'!$A17:$ZZ17,'Annual Subtotals'!CJ$4) -> 108.3819518 | CK11: =INDEX('Detailed Model'!$A17:$ZZ17,'Annual Subtotals'!CK$4) -> 107.6790901 | CL11: =INDEX('Detailed Model'!$A17:$ZZ17,'Annual Subtotals'!CL$4) -> 111.0833821 | CM11: =INDEX('Detailed Model'!$A17:$ZZ17,'Annual Subtotals'!CM$4) -> 108.6992955 | CN11: =INDEX('Detailed Model'!$A17:$ZZ17,'Annual Subtotals'!CN$4) -> 111.4339041 | CO11: =INDEX('Detailed Model'!$A17:$ZZ17,'Annual Subtotals'!CO$4) -> 105.9124708 | CP11: =INDEX('Detailed Model'!$A17:$ZZ17,'Annual Subtotals'!CP$4) -> 112.4511235 | CQ11: =INDEX('Detailed Model'!$A17:$ZZ17,'Annual Subtotals'!CQ$4) -> 1284.052492 | CR11: =INDEX('Detailed Model'!$A17:$ZZ17,'Annual Subtotals'!CR$4) -> 114.8877878 | CS11: =INDEX('Detailed Model'!$A17:$ZZ17,'Annual Subtotals'!CS$4) -> 116.5438686 | CT11: =INDEX('Detailed Model'!$A17:$ZZ17,'Annual Subtotals'!CT$4) -> 114.1851734 | CU11: =INDEX('Detailed Model'!$A17:$ZZ17,'Annual Subtotals'!CU$4) -> 106.0433355 | CV11: =INDEX('Detailed Model'!$A17:$ZZ17,'Annual Subtotals'!CV$4) -> 103.8989414 | CW11: =INDEX('Detailed Model'!$A17:$ZZ17,'Annual Subtotals'!CW$4) -> 112.4601426 | CX11: =INDEX('Detailed Model'!$A17:$ZZ17,'Annual Subtotals'!CX$4) -> 108.5795631 | CY11: =INDEX('Detailed Model'!$A17:$ZZ17,'Annual Subtotals'!CY$4) -> 106.150418 | CZ11: =INDEX('Detailed Model'!$A17:$ZZ17,'Annual Subtotals'!CZ$4) -> 112.1353989 | DA11: =INDEX('Detailed Model'!$A17:$ZZ17,'Annual Subtotals'!DA$4) -> 112.063605 | DB11: =INDEX('Detailed Model'!$A17:$ZZ17,'Annual Subtotals'!DB$4) -> 110.9483529 | DC11: =INDEX('Detailed Model'!$A17:$ZZ17,'Annual Subtotals'!DC$4) -> 102.636859 | DD11: =INDEX('Detailed Model'!$A17:$ZZ17,'Annual Subtotals'!DD$4) -> 1320.533446 | DE11: =INDEX('Detailed Model'!$A17:$ZZ17,'Annual Subtotals'!DE$4) -> 94.43074873 | DF11: =INDEX('Detailed Model'!$A17:$ZZ17,'Annual Subtotals'!DF$4) -> 92.32839153 | DG11: =INDEX('Detailed Model'!$A17:$ZZ17,'Annual Subtotals'!DG$4) -> 88.62072272 | DH11: =INDEX('Detailed Model'!$A17:$ZZ17,'Annual Subtotals'!DH$4) -> 88.60903442 | DI11: =INDEX('Detailed Model'!$A17:$ZZ17,'Annual Subtotals'!DI$4) -> 88.78749094 | DJ11: =INDEX('Detailed Model'!$A17:$ZZ17,'Annual Subtotals'!DJ$4) -> 83.12906965 | DK11: =INDEX('Detailed Model'!$A17:$ZZ17,'Annual Subtotals'!DK$4) -> 89.58414136 | DL11: =INDEX('Detailed Model'!$A17:$ZZ17,'Annual Subtotals'!DL$4) -> 95.14388175 | DM11: =INDEX('Detailed Model'!$A17:$ZZ17,'Annual Subtotals'!DM$4) -> 93.35297012 | DN11: =INDEX('Detailed Model'!$A17:$ZZ17,'Annual Subtotals'!DN$4) -> 91.44808176 | DO11: =INDEX('Detailed Model'!$A17:$ZZ17,'Annual Subtotals'!DO$4) -> 91.14317668 | DP11: =INDEX('Detailed Model'!$A17:$ZZ17,'Annual Subtotals'!DP$4) -> 91.07953334 | DQ11: =INDEX('Detailed Model'!$A17:$ZZ17,'Annual Subtotals'!DQ$4) -> 1087.657243 | DR11: =INDEX('Detailed Model'!$A17:$ZZ17,'Annual Subtotals'!DR$4) -> 88.090084 | DS11: =INDEX('Detailed Model'!$A17:$ZZ17,'Annual Subtotals'!DS$4) -> 86.45231475 | DT11: =INDEX('Detailed Model'!$A17:$ZZ17,'Annual Subtotals'!DT$4) -> 82.04084775 | DU11: =INDEX('Detailed Model'!$A17:$ZZ17,'Annual Subtotals'!DU$4) -> 81.02222305 | DV11: =INDEX('Detailed Model'!$A17:$ZZ17,'Annual Subtotals'!DV$4) -> 75.09282825 | DW11: =INDEX('Detailed Model'!$A17:$ZZ17,'Annual Subtotals'!DW$4) -> 77.45826958 | DX11: =INDEX('Detailed Model'!$A17:$ZZ17,'Annual Subtotals'!DX$4) -> 80.10785317 | DY11: =INDEX('Detailed Model'!$A17:$ZZ17,'Annual Subtotals'!DY$4) -> 86.31642996 | DZ11: =INDEX('Detailed Model'!$A17:$ZZ17,'Annual Subtotals'!DZ$4) -> 85.03046486 | EA11: =INDEX('Detailed Model'!$A17:$ZZ17,'Annual Subtotals'!EA$4) -> 83.89119443 | EB11: =INDEX('Detailed Model'!$A17:$ZZ17,'Annual Subtotals'!EB$4) -> 89.98689298 | EC11: =INDEX('Detailed Model'!$A17:$ZZ17,'Annual Subtotals'!EC$4) -> 87.86096071 | ED11: =INDEX('Detailed Model'!$A17:$ZZ17,'Annual Subtotals'!ED$4) -> 1003.350364 | EE11: =INDEX('Detailed Model'!$A17:$ZZ17,'Annual Subtotals'!EE$4) -> 90.96074929 | EF11: =INDEX('Detailed Model'!$A17:$ZZ17,'Annual Subtotals'!EF$4) -> 90.69241337 | EG11: =INDEX('Detailed Model'!$A17:$ZZ17,'Annual Subtotals'!EG$4) -> 91.42161439 | EH11: =INDEX('Detailed Model'!$A17:$ZZ17,'Annual Subtotals'!EH$4) -> 97.82032007 | EI11: =INDEX('Detailed Model'!$A17:$ZZ17,'Annual Subtotals'!EI$4) -> 96.99299667 | EJ11: =INDEX('Detailed Model'!$A17:$ZZ17,'Annual Subtotals'!EJ$4) -> 95.91624034 | EK11: =INDEX('Detailed Model'!$A17:$ZZ17,'Annual Subtotals'!EK$4) -> 96.95832136 | EL11: =INDEX('Detailed Model'!$A17:$ZZ17,'Annual Subtotals'!EL$4) -> 100.8213003 | EM11: =INDEX('Detailed Model'!$A17:$ZZ17,'Annual Subtotals'!EM$4) -> 99.88743222 | EN11: =INDEX('Detailed Model'!$A17:$ZZ17,'Annual Subtotals'!EN$4) -> 101.4522268 | EO11: =INDEX('Detailed Model'!$A17:$ZZ17,'Annual Subtotals'!EO$4) -> 102.208444 | EP11: =INDEX('Detailed Model'!$A17:$ZZ17,'Annual Subtotals'!EP$4) -> 101.1138954 | EQ11: =INDEX('Detailed Model'!$A17:$ZZ17,'Annual Subtotals'!EQ$4) -> 1166.245954 | ER11: =INDEX('Detailed Model'!$A17:$ZZ17,'Annual Subtotals'!ER$4) -> 100.9079715 | ES11: =INDEX('Detailed Model'!$A17:$ZZ17,'Annual Subtotals'!ES$4) -> 97.96952386 | ET11: =INDEX('Detailed Model'!$A17:$ZZ17,'Annual Subtotals'!ET$4) -> 97.65311617 | EU11: =INDEX('Detailed Model'!$A17:$ZZ17,'Annual Subtotals'!EU$4) -> 108.0871556 | EV11: =INDEX('Detailed Model'!$A17:$ZZ17,'Annual Subtotals'!EV$4) -> 106.3319025 | EW11: =INDEX('Detailed Model'!$A17:$ZZ17,'Annual Subtotals'!EW$4) -> 101.0220411 | EX11: =INDEX('Detailed Model'!$A17:$ZZ17,'Annual Subtotals'!EX$4) -> 92.76839154 | EY11: =INDEX('Detailed Model'!$A17:$ZZ17,'Annual Subtotals'!EY$4) -> 94.89977244 | EZ11: =INDEX('Detailed Model'!$A17:$ZZ17,'Annual Subtotals'!EZ$4) -> 89.10856191 | FA11: =INDEX('Detailed Model'!$A17:$ZZ17,'Annual Subtotals'!FA$4) -> 88.92139181 | FB11: =INDEX('Detailed Model'!$A17:$ZZ17,'Annual Subtotals'!FB$4) -> 96.15047918 | FC11: =INDEX('Detailed Model'!$A17:$ZZ17,'Annual Subtotals'!FC$4) -> 90.8050328 | FD11: =INDEX('Detailed Model'!$A17:$ZZ17,'Annual Subtotals'!FD$4) -> 1164.62534 | FE11: =INDEX('Detailed Model'!$A17:$ZZ17,'Annual Subtotals'!FE$4) -> 92.54514708 | FF11: =INDEX('Detailed Model'!$A17:$ZZ17,'Annual Subtotals'!FF$4) -> 100.1907392 | FG11: =INDEX('Detailed Model'!$A17:$ZZ17,'Annual Subtotals'!FG$4) -> 104.085321 | FH11: =INDEX('Detailed Model'!$A17:$ZZ17,'Annual Subtotals'!FH$4) -> 105.1414331 | FI11: =INDEX('Detailed Model'!$A17:$ZZ17,'Annual Subtotals'!FI$4) -> 107.0245388 | FJ11: =INDEX('Detailed Model'!$A17:$ZZ17,'Annual Subtotals'!FJ$4) -> 96.78744653 | FK11: =INDEX('Detailed Model'!$A17:$ZZ17,'Annual Subtotals'!FK$4) -> 99.45941547 | FL11: =INDEX('Detailed Model'!$A17:$ZZ17,'Annual Subtotals'!FL$4) -> 99.2033616 | FM11: =INDEX('Detailed Model'!$A17:$ZZ17,'Annual Subtotals'!FM$4) -> 105.8648119 | FN11: =INDEX('Detailed Model'!$A17:$ZZ17,'Annual Subtotals'!FN$4) -> 106.6399361 | FO11: =INDEX('Detailed Model'!$A17:$ZZ17,'Annual Subtotals'!FO$4) -> 116.2440078 | FP11: =INDEX('Detailed Model'!$A17:$ZZ17,'Annual Subtotals'!FP$4) -> 114.4328081 | FQ11: =INDEX('Detailed Model'!$A17:$ZZ17,'Annual Subtotals'!FQ$4) -> 1247.618967 | FR11: =INDEX('Detailed Model'!$A17:$ZZ17,'Annual Subtotals'!FR$4) -> 116.4377818 | FS11: =INDEX('Detailed Model'!$A17:$ZZ17,'Annual Subtotals'!FS$4) -> 115.5153486 | FT11: =INDEX('Detailed Model'!$A17:$ZZ17,'Annual Subtotals'!FT$4) -> 121.4855473 | FU11: =INDEX('Detailed Model'!$A17:$ZZ17,'Annual Subtotals'!FU$4) -> 117.1694155 | FV11: =INDEX('Detailed Model'!$A17:$ZZ17,'Annual Subtotals'!FV$4) -> 128.5019253 | FW11: =INDEX('Detailed Model'!$A17:$ZZ17,'Annual Subtotals'!FW$4) -> 141.9520453 | FX11: =INDEX('Detailed Model'!$A17:$ZZ17,'Annual Subtotals'!FX$4) -> 140.9316039 | FY11: =INDEX('Detailed Model'!$A17:$ZZ17,'Annual Subtotals'!FY$4) -> 133.1291933 | FZ11: =INDEX('Detailed Model'!$A17:$ZZ17,'Annual Subtotals'!FZ$4) -> 138.2265291 | GA11: =INDEX('Detailed Model'!$A17:$ZZ17,'Annual Subtotals'!GA$4) -> 145.8837931 | GB11: =INDEX('Detailed Model'!$A17:$ZZ17,'Annual Subtotals'!GB$4) -> 142.8148092 | GC11: =INDEX('Detailed Model'!$A17:$ZZ17,'Annual Subtotals'!GC$4) -> 130.2017775 | GD11: =INDEX('Detailed Model'!$A17:$ZZ17,'Annual Subtotals'!GD$4) -> 1572.24977 | GE11: =INDEX('Detailed Model'!$A17:$ZZ17,'Annual Subtotals'!GE$4) -> 139.6426554 | GF11: =INDEX('Detailed Model'!$A17:$ZZ17,'Annual Subtotals'!GF$4) -> 130.4348839 | GG11: =INDEX('Detailed Model'!$A17:$ZZ17,'Annual Subtotals'!GG$4) -> 131.0592748 | GH11: =INDEX('Detailed Model'!$A17:$ZZ17,'Annual Subtotals'!GH$4) -> 134.6830037 | GI11: =INDEX('Detailed Model'!$A17:$ZZ17,'Annual Subtotals'!GI$4) -> 132.644909 | GJ11: =INDEX('Detailed Model'!$A17:$ZZ17,'Annual Subtotals'!GJ$4) -> 128.0418811 | GK11: =INDEX('Detailed Model'!$A17:$ZZ17,'Annual Subtotals'!GK$4) -> 122.2894373 | GL11: =INDEX('Detailed Model'!$A17:$ZZ17,'Annual Subtotals'!GL$4) -> 127.5118236 | GM11: =INDEX('Detailed Model'!$A17:$ZZ17,'Annual Subtotals'!GM$4) -> 131.843233 | GN11: =INDEX('Detailed Model'!$A17:$ZZ17,'Annual Subtotals'!GN$4) -> 136.3585381 | GO11: =INDEX('Detailed Model'!$A17:$ZZ17,'Annual Subtotals'!GO$4) -> 132.2782776 | GP11: =INDEX('Detailed Model'!$A17:$ZZ17,'Annual Subtotals'!GP$4) -> 130.685979 | GQ11: =INDEX('Detailed Model'!$A17:$ZZ17,'Annual Subtotals'!GQ$4) -> 1577.473896 | GR11: =INDEX('Detailed Model'!$A17:$ZZ17,'Annual Subtotals'!GR$4) -> 122.7860706 | GS11: =INDEX('Detailed Model'!$A17:$ZZ17,'Annual Subtotals'!GS$4) -> 126.6168185 | GT11: =INDEX('Detailed Model'!$A17:$ZZ17,'Annual Subtotals'!GT$4) -> 124.1571547 | GU11: =INDEX('Detailed Model'!$A17:$ZZ17,'Annual Subtotals'!GU$4) -> 123.9102494 | GV11: =INDEX('Detailed Model'!$A17:$ZZ17,'Annual Subtotals'!GV$4) -> 124.2627876 | GW11: =INDEX('Detailed Model'!$A17:$ZZ17,'Annual Subtotals'!GW$4) -> 122.1851952 | GX11: =INDEX('Detailed Model'!$A17:$ZZ17,'Annual Subtotals'!GX$4) -> 124.0998632 | GY11: =INDEX('Detailed Model'!$A17:$ZZ17,'Annual Subtotals'!GY$4) -> 117.9954785 | GZ11: =INDEX('Detailed Model'!$A17:$ZZ17,'Annual Subtotals'!GZ$4) -> 115.5853719 | HA11: =INDEX('Detailed Model'!$A17:$ZZ17,'Annual Subtotals'!HA$4) -> 113.9561006 | HB11: =INDEX('Detailed Model'!$A17:$ZZ17,'Annual Subtotals'!HB$4) -> 110.5838108 | HC11: =INDEX('Detailed Model'!$A17:$ZZ17,'Annual Subtotals'!HC$4) -> 113.9254946 | HD11: =INDEX('Detailed Model'!$A17:$ZZ17,'Annual Subtotals'!HD$4) -> 1440.064395 | HE11: =INDEX('Detailed Model'!$A17:$ZZ17,'Annual Subtotals'!HE$4) -> 103.4307456 | HF11: =INDEX('Detailed Model'!$A17:$ZZ17,'Annual Subtotals'!HF$4) -> 101.3135272 | HG11: =INDEX('Detailed Model'!$A17:$ZZ17,'Annual Subtotals'!HG$4) -> 107.1615287 | HH11: =INDEX('Detailed Model'!$A17:$ZZ17,'Annual Subtotals'!HH$4) -> 110.9729757 | HI11: =INDEX('Detailed Model'!$A17:$ZZ17,'Annual Subtotals'!HI$4) -> 109.9183631 | HJ11: =INDEX('Detailed Model'!$A17:$ZZ17,'Annual Subtotals'!HJ$4) -> 100.1928551 | HK11: =INDEX('Detailed Model'!$A17:$ZZ17,'Annual Subtotals'!HK$4) -> 111.5697315 | HL11: =INDEX('Detailed Model'!$A17:$ZZ17,'Annual Subtotals'!HL$4) -> 106.3626842 | HM11: =INDEX('Detailed Model'!$A17:$ZZ17,'Annual Subtotals'!HM$4) -> 103.5131279 | HN11: =INDEX('Detailed Model'!$A17:$ZZ17,'Annual Subtotals'!HN$4) -> 101.3535342 | HO11: =INDEX('Detailed Model'!$A17:$ZZ17,'Annual Subtotals'!HO$4) -> 104.0767081 | HP11: =INDEX('Detailed Model'!$A17:$ZZ17,'Annual Subtotals'!HP$4) -> 104.4120684 | HQ11: =INDEX('Detailed Model'!$A17:$ZZ17,'Annual Subtotals'!HQ$4) -> 1264.27785 | HR11: =INDEX('Detailed Model'!$A17:$ZZ17,'Annual Subtotals'!HR$4) -> 99.26513962 | HS11: =INDEX('Detailed Model'!$A17:$ZZ17,'Annual Subtotals'!HS$4) -> 96.73138929 | HT11: =INDEX('Detailed Model'!$A17:$ZZ17,'Annual Subtotals'!HT$4) -> 96.34313444 | HU11: =INDEX('Detailed Model'!$A17:$ZZ17,'Annual Subtotals'!HU$4) -> 93.75474682 | HV11: =INDEX('Detailed Model'!$A17:$ZZ17,'Annual Subtotals'!HV$4) -> 82.03572545 | HW11: =INDEX('Detailed Model'!$A17:$ZZ17,'Annual Subtotals'!HW$4) -> 79.88094612 | HX11: =INDEX('Detailed Model'!$A17:$ZZ17,'Annual Subtotals'!HX$4) -> 80.6068907 | HY11: =INDEX('Detailed Model'!$A17:$ZZ17,'Annual Subtotals'!HY$4) -> 85.00114757 | HZ11: =INDEX('Detailed Model'!$A17:$ZZ17,'Annual Subtotals'!HZ$4) -> 83.35148723 | IA11: =INDEX('Detailed Model'!$A17:$ZZ17,'Annual Subtotals'!IA$4) -> 83.6679924 | IB11: =INDEX('Detailed Model'!$A17:$ZZ17,'Annual Subtotals'!IB$4) -> 88.86115283 | IC11: =INDEX('Detailed Model'!$A17:$ZZ17,'Annual Subtotals'!IC$4) -> 89.57736864 | ID11: =INDEX('Detailed Model'!$A17:$ZZ17,'Annual Subtotals'!ID$4) -> 1059.077121 | IE11: =INDEX('Detailed Model'!$A17:$ZZ17,'Annual Subtotals'!IE$4) -> 88.88367569 | IF11: =INDEX('Detailed Model'!$A17:$ZZ17,'Annual Subtotals'!IF$4) -> 93.75518506 | IG11: =INDEX('Detailed Model'!$A17:$ZZ17,'Annual Subtotals'!IG$4) -> 103.593363 | IH11: =INDEX('Detailed Model'!$A17:$ZZ17,'Annual Subtotals'!IH$4) -> 104.8102437 | II11: =INDEX('Detailed Model'!$A17:$ZZ17,'Annual Subtotals'!II$4) -> 108.9384819 | IJ11: =INDEX('Detailed Model'!$A17:$ZZ17,'Annual Subtotals'!IJ$4) -> 105.7877033 | IK11: =INDEX('Detailed Model'!$A17:$ZZ17,'Annual Subtotals'!IK$4) -> 115.4038027 | IL11: =INDEX('Detailed Model'!$A17:$ZZ17,'Annual Subtotals'!IL$4) -> 124.1140273 | IM11: =INDEX('Detailed Model'!$A17:$ZZ17,'Annual Subtotals'!IM$4) -> 127.9152938 | IN11: =INDEX('Detailed Model'!$A17:$ZZ17,'Annual Subtotals'!IN$4) -> 125.6660476 | IO11: =INDEX('Detailed Model'!$A17:$ZZ17,'Annual Subtotals'!IO$4) -> 122.6703498 | IP11: =INDEX('Detailed Model'!$A17:$ZZ17,'Annual Subtotals'!IP$4) -> 123.5364276 | IQ11: =INDEX('Detailed Model'!$A17:$ZZ17,'Annual Subtotals'!IQ$4) -> 1345.074602 | IR11: =INDEX('Detailed Model'!$A17:$ZZ17,'Annual Subtotals'!IR$4) -> 120.1060398 | IS11: =INDEX('Detailed Model'!$A17:$ZZ17,'Annual Subtotals'!IS$4) -> 121.9729036 | IT11: =INDEX('Detailed Model'!$A17:$ZZ17,'Annual Subtotals'!IT$4) -> 125.2576524 | IU11: =INDEX('Detailed Model'!$A17:$ZZ17,'Annual Subtotals'!IU$4) -> 121.0042232 | IV11: =INDEX('Detailed Model'!$A17:$ZZ17,'Annual Subtotals'!IV$4) -> 129.0737294 | IW11: =INDEX('Detailed Model'!$A17:$ZZ17,'Annual Subtotals'!IW$4) -> 134.3404168 | IX11: =INDEX('Detailed Model'!$A17:$ZZ17,'Annual Subtotals'!IX$4) -> 134.0977918 | IY11: =INDEX('Detailed Model'!$A17:$ZZ17,'Annual Subtotals'!IY$4) -> 127.3205704 | IZ11: =INDEX('Detailed Model'!$A17:$ZZ17,'Annual Subtotals'!IZ$4) -> 138.3609517 | JA11: =INDEX('Detailed Model'!$A17:$ZZ17,'Annual Subtotals'!JA$4) -> 131.9395644 | JB11: =INDEX('Detailed Model'!$A17:$ZZ17,'Annual Subtotals'!JB$4) -> 144.3251992 | JC11: =INDEX('Detailed Model'!$A17:$ZZ17,'Annual Subtotals'!JC$4) -> 158.532028 | JD11: =INDEX('Detailed Model'!$A17:$ZZ17,'Annual Subtotals'!JD$4) -> 1586.33107 | JE11: =INDEX('Detailed Model'!$A17:$ZZ17,'Annual Subtotals'!JE$4) -> 160.8605534 | JF11: =INDEX('Detailed Model'!$A17:$ZZ17,'Annual Subtotals'!JF$4) -> 161.885335 | JG11: =INDEX('Detailed Model'!$A17:$ZZ17,'Annual Subtotals'!JG$4) -> 155.7292926 | JH11: =INDEX('Detailed Model'!$A17:$ZZ17,'Annual Subtotals'!JH$4) -> 175.8818553 | JI11: =INDEX('Detailed Model'!$A17:$ZZ17,'Annual Subtotals'!JI$4) -> 175.2533192 | JJ11: =INDEX('Detailed Model'!$A17:$ZZ17,'Annual Subtotals'!JJ$4) -> 185.1243926 | JK11: =INDEX('Detailed Model'!$A17:$ZZ17,'Annual Subtotals'!JK$4) -> 192.371754 | JL11: =INDEX('Detailed Model'!$A17:$ZZ17,'Annual Subtotals'!JL$4) -> 196.7651153 | JM11: =INDEX('Detailed Model'!$A17:$ZZ17,'Annual Subtotals'!JM$4) -> 188.2435677 | JN11: =INDEX('Detailed Model'!$A17:$ZZ17,'Annual Subtotals'!JN$4) -> 190.3645563 | JO11: =INDEX('Detailed Model'!$A17:$ZZ17,'Annual Subtotals'!JO$4) ->  | JP11: =INDEX('Detailed Model'!$A17:$ZZ17,'Annual Subtotals'!JP$4) ->  | JQ11: =INDEX('Detailed Model'!$A17:$ZZ17,'Annual Subtotals'!JQ$4) -> 1782.479741 | JR11: =INDEX('Detailed Model'!$A17:$ZZ17,'Annual Subtotals'!JR$4) ->  | JS11: =INDEX('Detailed Model'!$A17:$ZZ17,'Annual Subtotals'!JS$4) ->  | JT11: =INDEX('Detailed Model'!$A17:$ZZ17,'Annual Subtotals'!JT$4) ->  | JU11: =INDEX('Detailed Model'!$A17:$ZZ17,'Annual Subtotals'!JU$4) ->  | JV11: =INDEX('Detailed Model'!$A17:$ZZ17,'Annual Subtotals'!JV$4) ->  | JW11: =INDEX('Detailed Model'!$A17:$ZZ17,'Annual Subtotals'!JW$4) ->  | JX11: =INDEX('Detailed Model'!$A17:$ZZ17,'Annual Subtotals'!JX$4) ->  | JY11: =INDEX('Detailed Model'!$A17:$ZZ17,'Annual Subtotals'!JY$4) ->  | JZ11: =INDEX('Detailed Model'!$A17:$ZZ17,'Annual Subtotals'!JZ$4) ->  | KA11: =INDEX('Detailed Model'!$A17:$ZZ17,'Annual Subtotals'!KA$4) ->  | KB11: =INDEX('Detailed Model'!$A17:$ZZ17,'Annual Subtotals'!KB$4) ->  | KC11: =INDEX('Detailed Model'!$A17:$ZZ17,'Annual Subtotals'!KC$4) ->  | KD11: =INDEX('Detailed Model'!$A17:$ZZ17,'Annual Subtotals'!KD$4) ->  | KE11: =INDEX('Detailed Model'!$A17:$ZZ17,'Annual Subtotals'!KE$4) ->  | KF11: =INDEX('Detailed Model'!$A17:$ZZ17,'Annual Subtotals'!KF$4) ->  | KG11: =INDEX('Detailed Model'!$A17:$ZZ17,'Annual Subtotals'!KG$4) ->  | KH11: =INDEX('Detailed Model'!$A17:$ZZ17,'Annual Subtotals'!KH$4) ->  | KI11: =INDEX('Detailed Model'!$A17:$ZZ17,'Annual Subtotals'!KI$4) ->  | KJ11: =INDEX('Detailed Model'!$A17:$ZZ17,'Annual Subtotals'!KJ$4) ->  | KK11: =INDEX('Detailed Model'!$A17:$ZZ17,'Annual Subtotals'!KK$4) ->  | KL11: =INDEX('Detailed Model'!$A17:$ZZ17,'Annual Subtotals'!KL$4) ->  | KM11: =INDEX('Detailed Model'!$A17:$ZZ17,'Annual Subtotals'!KM$4) ->  | KN11: =INDEX('Detailed Model'!$A17:$ZZ17,'Annual Subtotals'!KN$4) ->  | KO11: =INDEX('Detailed Model'!$A17:$ZZ17,'Annual Subtotals'!KO$4) ->  | KP11: =INDEX('Detailed Model'!$A17:$ZZ17,'Annual Subtotals'!KP$4) ->  | KQ11: =INDEX('Detailed Model'!$A17:$ZZ17,'Annual Subtotals'!KQ$4) ->  | KR11: =INDEX('Detailed Model'!$A17:$ZZ17,'Annual Subtotals'!KR$4) -> 
C12: Revenue 3 | E12: =INDEX('Detailed Model'!$A18:$ZZ18,'Annual Subtotals'!E$4) -> 200 | F12: =INDEX('Detailed Model'!$A18:$ZZ18,'Annual Subtotals'!F$4) -> 194.9508688 | G12: =INDEX('Detailed Model'!$A18:$ZZ18,'Annual Subtotals'!G$4) -> 197.9596861 | H12: =INDEX('Detailed Model'!$A18:$ZZ18,'Annual Subtotals'!H$4) -> 198.6331434 | I12: =INDEX('Detailed Model'!$A18:$ZZ18,'Annual Subtotals'!I$4) -> 207.1847194 | J12: =INDEX('Detailed Model'!$A18:$ZZ18,'Annual Subtotals'!J$4) -> 203.9613841 | K12: =INDEX('Detailed Model'!$A18:$ZZ18,'Annual Subtotals'!K$4) -> 199.428912 | L12: =INDEX('Detailed Model'!$A18:$ZZ18,'Annual Subtotals'!L$4) -> 198.0206283 | M12: =INDEX('Detailed Model'!$A18:$ZZ18,'Annual Subtotals'!M$4) -> 194.2759197 | N12: =INDEX('Detailed Model'!$A18:$ZZ18,'Annual Subtotals'!N$4) -> 194.8051745 | O12: =INDEX('Detailed Model'!$A18:$ZZ18,'Annual Subtotals'!O$4) -> 196.97234 | P12: =INDEX('Detailed Model'!$A18:$ZZ18,'Annual Subtotals'!P$4) -> 190.3589941 | Q12: =INDEX('Detailed Model'!$A18:$ZZ18,'Annual Subtotals'!Q$4) -> 2376.55177 | R12: =INDEX('Detailed Model'!$A18:$ZZ18,'Annual Subtotals'!R$4) -> 190.7832747 | S12: =INDEX('Detailed Model'!$A18:$ZZ18,'Annual Subtotals'!S$4) -> 193.8052054 | T12: =INDEX('Detailed Model'!$A18:$ZZ18,'Annual Subtotals'!T$4) -> 189.8627438 | U12: =INDEX('Detailed Model'!$A18:$ZZ18,'Annual Subtotals'!U$4) -> 189.2919647 | V12: =INDEX('Detailed Model'!$A18:$ZZ18,'Annual Subtotals'!V$4) -> 193.3652026 | W12: =INDEX('Detailed Model'!$A18:$ZZ18,'Annual Subtotals'!W$4) -> 196.8161138 | X12: =INDEX('Detailed Model'!$A18:$ZZ18,'Annual Subtotals'!X$4) -> 198.6374313 | Y12: =INDEX('Detailed Model'!$A18:$ZZ18,'Annual Subtotals'!Y$4) -> 204.4074508 | Z12: =INDEX('Detailed Model'!$A18:$ZZ18,'Annual Subtotals'!Z$4) -> 205.7590578 | AA12: =INDEX('Detailed Model'!$A18:$ZZ18,'Annual Subtotals'!AA$4) -> 203.4957274 | AB12: =INDEX('Detailed Model'!$A18:$ZZ18,'Annual Subtotals'!AB$4) -> 203.7254308 | AC12: =INDEX('Detailed Model'!$A18:$ZZ18,'Annual Subtotals'!AC$4) -> 203.8049363 | AD12: =INDEX('Detailed Model'!$A18:$ZZ18,'Annual Subtotals'!AD$4) -> 2373.754539 | AE12: =INDEX('Detailed Model'!$A18:$ZZ18,'Annual Subtotals'!AE$4) -> 210.2411203 | AF12: =INDEX('Detailed Model'!$A18:$ZZ18,'Annual Subtotals'!AF$4) -> 213.6640118 | AG12: =INDEX('Detailed Model'!$A18:$ZZ18,'Annual Subtotals'!AG$4) -> 213.7549872 | AH12: =INDEX('Detailed Model'!$A18:$ZZ18,'Annual Subtotals'!AH$4) -> 210.7203551 | AI12: =INDEX('Detailed Model'!$A18:$ZZ18,'Annual Subtotals'!AI$4) -> 214.629661 | AJ12: =INDEX('Detailed Model'!$A18:$ZZ18,'Annual Subtotals'!AJ$4) -> 217.1691831 | AK12: =INDEX('Detailed Model'!$A18:$ZZ18,'Annual Subtotals'!AK$4) -> 212.2323123 | AL12: =INDEX('Detailed Model'!$A18:$ZZ18,'Annual Subtotals'!AL$4) -> 209.2184648 | AM12: =INDEX('Detailed Model'!$A18:$ZZ18,'Annual Subtotals'!AM$4) -> 211.8895024 | AN12: =INDEX('Detailed Model'!$A18:$ZZ18,'Annual Subtotals'!AN$4) -> 206.8974507 | AO12: =INDEX('Detailed Model'!$A18:$ZZ18,'Annual Subtotals'!AO$4) -> 213.2646058 | AP12: =INDEX('Detailed Model'!$A18:$ZZ18,'Annual Subtotals'!AP$4) -> 216.8339602 | AQ12: =INDEX('Detailed Model'!$A18:$ZZ18,'Annual Subtotals'!AQ$4) -> 2550.515615 | AR12: =INDEX('Detailed Model'!$A18:$ZZ18,'Annual Subtotals'!AR$4) -> 225.7964756 | AS12: =INDEX('Detailed Model'!$A18:$ZZ18,'Annual Subtotals'!AS$4) -> 224.4891669 | AT12: =INDEX('Detailed Model'!$A18:$ZZ18,'Annual Subtotals'!AT$4) -> 224.0661748 | AU12: =INDEX('Detailed Model'!$A18:$ZZ18,'Annual Subtotals'!AU$4) -> 222.1135691 | AV12: =INDEX('Detailed Model'!$A18:$ZZ18,'Annual Subtotals'!AV$4) -> 226.38875 | AW12: =INDEX('Detailed Model'!$A18:$ZZ18,'Annual Subtotals'!AW$4) -> 228.7313732 | AX12: =INDEX('Detailed Model'!$A18:$ZZ18,'Annual Subtotals'!AX$4) -> 226.2277823 | AY12: =INDEX('Detailed Model'!$A18:$ZZ18,'Annual Subtotals'!AY$4) -> 227.4730617 | AZ12: =INDEX('Detailed Model'!$A18:$ZZ18,'Annual Subtotals'!AZ$4) -> 229.0409178 | BA12: =INDEX('Detailed Model'!$A18:$ZZ18,'Annual Subtotals'!BA$4) -> 239.8236941 | BB12: =INDEX('Detailed Model'!$A18:$ZZ18,'Annual Subtotals'!BB$4) -> 234.6157447 | BC12: =INDEX('Detailed Model'!$A18:$ZZ18,'Annual Subtotals'!BC$4) -> 237.1707556 | BD12: =INDEX('Detailed Model'!$A18:$ZZ18,'Annual Subtotals'!BD$4) -> 2745.937466 | BE12: =INDEX('Detailed Model'!$A18:$ZZ18,'Annual Subtotals'!BE$4) -> 242.3057 | BF12: =INDEX('Detailed Model'!$A18:$ZZ18,'Annual Subtotals'!BF$4) -> 237.6021697 | BG12: =INDEX('Detailed Model'!$A18:$ZZ18,'Annual Subtotals'!BG$4) -> 237.8286333 | BH12: =INDEX('Detailed Model'!$A18:$ZZ18,'Annual Subtotals'!BH$4) -> 239.5636583 | BI12: =INDEX('Detailed Model'!$A18:$ZZ18,'Annual Subtotals'!BI$4) -> 243.4547478 | BJ12: =INDEX('Detailed Model'!$A18:$ZZ18,'Annual Subtotals'!BJ$4) -> 234.7957099 | BK12: =INDEX('Detailed Model'!$A18:$ZZ18,'Annual Subtotals'!BK$4) -> 234.8761053 | BL12: =INDEX('Detailed Model'!$A18:$ZZ18,'Annual Subtotals'!BL$4) -> 240.5395539 | BM12: =INDEX('Detailed Model'!$A18:$ZZ18,'Annual Subtotals'!BM$4) -> 235.8623492 | BN12: =INDEX('Detailed Model'!$A18:$ZZ18,'Annual Subtotals'!BN$4) -> 226.5320376 | BO12: =INDEX('Detailed Model'!$A18:$ZZ18,'Annual Subtotals'!BO$4) -> 229.9747686 | BP12: =INDEX('Detailed Model'!$A18:$ZZ18,'Annual Subtotals'!BP$4) -> 225.620367 | BQ12: =INDEX('Detailed Model'!$A18:$ZZ18,'Annual Subtotals'!BQ$4) -> 2828.955801 | BR12: =INDEX('Detailed Model'!$A18:$ZZ18,'Annual Subtotals'!BR$4) -> 225.3672003 | BS12: =INDEX('Detailed Model'!$A18:$ZZ18,'Annual Subtotals'!BS$4) -> 220.8595187 | BT12: =INDEX('Detailed Model'!$A18:$ZZ18,'Annual Subtotals'!BT$4) -> 216.9688056 | BU12: =INDEX('Detailed Model'!$A18:$ZZ18,'Annual Subtotals'!BU$4) -> 215.6776688 | BV12: =INDEX('Detailed Model'!$A18:$ZZ18,'Annual Subtotals'!BV$4) -> 218.289438 | BW12: =INDEX('Detailed Model'!$A18:$ZZ18,'Annual Subtotals'!BW$4) -> 220.0677491 | BX12: =INDEX('Detailed Model'!$A18:$ZZ18,'Annual Subtotals'!BX$4) -> 213.5315798 | BY12: =INDEX('Detailed Model'!$A18:$ZZ18,'Annual Subtotals'!BY$4) -> 214.2284719 | BZ12: =INDEX('Detailed Model'!$A18:$ZZ18,'Annual Subtotals'!BZ$4) -> 211.8014411 | CA12: =INDEX('Detailed Model'!$A18:$ZZ18,'Annual Subtotals'!CA$4) -> 215.7619962 | CB12: =INDEX('Detailed Model'!$A18:$ZZ18,'Annual Subtotals'!CB$4) -> 217.3443035 | CC12: =INDEX('Detailed Model'!$A18:$ZZ18,'Annual Subtotals'!CC$4) -> 223.4721077 | CD12: =INDEX('Detailed Model'!$A18:$ZZ18,'Annual Subtotals'!CD$4) -> 2613.370281 | CE12: =INDEX('Detailed Model'!$A18:$ZZ18,'Annual Subtotals'!CE$4) -> 217.4865555 | CF12: =INDEX('Detailed Model'!$A18:$ZZ18,'Annual Subtotals'!CF$4) -> 218.5631049 | CG12: =INDEX('Detailed Model'!$A18:$ZZ18,'Annual Subtotals'!CG$4) -> 217.3421305 | CH12: =INDEX('Detailed Model'!$A18:$ZZ18,'Annual Subtotals'!CH$4) -> 212.642591 | CI12: =INDEX('Detailed Model'!$A18:$ZZ18,'Annual Subtotals'!CI$4) -> 213.4041103 | CJ12: =INDEX('Detailed Model'!$A18:$ZZ18,'Annual Subtotals'!CJ$4) -> 210.131873 | CK12: =INDEX('Detailed Model'!$A18:$ZZ18,'Annual Subtotals'!CK$4) -> 212.2034415 | CL12: =INDEX('Detailed Model'!$A18:$ZZ18,'Annual Subtotals'!CL$4) -> 210.8747721 | CM12: =INDEX('Detailed Model'!$A18:$ZZ18,'Annual Subtotals'!CM$4) -> 209.4149097 | CN12: =INDEX('Detailed Model'!$A18:$ZZ18,'Annual Subtotals'!CN$4) -> 210.2733798 | CO12: =INDEX('Detailed Model'!$A18:$ZZ18,'Annual Subtotals'!CO$4) -> 210.7928493 | CP12: =INDEX('Detailed Model'!$A18:$ZZ18,'Annual Subtotals'!CP$4) -> 216.0085683 | CQ12: =INDEX('Detailed Model'!$A18:$ZZ18,'Annual Subtotals'!CQ$4) -> 2559.138286 | CR12: =INDEX('Detailed Model'!$A18:$ZZ18,'Annual Subtotals'!CR$4) -> 213.8085283 | CS12: =INDEX('Detailed Model'!$A18:$ZZ18,'Annual Subtotals'!CS$4) -> 213.090566 | CT12: =INDEX('Detailed Model'!$A18:$ZZ18,'Annual Subtotals'!CT$4) -> 214.2072465 | CU12: =INDEX('Detailed Model'!$A18:$ZZ18,'Annual Subtotals'!CU$4) -> 210.1824341 | CV12: =INDEX('Detailed Model'!$A18:$ZZ18,'Annual Subtotals'!CV$4) -> 215.1757372 | CW12: =INDEX('Detailed Model'!$A18:$ZZ18,'Annual Subtotals'!CW$4) -> 216.5535896 | CX12: =INDEX('Detailed Model'!$A18:$ZZ18,'Annual Subtotals'!CX$4) -> 215.3514628 | CY12: =INDEX('Detailed Model'!$A18:$ZZ18,'Annual Subtotals'!CY$4) -> 219.084311 | CZ12: =INDEX('Detailed Model'!$A18:$ZZ18,'Annual Subtotals'!CZ$4) -> 216.8291593 | DA12: =INDEX('Detailed Model'!$A18:$ZZ18,'Annual Subtotals'!DA$4) -> 217.4025471 | DB12: =INDEX('Detailed Model'!$A18:$ZZ18,'Annual Subtotals'!DB$4) -> 217.6133752 | DC12: =INDEX('Detailed Model'!$A18:$ZZ18,'Annual Subtotals'!DC$4) -> 215.694324 | DD12: =INDEX('Detailed Model'!$A18:$ZZ18,'Annual Subtotals'!DD$4) -> 2584.993281 | DE12: =INDEX('Detailed Model'!$A18:$ZZ18,'Annual Subtotals'!DE$4) -> 202.9103133 | DF12: =INDEX('Detailed Model'!$A18:$ZZ18,'Annual Subtotals'!DF$4) -> 200.3987943 | DG12: =INDEX('Detailed Model'!$A18:$ZZ18,'Annual Subtotals'!DG$4) -> 194.4045966 | DH12: =INDEX('Detailed Model'!$A18:$ZZ18,'Annual Subtotals'!DH$4) -> 195.151652 | DI12: =INDEX('Detailed Model'!$A18:$ZZ18,'Annual Subtotals'!DI$4) -> 195.7202464 | DJ12: =INDEX('Detailed Model'!$A18:$ZZ18,'Annual Subtotals'!DJ$4) -> 194.2262394 | DK12: =INDEX('Detailed Model'!$A18:$ZZ18,'Annual Subtotals'!DK$4) -> 194.9573092 | DL12: =INDEX('Detailed Model'!$A18:$ZZ18,'Annual Subtotals'!DL$4) -> 192.7730364 | DM12: =INDEX('Detailed Model'!$A18:$ZZ18,'Annual Subtotals'!DM$4) -> 197.0511208 | DN12: =INDEX('Detailed Model'!$A18:$ZZ18,'Annual Subtotals'!DN$4) -> 200.3931553 | DO12: =INDEX('Detailed Model'!$A18:$ZZ18,'Annual Subtotals'!DO$4) -> 202.5323938 | DP12: =INDEX('Detailed Model'!$A18:$ZZ18,'Annual Subtotals'!DP$4) -> 207.425827 | DQ12: =INDEX('Detailed Model'!$A18:$ZZ18,'Annual Subtotals'!DQ$4) -> 2377.944684 | DR12: =INDEX('Detailed Model'!$A18:$ZZ18,'Annual Subtotals'!DR$4) -> 204.8291016 | DS12: =INDEX('Detailed Model'!$A18:$ZZ18,'Annual Subtotals'!DS$4) -> 210.0442682 | DT12: =INDEX('Detailed Model'!$A18:$ZZ18,'Annual Subtotals'!DT$4) -> 214.7609982 | DU12: =INDEX('Detailed Model'!$A18:$ZZ18,'Annual Subtotals'!DU$4) -> 220.3613466 | DV12: =INDEX('Detailed Model'!$A18:$ZZ18,'Annual Subtotals'!DV$4) -> 219.3188559 | DW12: =INDEX('Detailed Model'!$A18:$ZZ18,'Annual Subtotals'!DW$4) -> 213.4705262 | DX12: =INDEX('Detailed Model'!$A18:$ZZ18,'Annual Subtotals'!DX$4) -> 213.4660845 | DY12: =INDEX('Detailed Model'!$A18:$ZZ18,'Annual Subtotals'!DY$4) -> 209.2107852 | DZ12: =INDEX('Detailed Model'!$A18:$ZZ18,'Annual Subtotals'!DZ$4) -> 206.3632653 | EA12: =INDEX('Detailed Model'!$A18:$ZZ18,'Annual Subtotals'!EA$4) -> 209.6508651 | EB12: =INDEX('Detailed Model'!$A18:$ZZ18,'Annual Subtotals'!EB$4) -> 203.008022 | EC12: =INDEX('Detailed Model'!$A18:$ZZ18,'Annual Subtotals'!EC$4) -> 198.1072027 | ED12: =INDEX('Detailed Model'!$A18:$ZZ18,'Annual Subtotals'!ED$4) -> 2522.591322 | EE12: =INDEX('Detailed Model'!$A18:$ZZ18,'Annual Subtotals'!EE$4) -> 198.4455695 | EF12: =INDEX('Detailed Model'!$A18:$ZZ18,'Annual Subtotals'!EF$4) -> 198.021475 | EG12: =INDEX('Detailed Model'!$A18:$ZZ18,'Annual Subtotals'!EG$4) -> 193.8821803 | EH12: =INDEX('Detailed Model'!$A18:$ZZ18,'Annual Subtotals'!EH$4) -> 189.1665289 | EI12: =INDEX('Detailed Model'!$A18:$ZZ18,'Annual Subtotals'!EI$4) -> 193.1269476 | EJ12: =INDEX('Detailed Model'!$A18:$ZZ18,'Annual Subtotals'!EJ$4) -> 192.2566269 | EK12: =INDEX('Detailed Model'!$A18:$ZZ18,'Annual Subtotals'!EK$4) -> 187.8420621 | EL12: =INDEX('Detailed Model'!$A18:$ZZ18,'Annual Subtotals'!EL$4) -> 187.1003443 | EM12: =INDEX('Detailed Model'!$A18:$ZZ18,'Annual Subtotals'!EM$4) -> 186.480209 | EN12: =INDEX('Detailed Model'!$A18:$ZZ18,'Annual Subtotals'!EN$4) -> 185.1673503 | EO12: =INDEX('Detailed Model'!$A18:$ZZ18,'Annual Subtotals'!EO$4) -> 181.8652216 | EP12: =INDEX('Detailed Model'!$A18:$ZZ18,'Annual Subtotals'!EP$4) -> 176.6823094 | EQ12: =INDEX('Detailed Model'!$A18:$ZZ18,'Annual Subtotals'!EQ$4) -> 2270.036825 | ER12: =INDEX('Detailed Model'!$A18:$ZZ18,'Annual Subtotals'!ER$4) -> 180.8353852 | ES12: =INDEX('Detailed Model'!$A18:$ZZ18,'Annual Subtotals'!ES$4) -> 182.7493662 | ET12: =INDEX('Detailed Model'!$A18:$ZZ18,'Annual Subtotals'!ET$4) -> 181.6045885 | EU12: =INDEX('Detailed Model'!$A18:$ZZ18,'Annual Subtotals'!EU$4) -> 178.7358946 | EV12: =INDEX('Detailed Model'!$A18:$ZZ18,'Annual Subtotals'!EV$4) -> 172.4340433 | EW12: =INDEX('Detailed Model'!$A18:$ZZ18,'Annual Subtotals'!EW$4) -> 167.3816258 | EX12: =INDEX('Detailed Model'!$A18:$ZZ18,'Annual Subtotals'!EX$4) -> 169.7283301 | EY12: =INDEX('Detailed Model'!$A18:$ZZ18,'Annual Subtotals'!EY$4) -> 167.6133952 | EZ12: =INDEX('Detailed Model'!$A18:$ZZ18,'Annual Subtotals'!EZ$4) -> 167.3924427 | FA12: =INDEX('Detailed Model'!$A18:$ZZ18,'Annual Subtotals'!FA$4) -> 168.4078873 | FB12: =INDEX('Detailed Model'!$A18:$ZZ18,'Annual Subtotals'!FB$4) -> 168.6557032 | FC12: =INDEX('Detailed Model'!$A18:$ZZ18,'Annual Subtotals'!FC$4) -> 165.6817737 | FD12: =INDEX('Detailed Model'!$A18:$ZZ18,'Annual Subtotals'!FD$4) -> 2071.220436 | FE12: =INDEX('Detailed Model'!$A18:$ZZ18,'Annual Subtotals'!FE$4) -> 164.1771448 | FF12: =INDEX('Detailed Model'!$A18:$ZZ18,'Annual Subtotals'!FF$4) -> 162.6222244 | FG12: =INDEX('Detailed Model'!$A18:$ZZ18,'Annual Subtotals'!FG$4) -> 166.0974222 | FH12: =INDEX('Detailed Model'!$A18:$ZZ18,'Annual Subtotals'!FH$4) -> 166.0735344 | FI12: =INDEX('Detailed Model'!$A18:$ZZ18,'Annual Subtotals'!FI$4) -> 167.8158251 | FJ12: =INDEX('Detailed Model'!$A18:$ZZ18,'Annual Subtotals'!FJ$4) -> 168.3073768 | FK12: =INDEX('Detailed Model'!$A18:$ZZ18,'Annual Subtotals'!FK$4) -> 165.8110809 | FL12: =INDEX('Detailed Model'!$A18:$ZZ18,'Annual Subtotals'!FL$4) -> 166.9092614 | FM12: =INDEX('Detailed Model'!$A18:$ZZ18,'Annual Subtotals'!FM$4) -> 171.2156775 | FN12: =INDEX('Detailed Model'!$A18:$ZZ18,'Annual Subtotals'!FN$4) -> 175.9378712 | FO12: =INDEX('Detailed Model'!$A18:$ZZ18,'Annual Subtotals'!FO$4) -> 174.3987238 | FP12: =INDEX('Detailed Model'!$A18:$ZZ18,'Annual Subtotals'!FP$4) -> 178.0700224 | FQ12: =INDEX('Detailed Model'!$A18:$ZZ18,'Annual Subtotals'!FQ$4) -> 2027.436165 | FR12: =INDEX('Detailed Model'!$A18:$ZZ18,'Annual Subtotals'!FR$4) -> 179.6487252 | FS12: =INDEX('Detailed Model'!$A18:$ZZ18,'Annual Subtotals'!FS$4) -> 183.8850332 | FT12: =INDEX('Detailed Model'!$A18:$ZZ18,'Annual Subtotals'!FT$4) -> 182.0150011 | FU12: =INDEX('Detailed Model'!$A18:$ZZ18,'Annual Subtotals'!FU$4) -> 187.1546424 | FV12: =INDEX('Detailed Model'!$A18:$ZZ18,'Annual Subtotals'!FV$4) -> 182.5810104 | FW12: =INDEX('Detailed Model'!$A18:$ZZ18,'Annual Subtotals'!FW$4) -> 175.2967016 | FX12: =INDEX('Detailed Model'!$A18:$ZZ18,'Annual Subtotals'!FX$4) -> 176.0715349 | FY12: =INDEX('Detailed Model'!$A18:$ZZ18,'Annual Subtotals'!FY$4) -> 176.710765 | FZ12: =INDEX('Detailed Model'!$A18:$ZZ18,'Annual Subtotals'!FZ$4) -> 170.6616449 | GA12: =INDEX('Detailed Model'!$A18:$ZZ18,'Annual Subtotals'!GA$4) -> 179.6043799 | GB12: =INDEX('Detailed Model'!$A18:$ZZ18,'Annual Subtotals'!GB$4) -> 179.0219412 | GC12: =INDEX('Detailed Model'!$A18:$ZZ18,'Annual Subtotals'!GC$4) -> 180.2181624 | GD12: =INDEX('Detailed Model'!$A18:$ZZ18,'Annual Subtotals'!GD$4) -> 2152.869542 | GE12: =INDEX('Detailed Model'!$A18:$ZZ18,'Annual Subtotals'!GE$4) -> 174.9432497 | GF12: =INDEX('Detailed Model'!$A18:$ZZ18,'Annual Subtotals'!GF$4) -> 173.8410665 | GG12: =INDEX('Detailed Model'!$A18:$ZZ18,'Annual Subtotals'!GG$4) -> 173.1817373 | GH12: =INDEX('Detailed Model'!$A18:$ZZ18,'Annual Subtotals'!GH$4) -> 178.2424992 | GI12: =INDEX('Detailed Model'!$A18:$ZZ18,'Annual Subtotals'!GI$4) -> 172.192783 | GJ12: =INDEX('Detailed Model'!$A18:$ZZ18,'Annual Subtotals'!GJ$4) -> 172.664061 | GK12: =INDEX('Detailed Model'!$A18:$ZZ18,'Annual Subtotals'!GK$4) -> 169.3615583 | GL12: =INDEX('Detailed Model'!$A18:$ZZ18,'Annual Subtotals'!GL$4) -> 167.4912107 | GM12: =INDEX('Detailed Model'!$A18:$ZZ18,'Annual Subtotals'!GM$4) -> 166.2178272 | GN12: =INDEX('Detailed Model'!$A18:$ZZ18,'Annual Subtotals'!GN$4) -> 165.7080927 | GO12: =INDEX('Detailed Model'!$A18:$ZZ18,'Annual Subtotals'!GO$4) -> 169.2425014 | GP12: =INDEX('Detailed Model'!$A18:$ZZ18,'Annual Subtotals'!GP$4) -> 164.6770813 | GQ12: =INDEX('Detailed Model'!$A18:$ZZ18,'Annual Subtotals'!GQ$4) -> 2047.763668 | GR12: =INDEX('Detailed Model'!$A18:$ZZ18,'Annual Subtotals'!GR$4) -> 162.6796367 | GS12: =INDEX('Detailed Model'!$A18:$ZZ18,'Annual Subtotals'!GS$4) -> 168.3989226 | GT12: =INDEX('Detailed Model'!$A18:$ZZ18,'Annual Subtotals'!GT$4) -> 166.5161732 | GU12: =INDEX('Detailed Model'!$A18:$ZZ18,'Annual Subtotals'!GU$4) -> 164.5698913 | GV12: =INDEX('Detailed Model'!$A18:$ZZ18,'Annual Subtotals'!GV$4) -> 163.9673433 | GW12: =INDEX('Detailed Model'!$A18:$ZZ18,'Annual Subtotals'!GW$4) -> 162.0605953 | GX12: =INDEX('Detailed Model'!$A18:$ZZ18,'Annual Subtotals'!GX$4) -> 164.0680785 | GY12: =INDEX('Detailed Model'!$A18:$ZZ18,'Annual Subtotals'!GY$4) -> 157.6426517 | GZ12: =INDEX('Detailed Model'!$A18:$ZZ18,'Annual Subtotals'!GZ$4) -> 157.2179936 | HA12: =INDEX('Detailed Model'!$A18:$ZZ18,'Annual Subtotals'!HA$4) -> 161.4723837 | HB12: =INDEX('Detailed Model'!$A18:$ZZ18,'Annual Subtotals'!HB$4) -> 161.5839967 | HC12: =INDEX('Detailed Model'!$A18:$ZZ18,'Annual Subtotals'!HC$4) -> 159.9704924 | HD12: =INDEX('Detailed Model'!$A18:$ZZ18,'Annual Subtotals'!HD$4) -> 1950.148159 | HE12: =INDEX('Detailed Model'!$A18:$ZZ18,'Annual Subtotals'!HE$4) -> 161.9354958 | HF12: =INDEX('Detailed Model'!$A18:$ZZ18,'Annual Subtotals'!HF$4) -> 163.3038856 | HG12: =INDEX('Detailed Model'!$A18:$ZZ18,'Annual Subtotals'!HG$4) -> 161.2356165 | HH12: =INDEX('Detailed Model'!$A18:$ZZ18,'Annual Subtotals'!HH$4) -> 157.2014247 | HI12: =INDEX('Detailed Model'!$A18:$ZZ18,'Annual Subtotals'!HI$4) -> 151.86427 | HJ12: =INDEX('Detailed Model'!$A18:$ZZ18,'Annual Subtotals'!HJ$4) -> 153.3096752 | HK12: =INDEX('Detailed Model'!$A18:$ZZ18,'Annual Subtotals'!HK$4) -> 152.7066664 | HL12: =INDEX('Detailed Model'!$A18:$ZZ18,'Annual Subtotals'!HL$4) -> 153.2022693 | HM12: =INDEX('Detailed Model'!$A18:$ZZ18,'Annual Subtotals'!HM$4) -> 153.3107986 | HN12: =INDEX('Detailed Model'!$A18:$ZZ18,'Annual Subtotals'!HN$4) -> 153.2427762 | HO12: =INDEX('Detailed Model'!$A18:$ZZ18,'Annual Subtotals'!HO$4) -> 152.0205481 | HP12: =INDEX('Detailed Model'!$A18:$ZZ18,'Annual Subtotals'!HP$4) -> 151.618412 | HQ12: =INDEX('Detailed Model'!$A18:$ZZ18,'Annual Subtotals'!HQ$4) -> 1864.951838 | HR12: =INDEX('Detailed Model'!$A18:$ZZ18,'Annual Subtotals'!HR$4) -> 147.4058592 | HS12: =INDEX('Detailed Model'!$A18:$ZZ18,'Annual Subtotals'!HS$4) -> 145.3679622 | HT12: =INDEX('Detailed Model'!$A18:$ZZ18,'Annual Subtotals'!HT$4) -> 143.2629948 | HU12: =INDEX('Detailed Model'!$A18:$ZZ18,'Annual Subtotals'!HU$4) -> 147.1685477 | HV12: =INDEX('Detailed Model'!$A18:$ZZ18,'Annual Subtotals'!HV$4) -> 145.4230803 | HW12: =INDEX('Detailed Model'!$A18:$ZZ18,'Annual Subtotals'!HW$4) -> 150.0366087 | HX12: =INDEX('Detailed Model'!$A18:$ZZ18,'Annual Subtotals'!HX$4) -> 145.767301 | HY12: =INDEX('Detailed Model'!$A18:$ZZ18,'Annual Subtotals'!HY$4) -> 144.2316302 | HZ12: =INDEX('Detailed Model'!$A18:$ZZ18,'Annual Subtotals'!HZ$4) -> 144.6341504 | IA12: =INDEX('Detailed Model'!$A18:$ZZ18,'Annual Subtotals'!IA$4) -> 146.9057204 | IB12: =INDEX('Detailed Model'!$A18:$ZZ18,'Annual Subtotals'!IB$4) -> 149.5313773 | IC12: =INDEX('Detailed Model'!$A18:$ZZ18,'Annual Subtotals'!IC$4) -> 150.310713 | ID12: =INDEX('Detailed Model'!$A18:$ZZ18,'Annual Subtotals'!ID$4) -> 1760.045945 | IE12: =INDEX('Detailed Model'!$A18:$ZZ18,'Annual Subtotals'!IE$4) -> 152.1498849 | IF12: =INDEX('Detailed Model'!$A18:$ZZ18,'Annual Subtotals'!IF$4) -> 148.9570671 | IG12: =INDEX('Detailed Model'!$A18:$ZZ18,'Annual Subtotals'!IG$4) -> 147.4735613 | IH12: =INDEX('Detailed Model'!$A18:$ZZ18,'Annual Subtotals'!IH$4) -> 149.6287539 | II12: =INDEX('Detailed Model'!$A18:$ZZ18,'Annual Subtotals'!II$4) -> 147.2746524 | IJ12: =INDEX('Detailed Model'!$A18:$ZZ18,'Annual Subtotals'!IJ$4) -> 149.5621548 | IK12: =INDEX('Detailed Model'!$A18:$ZZ18,'Annual Subtotals'!IK$4) -> 151.7782729 | IL12: =INDEX('Detailed Model'!$A18:$ZZ18,'Annual Subtotals'!IL$4) -> 150.2507783 | IM12: =INDEX('Detailed Model'!$A18:$ZZ18,'Annual Subtotals'!IM$4) -> 151.2103208 | IN12: =INDEX('Detailed Model'!$A18:$ZZ18,'Annual Subtotals'!IN$4) -> 151.4708147 | IO12: =INDEX('Detailed Model'!$A18:$ZZ18,'Annual Subtotals'!IO$4) -> 147.7366723 | IP12: =INDEX('Detailed Model'!$A18:$ZZ18,'Annual Subtotals'!IP$4) -> 148.3575395 | IQ12: =INDEX('Detailed Model'!$A18:$ZZ18,'Annual Subtotals'!IQ$4) -> 1795.850473 | IR12: =INDEX('Detailed Model'!$A18:$ZZ18,'Annual Subtotals'!IR$4) -> 149.085665 | IS12: =INDEX('Detailed Model'!$A18:$ZZ18,'Annual Subtotals'!IS$4) -> 154.3787058 | IT12: =INDEX('Detailed Model'!$A18:$ZZ18,'Annual Subtotals'!IT$4) -> 154.0131249 | IU12: =INDEX('Detailed Model'!$A18:$ZZ18,'Annual Subtotals'!IU$4) -> 154.1483557 | IV12: =INDEX('Detailed Model'!$A18:$ZZ18,'Annual Subtotals'!IV$4) -> 149.8062184 | IW12: =INDEX('Detailed Model'!$A18:$ZZ18,'Annual Subtotals'!IW$4) -> 150.7016632 | IX12: =INDEX('Detailed Model'!$A18:$ZZ18,'Annual Subtotals'!IX$4) -> 147.4534071 | IY12: =INDEX('Detailed Model'!$A18:$ZZ18,'Annual Subtotals'!IY$4) -> 147.6138386 | IZ12: =INDEX('Detailed Model'!$A18:$ZZ18,'Annual Subtotals'!IZ$4) -> 152.7731224 | JA12: =INDEX('Detailed Model'!$A18:$ZZ18,'Annual Subtotals'!JA$4) -> 149.1696825 | JB12: =INDEX('Detailed Model'!$A18:$ZZ18,'Annual Subtotals'!JB$4) -> 149.4730484 | JC12: =INDEX('Detailed Model'!$A18:$ZZ18,'Annual Subtotals'!JC$4) -> 149.3651222 | JD12: =INDEX('Detailed Model'!$A18:$ZZ18,'Annual Subtotals'!JD$4) -> 1807.981954 | JE12: =INDEX('Detailed Model'!$A18:$ZZ18,'Annual Subtotals'!JE$4) -> 144.371052 | JF12: =INDEX('Detailed Model'!$A18:$ZZ18,'Annual Subtotals'!JF$4) -> 144.2051403 | JG12: =INDEX('Detailed Model'!$A18:$ZZ18,'Annual Subtotals'!JG$4) -> 144.5693471 | JH12: =INDEX('Detailed Model'!$A18:$ZZ18,'Annual Subtotals'!JH$4) -> 143.8998428 | JI12: =INDEX('Detailed Model'!$A18:$ZZ18,'Annual Subtotals'!JI$4) -> 148.3876106 | JJ12: =INDEX('Detailed Model'!$A18:$ZZ18,'Annual Subtotals'!JJ$4) -> 148.9461217 | JK12: =INDEX('Detailed Model'!$A18:$ZZ18,'Annual Subtotals'!JK$4) -> 149.2810123 | JL12: =INDEX('Detailed Model'!$A18:$ZZ18,'Annual Subtotals'!JL$4) -> 145.8695103 | JM12: =INDEX('Detailed Model'!$A18:$ZZ18,'Annual Subtotals'!JM$4) -> 149.7608282 | JN12: =INDEX('Detailed Model'!$A18:$ZZ18,'Annual Subtotals'!JN$4) -> 150.5549483 | JO12: =INDEX('Detailed Model'!$A18:$ZZ18,'Annual Subtotals'!JO$4) ->  | JP12: =INDEX('Detailed Model'!$A18:$ZZ18,'Annual Subtotals'!JP$4) ->  | JQ12: =INDEX('Detailed Model'!$A18:$ZZ18,'Annual Subtotals'!JQ$4) -> 1469.845413 | JR12: =INDEX('Detailed Model'!$A18:$ZZ18,'Annual Subtotals'!JR$4) ->  | JS12: =INDEX('Detailed Model'!$A18:$ZZ18,'Annual Subtotals'!JS$4) ->  | JT12: =INDEX('Detailed Model'!$A18:$ZZ18,'Annual Subtotals'!JT$4) ->  | JU12: =INDEX('Detailed Model'!$A18:$ZZ18,'Annual Subtotals'!JU$4) ->  | JV12: =INDEX('Detailed Model'!$A18:$ZZ18,'Annual Subtotals'!JV$4) ->  | JW12: =INDEX('Detailed Model'!$A18:$ZZ18,'Annual Subtotals'!JW$4) ->  | JX12: =INDEX('Detailed Model'!$A18:$ZZ18,'Annual Subtotals'!JX$4) ->  | JY12: =INDEX('Detailed Model'!$A18:$ZZ18,'Annual Subtotals'!JY$4) ->  | JZ12: =INDEX('Detailed Model'!$A18:$ZZ18,'Annual Subtotals'!JZ$4) ->  | KA12: =INDEX('Detailed Model'!$A18:$ZZ18,'Annual Subtotals'!KA$4) ->  | KB12: =INDEX('Detailed Model'!$A18:$ZZ18,'Annual Subtotals'!KB$4) ->  | KC12: =INDEX('Detailed Model'!$A18:$ZZ18,'Annual Subtotals'!KC$4) ->  | KD12: =INDEX('Detailed Model'!$A18:$ZZ18,'Annual Subtotals'!KD$4) ->  | KE12: =INDEX('Detailed Model'!$A18:$ZZ18,'Annual Subtotals'!KE$4) ->  | KF12: =INDEX('Detailed Model'!$A18:$ZZ18,'Annual Subtotals'!KF$4) ->  | KG12: =INDEX('Detailed Model'!$A18:$ZZ18,'Annual Subtotals'!KG$4) ->  | KH12: =INDEX('Detailed Model'!$A18:$ZZ18,'Annual Subtotals'!KH$4) ->  | KI12: =INDEX('Detailed Model'!$A18:$ZZ18,'Annual Subtotals'!KI$4) ->  | KJ12: =INDEX('Detailed Model'!$A18:$ZZ18,'Annual Subtotals'!KJ$4) ->  | KK12: =INDEX('Detailed Model'!$A18:$ZZ18,'Annual Subtotals'!KK$4) ->  | KL12: =INDEX('Detailed Model'!$A18:$ZZ18,'Annual Subtotals'!KL$4) ->  | KM12: =INDEX('Detailed Model'!$A18:$ZZ18,'Annual Subtotals'!KM$4) ->  | KN12: =INDEX('Detailed Model'!$A18:$ZZ18,'Annual Subtotals'!KN$4) ->  | KO12: =INDEX('Detailed Model'!$A18:$ZZ18,'Annual Subtotals'!KO$4) ->  | KP12: =INDEX('Detailed Model'!$A18:$ZZ18,'Annual Subtotals'!KP$4) ->  | KQ12: =INDEX('Detailed Model'!$A18:$ZZ18,'Annual Subtotals'!KQ$4) ->  | KR12: =INDEX('Detailed Model'!$A18:$ZZ18,'Annual Subtotals'!KR$4) -> 
